Workbook

Sheet حساب کل (hidden)
A1: وضعیت مالی کل

Sheet Data Entry
A1: لیست دارایی‌ها
A2: عنوان دارایی | B2: نوع دارایی | C2: ارزش روز (ریال) | D2: درصد نسبت به کل
A3: ='Assets Status'!A2 -> افران | B3: درآمد ثابت | C3: 2054646546 | D3: =(C3 / SUM($C$3:$C$59)) * 100 -> 55.99195973
A4: ='Assets Status'!A3 -> سكه0312پ01 | B4: صندوق | C4: 531488332 | D4: =(C4 / SUM($C$3:$C$59)) * 100 -> 14.48379204
A5: ='Assets Status'!A4 -> كقزوي | B5: صندوق | C5: 402267805 | D5: 10.96235398
A6: ='Assets Status'!A5 -> زيتون | B6: درآمد ثابت | C6: 276443043 | D6: 7.533455212
A7: ='Assets Status'!A6 -> وآفري | B7: صندوق | C7: 102423476 | D7: 2.791181361
A8: ='Assets Status'!A7 -> وشمال | B8: سهام | C8: 92026497 | D8: 2.507849306
A9: ='Assets Status'!A8 -> بكهنوج | B9: سهام | C9: 54513165 | D9: 1.485559132
A10: ='Assets Status'!A9 -> بزاگرس | B10: صندوق | C10: 50316753 | D10: 1.371201102
A11: ='Assets Status'!A10 -> سرو | B11: صندوق | C11: 29964000 | D11: 0.8165604369
A12: ='Assets Status'!A11 -> وطوبی | B12: سهام | C12: 25530626 | D12: 0.6957448645
A13: ='Assets Status'!A12 -> بميلا | B13: طلا | C13: 20579775 | D13: 0.5608273283
A14: ='Assets Status'!A13 -> شملي | B14: صندوق | C14: 15478949 | D14: 0.4218227659
A15: ='Assets Status'!A14 -> آساس | B15: سهام | C15: 8782554 | D15: 0.2393367418
A16: ='Assets Status'!A15 -> ضهرم8003 | B16: سهام | C16: 1865930 | D16: 0.05084917288
A17: ='Assets Status'!A16 -> سپيدار | B17: سهام | C17: 1405720 | D17: 0.03830781396
A18: ='Assets Status'!A17 -> آپ | B18: سهام | C18: 871711 | D18: 0.02375533023
A19: ='Assets Status'!A18 -> طهرم8003 | B19: سهام | C19: 377796 | D19: 0.01029546345
A20: ='Assets Status'!A19 -> ضخود8034 | B20: سهام | C20: 227231 | D20: 0.006192358985
A21: ='Assets Status'!A20 -> غگرجي | B21: سهام | C21: 202020 | D21: 0.005505324371
A22: ='Assets Status'!A21 -> گنج | B22: سهام | C22: 126619 | D22: 0.00345054285
A23: ='Assets Status'!A22 -> ثمين | B23: طلا | D23: 0
A24: ='Assets Status'!A23 -> نارنج اهرم | D24: 0
A25: ='Assets Status'!A24 -> ثهام | D25: 0
A26: ='Assets Status'!A25 -> معين | D26: 0
A27: ='Assets Status'!A26 -> شفام | D27: 0
A28: ='Assets Status'!A27 -> خنور
A59: ='Assets Status'!A34 -> جمع کل
A60: تقسیم بندی بر اساس نوع دارایی
A61: نوع دارایی | C61: ارزش کل (ریال) | D61: درصد از کل
D62: =SUMIF(C$2:C$6, "طلا", D$2:D$6) -> 0
A75: صندوق درآمد ثابت افران | B75: درآمد ثابت | C75: 2054646546 | D75: =(C75 / SUM($C$3:$C$59)) * 100 -> 55.99195973
A76: صندوق زیتون | B76: صندوق | C76: 531488332 | D76: 14.48379204
A77: صندوق آساس | B77: صندوق | C77: 402267805 | D77: 10.96235398
A78: صندوق درآمد ثابت فیروزا | B78: درآمد ثابت | C78: 276443043 | D78: 7.533455212
A79: صندوق اتواگاه | B79: صندوق | C79: 102423476 | D79: 2.791181361
A80: تپسی | B80: سهام | C80: 92026497 | D80: 2.507849306
A81: غصینو | B81: سهام | C81: 54513165 | D81: 1.485559132
A82: صندوق بهین رو | B82: صندوق | C82: 50316753 | D82: 1.371201102
A83: صندوق سینرژی | B83: صندوق | C83: 29964000 | D83: 0.8165604369
A84: غگرجی | B84: سهام | C84: 25530626 | D84: 0.6957448645
A85: صندوق گنج | B85: طلا | C85: 20579775 | D85: 0.5608273283
A86: صندوق ثمین | B86: صندوق | C86: 15478949 | D86: 0.4218227659
A87: ثهام | B87: سهام | C87: 8782554 | D87: 0.2393367418
A88: معین | B88: سهام | C88: 1865930 | D88: 0.05084917288
A89: شفام | B89: سهام | C89: 1405720 | D89: 0.03830781396
A90: خنور | B90: سهام | C90: 871711 | D90: 0.02375533023
A91: چخزر | B91: سهام | C91: 377796 | D91: 0.01029546345
A92: وکبهمن | B92: سهام | C92: 227231 | D92: 0.006192358985
A93: فیروزه | B93: سهام | C93: 202020 | D93: 0.005505324371
A94: دریا | B94: سهام | C94: 126619 | D94: 0.00345054285
A95: سکه طلا (5 تا تمام امامی فیزیکی) | B95: طلا | D95: 0

Sheet Assets Status
A1: نماد | B1: نام کامل نماد | C1: تعداد سهم | D1: ق تمام شده | E1: قیمت میانگین خرید | F1: قیمت فعلی سهم | G1: ارزش روزانه | H1: خالص ارزش فروش | I1: ق سربه سر فروش | J1: بازدهی سهم | K1: % از پرتفو
A2: افران | B2: =IF(A2="","",INDEX('دیده بان بازار'!B:B, MATCH(A2, 'دیده بان بازار'!A:A, 0))) -> صندوق س افرا نماد پايدار-ثابت | C2: 77511 | D2: 2157574769 | E2: 27836 | F2: =IF(A2="","",INDEX('دیده بان بازار'!H:H, MATCH(A2, 'دیده بان بازار'!A:A, 0))) -> 30524 | G2: =(F2*C2) -> 2365945764 | H2: 2253828614 | I2: 27841 | J2: =((F2 - E2) / E2) * 100 -> 9.656559851 | K2: =(G2 / G$34) * 100 -> 
A3: سكه0312پ01 | B3: =IF(A3="","",INDEX('دیده بان بازار'!B:B, MATCH(A3, 'دیده بان بازار'!A:A, 0))) -> تمام سكه طرح جديد0312 رفاه | C3: 100 | D3: 407909100 | E3: 4079091 | F3: =IF(A3="","",INDEX('دیده بان بازار'!H:H, MATCH(A3, 'دیده بان بازار'!A:A, 0))) -> 5050000 | G3: =(F3*C3) -> 505000000 | H3: 457849272 | I3: 4084196 | J3: 23.80209218
A4: كقزوي | B4: =IF(A4="","",INDEX('دیده بان بازار'!B:B, MATCH(A4, 'دیده بان بازار'!A:A, 0))) -> شيشه‌ قزوين‌ | C4: 200651 | D4: 236768180 | E4: 1180 | F4: =IF(A4="","",INDEX('دیده بان بازار'!H:H, MATCH(A4, 'دیده بان بازار'!A:A, 0))) -> 1165 | G4: 233758415 | H4: 234684620 | I4: 1190 | J4: =((F4 - E4) / E4) * 100 -> -1.271186441
A5: زيتون | B5: =IF(A5="","",INDEX('دیده بان بازار'!B:B, MATCH(A5, 'دیده بان بازار'!A:A, 0))) -> صندوق س زيتون نماد پايا- مختلط | C5: 9541 | D5: 202320727 | E5: 21205 | F5: =IF(A5="","",INDEX('دیده بان بازار'!H:H, MATCH(A5, 'دیده بان بازار'!A:A, 0))) -> 24000 | G5: 228984000 | H5: 219583769 | I5: 21219 | J5: 13.18085357
A6: وآفري | B6: =IF(A6="","",INDEX('دیده بان بازار'!B:B, MATCH(A6, 'دیده بان بازار'!A:A, 0))) -> بيمه كارآفرين | C6: 50000 | D6: 128300000 | E6: 2566 | F6: =IF(A6="","",INDEX('دیده بان بازار'!H:H, MATCH(A6, 'دیده بان بازار'!A:A, 0))) -> 2540 | G6: 127000000 | H6: 145111680 | I6: 2589 | J6: -1.013250195
A7: وشمال | B7: =IF(A7="","",INDEX('دیده بان بازار'!B:B, MATCH(A7, 'دیده بان بازار'!A:A, 0))) -> س. چشم انداز توسعه شمال | C7: 5344 | D7: 113169888 | E7: 21177 | F7: =IF(A7="","",INDEX('دیده بان بازار'!H:H, MATCH(A7, 'دیده بان بازار'!A:A, 0))) -> 31850 | G7: 170206400 | H7: 121565526 | I7: 21365 | J7: 50.3990178
A8: بكهنوج | B8: =IF(A8="","",INDEX('دیده بان بازار'!B:B, MATCH(A8, 'دیده بان بازار'!A:A, 0))) -> توليد برق ماهتاب كهنوج | C8: 119566 | D8: 114544228 | E8: 958 | F8: =IF(A8="","",INDEX('دیده بان بازار'!H:H, MATCH(A8, 'دیده بان بازار'!A:A, 0))) -> 1047 | G8: 125185602 | H8: 120884096 | I8: 967 | J8: 9.290187891
A9: بزاگرس | B9: =IF(A9="","",INDEX('دیده بان بازار'!B:B, MATCH(A9, 'دیده بان بازار'!A:A, 0))) -> نيروگاه زاگرس كوثر | C9: 24030 | D9: 108327240 | E9: 4508 | F9: =IF(A9="","",INDEX('دیده بان بازار'!H:H, MATCH(A9, 'دیده بان بازار'!A:A, 0))) -> 4482 | G9: 107702460 | H9: 111423111 | I9: 4548 | J9: -0.5767524401
A10: سرو | B10: =IF(A10="","",INDEX('دیده بان بازار'!B:B, MATCH(A10, 'دیده بان بازار'!A:A, 0))) -> صندوق س سروسودمند مدبران-سهام | C10: 7560 | D10: 90866389 | E10: 12019 | F10: =IF(A10="","",INDEX('دیده بان بازار'!H:H, MATCH(A10, 'دیده بان بازار'!A:A, 0))) -> 14890 | G10: 112568400 | H10: 99295896 | I10: 12033 | J10: 23.88717863
A11: وطوبی | B11: =IF(A11="","",INDEX('Total Watch'!A:A, MATCH(A11, 'Total Watch'!A:A, 0))) -> وطوبی | C11: 37777 | D11: 62535103 | E11: 1655 | F11: =IF(A11="","",INDEX('Total Watch'!B:B, MATCH(A11, 'Total Watch'!A:A, 0))) -> 1,781 | G11: 67280837 | H11: 88518946 | I11: 1670 | J11: 7.613293051
A12: بميلا | B12: =IF(A12="","",INDEX('دیده بان بازار'!B:B, MATCH(A12, 'دیده بان بازار'!A:A, 0))) -> توسعه سرمايه گذاري ميلاد پارس | C12: 14456 | D12: 68767192 | E12: 4757 | F12: =IF(A12="","",INDEX('دیده بان بازار'!H:H, MATCH(A12, 'دیده بان بازار'!A:A, 0))) -> 5110 | G12: 73870160 | H12: 72761581 | I12: 4799 | J12: 7.420643263
A13: شملي | B13: =IF(A13="","",INDEX('دیده بان بازار'!B:B, MATCH(A13, 'دیده بان بازار'!A:A, 0))) -> ملي شيمي كشاورز | C13: 11174 | D13: 53322328 | E13: 4772 | F13: =IF(A13="","",INDEX('دیده بان بازار'!H:H, MATCH(A13, 'دیده بان بازار'!A:A, 0))) -> 5970 | G13: 66708780 | H13: 59476341 | I13: 4814 | J13: 25.10477787
A14: آساس | B14: =IF(A14="","",INDEX('دیده بان بازار'!B:B, MATCH(A14, 'دیده بان بازار'!A:A, 0))) -> صندوق س.آسمان آرماني سهام-س | C14: 1361 | D14: 48426980 | E14: 35582 | F14: =IF(A14="","",INDEX('دیده بان بازار'!H:H, MATCH(A14, 'دیده بان بازار'!A:A, 0))) -> 44220 | G14: 60183420 | H14: 55040064 | I14: 35624 | J14: 24.27631949
A15: ضهرم8003 | B15: =IF(A15="","",INDEX('دیده بان بازار'!B:B, MATCH(A15, 'دیده بان بازار'!A:A, 0))) ->  | C15: 22 | D15: 41360000 | E15: 1880 | F15: =IF(A15="","",INDEX('دیده بان بازار'!H:H, MATCH(A15, 'دیده بان بازار'!A:A, 0))) ->  | H15: 49251219 | I15: 1882
A16: سپيدار | B16: =IF(A16="","",INDEX('دیده بان بازار'!B:B, MATCH(A16, 'دیده بان بازار'!A:A, 0))) -> سپيدار سيستم آسيا | C16: 302 | D16: 39978458 | E16: 132379 | F16: =IF(A16="","",INDEX('دیده بان بازار'!H:H, MATCH(A16, 'دیده بان بازار'!A:A, 0))) -> 149400 | G16: 45118800 | H16: 43284911 | I16: 133554 | J16: 12.85777956
A17: آپ | B17: =IF(A17="","",INDEX('دیده بان بازار'!B:B, MATCH(A17, 'دیده بان بازار'!A:A, 0))) -> آسان پرداخت پرشين | C17: 9599 | D17: 30534419 | E17: 3181 | F17: =IF(A17="","",INDEX('دیده بان بازار'!H:H, MATCH(A17, 'دیده بان بازار'!A:A, 0))) -> 6590 | G17: 63257410 | H17: 39808789 | I17: 3209 | J17: 107.1675574
A18: طهرم8003 | B18: =IF(A18="","",INDEX('دیده بان بازار'!B:B, MATCH(A18, 'دیده بان بازار'!A:A, 0))) ->  | C18: 108 | D18: 57672000 | E18: 534 | F18: =IF(A18="","",INDEX('دیده بان بازار'!H:H, MATCH(A18, 'دیده بان بازار'!A:A, 0))) ->  | H18: 32690294 | I18: 535
A19: ضخود8034 | B19: =IF(A19="","",INDEX('دیده بان بازار'!B:B, MATCH(A19, 'دیده بان بازار'!A:A, 0))) ->  | C19: 105 | D19: 30975000 | E19: 295 | F19: =IF(A19="","",INDEX('دیده بان بازار'!H:H, MATCH(A19, 'دیده بان بازار'!A:A, 0))) ->  | H19: 29264826 | I19: 295
A20: غگرجي | B20: =IF(A20="","",INDEX('دیده بان بازار'!B:B, MATCH(A20, 'دیده بان بازار'!A:A, 0))) -> بيسكويت‌ گرجي‌ | C20: 15241 | D20: 26336448 | E20: 1728 | F20: =IF(A20="","",INDEX('دیده بان بازار'!H:H, MATCH(A20, 'دیده بان بازار'!A:A, 0))) -> 1795 | G20: 27357595 | H20: 27071528 | I20: 1743 | J20: 3.877314815
A21: گنج | B21: =IF(A21="","",INDEX('دیده بان بازار'!B:B, MATCH(A21, 'دیده بان بازار'!A:A, 0))) -> صندوق س. طلا كيميا زرين كاردان | C21: 500 | D21: 15971000 | E21: 31942 | F21: =IF(A21="","",INDEX('دیده بان بازار'!H:H, MATCH(A21, 'دیده بان بازار'!A:A, 0))) -> 40980 | G21: 20490000 | H21: 17203331 | I21: 31980 | J21: 28.29503475
A22: ثمين | B22: =IF(A22="","",INDEX('دیده بان بازار'!B:B, MATCH(A22, 'دیده بان بازار'!A:A, 0))) -> صندوق س. ثروت افزون ثمين-س | C22: 631 | D22: 12950644 | E22: 20524 | F22: =IF(A22="","",INDEX('دیده بان بازار'!H:H, MATCH(A22, 'دیده بان بازار'!A:A, 0))) -> 24650 | G22: 15554150 | H22: 14243658 | I22: 20548 | J22: 20.1032937
A23: نارنج اهرم | B23: =IF(A23="","",INDEX('دیده بان بازار'!B:B, MATCH(A23, 'دیده بان بازار'!A:A, 0))) -> ص.س. اهرمي نارنج-س | C23: 1010 | D23: 10137370 | E23: 10037 | F23: =IF(A23="","",INDEX('دیده بان بازار'!H:H, MATCH(A23, 'دیده بان بازار'!A:A, 0))) -> 11216 | G23: 11328160 | H23: 10377527 | I23: 10049 | J23: 11.74653781
A24: ثهام | B24: =IF(A24="","",INDEX('دیده بان بازار'!B:B, MATCH(A24, 'دیده بان بازار'!A:A, 0))) -> صندوق س ثروت هامرز-سهام | C24: 300 | D24: 7523700 | E24: 25079 | F24: =IF(A24="","",INDEX('دیده بان بازار'!H:H, MATCH(A24, 'دیده بان بازار'!A:A, 0))) -> 30680 | G24: 9204000 | H24: 8300128 | I24: 25109 | J24: 22.33342637
A25: معين | B25: =IF(A25="","",INDEX('دیده بان بازار'!B:B, MATCH(A25, 'دیده بان بازار'!A:A, 0))) -> بيمه ايران - معين | C25: 704 | D25: 1743104 | E25: 2476 | F25: =IF(A25="","",INDEX('دیده بان بازار'!H:H, MATCH(A25, 'دیده بان بازار'!A:A, 0))) -> 2857 | G25: 2011328 | H25: 1814292 | I25: 2498 | J25: 15.38772213
A26: شفام | B26: =IF(A26="","",INDEX('دیده بان بازار'!B:B, MATCH(A26, 'دیده بان بازار'!A:A, 0))) -> توليدي و صنعتي گوهرفام | C26: 140 | D26: 1192520 | E26: 8518 | F26: =IF(A26="","",INDEX('دیده بان بازار'!H:H, MATCH(A26, 'دیده بان بازار'!A:A, 0))) -> 2914 | G26: 407960 | H26: 1629136 | I26: 8594 | J26: -65.79009157
A27: خنور | B27: =IF(A27="","",INDEX('دیده بان بازار'!B:B, MATCH(A27, 'دیده بان بازار'!A:A, 0))) -> نورايستا پلاستيك | C27: 39 | D27: 747552 | E27: 19168 | F27: =IF(A27="","",INDEX('دیده بان بازار'!H:H, MATCH(A27, 'دیده بان بازار'!A:A, 0))) -> 24400 | G27: 951600 | H27: 902636 | I27: 19338 | J27: 27.29549249
B28: تامین سرمایه در گردش به جهت افزایش 50 مترمکعب تولید بتن آماده در روز | F28: =IF(A28="","",INDEX('دیده بان بازار'!H:H, MATCH(A28, 'دیده بان بازار'!A:A, 0))) ->  | G28: 150000000 | K28: =(G28 / G$34) * 100 -> 
B29: تامین سرمایه در گردش خرید و فروش لوله فولادی آریابد | F29: =IF(A29="","",INDEX('دیده بان بازار'!H:H, MATCH(A29, 'دیده بان بازار'!A:A, 0))) ->  | G29: 95000000
B30: تامین سرمایه در گردش جهت تجارت زغال سنگ | F30: =IF(A30="","",INDEX('دیده بان بازار'!H:H, MATCH(A30, 'دیده بان بازار'!A:A, 0))) ->  | G30: 28000000
B31: تأمین سرمایه در گردش جهت خالص سازی سنگ آهن معدن چادرملو | F31: =IF(A31="","",INDEX('دیده بان بازار'!H:H, MATCH(A31, 'دیده بان بازار'!A:A, 0))) ->  | G31: 60000000
B32: تأمین سرمایه در گردش فروش گوشت مرغ | F32: =IF(A32="","",INDEX('دیده بان بازار'!H:H, MATCH(A32, 'دیده بان بازار'!A:A, 0))) ->  | G32: 40000000
B33: تأمین سرمایه در گردش جهت تولید برد الکترونیکی پکیج | F33: =IF(A33="","",INDEX('دیده بان بازار'!H:H, MATCH(A33, 'دیده بان بازار'!A:A, 0))) ->  | G33: 20000000
A34: جمع کل | D34: =SUBTOTAL(109,Table22[ق تمام شده]) -> 4069954339 | G34: =SUBTOTAL(109,Table22[ارزش روزانه]) -> 

Sheet Landing Page and Transaction
B1: سرچ نماد | C1: نام نماد | D1: اسم کامل نماد | E1: اسم کامل نماد | F1: منابع اولیه
B2: سابیک | C2: =IF(B2<>"", B2, C2) -> سابیک | D2: =INDEX('دیده بان بازار'!B:B, MATCH(C2, 'دیده بان بازار'!A:A, 0)) ->  | E2: =IF(D2<>"", D2, E2) ->  | F2: شرح | G2: مبلغ | R2: حساب | S2: 14030702 | T2: =#REF! ->  | U2: بازدهی | V2: توضیحات(کف و سقف)
A3: تاریخ شروع سرمایه گذاری | D3: تاریخ سر رسید | G3: 45000000 | R3: ارزش سبد سرمایه گذاری | S3: =G8 -> 45000000 | T3: =IFERROR(VLOOKUP(T2,$M$10:$P$36,3,FALSE),"بدون داده") -> بدون داده | U3: =IFERROR(VLOOKUP(T2,$M$10:$P$36,12,FALSE),"بدون داده") -> بدون داده
A4: 14021201 | D4: 14031115 | H4: قسمت سرچ سهم | J4: شرح | K4: مبلغ | L4: تاریخ | M4: ارزش سبد قبل تراکنش | R4: بررسی بازار | S4: قیمت ها | T4: قیمت ها2 | U4: بازدهی
A5: تعداد روز مانده تا سر رسید | C5: =Diff(Shamsi(),D4)+1 -> 71 | D5: تعداد روز سپری شده | E5: =Diff(A4,Shamsi())+1 -> 280 | J5: جمع اولیه | K5: =G8 -> 45000000 | L5: =A4 -> 14021201 | M5: =K5 -> 45000000 | R5: =IF('Total Watch'!A3<>"",'Total Watch'!A3,"") ->  | S5: =INDEX(MarketR!$1:$5400, MATCH('Landing Page and Transaction'!$R5, INDEX(MarketR!$1:$5400, 0, MATCH('Landing Page and Transaction'!S$2, MarketR!$1:$1, 0)), 0), MATCH('Landing Page and Transaction'!S$2, MarketR!$1:$1, 0)+1) ->  | T5: =INDEX(MarketR!$1:$5400, MATCH('Landing Page and Transaction'!$R5, INDEX(MarketR!$1:$5400, 0, MATCH('Landing Page and Transaction'!T$2, MarketR!$1:$1, 0)), 0), MATCH('Landing Page and Transaction'!T$2, MarketR!$1:$1, 0)+1) ->  | U5: =IF(VALUE(CLEAN(TRIM(SUBSTITUTE(SUBSTITUTE(SUBSTITUTE(SUBSTITUTE(T5,"تومان",""),"$",""),"ریال",""),",",""))))=0,"بدون داده",IFERROR((VALUE(CLEAN(TRIM(SUBSTITUTE(SUBSTITUTE(SUBSTITUTE(SUBSTITUTE(T5,"تومان",""),"$",""),"ریال",""),",",""))))-VALUE(CLEAN(TRIM(SUBSTITUTE(SUBSTITUTE(SUBSTITUTE(SUBSTITUTE(S5,"تومان",""),"$",""),"ریال",""),",","")))))/VALUE(CLEAN(TRIM(SUBSTITUTE(SUBSTITUTE(SUBSTITUTE(SUBSTITUTE(S5,"تومان",""),"$",""),"ریال",""),",","")))),"تعریف نشده")) -> 
A6: طول کلی از شروع سرمایه گذاری تا تاریخ سر رسید | E6: =Diff(A4,D4)+1 -> 350 | R6: =IF('Total Watch'!A4<>"",'Total Watch'!A4,"") ->  | S6: =INDEX(MarketR!$1:$5400, MATCH('Landing Page and Transaction'!$R6, INDEX(MarketR!$1:$5400, 0, MATCH('Landing Page and Transaction'!S$2, MarketR!$1:$1, 0)), 0), MATCH('Landing Page and Transaction'!S$2, MarketR!$1:$1, 0)+1) ->  | T6: =INDEX(MarketR!$1:$5400, MATCH('Landing Page and Transaction'!$R6, INDEX(MarketR!$1:$5400, 0, MATCH('Landing Page and Transaction'!T$2, MarketR!$1:$1, 0)), 0), MATCH('Landing Page and Transaction'!T$2, MarketR!$1:$1, 0)+1) ->  | U6: =IF(VALUE(CLEAN(TRIM(SUBSTITUTE(SUBSTITUTE(SUBSTITUTE(SUBSTITUTE(T6,"تومان",""),"$",""),"ریال",""),",",""))))=0,"بدون داده",IFERROR((VALUE(CLEAN(TRIM(SUBSTITUTE(SUBSTITUTE(SUBSTITUTE(SUBSTITUTE(T6,"تومان",""),"$",""),"ریال",""),",",""))))-VALUE(CLEAN(TRIM(SUBSTITUTE(SUBSTITUTE(SUBSTITUTE(SUBSTITUTE(S6,"تومان",""),"$",""),"ریال",""),",","")))))/VALUE(CLEAN(TRIM(SUBSTITUTE(SUBSTITUTE(SUBSTITUTE(SUBSTITUTE(S6,"تومان",""),"$",""),"ریال",""),",","")))),"تعریف نشده")) -> 
R7: =IF('Total Watch'!A5<>"",'Total Watch'!A5,"") ->  | S7: =INDEX(MarketR!$1:$5400, MATCH('Landing Page and Transaction'!$R7, INDEX(MarketR!$1:$5400, 0, MATCH('Landing Page and Transaction'!S$2, MarketR!$1:$1, 0)), 0), MATCH('Landing Page and Transaction'!S$2, MarketR!$1:$1, 0)+1) ->  | T7: =INDEX(MarketR!$1:$5400, MATCH('Landing Page and Transaction'!$R7, INDEX(MarketR!$1:$5400, 0, MATCH('Landing Page and Transaction'!T$2, MarketR!$1:$1, 0)), 0), MATCH('Landing Page and Transaction'!T$2, MarketR!$1:$1, 0)+1) -> 
A8: مبلغ کل | G8: =SUM(G3:G7) -> 45000000 | R8: =IF('Total Watch'!A6<>"",'Total Watch'!A6,"") ->  | S8: =INDEX(MarketR!$1:$5400, MATCH('Landing Page and Transaction'!$R8, INDEX(MarketR!$1:$5400, 0, MATCH('Landing Page and Transaction'!S$2, MarketR!$1:$1, 0)), 0), MATCH('Landing Page and Transaction'!S$2, MarketR!$1:$1, 0)+1) ->  | T8: =INDEX(MarketR!$1:$5400, MATCH('Landing Page and Transaction'!$R8, INDEX(MarketR!$1:$5400, 0, MATCH('Landing Page and Transaction'!T$2, MarketR!$1:$1, 0)), 0), MATCH('Landing Page and Transaction'!T$2, MarketR!$1:$1, 0)+1) -> 
R9: =IF('Total Watch'!A7<>"",'Total Watch'!A7,"") ->  | S9: =INDEX(MarketR!$1:$5400, MATCH('Landing Page and Transaction'!$R9, INDEX(MarketR!$1:$5400, 0, MATCH('Landing Page and Transaction'!S$2, MarketR!$1:$1, 0)), 0), MATCH('Landing Page and Transaction'!S$2, MarketR!$1:$1, 0)+1) ->  | T9: =INDEX(MarketR!$1:$5400, MATCH('Landing Page and Transaction'!$R9, INDEX(MarketR!$1:$5400, 0, MATCH('Landing Page and Transaction'!T$2, MarketR!$1:$1, 0)), 0), MATCH('Landing Page and Transaction'!T$2, MarketR!$1:$1, 0)+1) -> 
A10: شناسه معامله | B10: نام سهم | C10: اسم کامل سهم | D10: وضعیت کلی | E10: تاریخ ورود یا خروج | F10: تعداد خرید یا فروش | G10: قیمت ورود یا خروج | H10: میزان خریداری شده / فروخته شده | I10: قیمت روز | J10: شناسه معامله قبلی | K10: شرح کلی | L10: مبلغ | M10: تاریخ | N10: ارزش سبد قبل تراکنش | O10: ارزش بعد تراکنش | P10: توضیحات | R10: =IF('Total Watch'!A8<>"",'Total Watch'!A8,"") ->  | S10: =INDEX(MarketR!$1:$5400, MATCH('Landing Page and Transaction'!$R10, INDEX(MarketR!$1:$5400, 0, MATCH('Landing Page and Transaction'!S$2, MarketR!$1:$1, 0)), 0), MATCH('Landing Page and Transaction'!S$2, MarketR!$1:$1, 0)+1) ->  | T10: =INDEX(MarketR!$1:$5400, MATCH('Landing Page and Transaction'!$R10, INDEX(MarketR!$1:$5400, 0, MATCH('Landing Page and Transaction'!T$2, MarketR!$1:$1, 0)), 0), MATCH('Landing Page and Transaction'!T$2, MarketR!$1:$1, 0)+1) -> 
K11: جمع اولیه | L11: =G8 -> 45000000 | M11: =A4 -> 14021201 | N11: =L11 -> 45000000 | R11: =IF('Total Watch'!A9<>"",'Total Watch'!A9,"") ->  | S11: =INDEX(MarketR!$1:$5400, MATCH('Landing Page and Transaction'!$R11, INDEX(MarketR!$1:$5400, 0, MATCH('Landing Page and Transaction'!S$2, MarketR!$1:$1, 0)), 0), MATCH('Landing Page and Transaction'!S$2, MarketR!$1:$1, 0)+1) ->  | T11: =INDEX(MarketR!$1:$5400, MATCH('Landing Page and Transaction'!$R11, INDEX(MarketR!$1:$5400, 0, MATCH('Landing Page and Transaction'!T$2, MarketR!$1:$1, 0)), 0), MATCH('Landing Page and Transaction'!T$2, MarketR!$1:$1, 0)+1) -> 
A12: =IF(B12="", "", GenerateID(B12)) -> افران_77462 | B12: افران | C12: =IF(B12="","",INDEX('دیده بان بازار'!B:B, MATCH(B12, 'دیده بان بازار'!A:A, 0))) -> صندوق س افرا نماد پايدار-ثابت | D12: خرید | E12: 1402/12/02 | F12: 607 | G12: 2472 | H12: =IF(OR(D12="خرید", D12="برداشت", D12="سود"), -G12*F12*(1 + 0.003712) * 10, IF(OR(D12="فروش", D12="واریز"), G12*F12*(1 - 0.0088) * 10, 0)) -> -15060738.71 | I12: =IF(B12="", "", VALUE(INDEX('دیده بان بازار'!H:H, MATCH(B12, 'دیده بان بازار'!A:A, 0)))) -> 30524 | J12: =A12 -> افران_77462 | K12: خرید صندوق درآمد ثابت | L12: =H12 -> -15060738.71 | M12: 1402/12/02 | N12: 4500000 | O12: =N12+L12 -> -10560738.71 | R12: =IF('Total Watch'!A10<>"",'Total Watch'!A10,"") ->  | S12: =INDEX(MarketR!$1:$5400, MATCH('Landing Page and Transaction'!$R12, INDEX(MarketR!$1:$5400, 0, MATCH('Landing Page and Transaction'!S$2, MarketR!$1:$1, 0)), 0), MATCH('Landing Page and Transaction'!S$2, MarketR!$1:$1, 0)+1) ->  | T12: =INDEX(MarketR!$1:$5400, MATCH('Landing Page and Transaction'!$R12, INDEX(MarketR!$1:$5400, 0, MATCH('Landing Page and Transaction'!T$2, MarketR!$1:$1, 0)), 0), MATCH('Landing Page and Transaction'!T$2, MarketR!$1:$1, 0)+1) -> 
A13: =IF(B13="", "", GenerateID(B13)) -> هامرز_80833 | B13: هامرز | C13: =IF(B13="","",INDEX('دیده بان بازار'!B:B, MATCH(B13, 'دیده بان بازار'!A:A, 0))) -> صندوق س اعتماد هامرز-ثابت | D13: خرید | E13: 1402/12/02 | F13: 599 | G13: 2494 | H13: =IF(OR(D13="خرید", D13="برداشت", D13="سود"), -G13*F13*(1 + 0.003712) * 10, IF(OR(D13="فروش", D13="واریز"), G13*F13*(1 - 0.0088) * 10, 0)) -> -14994513.79 | I13: =IF(B13="", "", VALUE(INDEX('دیده بان بازار'!H:H, MATCH(B13, 'دیده بان بازار'!A:A, 0)))) -> 10171 | J13: هامرز_80833 | K13: خرید صندوق سهامی | L13: -14994513.79 | M13: 1402/12/02 | N13: =O12 -> -10560738.71 | O13: -25555252.5 | R13: =IF('Total Watch'!A11<>"",'Total Watch'!A11,"") ->  | S13: =INDEX(MarketR!$1:$5400, MATCH('Landing Page and Transaction'!$R13, INDEX(MarketR!$1:$5400, 0, MATCH('Landing Page and Transaction'!S$2, MarketR!$1:$1, 0)), 0), MATCH('Landing Page and Transaction'!S$2, MarketR!$1:$1, 0)+1) ->  | T13: =INDEX(MarketR!$1:$5400, MATCH('Landing Page and Transaction'!$R13, INDEX(MarketR!$1:$5400, 0, MATCH('Landing Page and Transaction'!T$2, MarketR!$1:$1, 0)), 0), MATCH('Landing Page and Transaction'!T$2, MarketR!$1:$1, 0)+1) -> 
A14: =IF(B14="", "", GenerateID(B14)) -> هامرز_80833 | B14: هامرز | C14: =IF(B14="","",INDEX('دیده بان بازار'!B:B, MATCH(B14, 'دیده بان بازار'!A:A, 0))) -> صندوق س اعتماد هامرز-ثابت | D14: فروش | E14: 1402/12/05 | F14: 599 | G14: 2505 | H14: 14872906.44 | I14: =IF(B14="", "", VALUE(INDEX('دیده بان بازار'!H:H, MATCH(B14, 'دیده بان بازار'!A:A, 0)))) -> 10171 | J14: هامرز_80833 | K14: فروش صندوق سهامی | L14: 14872906.44 | M14: 1402/12/05 | N14: -25555252.5 | O14: -10682346.06 | R14: =IF('Total Watch'!A12<>"",'Total Watch'!A12,"") ->  | S14: =INDEX(MarketR!$1:$5400, MATCH('Landing Page and Transaction'!$R14, INDEX(MarketR!$1:$5400, 0, MATCH('Landing Page and Transaction'!S$2, MarketR!$1:$1, 0)), 0), MATCH('Landing Page and Transaction'!S$2, MarketR!$1:$1, 0)+1) ->  | T14: =INDEX(MarketR!$1:$5400, MATCH('Landing Page and Transaction'!$R14, INDEX(MarketR!$1:$5400, 0, MATCH('Landing Page and Transaction'!T$2, MarketR!$1:$1, 0)), 0), MATCH('Landing Page and Transaction'!T$2, MarketR!$1:$1, 0)+1) -> 
A15: =IF(B15="", "", GenerateID(B15)) -> افران_77462 | B15: افران | C15: =IF(B15="","",INDEX('دیده بان بازار'!B:B, MATCH(B15, 'دیده بان بازار'!A:A, 0))) -> صندوق س افرا نماد پايدار-ثابت | D15: فروش | E15: 1402/12/05 | F15: 607 | G15: 2476 | H15: 14897061.98 | I15: =IF(B15="", "", VALUE(INDEX('دیده بان بازار'!H:H, MATCH(B15, 'دیده بان بازار'!A:A, 0)))) -> 30524 | J15: افران_77462 | K15: فروش صندوق درآمد ثابت | L15: 14897061.98 | M15: 1402/12/05 | N15: -10682346.06 | O15: 4214715.925 | R15: =IF('Total Watch'!A13<>"",'Total Watch'!A13,"") -> كارون073 | S15: =INDEX(MarketR!$1:$5400, MATCH('Landing Page and Transaction'!$R15, INDEX(MarketR!$1:$5400, 0, MATCH('Landing Page and Transaction'!S$2, MarketR!$1:$1, 0)), 0), MATCH('Landing Page and Transaction'!S$2, MarketR!$1:$1, 0)+1) -> 1000000 | T15: =INDEX(MarketR!$1:$5400, MATCH('Landing Page and Transaction'!$R15, INDEX(MarketR!$1:$5400, 0, MATCH('Landing Page and Transaction'!T$2, MarketR!$1:$1, 0)), 0), MATCH('Landing Page and Transaction'!T$2, MarketR!$1:$1, 0)+1) -> 
A16: =IF(B16="", "", GenerateID(B16)) -> آلتون_59299 | B16: آلتون | C16: =IF(B16="","",INDEX('دیده بان بازار'!B:B, MATCH(B16, 'دیده بان بازار'!A:A, 0))) -> صندوق س.پشتوانه طلاآسمان آلتون | D16: خرید | E16: 1402/12/07 | F16: 460 | G16: 1146 | H16: -5291168.179 | I16: =IF(B16="", "", VALUE(INDEX('دیده بان بازار'!H:H, MATCH(B16, 'دیده بان بازار'!A:A, 0)))) -> 15383 | J16: آلتون_59299 | K16: خرید صندوق طلا | L16: -5291168.179 | M16: 1402/12/07 | N16: 4214715.925 | O16: -1076452.254 | R16: =IF('Total Watch'!A14<>"",'Total Watch'!A14,"") -> كارون073 | S16: =INDEX(MarketR!$1:$5400, MATCH('Landing Page and Transaction'!$R16, INDEX(MarketR!$1:$5400, 0, MATCH('Landing Page and Transaction'!S$2, MarketR!$1:$1, 0)), 0), MATCH('Landing Page and Transaction'!S$2, MarketR!$1:$1, 0)+1) -> 1000000 | T16: =INDEX(MarketR!$1:$5400, MATCH('Landing Page and Transaction'!$R16, INDEX(MarketR!$1:$5400, 0, MATCH('Landing Page and Transaction'!T$2, MarketR!$1:$1, 0)), 0), MATCH('Landing Page and Transaction'!T$2, MarketR!$1:$1, 0)+1) -> 
A17: =IF(B17="", "", GenerateID(B17)) -> افران_77462 | B17: افران | C17: =IF(B17="","",INDEX('دیده بان بازار'!B:B, MATCH(B17, 'دیده بان بازار'!A:A, 0))) -> صندوق س افرا نماد پايدار-ثابت | D17: خرید | E17: 1402/12/07 | F17: 806 | G17: 2479 | H17: -20054908.51 | I17: =IF(B17="", "", VALUE(INDEX('دیده بان بازار'!H:H, MATCH(B17, 'دیده بان بازار'!A:A, 0)))) -> 30524 | J17: افران_77462 | K17: خرید صندوق درآمد ثابت | L17: -20054908.51 | M17: 1402/12/07 | N17: -1076452.254 | O17: -21131360.76 | R17: =IF('Total Watch'!A15<>"",'Total Watch'!A15,"") -> 1401 (Spoke)TC MAX | S17: =INDEX(MarketR!$1:$5400, MATCH('Landing Page and Transaction'!$R17, INDEX(MarketR!$1:$5400, 0, MATCH('Landing Page and Transaction'!S$2, MarketR!$1:$1, 0)), 0), MATCH('Landing Page and Transaction'!S$2, MarketR!$1:$1, 0)+1) ->  | T17: =INDEX(MarketR!$1:$5400, MATCH('Landing Page and Transaction'!$R17, INDEX(MarketR!$1:$5400, 0, MATCH('Landing Page and Transaction'!T$2, MarketR!$1:$1, 0)), 0), MATCH('Landing Page and Transaction'!T$2, MarketR!$1:$1, 0)+1) -> 
A18: =IF(B18="", "", GenerateID(B18)) -> آساس_63193 | B18: آساس | C18: =IF(B18="","",INDEX('دیده بان بازار'!B:B, MATCH(B18, 'دیده بان بازار'!A:A, 0))) -> صندوق س.آسمان آرماني سهام-س | D18: خرید | E18: 1402/12/09 | F18: 50 | G18: 3690 | H18: -1851848.64 | I18: =IF(B18="", "", VALUE(INDEX('دیده بان بازار'!H:H, MATCH(B18, 'دیده بان بازار'!A:A, 0)))) -> 44220 | J18: آساس_63193 | K18: خرید صندوق سهامی | L18: -1851848.64 | M18: 1402/12/09 | N18: -21131360.76 | O18: -22983209.4 | R18: =IF('Total Watch'!A16<>"",'Total Watch'!A16,"") -> 1401 Galaxy Jx250 | S18: =INDEX(MarketR!$1:$5400, MATCH('Landing Page and Transaction'!$R18, INDEX(MarketR!$1:$5400, 0, MATCH('Landing Page and Transaction'!S$2, MarketR!$1:$1, 0)), 0), MATCH('Landing Page and Transaction'!S$2, MarketR!$1:$1, 0)+1) ->  | T18: =INDEX(MarketR!$1:$5400, MATCH('Landing Page and Transaction'!$R18, INDEX(MarketR!$1:$5400, 0, MATCH('Landing Page and Transaction'!T$2, MarketR!$1:$1, 0)), 0), MATCH('Landing Page and Transaction'!T$2, MarketR!$1:$1, 0)+1) -> 
A19: =IF(B19="", "", GenerateID(B19)) -> افران_77462 | B19: افران | C19: =IF(B19="","",INDEX('دیده بان بازار'!B:B, MATCH(B19, 'دیده بان بازار'!A:A, 0))) -> صندوق س افرا نماد پايدار-ثابت | D19: خرید | E19: 1402/12/09 | F19: 418 | G19: 2485 | H19: -10425857.66 | I19: =IF(B19="", "", VALUE(INDEX('دیده بان بازار'!H:H, MATCH(B19, 'دیده بان بازار'!A:A, 0)))) -> 30524 | J19: افران_77462 | K19: فروش صندوق درآمد ثابت | L19: -10425857.66 | M19: =E19 -> 1402/12/09 | N19: -22983209.4 | O19: -33409067.06 | R19: =IF('Total Watch'!A17<>"",'Total Watch'!A17,"") -> 1401 TC MAX | S19: =INDEX(MarketR!$1:$5400, MATCH('Landing Page and Transaction'!$R19, INDEX(MarketR!$1:$5400, 0, MATCH('Landing Page and Transaction'!S$2, MarketR!$1:$1, 0)), 0), MATCH('Landing Page and Transaction'!S$2, MarketR!$1:$1, 0)+1) ->  | T19: =INDEX(MarketR!$1:$5400, MATCH('Landing Page and Transaction'!$R19, INDEX(MarketR!$1:$5400, 0, MATCH('Landing Page and Transaction'!T$2, MarketR!$1:$1, 0)), 0), MATCH('Landing Page and Transaction'!T$2, MarketR!$1:$1, 0)+1) -> 
A20: =IF(B20="", "", GenerateID(B20)) -> هامرز_80833 | B20: هامرز | C20: =IF(B20="","",INDEX('دیده بان بازار'!B:B, MATCH(B20, 'دیده بان بازار'!A:A, 0))) -> صندوق س اعتماد هامرز-ثابت | D20: خرید | E20: 1402/12/09 | F20: 300 | G20: 2505 | H20: -7542895.68 | I20: =IF(B20="", "", VALUE(INDEX('دیده بان بازار'!H:H, MATCH(B20, 'دیده بان بازار'!A:A, 0)))) -> 10171 | J20: هامرز_80833 | K20: خرید صندوق سهامی | L20: -7542895.68 | M20: 1402/12/09 | N20: -33409067.06 | O20: -40951962.74 | R20: =IF('Total Watch'!A18<>"",'Total Watch'!A18,"") -> 1401 Z2 150 G1 | S20: =INDEX(MarketR!$1:$5400, MATCH('Landing Page and Transaction'!$R20, INDEX(MarketR!$1:$5400, 0, MATCH('Landing Page and Transaction'!S$2, MarketR!$1:$1, 0)), 0), MATCH('Landing Page and Transaction'!S$2, MarketR!$1:$1, 0)+1) ->  | T20: =INDEX(MarketR!$1:$5400, MATCH('Landing Page and Transaction'!$R20, INDEX(MarketR!$1:$5400, 0, MATCH('Landing Page and Transaction'!T$2, MarketR!$1:$1, 0)), 0), MATCH('Landing Page and Transaction'!T$2, MarketR!$1:$1, 0)+1) -> 
A21: =IF(B21="", "", GenerateID(B21)) -> زيتون_27806 | B21: زيتون | C21: =IF(B21="","",INDEX('دیده بان بازار'!B:B, MATCH(B21, 'دیده بان بازار'!A:A, 0))) -> صندوق س زيتون نماد پايا- مختلط | D21: خرید | E21: 1402/12/13 | F21: 354 | G21: 2109 | H21: -7493573.272 | I21: =IF(B21="", "", VALUE(INDEX('دیده بان بازار'!H:H, MATCH(B21, 'دیده بان بازار'!A:A, 0)))) -> 24000 | J21: زيتون_27806 | K21: خرید صندوق سهامی | L21: -7493573.272 | M21: 1402/12/13 | N21: -40951962.74 | O21: -48445536.01 | R21: =IF('Total Watch'!A19<>"",'Total Watch'!A19,"") -> 1401 Z2 150 G1 (Spoke Rim) | S21: =INDEX(MarketR!$1:$5400, MATCH('Landing Page and Transaction'!$R21, INDEX(MarketR!$1:$5400, 0, MATCH('Landing Page and Transaction'!S$2, MarketR!$1:$1, 0)), 0), MATCH('Landing Page and Transaction'!S$2, MarketR!$1:$1, 0)+1) ->  | T21: =INDEX(MarketR!$1:$5400, MATCH('Landing Page and Transaction'!$R21, INDEX(MarketR!$1:$5400, 0, MATCH('Landing Page and Transaction'!T$2, MarketR!$1:$1, 0)), 0), MATCH('Landing Page and Transaction'!T$2, MarketR!$1:$1, 0)+1) -> 
A22: =IF(B22="", "", GenerateID(B22)) -> ثمين_77727 | B22: ثمين | C22: =IF(B22="","",INDEX('دیده بان بازار'!B:B, MATCH(B22, 'دیده بان بازار'!A:A, 0))) -> صندوق س. ثروت افزون ثمين-س | D22: خرید | E22: 1402/12/13 | F22: 631 | G22: 2050 | H22: -12983516.58 | I22: =IF(B22="", "", VALUE(INDEX('دیده بان بازار'!H:H, MATCH(B22, 'دیده بان بازار'!A:A, 0)))) -> 24650 | J22: ثمين_77727 | K22: خرید صندوق سهامی | L22: -12983516.58 | M22: 1402/12/13 | N22: -48445536.01 | O22: -61429052.59 | R22: =IF('Total Watch'!A20<>"",'Total Watch'!A20,"") -> 1401 Z2 150 Z2 | S22: =INDEX(MarketR!$1:$5400, MATCH('Landing Page and Transaction'!$R22, INDEX(MarketR!$1:$5400, 0, MATCH('Landing Page and Transaction'!S$2, MarketR!$1:$1, 0)), 0), MATCH('Landing Page and Transaction'!S$2, MarketR!$1:$1, 0)+1) ->  | T22: =INDEX(MarketR!$1:$5400, MATCH('Landing Page and Transaction'!$R22, INDEX(MarketR!$1:$5400, 0, MATCH('Landing Page and Transaction'!T$2, MarketR!$1:$1, 0)), 0), MATCH('Landing Page and Transaction'!T$2, MarketR!$1:$1, 0)+1) -> 
A23: =IF(B23="", "", GenerateID(B23)) -> افران_77462 | B23: افران | C23: =IF(B23="","",INDEX('دیده بان بازار'!B:B, MATCH(B23, 'دیده بان بازار'!A:A, 0))) -> صندوق س افرا نماد پايدار-ثابت | D23: فروش | E23: 1402/12/13 | F23: 820 | G23: 2489 | H23: 20230193.76 | I23: =IF(B23="", "", VALUE(INDEX('دیده بان بازار'!H:H, MATCH(B23, 'دیده بان بازار'!A:A, 0)))) -> 30524 | J23: افران_77462 | K23: فروش صندوق درآمد ثابت | L23: 20230193.76 | M23: 1402/12/13 | N23: -61429052.59 | O23: -41198858.83 | R23: =IF('Total Watch'!A21<>"",'Total Watch'!A21,"") -> 1401 یاماها WR 155 | S23: =INDEX(MarketR!$1:$5400, MATCH('Landing Page and Transaction'!$R23, INDEX(MarketR!$1:$5400, 0, MATCH('Landing Page and Transaction'!S$2, MarketR!$1:$1, 0)), 0), MATCH('Landing Page and Transaction'!S$2, MarketR!$1:$1, 0)+1) ->  | T23: =INDEX(MarketR!$1:$5400, MATCH('Landing Page and Transaction'!$R23, INDEX(MarketR!$1:$5400, 0, MATCH('Landing Page and Transaction'!T$2, MarketR!$1:$1, 0)), 0), MATCH('Landing Page and Transaction'!T$2, MarketR!$1:$1, 0)+1) -> 
A24: =IF(B24="", "", GenerateID(B24)) -> افران_77462 | B24: افران | C24: =IF(B24="","",INDEX('دیده بان بازار'!B:B, MATCH(B24, 'دیده بان بازار'!A:A, 0))) -> صندوق س افرا نماد پايدار-ثابت | D24: فروش | E24: 1402/12/27 | F24: 250 | G24: 2515 | H24: 6232170 | I24: =IF(B24="", "", VALUE(INDEX('دیده بان بازار'!H:H, MATCH(B24, 'دیده بان بازار'!A:A, 0)))) -> 30524 | J24: افران_77462 | K24: فروش صندوق درآمد ثابت | L24: 6232170 | M24: 1402/12/27 | N24: -41198858.83 | O24: -34966688.83 | R24: =IF('Total Watch'!A22<>"",'Total Watch'!A22,"") -> 1401 ۱۹۵۸ | S24: =INDEX(MarketR!$1:$5400, MATCH('Landing Page and Transaction'!$R24, INDEX(MarketR!$1:$5400, 0, MATCH('Landing Page and Transaction'!S$2, MarketR!$1:$1, 0)), 0), MATCH('Landing Page and Transaction'!S$2, MarketR!$1:$1, 0)+1) ->  | T24: =INDEX(MarketR!$1:$5400, MATCH('Landing Page and Transaction'!$R24, INDEX(MarketR!$1:$5400, 0, MATCH('Landing Page and Transaction'!T$2, MarketR!$1:$1, 0)), 0), MATCH('Landing Page and Transaction'!T$2, MarketR!$1:$1, 0)+1) -> 
A25: =IF(B25="", "", GenerateID(B25)) -> توان_90914 | B25: توان | C25: =IF(B25="","",INDEX('دیده بان بازار'!B:B, MATCH(B25, 'دیده بان بازار'!A:A, 0))) -> صندوق س. اهرمي توان مفيد-س | D25: خرید | E25: 14030105 | F25: 246 | G25: 2036 | H25: -5027151.775 | I25: =IF(B25="", "", VALUE(INDEX('دیده بان بازار'!H:H, MATCH(B25, 'دیده بان بازار'!A:A, 0)))) -> 19798 | J25: توان_90914 | K25: خرید سهم | L25: -5027151.775 | M25: 14030105 | N25: 629902 | O25: -4397249.775 | R25: =IF('Total Watch'!A23<>"",'Total Watch'!A23,"") -> 200 ام کی زد | S25: =INDEX(MarketR!$1:$5400, MATCH('Landing Page and Transaction'!$R25, INDEX(MarketR!$1:$5400, 0, MATCH('Landing Page and Transaction'!S$2, MarketR!$1:$1, 0)), 0), MATCH('Landing Page and Transaction'!S$2, MarketR!$1:$1, 0)+1) ->  | T25: =INDEX(MarketR!$1:$5400, MATCH('Landing Page and Transaction'!$R25, INDEX(MarketR!$1:$5400, 0, MATCH('Landing Page and Transaction'!T$2, MarketR!$1:$1, 0)), 0), MATCH('Landing Page and Transaction'!T$2, MarketR!$1:$1, 0)+1) -> 
A26: =IF(B26="", "", GenerateID(B26)) -> ضستا2026_79216 | B26: ضستا2026 | C26: =IF(B26="","",INDEX('دیده بان بازار'!B:B, MATCH(B26, 'دیده بان بازار'!A:A, 0))) ->  | D26: خرید | E26: 14030105 | F26: 8000 | G26: 15 | H26: -1204454.4 | I26: =IF(B26="", "", VALUE(INDEX('دیده بان بازار'!H:H, MATCH(B26, 'دیده بان بازار'!A:A, 0)))) ->  | J26: ضستا2026_79216 | K26: خرید اختیار خرید | L26: -1204454.4 | M26: 14030105 | N26: =O25 -> -4397249.775 | O26: -5601704.175 | R26: =IF('Total Watch'!A24<>"",'Total Watch'!A24,"") -> 200R SE 1401 | S26: =INDEX(MarketR!$1:$5400, MATCH('Landing Page and Transaction'!$R26, INDEX(MarketR!$1:$5400, 0, MATCH('Landing Page and Transaction'!S$2, MarketR!$1:$1, 0)), 0), MATCH('Landing Page and Transaction'!S$2, MarketR!$1:$1, 0)+1) ->  | T26: =INDEX(MarketR!$1:$5400, MATCH('Landing Page and Transaction'!$R26, INDEX(MarketR!$1:$5400, 0, MATCH('Landing Page and Transaction'!T$2, MarketR!$1:$1, 0)), 0), MATCH('Landing Page and Transaction'!T$2, MarketR!$1:$1, 0)+1) -> 
A27: =IF(B27="", "", GenerateID(B27)) -> ضستا2025_98880 | B27: ضستا2025 | C27: =IF(B27="","",INDEX('دیده بان بازار'!B:B, MATCH(B27, 'دیده بان بازار'!A:A, 0))) ->  | D27: خرید | E27: 14030105 | F27: 8 | G27: 150 | H27: -12044.544 | I27: =IF(B27="", "", VALUE(INDEX('دیده بان بازار'!H:H, MATCH(B27, 'دیده بان بازار'!A:A, 0)))) ->  | J27: ضستا2025_98880 | K27: خرید اختیار خرید | L27: -12044.544 | M27: 14030105 | N27: =O26 -> -5601704.175 | O27: -5613748.719 | R27: =IF('Total Watch'!A25<>"",'Total Watch'!A25,"") -> 250 طرح کی تی ام فلات | S27: =INDEX(MarketR!$1:$5400, MATCH('Landing Page and Transaction'!$R27, INDEX(MarketR!$1:$5400, 0, MATCH('Landing Page and Transaction'!S$2, MarketR!$1:$1, 0)), 0), MATCH('Landing Page and Transaction'!S$2, MarketR!$1:$1, 0)+1) ->  | T27: =INDEX(MarketR!$1:$5400, MATCH('Landing Page and Transaction'!$R27, INDEX(MarketR!$1:$5400, 0, MATCH('Landing Page and Transaction'!T$2, MarketR!$1:$1, 0)), 0), MATCH('Landing Page and Transaction'!T$2, MarketR!$1:$1, 0)+1) -> 
A28: =IF(B28="", "", GenerateID(B28)) -> فيروزا_25707 | B28: فيروزا | C28: =IF(B28="","",INDEX('دیده بان بازار'!B:B, MATCH(B28, 'دیده بان بازار'!A:A, 0))) -> صندوق ارمغان فيروزه آسيا-ثابت | D28: خرید | E28: 14030106 | F28: 0 | G28: 345334 | H28: =IF(OR(D28="خرید", D28="برداشت", D28="سود"), -G28*F28*(1 + 0.003712), IF(OR(D28="فروش", D28="واریز"), G28*F28*(1 - 0.0088), 0)) -> 0 | I28: =IF(B28="", "", VALUE(INDEX('دیده بان بازار'!H:H, MATCH(B28, 'دیده بان بازار'!A:A, 0)))) -> 51875 | J28: فيروزا_25707 | K28: سهام جایزه | L28: 0 | M28: 14030106 | N28: =O26 -> -5601704.175 | O28: -5601704.175 | P28: سهام جایزه بوده | R28: =IF('Total Watch'!A26<>"",'Total Watch'!A26,"") -> 511 اتوماتیک-1403 | S28: =INDEX(MarketR!$1:$5400, MATCH('Landing Page and Transaction'!$R28, INDEX(MarketR!$1:$5400, 0, MATCH('Landing Page and Transaction'!S$2, MarketR!$1:$1, 0)), 0), MATCH('Landing Page and Transaction'!S$2, MarketR!$1:$1, 0)+1) -> 1,000,000,000 تومان | T28: =INDEX(MarketR!$1:$5400, MATCH('Landing Page and Transaction'!$R28, INDEX(MarketR!$1:$5400, 0, MATCH('Landing Page and Transaction'!T$2, MarketR!$1:$1, 0)), 0), MATCH('Landing Page and Transaction'!T$2, MarketR!$1:$1, 0)+1) -> 
A29: =IF(B29="", "", GenerateID(B29)) -> فيروزا_25707 | B29: فيروزا | C29: =IF(B29="","",INDEX('دیده بان بازار'!B:B, MATCH(B29, 'دیده بان بازار'!A:A, 0))) -> صندوق ارمغان فيروزه آسيا-ثابت | D29: خرید | E29: 14030106 | F29: 1 | G29: 0 | H29: 0 | I29: =IF(B29="","",INDEX('دیده بان بازار'!H:H, MATCH(B29, 'دیده بان بازار'!A:A, 0))) -> 51875 | J29: فيروزا_25707 | K29: سهام جایزه | L29: 0 | M29: 14030106 | N29: =O28 -> -5601704.175 | O29: -5601704.175 | P29: سهام جایزه بوده | R29: =IF('Total Watch'!A27<>"",'Total Watch'!A27,"") -> 7x توربو 1600-1402 | S29: =INDEX(MarketR!$1:$5400, MATCH('Landing Page and Transaction'!$R29, INDEX(MarketR!$1:$5400, 0, MATCH('Landing Page and Transaction'!S$2, MarketR!$1:$1, 0)), 0), MATCH('Landing Page and Transaction'!S$2, MarketR!$1:$1, 0)+1) -> 1,620,000,000 تومان | T29: =INDEX(MarketR!$1:$5400, MATCH('Landing Page and Transaction'!$R29, INDEX(MarketR!$1:$5400, 0, MATCH('Landing Page and Transaction'!T$2, MarketR!$1:$1, 0)), 0), MATCH('Landing Page and Transaction'!T$2, MarketR!$1:$1, 0)+1) -> 
A30: =IF(B30="", "", GenerateID(B30)) -> فيروزه_13833 | B30: فيروزه | C30: =IF(B30="","",INDEX('دیده بان بازار'!B:B, MATCH(B30, 'دیده بان بازار'!A:A, 0))) -> صندوق شاخص30 شركت فيروزه- سهام | D30: خرید | E30: 14030106 | F30: 7 | G30: 0 | H30: 0 | I30: =IF(B30="","",INDEX('دیده بان بازار'!H:H, MATCH(B30, 'دیده بان بازار'!A:A, 0))) -> 34630 | J30: فيروزه_13833 | K30: سهام جایزه | L30: 0 | M30: 14030106 | N30: =O29 -> -5601704.175 | O30: -5601704.175 | P30: سهام جایزه بوده | R30: =IF('Total Watch'!A28<>"",'Total Watch'!A28,"") -> 7x توربو 1600-1403 | S30: =INDEX(MarketR!$1:$5400, MATCH('Landing Page and Transaction'!$R30, INDEX(MarketR!$1:$5400, 0, MATCH('Landing Page and Transaction'!S$2, MarketR!$1:$1, 0)), 0), MATCH('Landing Page and Transaction'!S$2, MarketR!$1:$1, 0)+1) -> 1,690,000,000 تومان | T30: =INDEX(MarketR!$1:$5400, MATCH('Landing Page and Transaction'!$R30, INDEX(MarketR!$1:$5400, 0, MATCH('Landing Page and Transaction'!T$2, MarketR!$1:$1, 0)), 0), MATCH('Landing Page and Transaction'!T$2, MarketR!$1:$1, 0)+1) -> 
A31: =IF(B31="", "", GenerateID(B31)) -> فيروزه_13833 | B31: فيروزه | C31: =IF(B31="","",INDEX('دیده بان بازار'!B:B, MATCH(B31, 'دیده بان بازار'!A:A, 0))) -> صندوق شاخص30 شركت فيروزه- سهام | D31: خرید | E31: 14030106 | F31: 6 | G31: 0 | H31: 0 | I31: =IF(B31="","",INDEX('دیده بان بازار'!H:H, MATCH(B31, 'دیده بان بازار'!A:A, 0))) -> 34630 | J31: فيروزه_13833 | K31: سهام جایزه | L31: 0 | M31: 14030106 | N31: =O30 -> -5601704.175 | O31: -5601704.175 | P31: سهام جایزه بوده | R31: =IF('Total Watch'!A29<>"",'Total Watch'!A29,"") -> A5 توربو 1500-1403 | S31: =INDEX(MarketR!$1:$5400, MATCH('Landing Page and Transaction'!$R31, INDEX(MarketR!$1:$5400, 0, MATCH('Landing Page and Transaction'!S$2, MarketR!$1:$1, 0)), 0), MATCH('Landing Page and Transaction'!S$2, MarketR!$1:$1, 0)+1) ->  | T31: =INDEX(MarketR!$1:$5400, MATCH('Landing Page and Transaction'!$R31, INDEX(MarketR!$1:$5400, 0, MATCH('Landing Page and Transaction'!T$2, MarketR!$1:$1, 0)), 0), MATCH('Landing Page and Transaction'!T$2, MarketR!$1:$1, 0)+1) -> 
A32: =IF(B32="", "", GenerateID(B32)) -> افران_77462 | B32: افران | C32: =IF(B32="","",INDEX('دیده بان بازار'!B:B, MATCH(B32, 'دیده بان بازار'!A:A, 0))) -> صندوق س افرا نماد پايدار-ثابت | D32: فروش | E32: 1403/02/12 | F32: 154 | G32: 2605 | H32: =IF(OR(D32="خرید", D32="برداشت", D32="سود"), -G32*F32*(1 + 0.003712) * 10, IF(OR(D32="فروش", D32="واریز"), G32*F32*(1 - 0.0088) * 10, 0)) -> 3976397.04 | I32: =IF(B32="","",INDEX('دیده بان بازار'!H:H, MATCH(B32, 'دیده بان بازار'!A:A, 0))) -> 30524 | J32: افران_77462 | N32: =O31 -> -5601704.175 | O32: -5601704.175 | R32: =IF('Total Watch'!A30<>"",'Total Watch'!A30,"") -> Adventure 249 ABS 1401 | S32: =INDEX(MarketR!$1:$5400, MATCH('Landing Page and Transaction'!$R32, INDEX(MarketR!$1:$5400, 0, MATCH('Landing Page and Transaction'!S$2, MarketR!$1:$1, 0)), 0), MATCH('Landing Page and Transaction'!S$2, MarketR!$1:$1, 0)+1) ->  | T32: =INDEX(MarketR!$1:$5400, MATCH('Landing Page and Transaction'!$R32, INDEX(MarketR!$1:$5400, 0, MATCH('Landing Page and Transaction'!T$2, MarketR!$1:$1, 0)), 0), MATCH('Landing Page and Transaction'!T$2, MarketR!$1:$1, 0)+1) -> 
A33: =IF(B33="", "", GenerateID(B33)) -> ضستا2025_98880 | B33: ضستا2025 | C33: =IF(B33="","",INDEX('دیده بان بازار'!B:B, MATCH(B33, 'دیده بان بازار'!A:A, 0))) ->  | D33: فروش | E33: 1403/02/12 | F33: 5000 | G33: 10 | H33: 495600 | I33: =IF(B33="","",INDEX('دیده بان بازار'!H:H, MATCH(B33, 'دیده بان بازار'!A:A, 0))) ->  | J33: ضستا2025_98880 | L33: =H33 -> 495600 | M33: =E33 -> 1403/02/12 | N33: =O32 -> -5601704.175 | O33: -5106104.175 | R33: =IF('Total Watch'!A31<>"",'Total Watch'!A31,"") -> Aquila 249 ABS 1401 | S33: =INDEX(MarketR!$1:$5400, MATCH('Landing Page and Transaction'!$R33, INDEX(MarketR!$1:$5400, 0, MATCH('Landing Page and Transaction'!S$2, MarketR!$1:$1, 0)), 0), MATCH('Landing Page and Transaction'!S$2, MarketR!$1:$1, 0)+1) ->  | T33: =INDEX(MarketR!$1:$5400, MATCH('Landing Page and Transaction'!$R33, INDEX(MarketR!$1:$5400, 0, MATCH('Landing Page and Transaction'!T$2, MarketR!$1:$1, 0)), 0), MATCH('Landing Page and Transaction'!T$2, MarketR!$1:$1, 0)+1) -> 
A34: =IF(B34="", "", GenerateID(B34)) -> ضستا2025_98880 | B34: ضستا2025 | C34: =IF(B34="","",INDEX('دیده بان بازار'!B:B, MATCH(B34, 'دیده بان بازار'!A:A, 0))) ->  | D34: خرید | E34: 1403/02/17 | F34: 3 | G34: 0 | H34: 3301650 | I34: =IF(B34="","",INDEX('دیده بان بازار'!H:H, MATCH(B34, 'دیده بان بازار'!A:A, 0))) ->  | J34: ضستا2025_98880 | K34: اعمال اختیار خرید | L34: 3301650 | M34: 1403/02/17 | N34: -5106104.175 | O34: -1804454.175 | P34: اعمال اختیار خرید | R34: =IF('Total Watch'!A31<>"",'Total Watch'!A31,"") -> Aquila 249 ABS 1401 | S34: =INDEX(MarketR!$1:$5400, MATCH('Landing Page and Transaction'!$R34, INDEX(MarketR!$1:$5400, 0, MATCH('Landing Page and Transaction'!S$2, MarketR!$1:$1, 0)), 0), MATCH('Landing Page and Transaction'!S$2, MarketR!$1:$1, 0)+1) ->  | T34: =INDEX(MarketR!$1:$5400, MATCH('Landing Page and Transaction'!$R34, INDEX(MarketR!$1:$5400, 0, MATCH('Landing Page and Transaction'!T$2, MarketR!$1:$1, 0)), 0), MATCH('Landing Page and Transaction'!T$2, MarketR!$1:$1, 0)+1) -> 
A35: =IF(B35="", "", GenerateID(B35)) -> فسبزوار_74019 | B35: فسبزوار | C35: =IF(B35="","",INDEX('دیده بان بازار'!B:B, MATCH(B35, 'دیده بان بازار'!A:A, 0))) -> پارس فولاد سبزوار | D35: خرید | E35: 1403/02/18 | F35: 227 | G35: 4400 | H35: =IF(OR(D35="خرید", D35="برداشت", D35="سود"), -G35*F35*(1 + 0.003712) * 10, IF(OR(D35="فروش", D35="واریز"), G35*F35*(1 - 0.0088) * 10, 0)) -> -10025075.46 | I35: =IF(B35="","",INDEX('دیده بان بازار'!H:H, MATCH(B35, 'دیده بان بازار'!A:A, 0))) -> 47820 | J35: فسبزوار_74019 | L35: -10025075.46 | M35: 1403/02/18 | N35: -1804454.175 | O35: -11829529.63 | R35: =IF('Total Watch'!A32<>"",'Total Watch'!A32,"") -> C2 249 1401 | S35: =INDEX(MarketR!$1:$5400, MATCH('Landing Page and Transaction'!$R35, INDEX(MarketR!$1:$5400, 0, MATCH('Landing Page and Transaction'!S$2, MarketR!$1:$1, 0)), 0), MATCH('Landing Page and Transaction'!S$2, MarketR!$1:$1, 0)+1) ->  | T35: =INDEX(MarketR!$1:$5400, MATCH('Landing Page and Transaction'!$R35, INDEX(MarketR!$1:$5400, 0, MATCH('Landing Page and Transaction'!T$2, MarketR!$1:$1, 0)), 0), MATCH('Landing Page and Transaction'!T$2, MarketR!$1:$1, 0)+1) ->  | U35: =IF(VALUE(CLEAN(TRIM(SUBSTITUTE(SUBSTITUTE(SUBSTITUTE(SUBSTITUTE(T35,"تومان",""),"$",""),"ریال",""),",",""))))=0,"بدون داده",IFERROR((VALUE(CLEAN(TRIM(SUBSTITUTE(SUBSTITUTE(SUBSTITUTE(SUBSTITUTE(T35,"تومان",""),"$",""),"ریال",""),",",""))))-VALUE(CLEAN(TRIM(SUBSTITUTE(SUBSTITUTE(SUBSTITUTE(SUBSTITUTE(S35,"تومان",""),"$",""),"ریال",""),",","")))))/VALUE(CLEAN(TRIM(SUBSTITUTE(SUBSTITUTE(SUBSTITUTE(SUBSTITUTE(S35,"تومان",""),"$",""),"ریال",""),",","")))),"تعریف نشده")) -> 
A36: =IF(B36="", "", GenerateID(B36)) -> شفام_75525 | B36: شفام | C36: =IF(B36="","",INDEX('دیده بان بازار'!B:B, MATCH(B36, 'دیده بان بازار'!A:A, 0))) -> توليدي و صنعتي گوهرفام | D36: خرید | E36: 1403/02/26 | F36: 140 | G36: 8487 | H36: -11925905.24 | I36: =IF(B36="","",INDEX('دیده بان بازار'!H:H, MATCH(B36, 'دیده بان بازار'!A:A, 0))) -> 2914 | J36: شفام_75525 | L36: -11925905.24 | M36: 1403/02/26 | N36: -11829529.63 | O36: -23755434.87 | R36: =IF('Total Watch'!A32<>"",'Total Watch'!A32,"") -> C2 249 1401 | S36: =INDEX(MarketR!$1:$5400, MATCH('Landing Page and Transaction'!$R36, INDEX(MarketR!$1:$5400, 0, MATCH('Landing Page and Transaction'!S$2, MarketR!$1:$1, 0)), 0), MATCH('Landing Page and Transaction'!S$2, MarketR!$1:$1, 0)+1) ->  | T36: =INDEX(MarketR!$1:$5400, MATCH('Landing Page and Transaction'!$R36, INDEX(MarketR!$1:$5400, 0, MATCH('Landing Page and Transaction'!T$2, MarketR!$1:$1, 0)), 0), MATCH('Landing Page and Transaction'!T$2, MarketR!$1:$1, 0)+1) -> 
A37: =IF(B37="", "", GenerateID(B37)) -> سحرخيز_55826 | B37: سحرخيز | C37: =IF(B37="","",INDEX('دیده بان بازار'!B:B, MATCH(B37, 'دیده بان بازار'!A:A, 0))) -> صندوق س. گروه زعفران سحرخيز | D37: خرید | E37: 1403/03/05 | F37: 248 | G37: 3880 | H37: -9658118.349 | I37: =IF(B37="","",INDEX('دیده بان بازار'!H:H, MATCH(B37, 'دیده بان بازار'!A:A, 0))) -> 37999 | J37: سحرخيز_55826 | L37: -9658118.349 | M37: 1403/03/05 | N37: -23755434.87 | O37: -33413553.22 | R37: =IF('Total Watch'!A33<>"",'Total Watch'!A33,"") -> CDI 125 1401 | S37: =INDEX(MarketR!$1:$5400, MATCH('Landing Page and Transaction'!$R37, INDEX(MarketR!$1:$5400, 0, MATCH('Landing Page and Transaction'!S$2, MarketR!$1:$1, 0)), 0), MATCH('Landing Page and Transaction'!S$2, MarketR!$1:$1, 0)+1) ->  | T37: =INDEX(MarketR!$1:$5400, MATCH('Landing Page and Transaction'!$R37, INDEX(MarketR!$1:$5400, 0, MATCH('Landing Page and Transaction'!T$2, MarketR!$1:$1, 0)), 0), MATCH('Landing Page and Transaction'!T$2, MarketR!$1:$1, 0)+1) -> 
A38: =IF(B38="", "", GenerateID(B38)) -> افران_77462 | B38: افران | C38: =IF(B38="","",INDEX('دیده بان بازار'!B:B, MATCH(B38, 'دیده بان بازار'!A:A, 0))) -> صندوق س افرا نماد پايدار-ثابت | D38: خرید | E38: 1403/03/06 | F38: 37741 | G38: 2649 | H38: -1003470196 | I38: =IF(B38="","",INDEX('دیده بان بازار'!H:H, MATCH(B38, 'دیده بان بازار'!A:A, 0))) -> 30524 | J38: افران_77462 | L38: -1003470196 | M38: 1403/03/06 | N38: -33413553.22 | O38: -1036883749 | R38: =IF('Total Watch'!A34<>"",'Total Watch'!A34,"") -> CDI 150 1401 | S38: =INDEX(MarketR!$1:$5400, MATCH('Landing Page and Transaction'!$R38, INDEX(MarketR!$1:$5400, 0, MATCH('Landing Page and Transaction'!S$2, MarketR!$1:$1, 0)), 0), MATCH('Landing Page and Transaction'!S$2, MarketR!$1:$1, 0)+1) ->  | T38: =INDEX(MarketR!$1:$5400, MATCH('Landing Page and Transaction'!$R38, INDEX(MarketR!$1:$5400, 0, MATCH('Landing Page and Transaction'!T$2, MarketR!$1:$1, 0)), 0), MATCH('Landing Page and Transaction'!T$2, MarketR!$1:$1, 0)+1) -> 
A39: =IF(B39="", "", GenerateID(B39)) -> واریز_99145 | B39: واریز | C39: =IF(B39="","",INDEX('دیده بان بازار'!B:B, MATCH(B39, 'دیده بان بازار'!A:A, 0))) ->  | D39: واریز | E39: 1403/03/06 | H39: 1000000000 | I39: =IF(B39="","",INDEX('دیده بان بازار'!H:H, MATCH(B39, 'دیده بان بازار'!A:A, 0))) ->  | J39: واریز_99145 | L39: 1000000000 | M39: 1403/03/06 | N39: -1036883749 | O39: -36883748.96 | P39: واریز مبلغ | R39: =IF('Total Watch'!A35<>"",'Total Watch'!A35,"") -> CDI 200 1401 | S39: =INDEX(MarketR!$1:$5400, MATCH('Landing Page and Transaction'!$R39, INDEX(MarketR!$1:$5400, 0, MATCH('Landing Page and Transaction'!S$2, MarketR!$1:$1, 0)), 0), MATCH('Landing Page and Transaction'!S$2, MarketR!$1:$1, 0)+1) ->  | T39: =INDEX(MarketR!$1:$5400, MATCH('Landing Page and Transaction'!$R39, INDEX(MarketR!$1:$5400, 0, MATCH('Landing Page and Transaction'!T$2, MarketR!$1:$1, 0)), 0), MATCH('Landing Page and Transaction'!T$2, MarketR!$1:$1, 0)+1) -> 
A40: =IF(B40="", "", GenerateID(B40)) -> نيان_14744 | B40: نيان | C40: =IF(B40="","",INDEX('دیده بان بازار'!B:B, MATCH(B40, 'دیده بان بازار'!A:A, 0))) -> نيان الكترونيك | D40: خرید | E40: 1403/03/08 | F40: 560 | G40: 3615 | H40: -20319145.73 | I40: =IF(B40="","",INDEX('دیده بان بازار'!H:H, MATCH(B40, 'دیده بان بازار'!A:A, 0))) -> 11700 | J40: نيان_14744 | L40: -20319145.73 | M40: 1403/03/08 | N40: -36883748.96 | O40: -57202894.69 | R40: =IF('Total Watch'!A36<>"",'Total Watch'!A36,"") -> CS35 پلاس تیپ 2-2023 | S40: =INDEX(MarketR!$1:$5400, MATCH('Landing Page and Transaction'!$R40, INDEX(MarketR!$1:$5400, 0, MATCH('Landing Page and Transaction'!S$2, MarketR!$1:$1, 0)), 0), MATCH('Landing Page and Transaction'!S$2, MarketR!$1:$1, 0)+1) -> 1,540,000,000 تومان | T40: =INDEX(MarketR!$1:$5400, MATCH('Landing Page and Transaction'!$R40, INDEX(MarketR!$1:$5400, 0, MATCH('Landing Page and Transaction'!T$2, MarketR!$1:$1, 0)), 0), MATCH('Landing Page and Transaction'!T$2, MarketR!$1:$1, 0)+1) -> 
A41: =IF(B41="", "", GenerateID(B41)) -> نخريس_65478 | B41: نخريس | C41: =IF(B41="","",INDEX('دیده بان بازار'!B:B, MATCH(B41, 'دیده بان بازار'!A:A, 0))) -> نخريسي و نساجي خسروي خراسان | D41: خرید | E41: 1403/03/08 | F41: 839 | G41: 2360 | H41: -19873899.08 | I41: =IF(B41="","",INDEX('دیده بان بازار'!H:H, MATCH(B41, 'دیده بان بازار'!A:A, 0))) -> 20820 | J41: نخريس_65478 | L41: -19873899.08 | M41: 1403/03/08 | N41: -57202894.69 | O41: -77076793.78 | R41: =IF('Total Watch'!A37<>"",'Total Watch'!A37,"") -> CS35 پلاس تیپ 3-2023 | S41: =INDEX(MarketR!$1:$5400, MATCH('Landing Page and Transaction'!$R41, INDEX(MarketR!$1:$5400, 0, MATCH('Landing Page and Transaction'!S$2, MarketR!$1:$1, 0)), 0), MATCH('Landing Page and Transaction'!S$2, MarketR!$1:$1, 0)+1) -> 1,600,000,000 تومان | T41: =INDEX(MarketR!$1:$5400, MATCH('Landing Page and Transaction'!$R41, INDEX(MarketR!$1:$5400, 0, MATCH('Landing Page and Transaction'!T$2, MarketR!$1:$1, 0)), 0), MATCH('Landing Page and Transaction'!T$2, MarketR!$1:$1, 0)+1) -> 
A42: =IF(B42="", "", GenerateID(B42)) -> نخريس_65478 | B42: نخريس | C42: =IF(B42="","",INDEX('دیده بان بازار'!B:B, MATCH(B42, 'دیده بان بازار'!A:A, 0))) -> نخريسي و نساجي خسروي خراسان | D42: فروش | E42: 1403/03/08 | F42: 839 | G42: 2425 | H42: 20166707.4 | I42: =IF(B42="","",INDEX('دیده بان بازار'!H:H, MATCH(B42, 'دیده بان بازار'!A:A, 0))) -> 20820 | J42: نخريس_65478 | L42: 20166707.4 | M42: 1403/03/08 | N42: -77076793.78 | O42: -56910086.38 | R42: =IF('Total Watch'!A38<>"",'Total Watch'!A38,"") -> CS35 پلاس تیپ 3-2024 | S42: =INDEX(MarketR!$1:$5400, MATCH('Landing Page and Transaction'!$R42, INDEX(MarketR!$1:$5400, 0, MATCH('Landing Page and Transaction'!S$2, MarketR!$1:$1, 0)), 0), MATCH('Landing Page and Transaction'!S$2, MarketR!$1:$1, 0)+1) -> 1,700,000,000 تومان | T42: =INDEX(MarketR!$1:$5400, MATCH('Landing Page and Transaction'!$R42, INDEX(MarketR!$1:$5400, 0, MATCH('Landing Page and Transaction'!T$2, MarketR!$1:$1, 0)), 0), MATCH('Landing Page and Transaction'!T$2, MarketR!$1:$1, 0)+1) -> 
A43: =IF(B43="", "", GenerateID(B43)) -> افران_77462 | B43: افران | C43: =IF(B43="","",INDEX('دیده بان بازار'!B:B, MATCH(B43, 'دیده بان بازار'!A:A, 0))) -> صندوق س افرا نماد پايدار-ثابت | D43: فروش | E43: 1403/03/08 | F43: 16578 | G43: 2653 | H43: 435943973.8 | I43: =IF(B43="","",INDEX('دیده بان بازار'!H:H, MATCH(B43, 'دیده بان بازار'!A:A, 0))) -> 30524 | J43: افران_77462 | L43: 435943973.8 | M43: 1403/03/08 | N43: -56910086.38 | O43: 379033887.4 | R43: =IF('Total Watch'!A39<>"",'Total Watch'!A39,"") -> CS55 پلاس 1500 توربو-2024 | S43: =INDEX(MarketR!$1:$5400, MATCH('Landing Page and Transaction'!$R43, INDEX(MarketR!$1:$5400, 0, MATCH('Landing Page and Transaction'!S$2, MarketR!$1:$1, 0)), 0), MATCH('Landing Page and Transaction'!S$2, MarketR!$1:$1, 0)+1) -> 2,120,000,000 تومان | T43: =INDEX(MarketR!$1:$5400, MATCH('Landing Page and Transaction'!$R43, INDEX(MarketR!$1:$5400, 0, MATCH('Landing Page and Transaction'!T$2, MarketR!$1:$1, 0)), 0), MATCH('Landing Page and Transaction'!T$2, MarketR!$1:$1, 0)+1) -> 
A44: =IF(B44="", "", GenerateID(B44)) -> سحرخيز_55826 | B44: سحرخيز | C44: =IF(B44="","",INDEX('دیده بان بازار'!B:B, MATCH(B44, 'دیده بان بازار'!A:A, 0))) -> صندوق س. گروه زعفران سحرخيز | D44: خرید | E44: 1403/03/08 | F44: 303 | G44: 3924 | H44: -11933854.64 | I44: =IF(B44="","",INDEX('دیده بان بازار'!H:H, MATCH(B44, 'دیده بان بازار'!A:A, 0))) -> 37999 | J44: =A44 -> سحرخيز_55826 | L44: -11933854.64 | M44: 1403/03/08 | N44: 379033887.4 | O44: =N44+L44 -> 367100032.8 | R44: =IF('Total Watch'!A40<>"",'Total Watch'!A40,"") -> CUx 1401 | S44: =INDEX(MarketR!$1:$5400, MATCH('Landing Page and Transaction'!$R44, INDEX(MarketR!$1:$5400, 0, MATCH('Landing Page and Transaction'!S$2, MarketR!$1:$1, 0)), 0), MATCH('Landing Page and Transaction'!S$2, MarketR!$1:$1, 0)+1) ->  | T44: =INDEX(MarketR!$1:$5400, MATCH('Landing Page and Transaction'!$R44, INDEX(MarketR!$1:$5400, 0, MATCH('Landing Page and Transaction'!T$2, MarketR!$1:$1, 0)), 0), MATCH('Landing Page and Transaction'!T$2, MarketR!$1:$1, 0)+1) -> 
A45: =IF(B45="", "", GenerateID(B45)) -> سكه0312پ01_60244 | B45: سكه0312پ01 | C45: =IF(B45="","",INDEX('دیده بان بازار'!B:B, MATCH(B45, 'دیده بان بازار'!A:A, 0))) -> تمام سكه طرح جديد0312 رفاه | D45: خرید | E45: 1403/03/08 | F45: 100 | G45: 407399 | H45: -408911265.1 | I45: =IF(B45="","",INDEX('دیده بان بازار'!H:H, MATCH(B45, 'دیده بان بازار'!A:A, 0))) -> 5050000 | J45: سكه0312پ01_60244 | L45: -408911265.1 | M45: 1403/03/08 | N45: =O44 -> 367100032.8 | O45: -41811232.3 | R45: =IF('Total Watch'!A41<>"",'Total Watch'!A41,"") -> CUx Ducati 1401 | S45: =INDEX(MarketR!$1:$5400, MATCH('Landing Page and Transaction'!$R45, INDEX(MarketR!$1:$5400, 0, MATCH('Landing Page and Transaction'!S$2, MarketR!$1:$1, 0)), 0), MATCH('Landing Page and Transaction'!S$2, MarketR!$1:$1, 0)+1) ->  | T45: =INDEX(MarketR!$1:$5400, MATCH('Landing Page and Transaction'!$R45, INDEX(MarketR!$1:$5400, 0, MATCH('Landing Page and Transaction'!T$2, MarketR!$1:$1, 0)), 0), MATCH('Landing Page and Transaction'!T$2, MarketR!$1:$1, 0)+1) ->  | U45: =IF(VALUE(CLEAN(TRIM(SUBSTITUTE(SUBSTITUTE(SUBSTITUTE(SUBSTITUTE(T45,"تومان",""),"$",""),"ریال",""),",",""))))=0,"بدون داده",IFERROR((VALUE(CLEAN(TRIM(SUBSTITUTE(SUBSTITUTE(SUBSTITUTE(SUBSTITUTE(T45,"تومان",""),"$",""),"ریال",""),",",""))))-VALUE(CLEAN(TRIM(SUBSTITUTE(SUBSTITUTE(SUBSTITUTE(SUBSTITUTE(S45,"تومان",""),"$",""),"ریال",""),",","")))))/VALUE(CLEAN(TRIM(SUBSTITUTE(SUBSTITUTE(SUBSTITUTE(SUBSTITUTE(S45,"تومان",""),"$",""),"ریال",""),",","")))),"تعریف نشده")) -> 
A46: =IF(B46="", "", GenerateID(B46)) -> توريل_17325 | B46: توريل | C46: =IF(B46="","",INDEX('دیده بان بازار'!B:B, MATCH(B46, 'دیده بان بازار'!A:A, 0))) -> توكاريل | D46: خرید | E46: 1403/03/09 | F46: 4068 | G46: 492 | H46: -20088854.05 | I46: =IF(B46="","",INDEX('دیده بان بازار'!H:H, MATCH(B46, 'دیده بان بازار'!A:A, 0))) -> 5760 | J46: توريل_17325 | L46: -20088854.05 | M46: 1403/03/09 | N46: -41811232.3 | O46: -61900086.34 | R46: =IF('Total Watch'!A42<>"",'Total Watch'!A42,"") -> DL5 توربو 1500-1402 | S46: =INDEX(MarketR!$1:$5400, MATCH('Landing Page and Transaction'!$R46, INDEX(MarketR!$1:$5400, 0, MATCH('Landing Page and Transaction'!S$2, MarketR!$1:$1, 0)), 0), MATCH('Landing Page and Transaction'!S$2, MarketR!$1:$1, 0)+1) -> 1,020,000,000 تومان | T46: =INDEX(MarketR!$1:$5400, MATCH('Landing Page and Transaction'!$R46, INDEX(MarketR!$1:$5400, 0, MATCH('Landing Page and Transaction'!T$2, MarketR!$1:$1, 0)), 0), MATCH('Landing Page and Transaction'!T$2, MarketR!$1:$1, 0)+1) -> 
A47: =IF(B47="", "", GenerateID(B47)) -> خفنر_87129 | B47: خفنر | C47: =IF(B47="","",INDEX('دیده بان بازار'!B:B, MATCH(B47, 'دیده بان بازار'!A:A, 0))) -> فنرسازي‌خاور | D47: خرید | E47: 1403/03/09 | F47: 6048 | G47: 656 | H47: -39822153.15 | I47: =IF(B47="","",INDEX('دیده بان بازار'!H:H, MATCH(B47, 'دیده بان بازار'!A:A, 0))) -> 4425 | J47: خفنر_87129 | L47: -39822153.15 | M47: 1403/03/09 | N47: -61900086.34 | O47: -101722239.5 | R47: =IF('Total Watch'!A43<>"",'Total Watch'!A43,"") -> DL5 توربو 1500-1403 | S47: =INDEX(MarketR!$1:$5400, MATCH('Landing Page and Transaction'!$R47, INDEX(MarketR!$1:$5400, 0, MATCH('Landing Page and Transaction'!S$2, MarketR!$1:$1, 0)), 0), MATCH('Landing Page and Transaction'!S$2, MarketR!$1:$1, 0)+1) -> 1,100,000,000 تومان | T47: =INDEX(MarketR!$1:$5400, MATCH('Landing Page and Transaction'!$R47, INDEX(MarketR!$1:$5400, 0, MATCH('Landing Page and Transaction'!T$2, MarketR!$1:$1, 0)), 0), MATCH('Landing Page and Transaction'!T$2, MarketR!$1:$1, 0)+1) -> 
A48: =IF(B48="", "", GenerateID(B48)) -> افران_77462 | B48: افران | C48: =IF(B48="","",INDEX('دیده بان بازار'!B:B, MATCH(B48, 'دیده بان بازار'!A:A, 0))) -> صندوق س افرا نماد پايدار-ثابت | D48: فروش | E48: 1403/03/09 | F48: 2257 | G48: 2658 | H48: 59463138.67 | I48: =IF(B48="","",INDEX('دیده بان بازار'!H:H, MATCH(B48, 'دیده بان بازار'!A:A, 0))) -> 30524 | J48: افران_77462 | L48: 59463138.67 | M48: 1403/03/09 | N48: -101722239.5 | O48: -42259100.83 | R48: =IF('Total Watch'!A44<>"",'Total Watch'!A44,"") -> Daichi CR 150 1401 | S48: =INDEX(MarketR!$1:$5400, MATCH('Landing Page and Transaction'!$R48, INDEX(MarketR!$1:$5400, 0, MATCH('Landing Page and Transaction'!S$2, MarketR!$1:$1, 0)), 0), MATCH('Landing Page and Transaction'!S$2, MarketR!$1:$1, 0)+1) ->  | T48: =INDEX(MarketR!$1:$5400, MATCH('Landing Page and Transaction'!$R48, INDEX(MarketR!$1:$5400, 0, MATCH('Landing Page and Transaction'!T$2, MarketR!$1:$1, 0)), 0), MATCH('Landing Page and Transaction'!T$2, MarketR!$1:$1, 0)+1) -> 
A49: =IF(B49="", "", GenerateID(B49)) -> نيان_14744 | B49: نيان | C49: =IF(B49="","",INDEX('دیده بان بازار'!B:B, MATCH(B49, 'دیده بان بازار'!A:A, 0))) -> نيان الكترونيك | D49: فروش | E49: 1403/03/13 | F49: 560 | G49: 3575 | H49: 19843824 | I49: =IF(B49="","",INDEX('دیده بان بازار'!H:H, MATCH(B49, 'دیده بان بازار'!A:A, 0))) -> 11700 | J49: نيان_14744 | L49: 19843824 | M49: 1403/03/13 | N49: -42259100.83 | O49: -22415276.83 | R49: =IF('Total Watch'!A45<>"",'Total Watch'!A45,"") -> Daichi VP 125 1401 | S49: =INDEX(MarketR!$1:$5400, MATCH('Landing Page and Transaction'!$R49, INDEX(MarketR!$1:$5400, 0, MATCH('Landing Page and Transaction'!S$2, MarketR!$1:$1, 0)), 0), MATCH('Landing Page and Transaction'!S$2, MarketR!$1:$1, 0)+1) ->  | T49: =INDEX(MarketR!$1:$5400, MATCH('Landing Page and Transaction'!$R49, INDEX(MarketR!$1:$5400, 0, MATCH('Landing Page and Transaction'!T$2, MarketR!$1:$1, 0)), 0), MATCH('Landing Page and Transaction'!T$2, MarketR!$1:$1, 0)+1) -> 
A50: =IF(B50="", "", GenerateID(B50)) -> افران_77462 | B50: افران | C50: =IF(B50="","",INDEX('دیده بان بازار'!B:B, MATCH(B50, 'دیده بان بازار'!A:A, 0))) -> صندوق س افرا نماد پايدار-ثابت | D50: فروش | E50: 1403/03/19 | F50: 187 | G50: 2474 | H50: 4585667.856 | I50: =IF(B50="","",INDEX('دیده بان بازار'!H:H, MATCH(B50, 'دیده بان بازار'!A:A, 0))) -> 30524 | J50: افران_77462 | L50: 4585667.856 | M50: 1403/03/19 | N50: -22415276.83 | O50: -17829608.97 | R50: =IF('Total Watch'!A46<>"",'Total Watch'!A46,"") -> Duke 200 1401 | S50: =INDEX(MarketR!$1:$5400, MATCH('Landing Page and Transaction'!$R50, INDEX(MarketR!$1:$5400, 0, MATCH('Landing Page and Transaction'!S$2, MarketR!$1:$1, 0)), 0), MATCH('Landing Page and Transaction'!S$2, MarketR!$1:$1, 0)+1) ->  | T50: =INDEX(MarketR!$1:$5400, MATCH('Landing Page and Transaction'!$R50, INDEX(MarketR!$1:$5400, 0, MATCH('Landing Page and Transaction'!T$2, MarketR!$1:$1, 0)), 0), MATCH('Landing Page and Transaction'!T$2, MarketR!$1:$1, 0)+1) -> 
A51: =IF(B51="", "", GenerateID(B51)) -> توريل_17325 | B51: توريل | C51: =IF(B51="","",INDEX('دیده بان بازار'!B:B, MATCH(B51, 'دیده بان بازار'!A:A, 0))) -> توكاريل | D51: فروش | E51: 1403/03/22 | F51: 4068 | G51: 436 | H51: 17580398.98 | I51: =IF(B51="","",INDEX('دیده بان بازار'!H:H, MATCH(B51, 'دیده بان بازار'!A:A, 0))) -> 5760 | J51: توريل_17325 | L51: 17580398.98 | M51: 1403/03/22 | N51: -17829608.97 | O51: -249209.9939 | R51: =IF('Total Watch'!A47<>"",'Total Watch'!A47,"") -> Duke 249 ABS 1401 | S51: =INDEX(MarketR!$1:$5400, MATCH('Landing Page and Transaction'!$R51, INDEX(MarketR!$1:$5400, 0, MATCH('Landing Page and Transaction'!S$2, MarketR!$1:$1, 0)), 0), MATCH('Landing Page and Transaction'!S$2, MarketR!$1:$1, 0)+1) ->  | T51: =INDEX(MarketR!$1:$5400, MATCH('Landing Page and Transaction'!$R51, INDEX(MarketR!$1:$5400, 0, MATCH('Landing Page and Transaction'!T$2, MarketR!$1:$1, 0)), 0), MATCH('Landing Page and Transaction'!T$2, MarketR!$1:$1, 0)+1) -> 
A52: =IF(B52="", "", GenerateID(B52)) -> فسبزوار_74019 | B52: فسبزوار | C52: =IF(B52="","",INDEX('دیده بان بازار'!B:B, MATCH(B52, 'دیده بان بازار'!A:A, 0))) -> پارس فولاد سبزوار | D52: فروش | E52: 1403/03/27 | F52: 227 | G52: 3851 | H52: 8664842.424 | I52: =IF(B52="","",INDEX('دیده بان بازار'!H:H, MATCH(B52, 'دیده بان بازار'!A:A, 0))) -> 47820 | J52: فسبزوار_74019 | L52: 8664842.424 | M52: 1403/03/27 | N52: -249209.9939 | O52: 8415632.43 | R52: =IF('Total Watch'!A48<>"",'Total Watch'!A48,"") -> E50A برقی-1403 | S52: =INDEX(MarketR!$1:$5400, MATCH('Landing Page and Transaction'!$R52, INDEX(MarketR!$1:$5400, 0, MATCH('Landing Page and Transaction'!S$2, MarketR!$1:$1, 0)), 0), MATCH('Landing Page and Transaction'!S$2, MarketR!$1:$1, 0)+1) -> 1,600,000,000 تومان | T52: =INDEX(MarketR!$1:$5400, MATCH('Landing Page and Transaction'!$R52, INDEX(MarketR!$1:$5400, 0, MATCH('Landing Page and Transaction'!T$2, MarketR!$1:$1, 0)), 0), MATCH('Landing Page and Transaction'!T$2, MarketR!$1:$1, 0)+1) -> 
A53: =IF(B53="", "", GenerateID(B53)) -> خفنر_87129 | B53: خفنر | C53: =IF(B53="","",INDEX('دیده بان بازار'!B:B, MATCH(B53, 'دیده بان بازار'!A:A, 0))) -> فنرسازي‌خاور | D53: فروش | E53: 1403/03/27 | F53: 6048 | G53: 590 | H53: 35369187.84 | I53: =IF(B53="","",INDEX('دیده بان بازار'!H:H, MATCH(B53, 'دیده بان بازار'!A:A, 0))) -> 4425 | J53: خفنر_87129 | L53: 35369187.84 | M53: 1403/03/27 | N53: 8415632.43 | O53: 43784820.27 | R53: =IF('Total Watch'!A49<>"",'Total Watch'!A49,"") -> ES1 1800 1401 | S53: =INDEX(MarketR!$1:$5400, MATCH('Landing Page and Transaction'!$R53, INDEX(MarketR!$1:$5400, 0, MATCH('Landing Page and Transaction'!S$2, MarketR!$1:$1, 0)), 0), MATCH('Landing Page and Transaction'!S$2, MarketR!$1:$1, 0)+1) ->  | T53: =INDEX(MarketR!$1:$5400, MATCH('Landing Page and Transaction'!$R53, INDEX(MarketR!$1:$5400, 0, MATCH('Landing Page and Transaction'!T$2, MarketR!$1:$1, 0)), 0), MATCH('Landing Page and Transaction'!T$2, MarketR!$1:$1, 0)+1) -> 
A54: =IF(B54="", "", GenerateID(B54)) -> افران_77462 | B54: افران | C54: =IF(B54="","",INDEX('دیده بان بازار'!B:B, MATCH(B54, 'دیده بان بازار'!A:A, 0))) -> صندوق س افرا نماد پايدار-ثابت | D54: خرید | E54: 1403/03/27 | F54: 742 | G54: 2692 | H54: -20048785.86 | I54: =IF(B54="","",INDEX('دیده بان بازار'!H:H, MATCH(B54, 'دیده بان بازار'!A:A, 0))) -> 30524 | J54: افران_77462 | L54: -20048785.86 | M54: 1403/03/27 | N54: 43784820.27 | O54: 23736034.41 | R54: =IF('Total Watch'!A50<>"",'Total Watch'!A50,"") -> ES1 1800 1401 | S54: =INDEX(MarketR!$1:$5400, MATCH('Landing Page and Transaction'!$R54, INDEX(MarketR!$1:$5400, 0, MATCH('Landing Page and Transaction'!S$2, MarketR!$1:$1, 0)), 0), MATCH('Landing Page and Transaction'!S$2, MarketR!$1:$1, 0)+1) ->  | T54: =INDEX(MarketR!$1:$5400, MATCH('Landing Page and Transaction'!$R54, INDEX(MarketR!$1:$5400, 0, MATCH('Landing Page and Transaction'!T$2, MarketR!$1:$1, 0)), 0), MATCH('Landing Page and Transaction'!T$2, MarketR!$1:$1, 0)+1) -> 
A55: =IF(B55="", "", GenerateID(B55)) -> آساس_63193 | B55: آساس | C55: =IF(B55="","",INDEX('دیده بان بازار'!B:B, MATCH(B55, 'دیده بان بازار'!A:A, 0))) -> صندوق س.آسمان آرماني سهام-س | D55: خرید | E55: 1403/03/29 | F55: 1311 | G55: 3548 | H55: -46686941.01 | I55: =IF(B55="","",INDEX('دیده بان بازار'!H:H, MATCH(B55, 'دیده بان بازار'!A:A, 0))) -> 44220 | J55: آساس_63193 | L55: -46686941.01 | M55: 1403/03/29 | N55: 23736034.41 | O55: -22950906.6 | R55: =IF('Total Watch'!A51<>"",'Total Watch'!A51,"") -> ES2 1500 1401 | S55: =INDEX(MarketR!$1:$5400, MATCH('Landing Page and Transaction'!$R55, INDEX(MarketR!$1:$5400, 0, MATCH('Landing Page and Transaction'!S$2, MarketR!$1:$1, 0)), 0), MATCH('Landing Page and Transaction'!S$2, MarketR!$1:$1, 0)+1) ->  | T55: =INDEX(MarketR!$1:$5400, MATCH('Landing Page and Transaction'!$R55, INDEX(MarketR!$1:$5400, 0, MATCH('Landing Page and Transaction'!T$2, MarketR!$1:$1, 0)), 0), MATCH('Landing Page and Transaction'!T$2, MarketR!$1:$1, 0)+1) -> 
A56: =IF(B56="", "", GenerateID(B56)) -> واریز_99145 | B56: واریز | C56: =IF(B56="","",INDEX('دیده بان بازار'!B:B, MATCH(B56, 'دیده بان بازار'!A:A, 0))) ->  | D56: واریز | E56: 1403/03/30 | H56: 2000000000 | I56: =IF(B56="","",INDEX('دیده بان بازار'!H:H, MATCH(B56, 'دیده بان بازار'!A:A, 0))) ->  | J56: واریز_99145 | L56: 2000000000 | M56: 1403/03/30 | N56: -22950906.6 | O56: 1977049093 | P56: واریز مبلغ | R56: =IF('Total Watch'!A52<>"",'Total Watch'!A52,"") -> ES5 1500 1401 | S56: =INDEX(MarketR!$1:$5400, MATCH('Landing Page and Transaction'!$R56, INDEX(MarketR!$1:$5400, 0, MATCH('Landing Page and Transaction'!S$2, MarketR!$1:$1, 0)), 0), MATCH('Landing Page and Transaction'!S$2, MarketR!$1:$1, 0)+1) ->  | T56: =INDEX(MarketR!$1:$5400, MATCH('Landing Page and Transaction'!$R56, INDEX(MarketR!$1:$5400, 0, MATCH('Landing Page and Transaction'!T$2, MarketR!$1:$1, 0)), 0), MATCH('Landing Page and Transaction'!T$2, MarketR!$1:$1, 0)+1) -> 
A57: =IF(B57="", "", GenerateID(B57)) -> نارنج اهرم_97097 | B57: نارنج اهرم | C57: =IF(B57="","",INDEX('دیده بان بازار'!B:B, MATCH(B57, 'دیده بان بازار'!A:A, 0))) -> ص.س. اهرمي نارنج-س | D57: خرید | E57: 1403/04/02 | F57: 10 | G57: 1000 | H57: -100371.2 | I57: =IF(B57="","",INDEX('دیده بان بازار'!H:H, MATCH(B57, 'دیده بان بازار'!A:A, 0))) -> 11216 | J57: نارنج اهرم_97097 | L57: -100371.2 | M57: 1403/04/02 | N57: 1977049093 | O57: 1976948722 | R57: =IF('Total Watch'!A53<>"",'Total Watch'!A53,"") -> ES5 N 2000 1401 | S57: =INDEX(MarketR!$1:$5400, MATCH('Landing Page and Transaction'!$R57, INDEX(MarketR!$1:$5400, 0, MATCH('Landing Page and Transaction'!S$2, MarketR!$1:$1, 0)), 0), MATCH('Landing Page and Transaction'!S$2, MarketR!$1:$1, 0)+1) ->  | T57: =INDEX(MarketR!$1:$5400, MATCH('Landing Page and Transaction'!$R57, INDEX(MarketR!$1:$5400, 0, MATCH('Landing Page and Transaction'!T$2, MarketR!$1:$1, 0)), 0), MATCH('Landing Page and Transaction'!T$2, MarketR!$1:$1, 0)+1) -> 
A58: =IF(B58="", "", GenerateID(B58)) -> نارنج اهرم_97097 | B58: نارنج اهرم | C58: =IF(B58="","",INDEX('دیده بان بازار'!B:B, MATCH(B58, 'دیده بان بازار'!A:A, 0))) -> ص.س. اهرمي نارنج-س | D58: خرید | E58: 1403/04/02 | F58: 1000 | G58: 1000 | H58: -10037120 | I58: =IF(B58="","",INDEX('دیده بان بازار'!H:H, MATCH(B58, 'دیده بان بازار'!A:A, 0))) -> 11216 | J58: نارنج اهرم_97097 | L58: -10037120 | M58: 1403/04/02 | N58: 1976948722 | O58: 1966911602 | R58: =IF('Total Watch'!A54<>"",'Total Watch'!A54,"") -> ES6 1500 1401 | S58: =INDEX(MarketR!$1:$5400, MATCH('Landing Page and Transaction'!$R58, INDEX(MarketR!$1:$5400, 0, MATCH('Landing Page and Transaction'!S$2, MarketR!$1:$1, 0)), 0), MATCH('Landing Page and Transaction'!S$2, MarketR!$1:$1, 0)+1) ->  | T58: =INDEX(MarketR!$1:$5400, MATCH('Landing Page and Transaction'!$R58, INDEX(MarketR!$1:$5400, 0, MATCH('Landing Page and Transaction'!T$2, MarketR!$1:$1, 0)), 0), MATCH('Landing Page and Transaction'!T$2, MarketR!$1:$1, 0)+1) -> 
A59: =IF(B59="", "", GenerateID(B59)) -> نوري_91626 | B59: نوري | C59: =IF(B59="","",INDEX('دیده بان بازار'!B:B, MATCH(B59, 'دیده بان بازار'!A:A, 0))) -> پتروشيمي نوري | D59: خرید | E59: 1403/04/02 | F59: 360 | G59: 16631 | H59: -60093843.38 | I59: =IF(B59="","",INDEX('دیده بان بازار'!H:H, MATCH(B59, 'دیده بان بازار'!A:A, 0))) -> 220800 | J59: نوري_91626 | L59: -60093843.38 | M59: 1403/04/02 | N59: 1966911602 | O59: 1906817759 | R59: =IF('Total Watch'!A55<>"",'Total Watch'!A55,"") -> ES8 1500 1401 | S59: =INDEX(MarketR!$1:$5400, MATCH('Landing Page and Transaction'!$R59, INDEX(MarketR!$1:$5400, 0, MATCH('Landing Page and Transaction'!S$2, MarketR!$1:$1, 0)), 0), MATCH('Landing Page and Transaction'!S$2, MarketR!$1:$1, 0)+1) ->  | T59: =INDEX(MarketR!$1:$5400, MATCH('Landing Page and Transaction'!$R59, INDEX(MarketR!$1:$5400, 0, MATCH('Landing Page and Transaction'!T$2, MarketR!$1:$1, 0)), 0), MATCH('Landing Page and Transaction'!T$2, MarketR!$1:$1, 0)+1) -> 
A60: =IF(B60="", "", GenerateID(B60)) -> سحرخيز_55826 | B60: سحرخيز | C60: =IF(B60="","",INDEX('دیده بان بازار'!B:B, MATCH(B60, 'دیده بان بازار'!A:A, 0))) -> صندوق س. گروه زعفران سحرخيز | D60: فروش | E60: 1403/04/02 | F60: 551 | G60: 3839 | H60: 20966744.57 | I60: =IF(B60="","",INDEX('دیده بان بازار'!H:H, MATCH(B60, 'دیده بان بازار'!A:A, 0))) -> 37999 | J60: سحرخيز_55826 | L60: 20966744.57 | M60: 1403/04/02 | N60: 1906817759 | O60: 1927784503 | R60: =IF('Total Watch'!A56<>"",'Total Watch'!A56,"") -> EST2 1500 1401 | S60: =INDEX(MarketR!$1:$5400, MATCH('Landing Page and Transaction'!$R60, INDEX(MarketR!$1:$5400, 0, MATCH('Landing Page and Transaction'!S$2, MarketR!$1:$1, 0)), 0), MATCH('Landing Page and Transaction'!S$2, MarketR!$1:$1, 0)+1) ->  | T60: =INDEX(MarketR!$1:$5400, MATCH('Landing Page and Transaction'!$R60, INDEX(MarketR!$1:$5400, 0, MATCH('Landing Page and Transaction'!T$2, MarketR!$1:$1, 0)), 0), MATCH('Landing Page and Transaction'!T$2, MarketR!$1:$1, 0)+1) -> 
A61: =IF(B61="", "", GenerateID(B61)) -> افران_77462 | B61: افران | C61: =IF(B61="","",INDEX('دیده بان بازار'!B:B, MATCH(B61, 'دیده بان بازار'!A:A, 0))) -> صندوق س افرا نماد پايدار-ثابت | D61: خرید | E61: 1403/04/02 | F61: 72135 | G61: 2704 | H61: -1957770769 | I61: =IF(B61="","",INDEX('دیده بان بازار'!H:H, MATCH(B61, 'دیده بان بازار'!A:A, 0))) -> 30524 | J61: افران_77462 | L61: -1957770769 | M61: 1403/04/02 | N61: 1927784503 | O61: -29986265.46 | R61: =IF('Total Watch'!A57<>"",'Total Watch'!A57,"") -> EST4 1500 1401 | S61: =INDEX(MarketR!$1:$5400, MATCH('Landing Page and Transaction'!$R61, INDEX(MarketR!$1:$5400, 0, MATCH('Landing Page and Transaction'!S$2, MarketR!$1:$1, 0)), 0), MATCH('Landing Page and Transaction'!S$2, MarketR!$1:$1, 0)+1) ->  | T61: =INDEX(MarketR!$1:$5400, MATCH('Landing Page and Transaction'!$R61, INDEX(MarketR!$1:$5400, 0, MATCH('Landing Page and Transaction'!T$2, MarketR!$1:$1, 0)), 0), MATCH('Landing Page and Transaction'!T$2, MarketR!$1:$1, 0)+1) -> 
A62: =IF(B62="", "", GenerateID(B62)) -> نارنج اهرم_97097 | B62: نارنج اهرم | C62: =IF(B62="","",INDEX('دیده بان بازار'!B:B, MATCH(B62, 'دیده بان بازار'!A:A, 0))) -> ص.س. اهرمي نارنج-س | D62: خرید | E62: 1403/04/02 | F62: 10 | G62: 1 | H62: -100.3712 | I62: =IF(B62="","",INDEX('دیده بان بازار'!H:H, MATCH(B62, 'دیده بان بازار'!A:A, 0))) -> 11216 | J62: نارنج اهرم_97097 | L62: -100.3712 | M62: 1403/04/02 | N62: -29986265.46 | O62: -29986365.83 | P62: سهام جایزه بوده | R62: =IF('Total Watch'!A58<>"",'Total Watch'!A58,"") -> ET1 1401 | S62: =INDEX(MarketR!$1:$5400, MATCH('Landing Page and Transaction'!$R62, INDEX(MarketR!$1:$5400, 0, MATCH('Landing Page and Transaction'!S$2, MarketR!$1:$1, 0)), 0), MATCH('Landing Page and Transaction'!S$2, MarketR!$1:$1, 0)+1) ->  | T62: =INDEX(MarketR!$1:$5400, MATCH('Landing Page and Transaction'!$R62, INDEX(MarketR!$1:$5400, 0, MATCH('Landing Page and Transaction'!T$2, MarketR!$1:$1, 0)), 0), MATCH('Landing Page and Transaction'!T$2, MarketR!$1:$1, 0)+1) -> 
A63: =IF(B63="", "", GenerateID(B63)) -> سرو_64399 | B63: سرو | C63: =IF(B63="","",INDEX('دیده بان بازار'!B:B, MATCH(B63, 'دیده بان بازار'!A:A, 0))) -> صندوق س سروسودمند مدبران-سهام | D63: خرید | E63: 1403/04/03 | F63: 756 | G63: 13206 | H63: -100207956.3 | I63: =IF(B63="","",INDEX('دیده بان بازار'!H:H, MATCH(B63, 'دیده بان بازار'!A:A, 0))) -> 14890 | J63: سرو_64399 | L63: -100207956.3 | M63: 1403/04/03 | N63: -29986365.83 | O63: -130194322.1 | R63: =IF('Total Watch'!A59<>"",'Total Watch'!A59,"") -> Estrella 249 1401 | S63: =INDEX(MarketR!$1:$5400, MATCH('Landing Page and Transaction'!$R63, INDEX(MarketR!$1:$5400, 0, MATCH('Landing Page and Transaction'!S$2, MarketR!$1:$1, 0)), 0), MATCH('Landing Page and Transaction'!S$2, MarketR!$1:$1, 0)+1) ->  | T63: =INDEX(MarketR!$1:$5400, MATCH('Landing Page and Transaction'!$R63, INDEX(MarketR!$1:$5400, 0, MATCH('Landing Page and Transaction'!T$2, MarketR!$1:$1, 0)), 0), MATCH('Landing Page and Transaction'!T$2, MarketR!$1:$1, 0)+1) -> 
A64: =IF(B64="", "", GenerateID(B64)) -> نوري_91626 | B64: نوري | C64: =IF(B64="","",INDEX('دیده بان بازار'!B:B, MATCH(B64, 'دیده بان بازار'!A:A, 0))) -> پتروشيمي نوري | D64: خرید | E64: 1403/04/03 | F64: 635 | G64: 16956 | H64: -108070273.3 | I64: =IF(B64="","",INDEX('دیده بان بازار'!H:H, MATCH(B64, 'دیده بان بازار'!A:A, 0))) -> 220800 | J64: نوري_91626 | L64: -108070273.3 | M64: 1403/04/03 | N64: -130194322.1 | O64: -238264595.4 | R64: =IF('Total Watch'!A60<>"",'Total Watch'!A60,"") -> FX پریمیوم-1402 | S64: =INDEX(MarketR!$1:$5400, MATCH('Landing Page and Transaction'!$R64, INDEX(MarketR!$1:$5400, 0, MATCH('Landing Page and Transaction'!S$2, MarketR!$1:$1, 0)), 0), MATCH('Landing Page and Transaction'!S$2, MarketR!$1:$1, 0)+1) -> 2,010,000,000 تومان | T64: =INDEX(MarketR!$1:$5400, MATCH('Landing Page and Transaction'!$R64, INDEX(MarketR!$1:$5400, 0, MATCH('Landing Page and Transaction'!T$2, MarketR!$1:$1, 0)), 0), MATCH('Landing Page and Transaction'!T$2, MarketR!$1:$1, 0)+1) -> 
A65: =IF(B65="", "", GenerateID(B65)) -> دسينا_15650 | B65: دسينا | C65: =IF(B65="","",INDEX('دیده بان بازار'!B:B, MATCH(B65, 'دیده بان بازار'!A:A, 0))) -> داروسازي‌ سينا | D65: خرید | E65: 1403/04/03 | F65: 31827 | G65: 1557 | H65: -497385858.2 | I65: =IF(B65="","",INDEX('دیده بان بازار'!H:H, MATCH(B65, 'دیده بان بازار'!A:A, 0))) -> 18000 | J65: دسينا_15650 | L65: =H65 -> -497385858.2 | M65: =E65 -> 1403/04/03 | N65: -238264595.4 | O65: -735650453.6 | R65: =IF('Total Watch'!A61<>"",'Total Watch'!A61,"") -> FX پریمیوم-1403 | S65: =INDEX(MarketR!$1:$5400, MATCH('Landing Page and Transaction'!$R65, INDEX(MarketR!$1:$5400, 0, MATCH('Landing Page and Transaction'!S$2, MarketR!$1:$1, 0)), 0), MATCH('Landing Page and Transaction'!S$2, MarketR!$1:$1, 0)+1) -> 2,070,000,000 تومان | T65: =INDEX(MarketR!$1:$5400, MATCH('Landing Page and Transaction'!$R65, INDEX(MarketR!$1:$5400, 0, MATCH('Landing Page and Transaction'!T$2, MarketR!$1:$1, 0)), 0), MATCH('Landing Page and Transaction'!T$2, MarketR!$1:$1, 0)+1) -> 
A66: =IF(B66="", "", GenerateID(B66)) -> توان_90914 | B66: توان | C66: =IF(B66="","",INDEX('دیده بان بازار'!B:B, MATCH(B66, 'دیده بان بازار'!A:A, 0))) -> صندوق س. اهرمي توان مفيد-س | D66: فروش | E66: 1403/04/03 | F66: 246 | G66: 1688 | H66: 4115938.176 | I66: =IF(B66="","",INDEX('دیده بان بازار'!H:H, MATCH(B66, 'دیده بان بازار'!A:A, 0))) -> 19798 | J66: توان_90914 | L66: 4115938.176 | M66: 1403/04/03 | N66: -735650453.6 | O66: -731534515.4 | R66: =IF('Total Watch'!A62<>"",'Total Watch'!A62,"") -> Flat Track 249 1401 | S66: =INDEX(MarketR!$1:$5400, MATCH('Landing Page and Transaction'!$R66, INDEX(MarketR!$1:$5400, 0, MATCH('Landing Page and Transaction'!S$2, MarketR!$1:$1, 0)), 0), MATCH('Landing Page and Transaction'!S$2, MarketR!$1:$1, 0)+1) ->  | T66: =INDEX(MarketR!$1:$5400, MATCH('Landing Page and Transaction'!$R66, INDEX(MarketR!$1:$5400, 0, MATCH('Landing Page and Transaction'!T$2, MarketR!$1:$1, 0)), 0), MATCH('Landing Page and Transaction'!T$2, MarketR!$1:$1, 0)+1) -> 
A67: =IF(B67="", "", GenerateID(B67)) -> زيتون_27806 | B67: زيتون | C67: =IF(B67="","",INDEX('دیده بان بازار'!B:B, MATCH(B67, 'دیده بان بازار'!A:A, 0))) -> صندوق س زيتون نماد پايا- مختلط | D67: خرید | E67: 1403/04/03 | F67: 3500 | G67: 2083 | H67: -73175623.36 | I67: =IF(B67="","",INDEX('دیده بان بازار'!H:H, MATCH(B67, 'دیده بان بازار'!A:A, 0))) -> 24000 | J67: زيتون_27806 | L67: -73175623.36 | M67: 1403/04/03 | N67: -731534515.4 | O67: -804710138.8 | R67: =IF('Total Watch'!A63<>"",'Total Watch'!A63,"") -> GY 200 1401 | S67: =INDEX(MarketR!$1:$5400, MATCH('Landing Page and Transaction'!$R67, INDEX(MarketR!$1:$5400, 0, MATCH('Landing Page and Transaction'!S$2, MarketR!$1:$1, 0)), 0), MATCH('Landing Page and Transaction'!S$2, MarketR!$1:$1, 0)+1) ->  | T67: =INDEX(MarketR!$1:$5400, MATCH('Landing Page and Transaction'!$R67, INDEX(MarketR!$1:$5400, 0, MATCH('Landing Page and Transaction'!T$2, MarketR!$1:$1, 0)), 0), MATCH('Landing Page and Transaction'!T$2, MarketR!$1:$1, 0)+1) -> 
A68: =IF(B68="", "", GenerateID(B68)) -> افران_77462 | B68: افران | C68: =IF(B68="","",INDEX('دیده بان بازار'!B:B, MATCH(B68, 'دیده بان بازار'!A:A, 0))) -> صندوق س افرا نماد پايدار-ثابت | D68: فروش | E68: 1403/04/03 | F68: 33988 | G68: 2706 | H68: 911621785.5 | I68: =IF(B68="","",INDEX('دیده بان بازار'!H:H, MATCH(B68, 'دیده بان بازار'!A:A, 0))) -> 30524 | J68: افران_77462 | L68: 911621785.5 | M68: 1403/04/03 | N68: -804710138.8 | O68: 106911646.8 | R68: =IF('Total Watch'!A64<>"",'Total Watch'!A64,"") -> Galaxy CL150 (KLS) 1401 | S68: =INDEX(MarketR!$1:$5400, MATCH('Landing Page and Transaction'!$R68, INDEX(MarketR!$1:$5400, 0, MATCH('Landing Page and Transaction'!S$2, MarketR!$1:$1, 0)), 0), MATCH('Landing Page and Transaction'!S$2, MarketR!$1:$1, 0)+1) ->  | T68: =INDEX(MarketR!$1:$5400, MATCH('Landing Page and Transaction'!$R68, INDEX(MarketR!$1:$5400, 0, MATCH('Landing Page and Transaction'!T$2, MarketR!$1:$1, 0)), 0), MATCH('Landing Page and Transaction'!T$2, MarketR!$1:$1, 0)+1) -> 
A69: =IF(B69="", "", GenerateID(B69)) -> گنج_72778 | B69: گنج | C69: =IF(B69="","",INDEX('دیده بان بازار'!B:B, MATCH(B69, 'دیده بان بازار'!A:A, 0))) -> صندوق س. طلا كيميا زرين كاردان | D69: خرید | E69: 1403/04/03 | F69: 500 | G69: 3190 | H69: -16009206.4 | I69: =IF(B69="","",INDEX('دیده بان بازار'!H:H, MATCH(B69, 'دیده بان بازار'!A:A, 0))) -> 40980 | J69: گنج_72778 | L69: -16009206.4 | M69: 1403/04/03 | N69: 106911646.8 | O69: 90902440.38 | R69: =IF('Total Watch'!A65<>"",'Total Watch'!A65,"") -> Galaxy CL150 1401 | S69: =INDEX(MarketR!$1:$5400, MATCH('Landing Page and Transaction'!$R69, INDEX(MarketR!$1:$5400, 0, MATCH('Landing Page and Transaction'!S$2, MarketR!$1:$1, 0)), 0), MATCH('Landing Page and Transaction'!S$2, MarketR!$1:$1, 0)+1) ->  | T69: =INDEX(MarketR!$1:$5400, MATCH('Landing Page and Transaction'!$R69, INDEX(MarketR!$1:$5400, 0, MATCH('Landing Page and Transaction'!T$2, MarketR!$1:$1, 0)), 0), MATCH('Landing Page and Transaction'!T$2, MarketR!$1:$1, 0)+1) -> 
A70: =IF(B70="", "", GenerateID(B70)) -> شتاب_29881 | B70: شتاب | C70: =IF(B70="","",INDEX('دیده بان بازار'!B:B, MATCH(B70, 'دیده بان بازار'!A:A, 0))) -> صندوق س سهامي شتاب آگاه-اهرمي | D70: خرید | E70: 1403/04/04 | F70: 11286 | G70: 885 | H70: -100251858.6 | I70: =IF(B70="","",INDEX('دیده بان بازار'!H:H, MATCH(B70, 'دیده بان بازار'!A:A, 0))) -> 10670 | J70: شتاب_29881 | L70: -100251858.6 | M70: 1403/04/04 | N70: 90902440.38 | O70: -9349418.267 | R70: =IF('Total Watch'!A66<>"",'Total Watch'!A66,"") -> Galaxy FX150 1401 | S70: =INDEX(MarketR!$1:$5400, MATCH('Landing Page and Transaction'!$R70, INDEX(MarketR!$1:$5400, 0, MATCH('Landing Page and Transaction'!S$2, MarketR!$1:$1, 0)), 0), MATCH('Landing Page and Transaction'!S$2, MarketR!$1:$1, 0)+1) ->  | T70: =INDEX(MarketR!$1:$5400, MATCH('Landing Page and Transaction'!$R70, INDEX(MarketR!$1:$5400, 0, MATCH('Landing Page and Transaction'!T$2, MarketR!$1:$1, 0)), 0), MATCH('Landing Page and Transaction'!T$2, MarketR!$1:$1, 0)+1) -> 
A71: =IF(B71="", "", GenerateID(B71)) -> نوري_91626 | B71: نوري | C71: =IF(B71="","",INDEX('دیده بان بازار'!B:B, MATCH(B71, 'دیده بان بازار'!A:A, 0))) -> پتروشيمي نوري | D71: خرید | E71: 1403/04/04 | F71: 1200 | G71: 17249 | H71: -207756339.5 | I71: =IF(B71="","",INDEX('دیده بان بازار'!H:H, MATCH(B71, 'دیده بان بازار'!A:A, 0))) -> 220800 | J71: نوري_91626 | L71: -207756339.5 | M71: 1403/04/04 | N71: -9349418.267 | O71: -217105757.7 | R71: =IF('Total Watch'!A67<>"",'Total Watch'!A67,"") -> Galaxy J200 1401 | S71: =INDEX(MarketR!$1:$5400, MATCH('Landing Page and Transaction'!$R71, INDEX(MarketR!$1:$5400, 0, MATCH('Landing Page and Transaction'!S$2, MarketR!$1:$1, 0)), 0), MATCH('Landing Page and Transaction'!S$2, MarketR!$1:$1, 0)+1) ->  | T71: =INDEX(MarketR!$1:$5400, MATCH('Landing Page and Transaction'!$R71, INDEX(MarketR!$1:$5400, 0, MATCH('Landing Page and Transaction'!T$2, MarketR!$1:$1, 0)), 0), MATCH('Landing Page and Transaction'!T$2, MarketR!$1:$1, 0)+1) -> 
A72: =IF(B72="", "", GenerateID(B72)) -> ونوين_32899 | B72: ونوين | C72: =IF(B72="","",INDEX('دیده بان بازار'!B:B, MATCH(B72, 'دیده بان بازار'!A:A, 0))) -> بانك‌اقتصادنوين‌ | D72: خرید | E72: 1403/04/04 | F72: 35000 | G72: 286 | H72: -100471571.2 | I72: =IF(B72="","",INDEX('دیده بان بازار'!H:H, MATCH(B72, 'دیده بان بازار'!A:A, 0))) -> 3799 | J72: ونوين_32899 | L72: -100471571.2 | M72: 1403/04/04 | N72: =O71 -> -217105757.7 | O72: -317577328.9 | R72: =IF('Total Watch'!A68<>"",'Total Watch'!A68,"") -> Galaxy NA180 1401 | S72: =INDEX(MarketR!$1:$5400, MATCH('Landing Page and Transaction'!$R72, INDEX(MarketR!$1:$5400, 0, MATCH('Landing Page and Transaction'!S$2, MarketR!$1:$1, 0)), 0), MATCH('Landing Page and Transaction'!S$2, MarketR!$1:$1, 0)+1) ->  | T72: =INDEX(MarketR!$1:$5400, MATCH('Landing Page and Transaction'!$R72, INDEX(MarketR!$1:$5400, 0, MATCH('Landing Page and Transaction'!T$2, MarketR!$1:$1, 0)), 0), MATCH('Landing Page and Transaction'!T$2, MarketR!$1:$1, 0)+1) ->  | U72: =IF(VALUE(CLEAN(TRIM(SUBSTITUTE(SUBSTITUTE(SUBSTITUTE(SUBSTITUTE(T72,"تومان",""),"$",""),"ریال",""),",",""))))=0,"بدون داده",IFERROR((VALUE(CLEAN(TRIM(SUBSTITUTE(SUBSTITUTE(SUBSTITUTE(SUBSTITUTE(T72,"تومان",""),"$",""),"ریال",""),",",""))))-VALUE(CLEAN(TRIM(SUBSTITUTE(SUBSTITUTE(SUBSTITUTE(SUBSTITUTE(S72,"تومان",""),"$",""),"ریال",""),",","")))))/VALUE(CLEAN(TRIM(SUBSTITUTE(SUBSTITUTE(SUBSTITUTE(SUBSTITUTE(S72,"تومان",""),"$",""),"ریال",""),",","")))),"تعریف نشده")) -> 
A73: =IF(B73="", "", GenerateID(B73)) -> افران_77462 | B73: افران | C73: =IF(B73="","",INDEX('دیده بان بازار'!B:B, MATCH(B73, 'دیده بان بازار'!A:A, 0))) -> صندوق س افرا نماد پايدار-ثابت | D73: خرید | E73: 1403/04/04 | F73: 41384 | G73: 2709 | H73: -1125254056 | I73: =IF(B73="","",INDEX('دیده بان بازار'!H:H, MATCH(B73, 'دیده بان بازار'!A:A, 0))) -> 30524 | J73: افران_77462 | L73: -1125254056 | M73: 1403/04/04 | N73: -317577328.9 | O73: -1442831385 | R73: =IF('Total Watch'!A69<>"",'Total Watch'!A69,"") -> Galaxy NH180 1401 | S73: =INDEX(MarketR!$1:$5400, MATCH('Landing Page and Transaction'!$R73, INDEX(MarketR!$1:$5400, 0, MATCH('Landing Page and Transaction'!S$2, MarketR!$1:$1, 0)), 0), MATCH('Landing Page and Transaction'!S$2, MarketR!$1:$1, 0)+1) ->  | T73: =INDEX(MarketR!$1:$5400, MATCH('Landing Page and Transaction'!$R73, INDEX(MarketR!$1:$5400, 0, MATCH('Landing Page and Transaction'!T$2, MarketR!$1:$1, 0)), 0), MATCH('Landing Page and Transaction'!T$2, MarketR!$1:$1, 0)+1) -> 
A74: =IF(B74="", "", GenerateID(B74)) -> واریز_99145 | B74: واریز | C74: =IF(B74="","",INDEX('دیده بان بازار'!B:B, MATCH(B74, 'دیده بان بازار'!A:A, 0))) ->  | D74: واریز | E74: 1403/04/04 | H74: 1500000000 | I74: =IF(B74="","",INDEX('دیده بان بازار'!H:H, MATCH(B74, 'دیده بان بازار'!A:A, 0))) ->  | J74: واریز_99145 | L74: 1500000000 | M74: 1403/04/04 | N74: -1442831385 | O74: 57168615.49 | P74: واریز مبلغ | R74: =IF('Total Watch'!A70<>"",'Total Watch'!A70,"") -> Galaxy SR200 1401 | S74: =INDEX(MarketR!$1:$5400, MATCH('Landing Page and Transaction'!$R74, INDEX(MarketR!$1:$5400, 0, MATCH('Landing Page and Transaction'!S$2, MarketR!$1:$1, 0)), 0), MATCH('Landing Page and Transaction'!S$2, MarketR!$1:$1, 0)+1) ->  | T74: =INDEX(MarketR!$1:$5400, MATCH('Landing Page and Transaction'!$R74, INDEX(MarketR!$1:$5400, 0, MATCH('Landing Page and Transaction'!T$2, MarketR!$1:$1, 0)), 0), MATCH('Landing Page and Transaction'!T$2, MarketR!$1:$1, 0)+1) -> 
A75: =IF(B75="", "", GenerateID(B75)) -> كزغال_76841 | B75: كزغال | C75: =IF(B75="","",INDEX('دیده بان بازار'!B:B, MATCH(B75, 'دیده بان بازار'!A:A, 0))) -> زغال سنگ پروده طبس | D75: خرید | E75: 1403/04/06 | F75: 6330 | G75: 1566 | H75: -99495762.39 | I75: =IF(B75="","",INDEX('دیده بان بازار'!H:H, MATCH(B75, 'دیده بان بازار'!A:A, 0))) -> 13400 | J75: كزغال_76841 | L75: -99495762.39 | M75: 1403/04/06 | N75: 57168615.49 | O75: -42327146.9 | R75: =IF('Total Watch'!A71<>"",'Total Watch'!A71,"") -> Galaxy TN110 1401 | S75: =INDEX(MarketR!$1:$5400, MATCH('Landing Page and Transaction'!$R75, INDEX(MarketR!$1:$5400, 0, MATCH('Landing Page and Transaction'!S$2, MarketR!$1:$1, 0)), 0), MATCH('Landing Page and Transaction'!S$2, MarketR!$1:$1, 0)+1) ->  | T75: =INDEX(MarketR!$1:$5400, MATCH('Landing Page and Transaction'!$R75, INDEX(MarketR!$1:$5400, 0, MATCH('Landing Page and Transaction'!T$2, MarketR!$1:$1, 0)), 0), MATCH('Landing Page and Transaction'!T$2, MarketR!$1:$1, 0)+1) -> 
A76: =IF(B76="", "", GenerateID(B76)) -> كزغال_76841 | B76: كزغال | C76: =IF(B76="","",INDEX('دیده بان بازار'!B:B, MATCH(B76, 'دیده بان بازار'!A:A, 0))) -> زغال سنگ پروده طبس | D76: خرید | E76: 1403/04/06 | F76: 4600 | G76: 1562 | H76: -72118714.62 | I76: =IF(B76="","",INDEX('دیده بان بازار'!H:H, MATCH(B76, 'دیده بان بازار'!A:A, 0))) -> 13400 | J76: =A76 -> كزغال_76841 | L76: -72118714.62 | M76: 1403/04/06 | N76: -42327146.9 | O76: =N76+L76 -> -114445861.5 | R76: =IF('Total Watch'!A72<>"",'Total Watch'!A72,"") -> Galaxy X125 1401 | S76: =INDEX(MarketR!$1:$5400, MATCH('Landing Page and Transaction'!$R76, INDEX(MarketR!$1:$5400, 0, MATCH('Landing Page and Transaction'!S$2, MarketR!$1:$1, 0)), 0), MATCH('Landing Page and Transaction'!S$2, MarketR!$1:$1, 0)+1) ->  | T76: =INDEX(MarketR!$1:$5400, MATCH('Landing Page and Transaction'!$R76, INDEX(MarketR!$1:$5400, 0, MATCH('Landing Page and Transaction'!T$2, MarketR!$1:$1, 0)), 0), MATCH('Landing Page and Transaction'!T$2, MarketR!$1:$1, 0)+1) -> 
A77: =IF(B77="", "", GenerateID(B77)) -> خكرمان_44220 | B77: خكرمان | C77: =IF(B77="","",INDEX('دیده بان بازار'!B:B, MATCH(B77, 'دیده بان بازار'!A:A, 0))) -> سرمايه گذاري آرمان گستر پاريز | D77: خرید | E77: 1403/04/06 | F77: 47077 | G77: 470 | H77: -222083224.2 | I77: =IF(B77="","",INDEX('دیده بان بازار'!H:H, MATCH(B77, 'دیده بان بازار'!A:A, 0))) -> 4770 | J77: خكرمان_44220 | L77: -222083224.2 | M77: 1403/04/06 | N77: -114445861.5 | O77: -336529085.7 | R77: =IF('Total Watch'!A73<>"",'Total Watch'!A73,"") -> HPS 249 Pagani 1401 | S77: =INDEX(MarketR!$1:$5400, MATCH('Landing Page and Transaction'!$R77, INDEX(MarketR!$1:$5400, 0, MATCH('Landing Page and Transaction'!S$2, MarketR!$1:$1, 0)), 0), MATCH('Landing Page and Transaction'!S$2, MarketR!$1:$1, 0)+1) ->  | T77: =INDEX(MarketR!$1:$5400, MATCH('Landing Page and Transaction'!$R77, INDEX(MarketR!$1:$5400, 0, MATCH('Landing Page and Transaction'!T$2, MarketR!$1:$1, 0)), 0), MATCH('Landing Page and Transaction'!T$2, MarketR!$1:$1, 0)+1) -> 
A78: =IF(B78="", "", GenerateID(B78)) -> خصدرا_94052 | B78: خصدرا | C78: =IF(B78="","",INDEX('دیده بان بازار'!B:B, MATCH(B78, 'دیده بان بازار'!A:A, 0))) -> صنعتي‌ دريايي‌ ايران‌ | D78: خرید | E78: 1403/04/06 | F78: 32800 | G78: 1557 | H78: -512591703.6 | I78: =IF(B78="","",INDEX('دیده بان بازار'!H:H, MATCH(B78, 'دیده بان بازار'!A:A, 0))) -> 1810 | J78: خصدرا_94052 | L78: -512591703.6 | M78: 1403/04/06 | N78: -336529085.7 | O78: -849120789.2 | R78: =IF('Total Watch'!A74<>"",'Total Watch'!A74,"") -> J4 اتوماتیک-1402 | S78: =INDEX(MarketR!$1:$5400, MATCH('Landing Page and Transaction'!$R78, INDEX(MarketR!$1:$5400, 0, MATCH('Landing Page and Transaction'!S$2, MarketR!$1:$1, 0)), 0), MATCH('Landing Page and Transaction'!S$2, MarketR!$1:$1, 0)+1) -> 795,000,000 تومان | T78: =INDEX(MarketR!$1:$5400, MATCH('Landing Page and Transaction'!$R78, INDEX(MarketR!$1:$5400, 0, MATCH('Landing Page and Transaction'!T$2, MarketR!$1:$1, 0)), 0), MATCH('Landing Page and Transaction'!T$2, MarketR!$1:$1, 0)+1) -> 
A79: =IF(B79="", "", GenerateID(B79)) -> پسهند_44023 | B79: پسهند | C79: =IF(B79="","",INDEX('دیده بان بازار'!B:B, MATCH(B79, 'دیده بان بازار'!A:A, 0))) -> صنايع‌ لاستيكي‌ سهند | D79: خرید | E79: 1403/04/06 | F79: 1006 | G79: 5937 | H79: -59947923.73 | I79: =IF(B79="","",INDEX('دیده بان بازار'!H:H, MATCH(B79, 'دیده بان بازار'!A:A, 0))) -> 84200 | J79: پسهند_44023 | L79: -59947923.73 | M79: 1403/04/06 | N79: -849120789.2 | O79: -909068713 | R79: =IF('Total Watch'!A75<>"",'Total Watch'!A75,"") -> J4 اتوماتیک-1403 | S79: =INDEX(MarketR!$1:$5400, MATCH('Landing Page and Transaction'!$R79, INDEX(MarketR!$1:$5400, 0, MATCH('Landing Page and Transaction'!S$2, MarketR!$1:$1, 0)), 0), MATCH('Landing Page and Transaction'!S$2, MarketR!$1:$1, 0)+1) -> 840,000,000 تومان | T79: =INDEX(MarketR!$1:$5400, MATCH('Landing Page and Transaction'!$R79, INDEX(MarketR!$1:$5400, 0, MATCH('Landing Page and Transaction'!T$2, MarketR!$1:$1, 0)), 0), MATCH('Landing Page and Transaction'!T$2, MarketR!$1:$1, 0)+1) -> 
A80: =IF(B80="", "", GenerateID(B80)) -> دسينا_15650 | B80: دسينا | C80: =IF(B80="","",INDEX('دیده بان بازار'!B:B, MATCH(B80, 'دیده بان بازار'!A:A, 0))) -> داروسازي‌ سينا | D80: فروش | E80: 1403/04/06 | F80: 31827 | G80: 1561 | H80: 492447458.7 | I80: =IF(B80="","",INDEX('دیده بان بازار'!H:H, MATCH(B80, 'دیده بان بازار'!A:A, 0))) -> 18000 | J80: دسينا_15650 | L80: 492447458.7 | M80: 1403/04/06 | N80: -909068713 | O80: -416621254.3 | R80: =IF('Total Watch'!A76<>"",'Total Watch'!A76,"") -> J7 اتوماتیک-1402 | S80: =INDEX(MarketR!$1:$5400, MATCH('Landing Page and Transaction'!$R80, INDEX(MarketR!$1:$5400, 0, MATCH('Landing Page and Transaction'!S$2, MarketR!$1:$1, 0)), 0), MATCH('Landing Page and Transaction'!S$2, MarketR!$1:$1, 0)+1) -> 1,500,000,000 تومان | T80: =INDEX(MarketR!$1:$5400, MATCH('Landing Page and Transaction'!$R80, INDEX(MarketR!$1:$5400, 0, MATCH('Landing Page and Transaction'!T$2, MarketR!$1:$1, 0)), 0), MATCH('Landing Page and Transaction'!T$2, MarketR!$1:$1, 0)+1) -> 
A81: =IF(B81="", "", GenerateID(B81)) -> تاپيكو_97839 | B81: تاپيكو | C81: =IF(B81="","",INDEX('دیده بان بازار'!B:B, MATCH(B81, 'دیده بان بازار'!A:A, 0))) -> س. نفت و گاز و پتروشيمي تأمين | D81: خرید | E81: 1403/04/09 | F81: 3238 | G81: 1549 | H81: -50342801.37 | I81: =IF(B81="","",INDEX('دیده بان بازار'!H:H, MATCH(B81, 'دیده بان بازار'!A:A, 0))) -> 16570 | J81: تاپيكو_97839 | L81: -50342801.37 | M81: 1403/04/09 | N81: -416621254.3 | O81: -466964055.7 | R81: =IF('Total Watch'!A77<>"",'Total Watch'!A77,"") -> J7 اتوماتیک-1403 | S81: =INDEX(MarketR!$1:$5400, MATCH('Landing Page and Transaction'!$R81, INDEX(MarketR!$1:$5400, 0, MATCH('Landing Page and Transaction'!S$2, MarketR!$1:$1, 0)), 0), MATCH('Landing Page and Transaction'!S$2, MarketR!$1:$1, 0)+1) -> 1,600,000,000 تومان | T81: =INDEX(MarketR!$1:$5400, MATCH('Landing Page and Transaction'!$R81, INDEX(MarketR!$1:$5400, 0, MATCH('Landing Page and Transaction'!T$2, MarketR!$1:$1, 0)), 0), MATCH('Landing Page and Transaction'!T$2, MarketR!$1:$1, 0)+1) -> 
A82: =IF(B82="", "", GenerateID(B82)) -> تاپيكو_97839 | B82: تاپيكو | C82: =IF(B82="","",INDEX('دیده بان بازار'!B:B, MATCH(B82, 'دیده بان بازار'!A:A, 0))) -> س. نفت و گاز و پتروشيمي تأمين | D82: خرید | E82: 1403/04/09 | F82: 2424 | G82: 1544 | H82: -37565487.39 | I82: =IF(B82="","",INDEX('دیده بان بازار'!H:H, MATCH(B82, 'دیده بان بازار'!A:A, 0))) -> 16570 | J82: تاپيكو_97839 | L82: -37565487.39 | M82: 1403/04/09 | N82: -466964055.7 | O82: -504529543.1 | R82: =IF('Total Watch'!A78<>"",'Total Watch'!A78,"") -> J7 EV برقی-1403 | S82: =INDEX(MarketR!$1:$5400, MATCH('Landing Page and Transaction'!$R82, INDEX(MarketR!$1:$5400, 0, MATCH('Landing Page and Transaction'!S$2, MarketR!$1:$1, 0)), 0), MATCH('Landing Page and Transaction'!S$2, MarketR!$1:$1, 0)+1) ->  | T82: =INDEX(MarketR!$1:$5400, MATCH('Landing Page and Transaction'!$R82, INDEX(MarketR!$1:$5400, 0, MATCH('Landing Page and Transaction'!T$2, MarketR!$1:$1, 0)), 0), MATCH('Landing Page and Transaction'!T$2, MarketR!$1:$1, 0)+1) -> 
A83: =IF(B83="", "", GenerateID(B83)) -> سآبيك_96095 | B83: سآبيك | C83: =IF(B83="","",INDEX('دیده بان بازار'!B:B, MATCH(B83, 'دیده بان بازار'!A:A, 0))) -> سيمان آبيك | D83: خرید | E83: 1403/04/09 | F83: 4083 | G83: 2457 | H83: -100691695.3 | I83: =IF(B83="","",INDEX('دیده بان بازار'!H:H, MATCH(B83, 'دیده بان بازار'!A:A, 0))) -> 38240 | J83: سآبيك_96095 | L83: -100691695.3 | M83: 1403/04/09 | N83: -504529543.1 | O83: -605221238.4 | R83: =IF('Total Watch'!A79<>"",'Total Watch'!A79,"") -> K5 موتور 2000-2023 | S83: =INDEX(MarketR!$1:$5400, MATCH('Landing Page and Transaction'!$R83, INDEX(MarketR!$1:$5400, 0, MATCH('Landing Page and Transaction'!S$2, MarketR!$1:$1, 0)), 0), MATCH('Landing Page and Transaction'!S$2, MarketR!$1:$1, 0)+1) -> 3,900,000,000 تومان | T83: =INDEX(MarketR!$1:$5400, MATCH('Landing Page and Transaction'!$R83, INDEX(MarketR!$1:$5400, 0, MATCH('Landing Page and Transaction'!T$2, MarketR!$1:$1, 0)), 0), MATCH('Landing Page and Transaction'!T$2, MarketR!$1:$1, 0)+1) -> 
A84: =IF(B84="", "", GenerateID(B84)) -> ونوين_32899 | B84: ونوين | C84: =IF(B84="","",INDEX('دیده بان بازار'!B:B, MATCH(B84, 'دیده بان بازار'!A:A, 0))) -> بانك‌اقتصادنوين‌ | D84: فروش | E84: 1403/04/09 | F84: 35000 | G84: 291 | H84: 100953720 | I84: =IF(B84="","",INDEX('دیده بان بازار'!H:H, MATCH(B84, 'دیده بان بازار'!A:A, 0))) -> 3799 | J84: ونوين_32899 | L84: 100953720 | M84: 1403/04/09 | N84: -605221238.4 | O84: -504267518.4 | R84: =IF('Total Watch'!A80<>"",'Total Watch'!A80,"") -> K7 اتوماتیک-1401 | S84: =INDEX(MarketR!$1:$5400, MATCH('Landing Page and Transaction'!$R84, INDEX(MarketR!$1:$5400, 0, MATCH('Landing Page and Transaction'!S$2, MarketR!$1:$1, 0)), 0), MATCH('Landing Page and Transaction'!S$2, MarketR!$1:$1, 0)+1) -> 1,600,000,000 تومان | T84: =INDEX(MarketR!$1:$5400, MATCH('Landing Page and Transaction'!$R84, INDEX(MarketR!$1:$5400, 0, MATCH('Landing Page and Transaction'!T$2, MarketR!$1:$1, 0)), 0), MATCH('Landing Page and Transaction'!T$2, MarketR!$1:$1, 0)+1) -> 
A85: =IF(B85="", "", GenerateID(B85)) -> معين_34587 | B85: معين | C85: =IF(B85="","",INDEX('دیده بان بازار'!B:B, MATCH(B85, 'دیده بان بازار'!A:A, 0))) -> بيمه ايران - معين | D85: خرید | E85: 1403/04/10 | F85: 704 | G85: 246 | H85: -1738268.59 | I85: =IF(B85="","",INDEX('دیده بان بازار'!H:H, MATCH(B85, 'دیده بان بازار'!A:A, 0))) -> 2857 | J85: معين_34587 | L85: -1738268.59 | M85: 1403/04/10 | N85: -504267518.4 | O85: -506005786.9 | R85: =IF('Total Watch'!A81<>"",'Total Watch'!A81,"") -> K7 اتوماتیک-1402 | S85: =INDEX(MarketR!$1:$5400, MATCH('Landing Page and Transaction'!$R85, INDEX(MarketR!$1:$5400, 0, MATCH('Landing Page and Transaction'!S$2, MarketR!$1:$1, 0)), 0), MATCH('Landing Page and Transaction'!S$2, MarketR!$1:$1, 0)+1) -> 1,700,000,000 تومان | T85: =INDEX(MarketR!$1:$5400, MATCH('Landing Page and Transaction'!$R85, INDEX(MarketR!$1:$5400, 0, MATCH('Landing Page and Transaction'!T$2, MarketR!$1:$1, 0)), 0), MATCH('Landing Page and Transaction'!T$2, MarketR!$1:$1, 0)+1) -> 
A86: =IF(B86="", "", GenerateID(B86)) -> غشهد_40872 | B86: غشهد | C86: =IF(B86="","",INDEX('دیده بان بازار'!B:B, MATCH(B86, 'دیده بان بازار'!A:A, 0))) -> شهد ايران ‌ | D86: خرید | E86: 1403/04/10 | F86: 88254 | G86: 433 | H86: -383558323 | I86: =IF(B86="","",INDEX('دیده بان بازار'!H:H, MATCH(B86, 'دیده بان بازار'!A:A, 0))) -> 5400 | J86: غشهد_40872 | L86: -383558323 | M86: 1403/04/10 | N86: -506005786.9 | O86: -889564110 | R86: =IF('Total Watch'!A82<>"",'Total Watch'!A82,"") -> LPB 170 1401 | S86: =INDEX(MarketR!$1:$5400, MATCH('Landing Page and Transaction'!$R86, INDEX(MarketR!$1:$5400, 0, MATCH('Landing Page and Transaction'!S$2, MarketR!$1:$1, 0)), 0), MATCH('Landing Page and Transaction'!S$2, MarketR!$1:$1, 0)+1) ->  | T86: =INDEX(MarketR!$1:$5400, MATCH('Landing Page and Transaction'!$R86, INDEX(MarketR!$1:$5400, 0, MATCH('Landing Page and Transaction'!T$2, MarketR!$1:$1, 0)), 0), MATCH('Landing Page and Transaction'!T$2, MarketR!$1:$1, 0)+1) -> 
A87: =IF(B87="", "", GenerateID(B87)) -> نوري_91626 | B87: نوري | C87: =IF(B87="","",INDEX('دیده بان بازار'!B:B, MATCH(B87, 'دیده بان بازار'!A:A, 0))) -> پتروشيمي نوري | D87: فروش | E87: 1403/04/10 | F87: 75 | G87: 17766 | H87: 13207244.4 | I87: =IF(B87="","",INDEX('دیده بان بازار'!H:H, MATCH(B87, 'دیده بان بازار'!A:A, 0))) -> 220800 | J87: نوري_91626 | L87: 13207244.4 | M87: 1403/04/10 | N87: -889564110 | O87: -876356865.6 | R87: =IF('Total Watch'!A83<>"",'Total Watch'!A83,"") -> Liberty 150 ABS 1401 | S87: =INDEX(MarketR!$1:$5400, MATCH('Landing Page and Transaction'!$R87, INDEX(MarketR!$1:$5400, 0, MATCH('Landing Page and Transaction'!S$2, MarketR!$1:$1, 0)), 0), MATCH('Landing Page and Transaction'!S$2, MarketR!$1:$1, 0)+1) ->  | T87: =INDEX(MarketR!$1:$5400, MATCH('Landing Page and Transaction'!$R87, INDEX(MarketR!$1:$5400, 0, MATCH('Landing Page and Transaction'!T$2, MarketR!$1:$1, 0)), 0), MATCH('Landing Page and Transaction'!T$2, MarketR!$1:$1, 0)+1) -> 
A88: =IF(B88="", "", GenerateID(B88)) -> نوري_91626 | B88: نوري | C88: =IF(B88="","",INDEX('دیده بان بازار'!B:B, MATCH(B88, 'دیده بان بازار'!A:A, 0))) -> پتروشيمي نوري | D88: فروش | E88: 1403/04/10 | F88: 433 | G88: 17633 | H88: 75679002.17 | I88: =IF(B88="","",INDEX('دیده بان بازار'!H:H, MATCH(B88, 'دیده بان بازار'!A:A, 0))) -> 220800 | J88: نوري_91626 | L88: 75679002.17 | M88: 1403/04/10 | N88: -876356865.6 | O88: -800677863.4 | R88: =IF('Total Watch'!A84<>"",'Total Watch'!A84,"") -> Liberty S 150 ABS 1401 | S88: =INDEX(MarketR!$1:$5400, MATCH('Landing Page and Transaction'!$R88, INDEX(MarketR!$1:$5400, 0, MATCH('Landing Page and Transaction'!S$2, MarketR!$1:$1, 0)), 0), MATCH('Landing Page and Transaction'!S$2, MarketR!$1:$1, 0)+1) ->  | T88: =INDEX(MarketR!$1:$5400, MATCH('Landing Page and Transaction'!$R88, INDEX(MarketR!$1:$5400, 0, MATCH('Landing Page and Transaction'!T$2, MarketR!$1:$1, 0)), 0), MATCH('Landing Page and Transaction'!T$2, MarketR!$1:$1, 0)+1) -> 
A89: =IF(B89="", "", GenerateID(B89)) -> نوري_91626 | B89: نوري | C89: =IF(B89="","",INDEX('دیده بان بازار'!B:B, MATCH(B89, 'دیده بان بازار'!A:A, 0))) -> پتروشيمي نوري | D89: فروش | E89: 1403/04/10 | F89: 1687 | G89: 17632 | H89: 294834263.8 | I89: =IF(B89="","",INDEX('دیده بان بازار'!H:H, MATCH(B89, 'دیده بان بازار'!A:A, 0))) -> 220800 | J89: نوري_91626 | L89: 294834263.8 | M89: 1403/04/10 | N89: -800677863.4 | O89: -505843599.6 | R89: =IF('Total Watch'!A85<>"",'Total Watch'!A85,"") -> M1 70 1401 | S89: =INDEX(MarketR!$1:$5400, MATCH('Landing Page and Transaction'!$R89, INDEX(MarketR!$1:$5400, 0, MATCH('Landing Page and Transaction'!S$2, MarketR!$1:$1, 0)), 0), MATCH('Landing Page and Transaction'!S$2, MarketR!$1:$1, 0)+1) ->  | T89: =INDEX(MarketR!$1:$5400, MATCH('Landing Page and Transaction'!$R89, INDEX(MarketR!$1:$5400, 0, MATCH('Landing Page and Transaction'!T$2, MarketR!$1:$1, 0)), 0), MATCH('Landing Page and Transaction'!T$2, MarketR!$1:$1, 0)+1) -> 
A90: =IF(B90="", "", GenerateID(B90)) -> افران_77462 | B90: افران | C90: =IF(B90="","",INDEX('دیده بان بازار'!B:B, MATCH(B90, 'دیده بان بازار'!A:A, 0))) -> صندوق س افرا نماد پايدار-ثابت | D90: فروش | E90: 1403/04/16 | F90: 200 | G90: 2731 | H90: 5413934.4 | I90: =IF(B90="","",INDEX('دیده بان بازار'!H:H, MATCH(B90, 'دیده بان بازار'!A:A, 0))) -> 30524 | J90: افران_77462 | L90: 5413934.4 | M90: 1403/04/16 | N90: -505843599.6 | O90: -500429665.2 | R90: =IF('Total Watch'!A86<>"",'Total Watch'!A86,"") -> MAD 1401 | S90: =INDEX(MarketR!$1:$5400, MATCH('Landing Page and Transaction'!$R90, INDEX(MarketR!$1:$5400, 0, MATCH('Landing Page and Transaction'!S$2, MarketR!$1:$1, 0)), 0), MATCH('Landing Page and Transaction'!S$2, MarketR!$1:$1, 0)+1) ->  | T90: =INDEX(MarketR!$1:$5400, MATCH('Landing Page and Transaction'!$R90, INDEX(MarketR!$1:$5400, 0, MATCH('Landing Page and Transaction'!T$2, MarketR!$1:$1, 0)), 0), MATCH('Landing Page and Transaction'!T$2, MarketR!$1:$1, 0)+1) -> 
A91: =IF(B91="", "", GenerateID(B91)) -> خنور_21270 | B91: خنور | C91: =IF(B91="","",INDEX('دیده بان بازار'!B:B, MATCH(B91, 'دیده بان بازار'!A:A, 0))) -> نورايستا پلاستيك | D91: خرید | E91: 1403/04/18 | F91: 39 | G91: 1909 | H91: -747273.6211 | I91: =IF(B91="","",INDEX('دیده بان بازار'!H:H, MATCH(B91, 'دیده بان بازار'!A:A, 0))) -> 24400 | J91: خنور_21270 | L91: -747273.6211 | M91: 1403/04/18 | N91: -500429665.2 | O91: -501176938.8 | R91: =IF('Total Watch'!A87<>"",'Total Watch'!A87,"") -> MAD Truck 1401 | S91: =INDEX(MarketR!$1:$5400, MATCH('Landing Page and Transaction'!$R91, INDEX(MarketR!$1:$5400, 0, MATCH('Landing Page and Transaction'!S$2, MarketR!$1:$1, 0)), 0), MATCH('Landing Page and Transaction'!S$2, MarketR!$1:$1, 0)+1) ->  | T91: =INDEX(MarketR!$1:$5400, MATCH('Landing Page and Transaction'!$R91, INDEX(MarketR!$1:$5400, 0, MATCH('Landing Page and Transaction'!T$2, MarketR!$1:$1, 0)), 0), MATCH('Landing Page and Transaction'!T$2, MarketR!$1:$1, 0)+1) -> 
A92: =IF(B92="", "", GenerateID(B92)) -> كزغال_76841 | B92: كزغال | C92: =IF(B92="","",INDEX('دیده بان بازار'!B:B, MATCH(B92, 'دیده بان بازار'!A:A, 0))) -> زغال سنگ پروده طبس | D92: فروش | E92: 1403/04/18 | F92: 4806 | G92: 1568 | H92: 74694928.9 | I92: =IF(B92="","",INDEX('دیده بان بازار'!H:H, MATCH(B92, 'دیده بان بازار'!A:A, 0))) -> 13400 | J92: كزغال_76841 | L92: 74694928.9 | M92: 1403/04/18 | N92: -501176938.8 | O92: -426482009.9 | R92: =IF('Total Watch'!A88<>"",'Total Watch'!A88,"") -> Medley 150 ABS 1401 | S92: =INDEX(MarketR!$1:$5400, MATCH('Landing Page and Transaction'!$R92, INDEX(MarketR!$1:$5400, 0, MATCH('Landing Page and Transaction'!S$2, MarketR!$1:$1, 0)), 0), MATCH('Landing Page and Transaction'!S$2, MarketR!$1:$1, 0)+1) ->  | T92: =INDEX(MarketR!$1:$5400, MATCH('Landing Page and Transaction'!$R92, INDEX(MarketR!$1:$5400, 0, MATCH('Landing Page and Transaction'!T$2, MarketR!$1:$1, 0)), 0), MATCH('Landing Page and Transaction'!T$2, MarketR!$1:$1, 0)+1) -> 
A93: =IF(B93="", "", GenerateID(B93)) -> كزغال_76841 | B93: كزغال | C93: =IF(B93="","",INDEX('دیده بان بازار'!B:B, MATCH(B93, 'دیده بان بازار'!A:A, 0))) -> زغال سنگ پروده طبس | D93: فروش | E93: 1403/04/18 | F93: 6124 | G93: 1565 | H93: 94997202.72 | I93: =IF(B93="","",INDEX('دیده بان بازار'!H:H, MATCH(B93, 'دیده بان بازار'!A:A, 0))) -> 13400 | J93: كزغال_76841 | L93: 94997202.72 | M93: 1403/04/18 | N93: -426482009.9 | O93: -331484807.2 | R93: =IF('Total Watch'!A89<>"",'Total Watch'!A89,"") -> N2 230 1401 | S93: =INDEX(MarketR!$1:$5400, MATCH('Landing Page and Transaction'!$R93, INDEX(MarketR!$1:$5400, 0, MATCH('Landing Page and Transaction'!S$2, MarketR!$1:$1, 0)), 0), MATCH('Landing Page and Transaction'!S$2, MarketR!$1:$1, 0)+1) ->  | T93: =INDEX(MarketR!$1:$5400, MATCH('Landing Page and Transaction'!$R93, INDEX(MarketR!$1:$5400, 0, MATCH('Landing Page and Transaction'!T$2, MarketR!$1:$1, 0)), 0), MATCH('Landing Page and Transaction'!T$2, MarketR!$1:$1, 0)+1) -> 
A94: =IF(B94="", "", GenerateID(B94)) -> ضهرم 5006_70886 | B94: ضهرم 5006 | C94: =IF(B94="","",INDEX('دیده بان بازار'!B:B, MATCH(B94, 'دیده بان بازار'!A:A, 0))) ->  | D94: خرید | E94: 1403/04/19 | F94: 89000 | G94: 64 | H94: -57171435.52 | I94: =IF(B94="","",INDEX('دیده بان بازار'!H:H, MATCH(B94, 'دیده بان بازار'!A:A, 0))) ->  | J94: ضهرم 5006_70886 | L94: -57171435.52 | M94: 1403/04/19 | N94: -331484807.2 | O94: -388656242.7 | R94: =IF('Total Watch'!A90<>"",'Total Watch'!A90,"") -> N2 230 N 1401 | S94: =INDEX(MarketR!$1:$5400, MATCH('Landing Page and Transaction'!$R94, INDEX(MarketR!$1:$5400, 0, MATCH('Landing Page and Transaction'!S$2, MarketR!$1:$1, 0)), 0), MATCH('Landing Page and Transaction'!S$2, MarketR!$1:$1, 0)+1) ->  | T94: =INDEX(MarketR!$1:$5400, MATCH('Landing Page and Transaction'!$R94, INDEX(MarketR!$1:$5400, 0, MATCH('Landing Page and Transaction'!T$2, MarketR!$1:$1, 0)), 0), MATCH('Landing Page and Transaction'!T$2, MarketR!$1:$1, 0)+1) -> 
A95: =IF(B95="", "", GenerateID(B95)) -> طهرم 5005_46146 | B95: طهرم 5005 | C95: =IF(B95="","",INDEX('دیده بان بازار'!B:B, MATCH(B95, 'دیده بان بازار'!A:A, 0))) ->  | D95: خرید | E95: 1403/04/19 | F95: 36000 | G95: 149 | H95: -53839111.68 | I95: =IF(B95="","",INDEX('دیده بان بازار'!H:H, MATCH(B95, 'دیده بان بازار'!A:A, 0))) ->  | J95: طهرم 5005_46146 | L95: -53839111.68 | M95: 1403/04/19 | N95: -388656242.7 | O95: -442495354.4 | R95: =IF('Total Watch'!A91<>"",'Total Watch'!A91,"") -> Primavera Touring 150 1401 | S95: =INDEX(MarketR!$1:$5400, MATCH('Landing Page and Transaction'!$R95, INDEX(MarketR!$1:$5400, 0, MATCH('Landing Page and Transaction'!S$2, MarketR!$1:$1, 0)), 0), MATCH('Landing Page and Transaction'!S$2, MarketR!$1:$1, 0)+1) ->  | T95: =INDEX(MarketR!$1:$5400, MATCH('Landing Page and Transaction'!$R95, INDEX(MarketR!$1:$5400, 0, MATCH('Landing Page and Transaction'!T$2, MarketR!$1:$1, 0)), 0), MATCH('Landing Page and Transaction'!T$2, MarketR!$1:$1, 0)+1) -> 
A96: =IF(B96="", "", GenerateID(B96)) -> اهرم_24396 | B96: اهرم | C96: =IF(B96="","",INDEX('دیده بان بازار'!B:B, MATCH(B96, 'دیده بان بازار'!A:A, 0))) -> صندوق س سهامي كاريزما- اهرمي | D96: خرید | E96: 1403/04/19 | F96: 2914 | G96: 2088 | H96: -61070174.12 | I96: =IF(B96="","",INDEX('دیده بان بازار'!H:H, MATCH(B96, 'دیده بان بازار'!A:A, 0))) -> 20830 | J96: اهرم_24396 | L96: -61070174.12 | M96: 1403/04/19 | N96: -442495354.4 | O96: -503565528.5 | R96: =IF('Total Watch'!A92<>"",'Total Watch'!A92,"") -> Primavera Yacht Club 150 1401 | S96: =INDEX(MarketR!$1:$5400, MATCH('Landing Page and Transaction'!$R96, INDEX(MarketR!$1:$5400, 0, MATCH('Landing Page and Transaction'!S$2, MarketR!$1:$1, 0)), 0), MATCH('Landing Page and Transaction'!S$2, MarketR!$1:$1, 0)+1) ->  | T96: =INDEX(MarketR!$1:$5400, MATCH('Landing Page and Transaction'!$R96, INDEX(MarketR!$1:$5400, 0, MATCH('Landing Page and Transaction'!T$2, MarketR!$1:$1, 0)), 0), MATCH('Landing Page and Transaction'!T$2, MarketR!$1:$1, 0)+1) -> 
A97: =IF(B97="", "", GenerateID(B97)) -> ضهرم 5006_70886 | B97: ضهرم 5006 | C97: =IF(B97="","",INDEX('دیده بان بازار'!B:B, MATCH(B97, 'دیده بان بازار'!A:A, 0))) ->  | D97: فروش | E97: 1403/04/20 | F97: 89000 | G97: 50 | H97: 44108400 | I97: =IF(B97="","",INDEX('دیده بان بازار'!H:H, MATCH(B97, 'دیده بان بازار'!A:A, 0))) ->  | J97: ضهرم 5006_70886 | L97: =H97 -> 44108400 | M97: =E97 -> 1403/04/20 | N97: =O96 -> -503565528.5 | O97: -459457128.5 | R97: =IF('Total Watch'!A93<>"",'Total Watch'!A93,"") -> RC 200 ABS 1401 | S97: =INDEX(MarketR!$1:$5400, MATCH('Landing Page and Transaction'!$R97, INDEX(MarketR!$1:$5400, 0, MATCH('Landing Page and Transaction'!S$2, MarketR!$1:$1, 0)), 0), MATCH('Landing Page and Transaction'!S$2, MarketR!$1:$1, 0)+1) ->  | T97: =INDEX(MarketR!$1:$5400, MATCH('Landing Page and Transaction'!$R97, INDEX(MarketR!$1:$5400, 0, MATCH('Landing Page and Transaction'!T$2, MarketR!$1:$1, 0)), 0), MATCH('Landing Page and Transaction'!T$2, MarketR!$1:$1, 0)+1) ->  | U97: =IF(VALUE(CLEAN(TRIM(SUBSTITUTE(SUBSTITUTE(SUBSTITUTE(SUBSTITUTE(T97,"تومان",""),"$",""),"ریال",""),",",""))))=0,"بدون داده",IFERROR((VALUE(CLEAN(TRIM(SUBSTITUTE(SUBSTITUTE(SUBSTITUTE(SUBSTITUTE(T97,"تومان",""),"$",""),"ریال",""),",",""))))-VALUE(CLEAN(TRIM(SUBSTITUTE(SUBSTITUTE(SUBSTITUTE(SUBSTITUTE(S97,"تومان",""),"$",""),"ریال",""),",","")))))/VALUE(CLEAN(TRIM(SUBSTITUTE(SUBSTITUTE(SUBSTITUTE(SUBSTITUTE(S97,"تومان",""),"$",""),"ریال",""),",","")))),"تعریف نشده")) -> 
A98: =IF(B98="", "", GenerateID(B98)) -> غشهد_40872 | B98: غشهد | C98: =IF(B98="","",INDEX('دیده بان بازار'!B:B, MATCH(B98, 'دیده بان بازار'!A:A, 0))) -> شهد ايران ‌ | D98: فروش | E98: 1403/04/20 | F98: 88254 | G98: 399 | H98: 349034685.6 | I98: =IF(B98="","",INDEX('دیده بان بازار'!H:H, MATCH(B98, 'دیده بان بازار'!A:A, 0))) -> 5400 | J98: غشهد_40872 | L98: 349034685.6 | M98: 1403/04/20 | N98: -459457128.5 | O98: -110422443 | R98: =IF('Total Watch'!A94<>"",'Total Watch'!A94,"") -> S1 125 (Type 2) 1401 | S98: =INDEX(MarketR!$1:$5400, MATCH('Landing Page and Transaction'!$R98, INDEX(MarketR!$1:$5400, 0, MATCH('Landing Page and Transaction'!S$2, MarketR!$1:$1, 0)), 0), MATCH('Landing Page and Transaction'!S$2, MarketR!$1:$1, 0)+1) ->  | T98: =INDEX(MarketR!$1:$5400, MATCH('Landing Page and Transaction'!$R98, INDEX(MarketR!$1:$5400, 0, MATCH('Landing Page and Transaction'!T$2, MarketR!$1:$1, 0)), 0), MATCH('Landing Page and Transaction'!T$2, MarketR!$1:$1, 0)+1) -> 
A99: =IF(B99="", "", GenerateID(B99)) -> طخود5030_20812 | B99: طخود5030 | C99: =IF(B99="","",INDEX('دیده بان بازار'!B:B, MATCH(B99, 'دیده بان بازار'!A:A, 0))) ->  | D99: خرید | E99: 1403/04/23 | F99: 698000 | G99: 8 | H99: =IF(OR(D99="خرید", D99="برداشت", D99="سود"), -G99*F99*(1 + 0.003712) * 10, IF(OR(D99="فروش", D99="واریز"), G99*F99*(1 - 0.0088) * 10, 0)) -> -56047278.08 | I99: =IF(B99="","",INDEX('دیده بان بازار'!H:H, MATCH(B99, 'دیده بان بازار'!A:A, 0))) ->  | J99: طخود5030_20812 | L99: -56047278.08 | M99: 1403/04/23 | N99: -110422443 | O99: -166469721 | R99: =IF('Total Watch'!A95<>"",'Total Watch'!A95,"") -> S2 150 1401 | S99: =INDEX(MarketR!$1:$5400, MATCH('Landing Page and Transaction'!$R99, INDEX(MarketR!$1:$5400, 0, MATCH('Landing Page and Transaction'!S$2, MarketR!$1:$1, 0)), 0), MATCH('Landing Page and Transaction'!S$2, MarketR!$1:$1, 0)+1) ->  | T99: =INDEX(MarketR!$1:$5400, MATCH('Landing Page and Transaction'!$R99, INDEX(MarketR!$1:$5400, 0, MATCH('Landing Page and Transaction'!T$2, MarketR!$1:$1, 0)), 0), MATCH('Landing Page and Transaction'!T$2, MarketR!$1:$1, 0)+1) -> 
A100: =IF(B100="", "", GenerateID(B100)) -> طهرم 5004_77319 | B100: طهرم 5004 | C100: =IF(B100="","",INDEX('دیده بان بازار'!B:B, MATCH(B100, 'دیده بان بازار'!A:A, 0))) ->  | D100: خرید | E100: 1403/04/23 | F100: 50000 | G100: 98 | H100: -49181888 | I100: =IF(B100="","",INDEX('دیده بان بازار'!H:H, MATCH(B100, 'دیده بان بازار'!A:A, 0))) ->  | J100: طهرم 5004_77319 | L100: -49181888 | M100: 1403/04/23 | N100: -166469721 | O100: -215651609 | R100: =IF('Total Watch'!A96<>"",'Total Watch'!A96,"") -> S2 ADV 150 1401 | S100: =INDEX(MarketR!$1:$5400, MATCH('Landing Page and Transaction'!$R100, INDEX(MarketR!$1:$5400, 0, MATCH('Landing Page and Transaction'!S$2, MarketR!$1:$1, 0)), 0), MATCH('Landing Page and Transaction'!S$2, MarketR!$1:$1, 0)+1) ->  | T100: =INDEX(MarketR!$1:$5400, MATCH('Landing Page and Transaction'!$R100, INDEX(MarketR!$1:$5400, 0, MATCH('Landing Page and Transaction'!T$2, MarketR!$1:$1, 0)), 0), MATCH('Landing Page and Transaction'!T$2, MarketR!$1:$1, 0)+1) -> 
A101: =IF(B101="", "", GenerateID(B101)) -> افران_77462 | B101: افران | C101: =IF(B101="","",INDEX('دیده بان بازار'!B:B, MATCH(B101, 'دیده بان بازار'!A:A, 0))) -> صندوق س افرا نماد پايدار-ثابت | D101: خرید | E101: 1403/04/24 | F101: 10445 | G101: 2751 | H101: -288408563.3 | I101: =IF(B101="","",INDEX('دیده بان بازار'!H:H, MATCH(B101, 'دیده بان بازار'!A:A, 0))) -> 30524 | J101: افران_77462 | L101: -288408563.3 | M101: 1403/04/24 | N101: -215651609 | O101: -504060172.3 | R101: =IF('Total Watch'!A97<>"",'Total Watch'!A97,"") -> S3 اتوماتیک-1402 | S101: =INDEX(MarketR!$1:$5400, MATCH('Landing Page and Transaction'!$R101, INDEX(MarketR!$1:$5400, 0, MATCH('Landing Page and Transaction'!S$2, MarketR!$1:$1, 0)), 0), MATCH('Landing Page and Transaction'!S$2, MarketR!$1:$1, 0)+1) -> 1,050,000,000 تومان | T101: =INDEX(MarketR!$1:$5400, MATCH('Landing Page and Transaction'!$R101, INDEX(MarketR!$1:$5400, 0, MATCH('Landing Page and Transaction'!T$2, MarketR!$1:$1, 0)), 0), MATCH('Landing Page and Transaction'!T$2, MarketR!$1:$1, 0)+1) -> 
A102: =IF(B102="", "", GenerateID(B102)) -> سغرب_91476 | B102: سغرب | C102: =IF(B102="","",INDEX('دیده بان بازار'!B:B, MATCH(B102, 'دیده بان بازار'!A:A, 0))) -> سيمان‌غرب‌ | D102: خرید | E102: 1403/04/27 | F102: 1684 | G102: 3824 | H102: -64635198.55 | I102: =IF(B102="","",INDEX('دیده بان بازار'!H:H, MATCH(B102, 'دیده بان بازار'!A:A, 0))) -> 3806 | J102: سغرب_91476 | L102: -64635198.55 | M102: 1403/04/27 | N102: -504060172.3 | O102: -568695370.9 | R102: =IF('Total Watch'!A98<>"",'Total Watch'!A98,"") -> S3 اتوماتیک-1403 | S102: =INDEX(MarketR!$1:$5400, MATCH('Landing Page and Transaction'!$R102, INDEX(MarketR!$1:$5400, 0, MATCH('Landing Page and Transaction'!S$2, MarketR!$1:$1, 0)), 0), MATCH('Landing Page and Transaction'!S$2, MarketR!$1:$1, 0)+1) -> 1,120,000,000 تومان | T102: =INDEX(MarketR!$1:$5400, MATCH('Landing Page and Transaction'!$R102, INDEX(MarketR!$1:$5400, 0, MATCH('Landing Page and Transaction'!T$2, MarketR!$1:$1, 0)), 0), MATCH('Landing Page and Transaction'!T$2, MarketR!$1:$1, 0)+1) -> 
A103: =IF(B103="", "", GenerateID(B103)) -> كفرا_29560 | B103: كفرا | C103: =IF(B103="","",INDEX('دیده بان بازار'!B:B, MATCH(B103, 'دیده بان بازار'!A:A, 0))) -> فراورده‌ هاي‌ نسوزايران‌ | D103: خرید | E103: 1403/04/27 | F103: 6179 | G103: 1013 | H103: -62825616.22 | I103: =IF(B103="","",INDEX('دیده بان بازار'!H:H, MATCH(B103, 'دیده بان بازار'!A:A, 0))) -> 8670 | J103: كفرا_29560 | L103: -62825616.22 | M103: 1403/04/27 | N103: -568695370.9 | O103: -631520987.1 | R103: =IF('Total Watch'!A99<>"",'Total Watch'!A99,"") -> S5 6 دنده اتوماتیک-1402 | S103: =INDEX(MarketR!$1:$5400, MATCH('Landing Page and Transaction'!$R103, INDEX(MarketR!$1:$5400, 0, MATCH('Landing Page and Transaction'!S$2, MarketR!$1:$1, 0)), 0), MATCH('Landing Page and Transaction'!S$2, MarketR!$1:$1, 0)+1) -> 1,410,000,000 تومان | T103: =INDEX(MarketR!$1:$5400, MATCH('Landing Page and Transaction'!$R103, INDEX(MarketR!$1:$5400, 0, MATCH('Landing Page and Transaction'!T$2, MarketR!$1:$1, 0)), 0), MATCH('Landing Page and Transaction'!T$2, MarketR!$1:$1, 0)+1) -> 
A104: =IF(B104="", "", GenerateID(B104)) -> خصدرا_94052 | B104: خصدرا | C104: =IF(B104="","",INDEX('دیده بان بازار'!B:B, MATCH(B104, 'دیده بان بازار'!A:A, 0))) -> صنعتي‌ دريايي‌ ايران‌ | D104: فروش | E104: 1403/04/27 | F104: 32800 | G104: 150 | H104: 48767040 | I104: =IF(B104="","",INDEX('دیده بان بازار'!H:H, MATCH(B104, 'دیده بان بازار'!A:A, 0))) -> 1810 | J104: خصدرا_94052 | L104: 48767040 | M104: 1403/04/27 | N104: -631520987.1 | O104: -582753947.1 | R104: =IF('Total Watch'!A100<>"",'Total Watch'!A100,"") -> S5 6 دنده اتوماتیک-1403 | S104: =INDEX(MarketR!$1:$5400, MATCH('Landing Page and Transaction'!$R104, INDEX(MarketR!$1:$5400, 0, MATCH('Landing Page and Transaction'!S$2, MarketR!$1:$1, 0)), 0), MATCH('Landing Page and Transaction'!S$2, MarketR!$1:$1, 0)+1) -> 1,470,000,000 تومان | T104: =INDEX(MarketR!$1:$5400, MATCH('Landing Page and Transaction'!$R104, INDEX(MarketR!$1:$5400, 0, MATCH('Landing Page and Transaction'!T$2, MarketR!$1:$1, 0)), 0), MATCH('Landing Page and Transaction'!T$2, MarketR!$1:$1, 0)+1) -> 
A105: =IF(B105="", "", GenerateID(B105)) -> افران_77462 | B105: افران | C105: =IF(B105="","",INDEX('دیده بان بازار'!B:B, MATCH(B105, 'دیده بان بازار'!A:A, 0))) -> صندوق س افرا نماد پايدار-ثابت | D105: فروش | E105: 1403/04/27 | F105: 6800 | G105: 2757 | H105: 185826211.2 | I105: =IF(B105="","",INDEX('دیده بان بازار'!H:H, MATCH(B105, 'دیده بان بازار'!A:A, 0))) -> 30524 | J105: افران_77462 | L105: 185826211.2 | M105: 1403/04/27 | N105: -582753947.1 | O105: -396927735.9 | R105: =IF('Total Watch'!A101<>"",'Total Watch'!A101,"") -> S5 اتوماتیک - فیس جدید-1402 | S105: =INDEX(MarketR!$1:$5400, MATCH('Landing Page and Transaction'!$R105, INDEX(MarketR!$1:$5400, 0, MATCH('Landing Page and Transaction'!S$2, MarketR!$1:$1, 0)), 0), MATCH('Landing Page and Transaction'!S$2, MarketR!$1:$1, 0)+1) -> 1,550,000,000 تومان | T105: =INDEX(MarketR!$1:$5400, MATCH('Landing Page and Transaction'!$R105, INDEX(MarketR!$1:$5400, 0, MATCH('Landing Page and Transaction'!T$2, MarketR!$1:$1, 0)), 0), MATCH('Landing Page and Transaction'!T$2, MarketR!$1:$1, 0)+1) -> 
A106: =IF(B106="", "", GenerateID(B106)) -> طهرم 5005_46146 | B106: طهرم 5005 | C106: =IF(B106="","",INDEX('دیده بان بازار'!B:B, MATCH(B106, 'دیده بان بازار'!A:A, 0))) ->  | D106: فروش | E106: 1403/04/31 | F106: 36000 | G106: 320 | H106: 114186240 | I106: =IF(B106="","",INDEX('دیده بان بازار'!H:H, MATCH(B106, 'دیده بان بازار'!A:A, 0))) ->  | J106: طهرم 5005_46146 | L106: 114186240 | M106: 1403/04/31 | N106: -396927735.9 | O106: -282741495.9 | R106: =IF('Total Watch'!A102<>"",'Total Watch'!A102,"") -> S5 اتوماتیک - فیس جدید-1403 | S106: =INDEX(MarketR!$1:$5400, MATCH('Landing Page and Transaction'!$R106, INDEX(MarketR!$1:$5400, 0, MATCH('Landing Page and Transaction'!S$2, MarketR!$1:$1, 0)), 0), MATCH('Landing Page and Transaction'!S$2, MarketR!$1:$1, 0)+1) -> 1,600,000,000 تومان | T106: =INDEX(MarketR!$1:$5400, MATCH('Landing Page and Transaction'!$R106, INDEX(MarketR!$1:$5400, 0, MATCH('Landing Page and Transaction'!T$2, MarketR!$1:$1, 0)), 0), MATCH('Landing Page and Transaction'!T$2, MarketR!$1:$1, 0)+1) -> 
A107: =IF(B107="", "", GenerateID(B107)) -> افران_77462 | B107: افران | C107: =IF(B107="","",INDEX('دیده بان بازار'!B:B, MATCH(B107, 'دیده بان بازار'!A:A, 0))) -> صندوق س افرا نماد پايدار-ثابت | D107: خرید | E107: 1403/04/31 | F107: 3942 | G107: 2762 | H107: -109282195.3 | I107: =IF(B107="","",INDEX('دیده بان بازار'!H:H, MATCH(B107, 'دیده بان بازار'!A:A, 0))) -> 30524 | J107: افران_77462 | L107: -109282195.3 | M107: 1403/04/31 | N107: -282741495.9 | O107: -392023691.2 | R107: =IF('Total Watch'!A103<>"",'Total Watch'!A103,"") -> S5 150 1401 | S107: =INDEX(MarketR!$1:$5400, MATCH('Landing Page and Transaction'!$R107, INDEX(MarketR!$1:$5400, 0, MATCH('Landing Page and Transaction'!S$2, MarketR!$1:$1, 0)), 0), MATCH('Landing Page and Transaction'!S$2, MarketR!$1:$1, 0)+1) ->  | T107: =INDEX(MarketR!$1:$5400, MATCH('Landing Page and Transaction'!$R107, INDEX(MarketR!$1:$5400, 0, MATCH('Landing Page and Transaction'!T$2, MarketR!$1:$1, 0)), 0), MATCH('Landing Page and Transaction'!T$2, MarketR!$1:$1, 0)+1) -> 
A108: =IF(B108="", "", GenerateID(B108)) -> ضهرم5004_27899 | B108: ضهرم5004 | C108: =IF(B108="","",INDEX('دیده بان بازار'!B:B, MATCH(B108, 'دیده بان بازار'!A:A, 0))) ->  | D108: خرید | E108: 1403/05/01 | F108: 42000 | G108: 83 | H108: -34989400.32 | I108: =IF(B108="","",INDEX('دیده بان بازار'!H:H, MATCH(B108, 'دیده بان بازار'!A:A, 0))) ->  | J108: =A108 -> ضهرم5004_27899 | L108: -34989400.32 | M108: 1403/05/01 | N108: -392023691.2 | O108: =N108+L108 -> -427013091.5 | R108: =IF('Total Watch'!A104<>"",'Total Watch'!A104,"") -> S7 توربو پلاس-1402 | S108: =INDEX(MarketR!$1:$5400, MATCH('Landing Page and Transaction'!$R108, INDEX(MarketR!$1:$5400, 0, MATCH('Landing Page and Transaction'!S$2, MarketR!$1:$1, 0)), 0), MATCH('Landing Page and Transaction'!S$2, MarketR!$1:$1, 0)+1) -> 1,520,000,000 تومان | T108: =INDEX(MarketR!$1:$5400, MATCH('Landing Page and Transaction'!$R108, INDEX(MarketR!$1:$5400, 0, MATCH('Landing Page and Transaction'!T$2, MarketR!$1:$1, 0)), 0), MATCH('Landing Page and Transaction'!T$2, MarketR!$1:$1, 0)+1) -> 
A109: =IF(B109="", "", GenerateID(B109)) -> ونيرو_18885 | B109: ونيرو | C109: =IF(B109="","",INDEX('دیده بان بازار'!B:B, MATCH(B109, 'دیده بان بازار'!A:A, 0))) -> سرمايه‌گذاري‌نيرو | D109: خرید | E109: 1403/05/01 | F109: 12953 | G109: 518 | H109: -67345602.36 | I109: =IF(B109="","",INDEX('دیده بان بازار'!H:H, MATCH(B109, 'دیده بان بازار'!A:A, 0))) -> 5820 | J109: ونيرو_18885 | L109: -67345602.36 | M109: 1403/05/01 | N109: -427013091.5 | O109: -494358693.9 | R109: =IF('Total Watch'!A105<>"",'Total Watch'!A105,"") -> S7 توربو پلاس-1403 | S109: =INDEX(MarketR!$1:$5400, MATCH('Landing Page and Transaction'!$R109, INDEX(MarketR!$1:$5400, 0, MATCH('Landing Page and Transaction'!S$2, MarketR!$1:$1, 0)), 0), MATCH('Landing Page and Transaction'!S$2, MarketR!$1:$1, 0)+1) -> 1,590,000,000 تومان | T109: =INDEX(MarketR!$1:$5400, MATCH('Landing Page and Transaction'!$R109, INDEX(MarketR!$1:$5400, 0, MATCH('Landing Page and Transaction'!T$2, MarketR!$1:$1, 0)), 0), MATCH('Landing Page and Transaction'!T$2, MarketR!$1:$1, 0)+1) -> 
A110: =IF(B110="", "", GenerateID(B110)) -> چافست_23325 | B110: چافست | C110: =IF(B110="","",INDEX('دیده بان بازار'!B:B, MATCH(B110, 'دیده بان بازار'!A:A, 0))) -> افست‌ | D110: خرید | E110: 1403/05/01 | F110: 6102 | G110: 871 | H110: -53345706.94 | I110: =IF(B110="","",INDEX('دیده بان بازار'!H:H, MATCH(B110, 'دیده بان بازار'!A:A, 0))) -> 8950 | J110: چافست_23325 | L110: -53345706.94 | M110: 1403/05/01 | N110: -494358693.9 | O110: -547704400.8 | R110: =IF('Total Watch'!A106<>"",'Total Watch'!A106,"") -> S8 اتوماتیک-1402 | S110: =INDEX(MarketR!$1:$5400, MATCH('Landing Page and Transaction'!$R110, INDEX(MarketR!$1:$5400, 0, MATCH('Landing Page and Transaction'!S$2, MarketR!$1:$1, 0)), 0), MATCH('Landing Page and Transaction'!S$2, MarketR!$1:$1, 0)+1) -> 1,760,000,000 تومان | T110: =INDEX(MarketR!$1:$5400, MATCH('Landing Page and Transaction'!$R110, INDEX(MarketR!$1:$5400, 0, MATCH('Landing Page and Transaction'!T$2, MarketR!$1:$1, 0)), 0), MATCH('Landing Page and Transaction'!T$2, MarketR!$1:$1, 0)+1) -> 
A111: =IF(B111="", "", GenerateID(B111)) -> حفاري_18750 | B111: حفاري | C111: =IF(B111="","",INDEX('دیده بان بازار'!B:B, MATCH(B111, 'دیده بان بازار'!A:A, 0))) -> حفاري شمال | D111: خرید | E111: 1403/05/01 | F111: 33729 | G111: 340 | H111: -115104287 | I111: =IF(B111="","",INDEX('دیده بان بازار'!H:H, MATCH(B111, 'دیده بان بازار'!A:A, 0))) -> 4024 | J111: حفاري_18750 | L111: -115104287 | M111: 1403/05/01 | N111: -547704400.8 | O111: -662808687.8 | R111: =IF('Total Watch'!A107<>"",'Total Watch'!A107,"") -> S8 اتوماتیک-1403 | S111: =INDEX(MarketR!$1:$5400, MATCH('Landing Page and Transaction'!$R111, INDEX(MarketR!$1:$5400, 0, MATCH('Landing Page and Transaction'!S$2, MarketR!$1:$1, 0)), 0), MATCH('Landing Page and Transaction'!S$2, MarketR!$1:$1, 0)+1) -> 1,830,000,000 تومان | T111: =INDEX(MarketR!$1:$5400, MATCH('Landing Page and Transaction'!$R111, INDEX(MarketR!$1:$5400, 0, MATCH('Landing Page and Transaction'!T$2, MarketR!$1:$1, 0)), 0), MATCH('Landing Page and Transaction'!T$2, MarketR!$1:$1, 0)+1) -> 
A112: =IF(B112="", "", GenerateID(B112)) -> طخود5030_20812 | B112: طخود5030 | C112: =IF(B112="","",INDEX('دیده بان بازار'!B:B, MATCH(B112, 'دیده بان بازار'!A:A, 0))) ->  | D112: فروش | E112: 1403/05/01 | F112: 698000 | G112: 10 | H112: 69185760 | I112: =IF(B112="","",INDEX('دیده بان بازار'!H:H, MATCH(B112, 'دیده بان بازار'!A:A, 0))) ->  | J112: طخود5030_20812 | L112: 69185760 | M112: 1403/05/01 | N112: -662808687.8 | O112: -593622927.8 | R112: =IF('Total Watch'!A108<>"",'Total Watch'!A108,"") -> ST3 220 1401 | S112: =INDEX(MarketR!$1:$5400, MATCH('Landing Page and Transaction'!$R112, INDEX(MarketR!$1:$5400, 0, MATCH('Landing Page and Transaction'!S$2, MarketR!$1:$1, 0)), 0), MATCH('Landing Page and Transaction'!S$2, MarketR!$1:$1, 0)+1) ->  | T112: =INDEX(MarketR!$1:$5400, MATCH('Landing Page and Transaction'!$R112, INDEX(MarketR!$1:$5400, 0, MATCH('Landing Page and Transaction'!T$2, MarketR!$1:$1, 0)), 0), MATCH('Landing Page and Transaction'!T$2, MarketR!$1:$1, 0)+1) -> 
A113: =IF(B113="", "", GenerateID(B113)) -> طهرم 5004_77319 | B113: طهرم 5004 | C113: =IF(B113="","",INDEX('دیده بان بازار'!B:B, MATCH(B113, 'دیده بان بازار'!A:A, 0))) ->  | D113: فروش | E113: 1403/05/01 | F113: 50000 | G113: 124 | H113: 61454400 | I113: =IF(B113="","",INDEX('دیده بان بازار'!H:H, MATCH(B113, 'دیده بان بازار'!A:A, 0))) ->  | J113: طهرم 5004_77319 | L113: 61454400 | M113: 1403/05/01 | N113: -593622927.8 | O113: -532168527.8 | R113: =IF('Total Watch'!A109<>"",'Total Watch'!A109,"") -> SX5 اتوماتیک-1402 | S113: =INDEX(MarketR!$1:$5400, MATCH('Landing Page and Transaction'!$R113, INDEX(MarketR!$1:$5400, 0, MATCH('Landing Page and Transaction'!S$2, MarketR!$1:$1, 0)), 0), MATCH('Landing Page and Transaction'!S$2, MarketR!$1:$1, 0)+1) -> 1,200,000,000 تومان | T113: =INDEX(MarketR!$1:$5400, MATCH('Landing Page and Transaction'!$R113, INDEX(MarketR!$1:$5400, 0, MATCH('Landing Page and Transaction'!T$2, MarketR!$1:$1, 0)), 0), MATCH('Landing Page and Transaction'!T$2, MarketR!$1:$1, 0)+1) -> 
A114: =IF(B114="", "", GenerateID(B114)) -> اهرم_24396 | B114: اهرم | C114: =IF(B114="","",INDEX('دیده بان بازار'!B:B, MATCH(B114, 'دیده بان بازار'!A:A, 0))) -> صندوق س سهامي كاريزما- اهرمي | D114: فروش | E114: 1403/05/01 | F114: 2914 | G114: 1903 | H114: 54965429.9 | I114: =IF(B114="","",INDEX('دیده بان بازار'!H:H, MATCH(B114, 'دیده بان بازار'!A:A, 0))) -> 20830 | J114: اهرم_24396 | L114: 54965429.9 | M114: 1403/05/01 | N114: -532168527.8 | O114: -477203097.9 | R114: =IF('Total Watch'!A110<>"",'Total Watch'!A110,"") -> SX5 اتوماتیک-1403 | S114: =INDEX(MarketR!$1:$5400, MATCH('Landing Page and Transaction'!$R114, INDEX(MarketR!$1:$5400, 0, MATCH('Landing Page and Transaction'!S$2, MarketR!$1:$1, 0)), 0), MATCH('Landing Page and Transaction'!S$2, MarketR!$1:$1, 0)+1) -> 1,280,000,000 تومان | T114: =INDEX(MarketR!$1:$5400, MATCH('Landing Page and Transaction'!$R114, INDEX(MarketR!$1:$5400, 0, MATCH('Landing Page and Transaction'!T$2, MarketR!$1:$1, 0)), 0), MATCH('Landing Page and Transaction'!T$2, MarketR!$1:$1, 0)+1) -> 
A115: =IF(B115="", "", GenerateID(B115)) -> كفرا_29560 | B115: كفرا | C115: =IF(B115="","",INDEX('دیده بان بازار'!B:B, MATCH(B115, 'دیده بان بازار'!A:A, 0))) -> فراورده‌ هاي‌ نسوزايران‌ | D115: فروش | E115: 1403/05/01 | F115: 6179 | G115: 960 | H115: 58796398.08 | I115: =IF(B115="","",INDEX('دیده بان بازار'!H:H, MATCH(B115, 'دیده بان بازار'!A:A, 0))) -> 8670 | J115: كفرا_29560 | L115: 58796398.08 | M115: 1403/05/01 | N115: -477203097.9 | O115: -418406699.8 | R115: =IF('Total Watch'!A111<>"",'Total Watch'!A111,"") -> Scrambler 249 1401 | S115: =INDEX(MarketR!$1:$5400, MATCH('Landing Page and Transaction'!$R115, INDEX(MarketR!$1:$5400, 0, MATCH('Landing Page and Transaction'!S$2, MarketR!$1:$1, 0)), 0), MATCH('Landing Page and Transaction'!S$2, MarketR!$1:$1, 0)+1) ->  | T115: =INDEX(MarketR!$1:$5400, MATCH('Landing Page and Transaction'!$R115, INDEX(MarketR!$1:$5400, 0, MATCH('Landing Page and Transaction'!T$2, MarketR!$1:$1, 0)), 0), MATCH('Landing Page and Transaction'!T$2, MarketR!$1:$1, 0)+1) -> 
A116: =IF(B116="", "", GenerateID(B116)) -> بسويچ_55690 | B116: بسويچ | C116: =IF(B116="","",INDEX('دیده بان بازار'!B:B, MATCH(B116, 'دیده بان بازار'!A:A, 0))) -> پارس‌سويچ‌ | D116: خرید | E116: 1403/05/02 | F116: 22871 | G116: 458 | H116: -105138009 | I116: =IF(B116="","",INDEX('دیده بان بازار'!H:H, MATCH(B116, 'دیده بان بازار'!A:A, 0))) -> 5290 | J116: بسويچ_55690 | L116: -105138009 | M116: 1403/05/02 | N116: -418406699.8 | O116: -523544708.7 | R116: =IF('Total Watch'!A112<>"",'Total Watch'!A112,"") -> Sf180‎‎ 1401 | S116: =INDEX(MarketR!$1:$5400, MATCH('Landing Page and Transaction'!$R116, INDEX(MarketR!$1:$5400, 0, MATCH('Landing Page and Transaction'!S$2, MarketR!$1:$1, 0)), 0), MATCH('Landing Page and Transaction'!S$2, MarketR!$1:$1, 0)+1) ->  | T116: =INDEX(MarketR!$1:$5400, MATCH('Landing Page and Transaction'!$R116, INDEX(MarketR!$1:$5400, 0, MATCH('Landing Page and Transaction'!T$2, MarketR!$1:$1, 0)), 0), MATCH('Landing Page and Transaction'!T$2, MarketR!$1:$1, 0)+1) -> 
A117: =IF(B117="", "", GenerateID(B117)) -> شتاب_29881 | B117: شتاب | C117: =IF(B117="","",INDEX('دیده بان بازار'!B:B, MATCH(B117, 'دیده بان بازار'!A:A, 0))) -> صندوق س سهامي شتاب آگاه-اهرمي | D117: فروش | E117: 1403/05/02 | F117: 11286 | G117: 930 | H117: 104036153.8 | I117: =IF(B117="","",INDEX('دیده بان بازار'!H:H, MATCH(B117, 'دیده بان بازار'!A:A, 0))) -> 10670 | J117: شتاب_29881 | L117: 104036153.8 | M117: 1403/05/02 | N117: -523544708.7 | O117: -419508555 | R117: =IF('Total Watch'!A113<>"",'Total Watch'!A113,"") -> Star HLX 1401 | S117: =INDEX(MarketR!$1:$5400, MATCH('Landing Page and Transaction'!$R117, INDEX(MarketR!$1:$5400, 0, MATCH('Landing Page and Transaction'!S$2, MarketR!$1:$1, 0)), 0), MATCH('Landing Page and Transaction'!S$2, MarketR!$1:$1, 0)+1) ->  | T117: =INDEX(MarketR!$1:$5400, MATCH('Landing Page and Transaction'!$R117, INDEX(MarketR!$1:$5400, 0, MATCH('Landing Page and Transaction'!T$2, MarketR!$1:$1, 0)), 0), MATCH('Landing Page and Transaction'!T$2, MarketR!$1:$1, 0)+1) -> 
A118: =IF(B118="", "", GenerateID(B118)) -> افران_77462 | B118: افران | C118: =IF(B118="","",INDEX('دیده بان بازار'!B:B, MATCH(B118, 'دیده بان بازار'!A:A, 0))) -> صندوق س افرا نماد پايدار-ثابت | D118: خرید | E118: 1403/05/02 | F118: 3368 | G118: 2767 | H118: -93538490.78 | I118: =IF(B118="","",INDEX('دیده بان بازار'!H:H, MATCH(B118, 'دیده بان بازار'!A:A, 0))) -> 30524 | J118: افران_77462 | L118: -93538490.78 | M118: 1403/05/02 | N118: -419508555 | O118: -513047045.8 | R118: =IF('Total Watch'!A114<>"",'Total Watch'!A114,"") -> Svartpilen 249 ABS 1401 | S118: =INDEX(MarketR!$1:$5400, MATCH('Landing Page and Transaction'!$R118, INDEX(MarketR!$1:$5400, 0, MATCH('Landing Page and Transaction'!S$2, MarketR!$1:$1, 0)), 0), MATCH('Landing Page and Transaction'!S$2, MarketR!$1:$1, 0)+1) ->  | T118: =INDEX(MarketR!$1:$5400, MATCH('Landing Page and Transaction'!$R118, INDEX(MarketR!$1:$5400, 0, MATCH('Landing Page and Transaction'!T$2, MarketR!$1:$1, 0)), 0), MATCH('Landing Page and Transaction'!T$2, MarketR!$1:$1, 0)+1) -> 
A119: =IF(B119="", "", GenerateID(B119)) -> واریز_99145 | B119: واریز | C119: =IF(B119="","",INDEX('دیده بان بازار'!B:B, MATCH(B119, 'دیده بان بازار'!A:A, 0))) ->  | D119: واریز | E119: 1403/05/02 | H119: 3000000 | I119: =IF(B119="","",INDEX('دیده بان بازار'!H:H, MATCH(B119, 'دیده بان بازار'!A:A, 0))) ->  | J119: واریز_99145 | L119: 3000000 | M119: 1403/05/02 | N119: -513047045.8 | O119: -510047045.8 | P119: واریز مبلغ | R119: =IF('Total Watch'!A115<>"",'Total Watch'!A115,"") -> T2 248 N 1401 | S119: =INDEX(MarketR!$1:$5400, MATCH('Landing Page and Transaction'!$R119, INDEX(MarketR!$1:$5400, 0, MATCH('Landing Page and Transaction'!S$2, MarketR!$1:$1, 0)), 0), MATCH('Landing Page and Transaction'!S$2, MarketR!$1:$1, 0)+1) ->  | T119: =INDEX(MarketR!$1:$5400, MATCH('Landing Page and Transaction'!$R119, INDEX(MarketR!$1:$5400, 0, MATCH('Landing Page and Transaction'!T$2, MarketR!$1:$1, 0)), 0), MATCH('Landing Page and Transaction'!T$2, MarketR!$1:$1, 0)+1) -> 
A120: =IF(B120="", "", GenerateID(B120)) -> طهرم 5005_46146 | B120: طهرم 5005 | C120: =IF(B120="","",INDEX('دیده بان بازار'!B:B, MATCH(B120, 'دیده بان بازار'!A:A, 0))) ->  | D120: خرید | E120: 1403/05/08 | F120: 3000 | G120: 372 | H120: -11201425.92 | I120: =IF(B120="","",INDEX('دیده بان بازار'!H:H, MATCH(B120, 'دیده بان بازار'!A:A, 0))) ->  | J120: طهرم 5005_46146 | L120: -11201425.92 | M120: 1403/05/08 | N120: -510047045.8 | O120: -521248471.7 | R120: =IF('Total Watch'!A116<>"",'Total Watch'!A116,"") -> T4 200 1401 | S120: =INDEX(MarketR!$1:$5400, MATCH('Landing Page and Transaction'!$R120, INDEX(MarketR!$1:$5400, 0, MATCH('Landing Page and Transaction'!S$2, MarketR!$1:$1, 0)), 0), MATCH('Landing Page and Transaction'!S$2, MarketR!$1:$1, 0)+1) ->  | T120: =INDEX(MarketR!$1:$5400, MATCH('Landing Page and Transaction'!$R120, INDEX(MarketR!$1:$5400, 0, MATCH('Landing Page and Transaction'!T$2, MarketR!$1:$1, 0)), 0), MATCH('Landing Page and Transaction'!T$2, MarketR!$1:$1, 0)+1) -> 
A121: =IF(B121="", "", GenerateID(B121)) -> آپ_63328 | B121: آپ | C121: =IF(B121="","",INDEX('دیده بان بازار'!B:B, MATCH(B121, 'دیده بان بازار'!A:A, 0))) -> آسان پرداخت پرشين | D121: خرید | E121: 1403/05/08 | F121: 9599 | G121: 316 | H121: -30445435.5 | I121: =IF(B121="","",INDEX('دیده بان بازار'!H:H, MATCH(B121, 'دیده بان بازار'!A:A, 0))) -> 6590 | J121: آپ_63328 | L121: -30445435.5 | M121: 1403/05/08 | N121: -521248471.7 | O121: -551693907.2 | R121: =IF('Total Watch'!A117<>"",'Total Watch'!A117,"") -> T5 اتوماتیک-1402 | S121: =INDEX(MarketR!$1:$5400, MATCH('Landing Page and Transaction'!$R121, INDEX(MarketR!$1:$5400, 0, MATCH('Landing Page and Transaction'!S$2, MarketR!$1:$1, 0)), 0), MATCH('Landing Page and Transaction'!S$2, MarketR!$1:$1, 0)+1) -> 1,470,000,000 تومان | T121: =INDEX(MarketR!$1:$5400, MATCH('Landing Page and Transaction'!$R121, INDEX(MarketR!$1:$5400, 0, MATCH('Landing Page and Transaction'!T$2, MarketR!$1:$1, 0)), 0), MATCH('Landing Page and Transaction'!T$2, MarketR!$1:$1, 0)+1) -> 
A122: =IF(B122="", "", GenerateID(B122)) -> وصنعت_63620 | B122: وصنعت | C122: =IF(B122="","",INDEX('دیده بان بازار'!B:B, MATCH(B122, 'دیده بان بازار'!A:A, 0))) -> سرمايه گذاري توسعه صنعت وتجارت | D122: خرید | E122: 1403/05/08 | F122: 13505 | G122: 158 | H122: -21417106.28 | I122: =IF(B122="","",INDEX('دیده بان بازار'!H:H, MATCH(B122, 'دیده بان بازار'!A:A, 0))) -> 1762 | J122: وصنعت_63620 | L122: -21417106.28 | M122: 1403/05/08 | N122: -551693907.2 | O122: -573111013.5 | R122: =IF('Total Watch'!A118<>"",'Total Watch'!A118,"") -> T5 اتوماتیک-1403 | S122: =INDEX(MarketR!$1:$5400, MATCH('Landing Page and Transaction'!$R122, INDEX(MarketR!$1:$5400, 0, MATCH('Landing Page and Transaction'!S$2, MarketR!$1:$1, 0)), 0), MATCH('Landing Page and Transaction'!S$2, MarketR!$1:$1, 0)+1) -> 1,570,000,000 تومان | T122: =INDEX(MarketR!$1:$5400, MATCH('Landing Page and Transaction'!$R122, INDEX(MarketR!$1:$5400, 0, MATCH('Landing Page and Transaction'!T$2, MarketR!$1:$1, 0)), 0), MATCH('Landing Page and Transaction'!T$2, MarketR!$1:$1, 0)+1) -> 
A123: =IF(B123="", "", GenerateID(B123)) -> ضهرم 5004_14270 | B123: ضهرم 5004 | C123: =IF(B123="","",INDEX('دیده بان بازار'!B:B, MATCH(B123, 'دیده بان بازار'!A:A, 0))) ->  | D123: فروش | E123: 1403/05/08 | F123: 42000 | G123: 29 | H123: 12072816 | I123: =IF(B123="","",INDEX('دیده بان بازار'!H:H, MATCH(B123, 'دیده بان بازار'!A:A, 0))) ->  | J123: ضهرم 5004_14270 | L123: 12072816 | M123: 1403/05/08 | N123: -573111013.5 | O123: -561038197.5 | R123: =IF('Total Watch'!A119<>"",'Total Watch'!A119,"") -> T8 دنده ای-1402 | S123: =INDEX(MarketR!$1:$5400, MATCH('Landing Page and Transaction'!$R123, INDEX(MarketR!$1:$5400, 0, MATCH('Landing Page and Transaction'!S$2, MarketR!$1:$1, 0)), 0), MATCH('Landing Page and Transaction'!S$2, MarketR!$1:$1, 0)+1) -> 1,550,000,000 تومان | T123: =INDEX(MarketR!$1:$5400, MATCH('Landing Page and Transaction'!$R123, INDEX(MarketR!$1:$5400, 0, MATCH('Landing Page and Transaction'!T$2, MarketR!$1:$1, 0)), 0), MATCH('Landing Page and Transaction'!T$2, MarketR!$1:$1, 0)+1) -> 
A124: =IF(B124="", "", GenerateID(B124)) -> چافست_23325 | B124: چافست | C124: =IF(B124="","",INDEX('دیده بان بازار'!B:B, MATCH(B124, 'دیده بان بازار'!A:A, 0))) -> افست‌ | D124: فروش | E124: 1403/05/08 | F124: 3477 | G124: 827 | H124: 28501747.85 | I124: =IF(B124="","",INDEX('دیده بان بازار'!H:H, MATCH(B124, 'دیده بان بازار'!A:A, 0))) -> 8950 | J124: چافست_23325 | L124: 28501747.85 | M124: 1403/05/08 | N124: -561038197.5 | O124: -532536449.6 | R124: =IF('Total Watch'!A120<>"",'Total Watch'!A120,"") -> T8 دنده ای-1403 | S124: =INDEX(MarketR!$1:$5400, MATCH('Landing Page and Transaction'!$R124, INDEX(MarketR!$1:$5400, 0, MATCH('Landing Page and Transaction'!S$2, MarketR!$1:$1, 0)), 0), MATCH('Landing Page and Transaction'!S$2, MarketR!$1:$1, 0)+1) -> 1,660,000,000 تومان | T124: =INDEX(MarketR!$1:$5400, MATCH('Landing Page and Transaction'!$R124, INDEX(MarketR!$1:$5400, 0, MATCH('Landing Page and Transaction'!T$2, MarketR!$1:$1, 0)), 0), MATCH('Landing Page and Transaction'!T$2, MarketR!$1:$1, 0)+1) -> 
A125: =IF(B125="", "", GenerateID(B125)) -> چافست_23325 | B125: چافست | C125: =IF(B125="","",INDEX('دیده بان بازار'!B:B, MATCH(B125, 'دیده بان بازار'!A:A, 0))) -> افست‌ | D125: فروش | E125: 1403/05/08 | F125: 2625 | G125: 826 | H125: 21491694 | I125: =IF(B125="","",INDEX('دیده بان بازار'!H:H, MATCH(B125, 'دیده بان بازار'!A:A, 0))) -> 8950 | J125: چافست_23325 | L125: 21491694 | M125: 1403/05/08 | N125: -532536449.6 | O125: -511044755.6 | R125: =IF('Total Watch'!A121<>"",'Total Watch'!A121,"") -> T9 توربو 2000-1403 | S125: =INDEX(MarketR!$1:$5400, MATCH('Landing Page and Transaction'!$R125, INDEX(MarketR!$1:$5400, 0, MATCH('Landing Page and Transaction'!S$2, MarketR!$1:$1, 0)), 0), MATCH('Landing Page and Transaction'!S$2, MarketR!$1:$1, 0)+1) -> 2,050,000,000 تومان | T125: =INDEX(MarketR!$1:$5400, MATCH('Landing Page and Transaction'!$R125, INDEX(MarketR!$1:$5400, 0, MATCH('Landing Page and Transaction'!T$2, MarketR!$1:$1, 0)), 0), MATCH('Landing Page and Transaction'!T$2, MarketR!$1:$1, 0)+1) -> 
A126: =IF(B126="", "", GenerateID(B126)) -> طهرم 6018_16992 | B126: طهرم 6018 | C126: =IF(B126="","",INDEX('دیده بان بازار'!B:B, MATCH(B126, 'دیده بان بازار'!A:A, 0))) ->  | D126: خرید | E126: 1403/05/13 | F126: 16000 | G126: 439 | H126: -70500730.88 | I126: =IF(B126="","",INDEX('دیده بان بازار'!H:H, MATCH(B126, 'دیده بان بازار'!A:A, 0))) ->  | J126: طهرم 6018_16992 | L126: -70500730.88 | M126: 1403/05/13 | N126: -511044755.6 | O126: -581545486.5 | R126: =IF('Total Watch'!A122<>"",'Total Watch'!A122,"") -> TC 1401 | S126: =INDEX(MarketR!$1:$5400, MATCH('Landing Page and Transaction'!$R126, INDEX(MarketR!$1:$5400, 0, MATCH('Landing Page and Transaction'!S$2, MarketR!$1:$1, 0)), 0), MATCH('Landing Page and Transaction'!S$2, MarketR!$1:$1, 0)+1) ->  | T126: =INDEX(MarketR!$1:$5400, MATCH('Landing Page and Transaction'!$R126, INDEX(MarketR!$1:$5400, 0, MATCH('Landing Page and Transaction'!T$2, MarketR!$1:$1, 0)), 0), MATCH('Landing Page and Transaction'!T$2, MarketR!$1:$1, 0)+1) -> 
A127: =IF(B127="", "", GenerateID(B127)) -> طهرم 6016_27339 | B127: طهرم 6016 | C127: =IF(B127="","",INDEX('دیده بان بازار'!B:B, MATCH(B127, 'دیده بان بازار'!A:A, 0))) ->  | D127: خرید | E127: 1403/05/13 | F127: 70000 | G127: 104 | H127: -73070233.6 | I127: =IF(B127="","",INDEX('دیده بان بازار'!H:H, MATCH(B127, 'دیده بان بازار'!A:A, 0))) ->  | J127: طهرم 6016_27339 | L127: -73070233.6 | M127: 1403/05/13 | N127: -581545486.5 | O127: -654615720.1 | R127: =IF('Total Watch'!A123<>"",'Total Watch'!A123,"") -> TG 170 1401 | S127: =INDEX(MarketR!$1:$5400, MATCH('Landing Page and Transaction'!$R127, INDEX(MarketR!$1:$5400, 0, MATCH('Landing Page and Transaction'!S$2, MarketR!$1:$1, 0)), 0), MATCH('Landing Page and Transaction'!S$2, MarketR!$1:$1, 0)+1) ->  | T127: =INDEX(MarketR!$1:$5400, MATCH('Landing Page and Transaction'!$R127, INDEX(MarketR!$1:$5400, 0, MATCH('Landing Page and Transaction'!T$2, MarketR!$1:$1, 0)), 0), MATCH('Landing Page and Transaction'!T$2, MarketR!$1:$1, 0)+1) -> 
A128: =IF(B128="", "", GenerateID(B128)) -> طهرم 5005_46146 | B128: طهرم 5005 | C128: =IF(B128="","",INDEX('دیده بان بازار'!B:B, MATCH(B128, 'دیده بان بازار'!A:A, 0))) ->  | D128: فروش | E128: 1403/05/13 | F128: 3000 | G128: 638 | H128: 18971568 | I128: =IF(B128="","",INDEX('دیده بان بازار'!H:H, MATCH(B128, 'دیده بان بازار'!A:A, 0))) ->  | J128: طهرم 5005_46146 | L128: 18971568 | M128: 1403/05/13 | N128: -654615720.1 | O128: -635644152.1 | R128: =IF('Total Watch'!A124<>"",'Total Watch'!A124,"") -> TS-X 1401 | S128: =INDEX(MarketR!$1:$5400, MATCH('Landing Page and Transaction'!$R128, INDEX(MarketR!$1:$5400, 0, MATCH('Landing Page and Transaction'!S$2, MarketR!$1:$1, 0)), 0), MATCH('Landing Page and Transaction'!S$2, MarketR!$1:$1, 0)+1) ->  | T128: =INDEX(MarketR!$1:$5400, MATCH('Landing Page and Transaction'!$R128, INDEX(MarketR!$1:$5400, 0, MATCH('Landing Page and Transaction'!T$2, MarketR!$1:$1, 0)), 0), MATCH('Landing Page and Transaction'!T$2, MarketR!$1:$1, 0)+1) -> 
A129: =IF(B129="", "", GenerateID(B129)) -> سرو_64399 | B129: سرو | C129: =IF(B129="","",INDEX('دیده بان بازار'!B:B, MATCH(B129, 'دیده بان بازار'!A:A, 0))) -> صندوق س سروسودمند مدبران-سهام | D129: فروش | E129: 1403/05/13 | F129: 756 | G129: 13032 | H129: 97654927.1 | I129: =IF(B129="","",INDEX('دیده بان بازار'!H:H, MATCH(B129, 'دیده بان بازار'!A:A, 0))) -> 14890 | J129: سرو_64399 | L129: =H129 -> 97654927.1 | M129: =E129 -> 1403/05/13 | N129: -635644152.1 | O129: -537989225 | R129: =IF('Total Watch'!A125<>"",'Total Watch'!A125,"") -> V 249 1401 | S129: =INDEX(MarketR!$1:$5400, MATCH('Landing Page and Transaction'!$R129, INDEX(MarketR!$1:$5400, 0, MATCH('Landing Page and Transaction'!S$2, MarketR!$1:$1, 0)), 0), MATCH('Landing Page and Transaction'!S$2, MarketR!$1:$1, 0)+1) ->  | T129: =INDEX(MarketR!$1:$5400, MATCH('Landing Page and Transaction'!$R129, INDEX(MarketR!$1:$5400, 0, MATCH('Landing Page and Transaction'!T$2, MarketR!$1:$1, 0)), 0), MATCH('Landing Page and Transaction'!T$2, MarketR!$1:$1, 0)+1) -> 
A130: =IF(B130="", "", GenerateID(B130)) -> خكرمان_44220 | B130: خكرمان | C130: =IF(B130="","",INDEX('دیده بان بازار'!B:B, MATCH(B130, 'دیده بان بازار'!A:A, 0))) -> سرمايه گذاري آرمان گستر پاريز | D130: فروش | E130: 1403/05/13 | F130: 47077 | G130: 411 | H130: 191783789.1 | I130: =IF(B130="","",INDEX('دیده بان بازار'!H:H, MATCH(B130, 'دیده بان بازار'!A:A, 0))) -> 4770 | J130: خكرمان_44220 | L130: 191783789.1 | M130: 1403/05/13 | N130: -537989225 | O130: -346205435.9 | R130: =IF('Total Watch'!A126<>"",'Total Watch'!A126,"") -> VS5 توربو 1400-2023 | S130: =INDEX(MarketR!$1:$5400, MATCH('Landing Page and Transaction'!$R130, INDEX(MarketR!$1:$5400, 0, MATCH('Landing Page and Transaction'!S$2, MarketR!$1:$1, 0)), 0), MATCH('Landing Page and Transaction'!S$2, MarketR!$1:$1, 0)+1) -> 2,200,000,000 تومان | T130: =INDEX(MarketR!$1:$5400, MATCH('Landing Page and Transaction'!$R130, INDEX(MarketR!$1:$5400, 0, MATCH('Landing Page and Transaction'!T$2, MarketR!$1:$1, 0)), 0), MATCH('Landing Page and Transaction'!T$2, MarketR!$1:$1, 0)+1) -> 
A131: =IF(B131="", "", GenerateID(B131)) -> تاپيكو_97839 | B131: تاپيكو | C131: =IF(B131="","",INDEX('دیده بان بازار'!B:B, MATCH(B131, 'دیده بان بازار'!A:A, 0))) -> س. نفت و گاز و پتروشيمي تأمين | D131: فروش | E131: 1403/05/13 | F131: 5662 | G131: 1393 | H131: 78177589.39 | I131: =IF(B131="","",INDEX('دیده بان بازار'!H:H, MATCH(B131, 'دیده بان بازار'!A:A, 0))) -> 16570 | J131: تاپيكو_97839 | L131: 78177589.39 | M131: 1403/05/13 | N131: -346205435.9 | O131: -268027846.5 | R131: =IF('Total Watch'!A127<>"",'Total Watch'!A127,"") -> VS7 توربو 1400-2023 | S131: =INDEX(MarketR!$1:$5400, MATCH('Landing Page and Transaction'!$R131, INDEX(MarketR!$1:$5400, 0, MATCH('Landing Page and Transaction'!S$2, MarketR!$1:$1, 0)), 0), MATCH('Landing Page and Transaction'!S$2, MarketR!$1:$1, 0)+1) -> 2,550,000,000 تومان | T131: =INDEX(MarketR!$1:$5400, MATCH('Landing Page and Transaction'!$R131, INDEX(MarketR!$1:$5400, 0, MATCH('Landing Page and Transaction'!T$2, MarketR!$1:$1, 0)), 0), MATCH('Landing Page and Transaction'!T$2, MarketR!$1:$1, 0)+1) -> 
A132: =IF(B132="", "", GenerateID(B132)) -> سآبيك_96095 | B132: سآبيك | C132: =IF(B132="","",INDEX('دیده بان بازار'!B:B, MATCH(B132, 'دیده بان بازار'!A:A, 0))) -> سيمان آبيك | D132: فروش | E132: 1403/05/13 | F132: 4083 | G132: 2442 | H132: 98829439.63 | I132: =IF(B132="","",INDEX('دیده بان بازار'!H:H, MATCH(B132, 'دیده بان بازار'!A:A, 0))) -> 38240 | J132: سآبيك_96095 | L132: 98829439.63 | M132: 1403/05/13 | N132: -268027846.5 | O132: -169198406.9 | R132: =IF('Total Watch'!A128<>"",'Total Watch'!A128,"") -> WR 155 1401 یاماها | S132: =INDEX(MarketR!$1:$5400, MATCH('Landing Page and Transaction'!$R132, INDEX(MarketR!$1:$5400, 0, MATCH('Landing Page and Transaction'!S$2, MarketR!$1:$1, 0)), 0), MATCH('Landing Page and Transaction'!S$2, MarketR!$1:$1, 0)+1) ->  | T132: =INDEX(MarketR!$1:$5400, MATCH('Landing Page and Transaction'!$R132, INDEX(MarketR!$1:$5400, 0, MATCH('Landing Page and Transaction'!T$2, MarketR!$1:$1, 0)), 0), MATCH('Landing Page and Transaction'!T$2, MarketR!$1:$1, 0)+1) -> 
A133: =IF(B133="", "", GenerateID(B133)) -> ونيرو_18885 | B133: ونيرو | C133: =IF(B133="","",INDEX('دیده بان بازار'!B:B, MATCH(B133, 'دیده بان بازار'!A:A, 0))) -> سرمايه‌گذاري‌نيرو | D133: فروش | E133: 1403/05/13 | F133: 12953 | G133: 441 | H133: 56620049.98 | I133: =IF(B133="","",INDEX('دیده بان بازار'!H:H, MATCH(B133, 'دیده بان بازار'!A:A, 0))) -> 5820 | J133: ونيرو_18885 | L133: 56620049.98 | M133: 1403/05/13 | N133: -169198406.9 | O133: -112578356.9 | R133: =IF('Total Watch'!A129<>"",'Total Watch'!A129,"") -> X22 پرو دستی | S133: =INDEX(MarketR!$1:$5400, MATCH('Landing Page and Transaction'!$R133, INDEX(MarketR!$1:$5400, 0, MATCH('Landing Page and Transaction'!S$2, MarketR!$1:$1, 0)), 0), MATCH('Landing Page and Transaction'!S$2, MarketR!$1:$1, 0)+1) ->  | T133: =INDEX(MarketR!$1:$5400, MATCH('Landing Page and Transaction'!$R133, INDEX(MarketR!$1:$5400, 0, MATCH('Landing Page and Transaction'!T$2, MarketR!$1:$1, 0)), 0), MATCH('Landing Page and Transaction'!T$2, MarketR!$1:$1, 0)+1) -> 
A134: =IF(B134="", "", GenerateID(B134)) -> وصنعت_63620 | B134: وصنعت | C134: =IF(B134="","",INDEX('دیده بان بازار'!B:B, MATCH(B134, 'دیده بان بازار'!A:A, 0))) -> سرمايه گذاري توسعه صنعت وتجارت | D134: فروش | E134: 1403/05/13 | F134: 13505 | G134: 145 | H134: 19409926.2 | I134: =IF(B134="","",INDEX('دیده بان بازار'!H:H, MATCH(B134, 'دیده بان بازار'!A:A, 0))) -> 1762 | J134: وصنعت_63620 | L134: 19409926.2 | M134: 1403/05/13 | N134: -112578356.9 | O134: -93168430.74 | R134: =IF('Total Watch'!A130<>"",'Total Watch'!A130,"") -> X33 کراس اتوماتیک-1402 | S134: =INDEX(MarketR!$1:$5400, MATCH('Landing Page and Transaction'!$R134, INDEX(MarketR!$1:$5400, 0, MATCH('Landing Page and Transaction'!S$2, MarketR!$1:$1, 0)), 0), MATCH('Landing Page and Transaction'!S$2, MarketR!$1:$1, 0)+1) -> 990,000,000 تومان | T134: =INDEX(MarketR!$1:$5400, MATCH('Landing Page and Transaction'!$R134, INDEX(MarketR!$1:$5400, 0, MATCH('Landing Page and Transaction'!T$2, MarketR!$1:$1, 0)), 0), MATCH('Landing Page and Transaction'!T$2, MarketR!$1:$1, 0)+1) -> 
A135: =IF(B135="", "", GenerateID(B135)) -> پسهند_44023 | B135: پسهند | C135: =IF(B135="","",INDEX('دیده بان بازار'!B:B, MATCH(B135, 'دیده بان بازار'!A:A, 0))) -> صنايع‌ لاستيكي‌ سهند | D135: فروش | E135: 1403/05/13 | F135: 1006 | G135: 5871 | H135: 58542512.11 | I135: =IF(B135="","",INDEX('دیده بان بازار'!H:H, MATCH(B135, 'دیده بان بازار'!A:A, 0))) -> 84200 | J135: پسهند_44023 | L135: 58542512.11 | M135: 1403/05/13 | N135: -93168430.74 | O135: -34625918.63 | R135: =IF('Total Watch'!A131<>"",'Total Watch'!A131,"") -> X33 کراس اتوماتیک-1403 | S135: =INDEX(MarketR!$1:$5400, MATCH('Landing Page and Transaction'!$R135, INDEX(MarketR!$1:$5400, 0, MATCH('Landing Page and Transaction'!S$2, MarketR!$1:$1, 0)), 0), MATCH('Landing Page and Transaction'!S$2, MarketR!$1:$1, 0)+1) -> 1,040,000,000 تومان | T135: =INDEX(MarketR!$1:$5400, MATCH('Landing Page and Transaction'!$R135, INDEX(MarketR!$1:$5400, 0, MATCH('Landing Page and Transaction'!T$2, MarketR!$1:$1, 0)), 0), MATCH('Landing Page and Transaction'!T$2, MarketR!$1:$1, 0)+1) -> 
A136: =IF(B136="", "", GenerateID(B136)) -> سغرب_91476 | B136: سغرب | C136: =IF(B136="","",INDEX('دیده بان بازار'!B:B, MATCH(B136, 'دیده بان بازار'!A:A, 0))) -> سيمان‌غرب‌ | D136: فروش | E136: 1403/05/13 | F136: 1684 | G136: 3746 | H136: 62527512.77 | I136: =IF(B136="","",INDEX('دیده بان بازار'!H:H, MATCH(B136, 'دیده بان بازار'!A:A, 0))) -> 3806 | J136: سغرب_91476 | L136: 62527512.77 | M136: 1403/05/13 | N136: -34625918.63 | O136: 27901594.14 | R136: =IF('Total Watch'!A132<>"",'Total Watch'!A132,"") -> X33 کراس دنده ای -1402 | S136: =INDEX(MarketR!$1:$5400, MATCH('Landing Page and Transaction'!$R136, INDEX(MarketR!$1:$5400, 0, MATCH('Landing Page and Transaction'!S$2, MarketR!$1:$1, 0)), 0), MATCH('Landing Page and Transaction'!S$2, MarketR!$1:$1, 0)+1) -> 940,000,000 تومان | T136: =INDEX(MarketR!$1:$5400, MATCH('Landing Page and Transaction'!$R136, INDEX(MarketR!$1:$5400, 0, MATCH('Landing Page and Transaction'!T$2, MarketR!$1:$1, 0)), 0), MATCH('Landing Page and Transaction'!T$2, MarketR!$1:$1, 0)+1) -> 
A137: =IF(B137="", "", GenerateID(B137)) -> زيتون_27806 | B137: زيتون | C137: =IF(B137="","",INDEX('دیده بان بازار'!B:B, MATCH(B137, 'دیده بان بازار'!A:A, 0))) -> صندوق س زيتون نماد پايا- مختلط | D137: خرید | E137: 1403/05/13 | F137: 2700 | G137: 2092 | H137: -56693668.61 | I137: =IF(B137="","",INDEX('دیده بان بازار'!H:H, MATCH(B137, 'دیده بان بازار'!A:A, 0))) -> 24000 | J137: زيتون_27806 | L137: -56693668.61 | M137: 1403/05/13 | N137: 27901594.14 | O137: -28792074.47 | R137: =IF('Total Watch'!A133<>"",'Total Watch'!A133,"") -> X33 کراس دنده ای -1403 | S137: =INDEX(MarketR!$1:$5400, MATCH('Landing Page and Transaction'!$R137, INDEX(MarketR!$1:$5400, 0, MATCH('Landing Page and Transaction'!S$2, MarketR!$1:$1, 0)), 0), MATCH('Landing Page and Transaction'!S$2, MarketR!$1:$1, 0)+1) -> 980,000,000 تومان | T137: =INDEX(MarketR!$1:$5400, MATCH('Landing Page and Transaction'!$R137, INDEX(MarketR!$1:$5400, 0, MATCH('Landing Page and Transaction'!T$2, MarketR!$1:$1, 0)), 0), MATCH('Landing Page and Transaction'!T$2, MarketR!$1:$1, 0)+1) -> 
A138: =IF(B138="", "", GenerateID(B138)) -> افران_77462 | B138: افران | C138: =IF(B138="","",INDEX('دیده بان بازار'!B:B, MATCH(B138, 'دیده بان بازار'!A:A, 0))) -> صندوق س افرا نماد پايدار-ثابت | D138: فروش | E138: 1403/05/13 | F138: 48743 | G138: 2789 | H138: 1347479178 | I138: =IF(B138="","",INDEX('دیده بان بازار'!H:H, MATCH(B138, 'دیده بان بازار'!A:A, 0))) -> 30524 | J138: افران_77462 | L138: 1347479178 | M138: 1403/05/13 | N138: -28792074.47 | O138: 1318687104 | R138: =IF('Total Watch'!A134<>"",'Total Watch'!A134,"") -> X33 کراس (اتوماتیک) | S138: =INDEX(MarketR!$1:$5400, MATCH('Landing Page and Transaction'!$R138, INDEX(MarketR!$1:$5400, 0, MATCH('Landing Page and Transaction'!S$2, MarketR!$1:$1, 0)), 0), MATCH('Landing Page and Transaction'!S$2, MarketR!$1:$1, 0)+1) ->  | T138: =INDEX(MarketR!$1:$5400, MATCH('Landing Page and Transaction'!$R138, INDEX(MarketR!$1:$5400, 0, MATCH('Landing Page and Transaction'!T$2, MarketR!$1:$1, 0)), 0), MATCH('Landing Page and Transaction'!T$2, MarketR!$1:$1, 0)+1) -> 
A139: =IF(B139="", "", GenerateID(B139)) -> طهرم 6016_27339 | B139: طهرم 6016 | C139: =IF(B139="","",INDEX('دیده بان بازار'!B:B, MATCH(B139, 'دیده بان بازار'!A:A, 0))) ->  | D139: فروش | E139: 1403/05/14 | F139: 70000 | G139: 112 | H139: 77710080 | I139: =IF(B139="","",INDEX('دیده بان بازار'!H:H, MATCH(B139, 'دیده بان بازار'!A:A, 0))) ->  | J139: طهرم 6016_27339 | L139: 77710080 | M139: 1403/05/14 | N139: 1318687104 | O139: 1396397184 | R139: =IF('Total Watch'!A135<>"",'Total Watch'!A135,"") -> X33 کراس (دستی) | S139: =INDEX(MarketR!$1:$5400, MATCH('Landing Page and Transaction'!$R139, INDEX(MarketR!$1:$5400, 0, MATCH('Landing Page and Transaction'!S$2, MarketR!$1:$1, 0)), 0), MATCH('Landing Page and Transaction'!S$2, MarketR!$1:$1, 0)+1) ->  | T139: =INDEX(MarketR!$1:$5400, MATCH('Landing Page and Transaction'!$R139, INDEX(MarketR!$1:$5400, 0, MATCH('Landing Page and Transaction'!T$2, MarketR!$1:$1, 0)), 0), MATCH('Landing Page and Transaction'!T$2, MarketR!$1:$1, 0)+1) -> 
A140: =IF(B140="", "", GenerateID(B140)) -> برداشت_78310 | B140: برداشت | C140: =IF(B140="","",INDEX('دیده بان بازار'!B:B, MATCH(B140, 'دیده بان بازار'!A:A, 0))) ->  | D140: برداشت | E140: 1403/05/14 | H140: -1350000000 | I140: =IF(B140="","",INDEX('دیده بان بازار'!H:H, MATCH(B140, 'دیده بان بازار'!A:A, 0))) ->  | J140: =A140 -> برداشت_78310 | L140: -1350000000 | M140: 1403/05/14 | N140: 1396397184 | O140: =N140+L140 -> 46397183.56 | P140: برداشت مبلغ بابت قسط اول خانه | R140: =IF('Total Watch'!A136<>"",'Total Watch'!A136,"") -> X35 اتوماتیک-1402 | S140: =INDEX(MarketR!$1:$5400, MATCH('Landing Page and Transaction'!$R140, INDEX(MarketR!$1:$5400, 0, MATCH('Landing Page and Transaction'!S$2, MarketR!$1:$1, 0)), 0), MATCH('Landing Page and Transaction'!S$2, MarketR!$1:$1, 0)+1) ->  | T140: =INDEX(MarketR!$1:$5400, MATCH('Landing Page and Transaction'!$R140, INDEX(MarketR!$1:$5400, 0, MATCH('Landing Page and Transaction'!T$2, MarketR!$1:$1, 0)), 0), MATCH('Landing Page and Transaction'!T$2, MarketR!$1:$1, 0)+1) -> 
A141: =IF(B141="", "", GenerateID(B141)) -> حفاري_18750 | B141: حفاري | C141: =IF(B141="","",INDEX('دیده بان بازار'!B:B, MATCH(B141, 'دیده بان بازار'!A:A, 0))) -> حفاري شمال | D141: فروش | E141: 1403/05/15 | F141: 33729 | G141: 299 | H141: 99962232.55 | I141: =IF(B141="","",INDEX('دیده بان بازار'!H:H, MATCH(B141, 'دیده بان بازار'!A:A, 0))) -> 4024 | J141: حفاري_18750 | L141: 99962232.55 | M141: 1403/05/15 | N141: 46397183.56 | O141: 146359416.1 | R141: =IF('Total Watch'!A137<>"",'Total Watch'!A137,"") -> X35 اتوماتیک-1403 | S141: =INDEX(MarketR!$1:$5400, MATCH('Landing Page and Transaction'!$R141, INDEX(MarketR!$1:$5400, 0, MATCH('Landing Page and Transaction'!S$2, MarketR!$1:$1, 0)), 0), MATCH('Landing Page and Transaction'!S$2, MarketR!$1:$1, 0)+1) ->  | T141: =INDEX(MarketR!$1:$5400, MATCH('Landing Page and Transaction'!$R141, INDEX(MarketR!$1:$5400, 0, MATCH('Landing Page and Transaction'!T$2, MarketR!$1:$1, 0)), 0), MATCH('Landing Page and Transaction'!T$2, MarketR!$1:$1, 0)+1) -> 
A142: =IF(B142="", "", GenerateID(B142)) -> طخود 6028_83371 | B142: طخود 6028 | C142: =IF(B142="","",INDEX('دیده بان بازار'!B:B, MATCH(B142, 'دیده بان بازار'!A:A, 0))) ->  | D142: خرید | E142: 1403/05/16 | F142: 407000 | G142: 17 | H142: -69446833.28 | I142: =IF(B142="","",INDEX('دیده بان بازار'!H:H, MATCH(B142, 'دیده بان بازار'!A:A, 0))) ->  | J142: طخود 6028_83371 | L142: -69446833.28 | M142: 1403/05/16 | N142: 146359416.1 | O142: 76912582.83 | R142: =IF('Total Watch'!A138<>"",'Total Watch'!A138,"") -> X5 توربو 1500-1402 | S142: =INDEX(MarketR!$1:$5400, MATCH('Landing Page and Transaction'!$R142, INDEX(MarketR!$1:$5400, 0, MATCH('Landing Page and Transaction'!S$2, MarketR!$1:$1, 0)), 0), MATCH('Landing Page and Transaction'!S$2, MarketR!$1:$1, 0)+1) -> 1,500,000,000 تومان | T142: =INDEX(MarketR!$1:$5400, MATCH('Landing Page and Transaction'!$R142, INDEX(MarketR!$1:$5400, 0, MATCH('Landing Page and Transaction'!T$2, MarketR!$1:$1, 0)), 0), MATCH('Landing Page and Transaction'!T$2, MarketR!$1:$1, 0)+1) -> 
A143: =IF(B143="", "", GenerateID(B143)) -> وآفري_93880 | B143: وآفري | C143: =IF(B143="","",INDEX('دیده بان بازار'!B:B, MATCH(B143, 'دیده بان بازار'!A:A, 0))) -> بيمه كارآفرين | D143: خرید | E143: 1403/05/16 | F143: 50000 | G143: 255 | H143: -127973280 | I143: =IF(B143="","",INDEX('دیده بان بازار'!H:H, MATCH(B143, 'دیده بان بازار'!A:A, 0))) -> 2540 | J143: وآفري_93880 | L143: -127973280 | M143: 1403/05/16 | N143: 76912582.83 | O143: -51060697.17 | R143: =IF('Total Watch'!A139<>"",'Total Watch'!A139,"") -> X5 توربو 1500-1403 | S143: =INDEX(MarketR!$1:$5400, MATCH('Landing Page and Transaction'!$R143, INDEX(MarketR!$1:$5400, 0, MATCH('Landing Page and Transaction'!S$2, MarketR!$1:$1, 0)), 0), MATCH('Landing Page and Transaction'!S$2, MarketR!$1:$1, 0)+1) -> 1,600,000,000 تومان | T143: =INDEX(MarketR!$1:$5400, MATCH('Landing Page and Transaction'!$R143, INDEX(MarketR!$1:$5400, 0, MATCH('Landing Page and Transaction'!T$2, MarketR!$1:$1, 0)), 0), MATCH('Landing Page and Transaction'!T$2, MarketR!$1:$1, 0)+1) -> 
A144: =IF(B144="", "", GenerateID(B144)) -> افران_77462 | B144: افران | C144: =IF(B144="","",INDEX('دیده بان بازار'!B:B, MATCH(B144, 'دیده بان بازار'!A:A, 0))) -> صندوق س افرا نماد پايدار-ثابت | D144: فروش | E144: 1403/05/16 | F144: 7150 | G144: 2796 | H144: 198154756.8 | I144: =IF(B144="","",INDEX('دیده بان بازار'!H:H, MATCH(B144, 'دیده بان بازار'!A:A, 0))) -> 30524 | J144: افران_77462 | L144: 198154756.8 | M144: 1403/05/16 | N144: -51060697.17 | O144: 147094059.6 | R144: =IF('Total Watch'!A140<>"",'Total Watch'!A140,"") -> X55 پرو | S144: =INDEX(MarketR!$1:$5400, MATCH('Landing Page and Transaction'!$R144, INDEX(MarketR!$1:$5400, 0, MATCH('Landing Page and Transaction'!S$2, MarketR!$1:$1, 0)), 0), MATCH('Landing Page and Transaction'!S$2, MarketR!$1:$1, 0)+1) ->  | T144: =INDEX(MarketR!$1:$5400, MATCH('Landing Page and Transaction'!$R144, INDEX(MarketR!$1:$5400, 0, MATCH('Landing Page and Transaction'!T$2, MarketR!$1:$1, 0)), 0), MATCH('Landing Page and Transaction'!T$2, MarketR!$1:$1, 0)+1) -> 
A145: =IF(B145="", "", GenerateID(B145)) -> افران_77462 | B145: افران | C145: =IF(B145="","",INDEX('دیده بان بازار'!B:B, MATCH(B145, 'دیده بان بازار'!A:A, 0))) -> صندوق س افرا نماد پايدار-ثابت | D145: خرید | E145: 1403/05/16 | F145: 24009 | G145: 2797 | H145: -674024455.8 | I145: =IF(B145="","",INDEX('دیده بان بازار'!H:H, MATCH(B145, 'دیده بان بازار'!A:A, 0))) -> 30524 | J145: افران_77462 | L145: -674024455.8 | M145: 1403/05/16 | N145: 147094059.6 | O145: -526930396.2 | R145: =IF('Total Watch'!A141<>"",'Total Watch'!A141,"") -> Y5 پلاس-1402 | S145: =INDEX(MarketR!$1:$5400, MATCH('Landing Page and Transaction'!$R145, INDEX(MarketR!$1:$5400, 0, MATCH('Landing Page and Transaction'!S$2, MarketR!$1:$1, 0)), 0), MATCH('Landing Page and Transaction'!S$2, MarketR!$1:$1, 0)+1) -> 1,350,000,000 تومان | T145: =INDEX(MarketR!$1:$5400, MATCH('Landing Page and Transaction'!$R145, INDEX(MarketR!$1:$5400, 0, MATCH('Landing Page and Transaction'!T$2, MarketR!$1:$1, 0)), 0), MATCH('Landing Page and Transaction'!T$2, MarketR!$1:$1, 0)+1) -> 
A146: =IF(B146="", "", GenerateID(B146)) -> طهرم 6018_16992 | B146: طهرم 6018 | C146: =IF(B146="","",INDEX('دیده بان بازار'!B:B, MATCH(B146, 'دیده بان بازار'!A:A, 0))) ->  | D146: فروش | E146: 1403/05/22 | F146: 16000 | G146: 457 | H146: 72476544 | I146: =IF(B146="","",INDEX('دیده بان بازار'!H:H, MATCH(B146, 'دیده بان بازار'!A:A, 0))) ->  | J146: طهرم 6018_16992 | L146: 72476544 | M146: 1403/05/22 | N146: -526930396.2 | O146: -454453852.2 | R146: =IF('Total Watch'!A142<>"",'Total Watch'!A142,"") -> Yamaha Aerox155 1401 | S146: =INDEX(MarketR!$1:$5400, MATCH('Landing Page and Transaction'!$R146, INDEX(MarketR!$1:$5400, 0, MATCH('Landing Page and Transaction'!S$2, MarketR!$1:$1, 0)), 0), MATCH('Landing Page and Transaction'!S$2, MarketR!$1:$1, 0)+1) ->  | T146: =INDEX(MarketR!$1:$5400, MATCH('Landing Page and Transaction'!$R146, INDEX(MarketR!$1:$5400, 0, MATCH('Landing Page and Transaction'!T$2, MarketR!$1:$1, 0)), 0), MATCH('Landing Page and Transaction'!T$2, MarketR!$1:$1, 0)+1) -> 
A147: =IF(B147="", "", GenerateID(B147)) -> ضهرم 6016_24951 | B147: ضهرم 6016 | C147: =IF(B147="","",INDEX('دیده بان بازار'!B:B, MATCH(B147, 'دیده بان بازار'!A:A, 0))) ->  | D147: خرید | E147: 1403/05/23 | F147: 40000 | G147: 51 | H147: -20475724.8 | I147: =IF(B147="","",INDEX('دیده بان بازار'!H:H, MATCH(B147, 'دیده بان بازار'!A:A, 0))) ->  | J147: ضهرم 6016_24951 | L147: -20475724.8 | M147: 1403/05/23 | N147: -454453852.2 | O147: -474929577 | R147: =IF('Total Watch'!A143<>"",'Total Watch'!A143,"") -> Yamaha Aerox155 ABS 1401 | S147: =INDEX(MarketR!$1:$5400, MATCH('Landing Page and Transaction'!$R147, INDEX(MarketR!$1:$5400, 0, MATCH('Landing Page and Transaction'!S$2, MarketR!$1:$1, 0)), 0), MATCH('Landing Page and Transaction'!S$2, MarketR!$1:$1, 0)+1) ->  | T147: =INDEX(MarketR!$1:$5400, MATCH('Landing Page and Transaction'!$R147, INDEX(MarketR!$1:$5400, 0, MATCH('Landing Page and Transaction'!T$2, MarketR!$1:$1, 0)), 0), MATCH('Landing Page and Transaction'!T$2, MarketR!$1:$1, 0)+1) -> 
A148: =IF(B148="", "", GenerateID(B148)) -> افران_77462 | B148: افران | C148: =IF(B148="","",INDEX('دیده بان بازار'!B:B, MATCH(B148, 'دیده بان بازار'!A:A, 0))) -> صندوق س افرا نماد پايدار-ثابت | D148: فروش | E148: 1403/05/23 | F148: 2132 | G148: 2812 | H148: 59424263.81 | I148: =IF(B148="","",INDEX('دیده بان بازار'!H:H, MATCH(B148, 'دیده بان بازار'!A:A, 0))) -> 30524 | J148: افران_77462 | L148: 59424263.81 | M148: 1403/05/23 | N148: -474929577 | O148: -415505313.1 | R148: =IF('Total Watch'!A144<>"",'Total Watch'!A144,"") -> Yamaha GrandFilano 1401 | S148: =INDEX(MarketR!$1:$5400, MATCH('Landing Page and Transaction'!$R148, INDEX(MarketR!$1:$5400, 0, MATCH('Landing Page and Transaction'!S$2, MarketR!$1:$1, 0)), 0), MATCH('Landing Page and Transaction'!S$2, MarketR!$1:$1, 0)+1) ->  | T148: =INDEX(MarketR!$1:$5400, MATCH('Landing Page and Transaction'!$R148, INDEX(MarketR!$1:$5400, 0, MATCH('Landing Page and Transaction'!T$2, MarketR!$1:$1, 0)), 0), MATCH('Landing Page and Transaction'!T$2, MarketR!$1:$1, 0)+1) -> 
A149: =IF(B149="", "", GenerateID(B149)) -> ضهرم 6015_20492 | B149: ضهرم 6015 | C149: =IF(B149="","",INDEX('دیده بان بازار'!B:B, MATCH(B149, 'دیده بان بازار'!A:A, 0))) ->  | D149: خرید | E149: 1403/05/24 | F149: 38000 | G149: 168 | H149: -64076974.08 | I149: =IF(B149="","",INDEX('دیده بان بازار'!H:H, MATCH(B149, 'دیده بان بازار'!A:A, 0))) ->  | J149: ضهرم 6015_20492 | L149: -64076974.08 | M149: 1403/05/24 | N149: -415505313.1 | O149: -479582287.2 | R149: =IF('Total Watch'!A145<>"",'Total Watch'!A145,"") -> Yamaha MT25 1401 | S149: =INDEX(MarketR!$1:$5400, MATCH('Landing Page and Transaction'!$R149, INDEX(MarketR!$1:$5400, 0, MATCH('Landing Page and Transaction'!S$2, MarketR!$1:$1, 0)), 0), MATCH('Landing Page and Transaction'!S$2, MarketR!$1:$1, 0)+1) ->  | T149: =INDEX(MarketR!$1:$5400, MATCH('Landing Page and Transaction'!$R149, INDEX(MarketR!$1:$5400, 0, MATCH('Landing Page and Transaction'!T$2, MarketR!$1:$1, 0)), 0), MATCH('Landing Page and Transaction'!T$2, MarketR!$1:$1, 0)+1) -> 
A150: =IF(B150="", "", GenerateID(B150)) -> بورس_15333 | B150: بورس | C150: =IF(B150="","",INDEX('دیده بان بازار'!B:B, MATCH(B150, 'دیده بان بازار'!A:A, 0))) ->  | D150: خرید | E150: 1403/05/24 | F150: 11693 | G150: 395 | H150: -46358797.44 | I150: =IF(B150="","",INDEX('دیده بان بازار'!H:H, MATCH(B150, 'دیده بان بازار'!A:A, 0))) ->  | J150: بورس_15333 | L150: -46358797.44 | M150: 1403/05/24 | N150: -479582287.2 | O150: -525941084.7 | R150: =IF('Total Watch'!A146<>"",'Total Watch'!A146,"") -> Yamaha NMAX150 (KLS) 1401 | S150: =INDEX(MarketR!$1:$5400, MATCH('Landing Page and Transaction'!$R150, INDEX(MarketR!$1:$5400, 0, MATCH('Landing Page and Transaction'!S$2, MarketR!$1:$1, 0)), 0), MATCH('Landing Page and Transaction'!S$2, MarketR!$1:$1, 0)+1) ->  | T150: =INDEX(MarketR!$1:$5400, MATCH('Landing Page and Transaction'!$R150, INDEX(MarketR!$1:$5400, 0, MATCH('Landing Page and Transaction'!T$2, MarketR!$1:$1, 0)), 0), MATCH('Landing Page and Transaction'!T$2, MarketR!$1:$1, 0)+1) -> 
A151: =IF(B151="", "", GenerateID(B151)) -> طخود 6028_83371 | B151: طخود 6028 | C151: =IF(B151="","",INDEX('دیده بان بازار'!B:B, MATCH(B151, 'دیده بان بازار'!A:A, 0))) ->  | D151: فروش | E151: 1403/05/24 | F151: 387000 | G151: 8 | H151: 30687552 | I151: =IF(B151="","",INDEX('دیده بان بازار'!H:H, MATCH(B151, 'دیده بان بازار'!A:A, 0))) ->  | J151: طخود 6028_83371 | L151: 30687552 | M151: 1403/05/24 | N151: -525941084.7 | O151: -495253532.7 | R151: =IF('Total Watch'!A147<>"",'Total Watch'!A147,"") -> Yamaha NMAX150 1401 | S151: =INDEX(MarketR!$1:$5400, MATCH('Landing Page and Transaction'!$R151, INDEX(MarketR!$1:$5400, 0, MATCH('Landing Page and Transaction'!S$2, MarketR!$1:$1, 0)), 0), MATCH('Landing Page and Transaction'!S$2, MarketR!$1:$1, 0)+1) ->  | T151: =INDEX(MarketR!$1:$5400, MATCH('Landing Page and Transaction'!$R151, INDEX(MarketR!$1:$5400, 0, MATCH('Landing Page and Transaction'!T$2, MarketR!$1:$1, 0)), 0), MATCH('Landing Page and Transaction'!T$2, MarketR!$1:$1, 0)+1) -> 
A152: =IF(B152="", "", GenerateID(B152)) -> ضهرم 6016_24951 | B152: ضهرم 6016 | C152: =IF(B152="","",INDEX('دیده بان بازار'!B:B, MATCH(B152, 'دیده بان بازار'!A:A, 0))) ->  | D152: فروش | E152: 1403/05/24 | F152: 40000 | G152: 92 | H152: 36476160 | I152: =IF(B152="","",INDEX('دیده بان بازار'!H:H, MATCH(B152, 'دیده بان بازار'!A:A, 0))) ->  | J152: ضهرم 6016_24951 | L152: 36476160 | M152: 1403/05/24 | N152: -495253532.7 | O152: -458777372.7 | R152: =IF('Total Watch'!A148<>"",'Total Watch'!A148,"") -> Yamaha QBIX125 1401 | S152: =INDEX(MarketR!$1:$5400, MATCH('Landing Page and Transaction'!$R152, INDEX(MarketR!$1:$5400, 0, MATCH('Landing Page and Transaction'!S$2, MarketR!$1:$1, 0)), 0), MATCH('Landing Page and Transaction'!S$2, MarketR!$1:$1, 0)+1) ->  | T152: =INDEX(MarketR!$1:$5400, MATCH('Landing Page and Transaction'!$R152, INDEX(MarketR!$1:$5400, 0, MATCH('Landing Page and Transaction'!T$2, MarketR!$1:$1, 0)), 0), MATCH('Landing Page and Transaction'!T$2, MarketR!$1:$1, 0)+1) -> 
A153: =IF(B153="", "", GenerateID(B153)) -> ضخود 6028_74550 | B153: ضخود 6028 | C153: =IF(B153="","",INDEX('دیده بان بازار'!B:B, MATCH(B153, 'دیده بان بازار'!A:A, 0))) ->  | D153: خرید | E153: 1403/05/27 | F153: 1000000 | G153: 7 | H153: -70259840 | I153: =IF(B153="","",INDEX('دیده بان بازار'!H:H, MATCH(B153, 'دیده بان بازار'!A:A, 0))) ->  | J153: ضخود 6028_74550 | L153: -70259840 | M153: 1403/05/27 | N153: -458777372.7 | O153: -529037212.7 | R153: =IF('Total Watch'!A149<>"",'Total Watch'!A149,"") -> Yamaha R25 1401 | S153: =INDEX(MarketR!$1:$5400, MATCH('Landing Page and Transaction'!$R153, INDEX(MarketR!$1:$5400, 0, MATCH('Landing Page and Transaction'!S$2, MarketR!$1:$1, 0)), 0), MATCH('Landing Page and Transaction'!S$2, MarketR!$1:$1, 0)+1) ->  | T153: =INDEX(MarketR!$1:$5400, MATCH('Landing Page and Transaction'!$R153, INDEX(MarketR!$1:$5400, 0, MATCH('Landing Page and Transaction'!T$2, MarketR!$1:$1, 0)), 0), MATCH('Landing Page and Transaction'!T$2, MarketR!$1:$1, 0)+1) -> 
A154: =IF(B154="", "", GenerateID(B154)) -> ضستا 6018_78741 | B154: ضستا 6018 | C154: =IF(B154="","",INDEX('دیده بان بازار'!B:B, MATCH(B154, 'دیده بان بازار'!A:A, 0))) ->  | D154: خرید | E154: 1403/05/27 | F154: 684000 | G154: 11 | H154: -75519290.88 | I154: =IF(B154="","",INDEX('دیده بان بازار'!H:H, MATCH(B154, 'دیده بان بازار'!A:A, 0))) ->  | J154: ضستا 6018_78741 | L154: -75519290.88 | M154: 1403/05/27 | N154: -529037212.7 | O154: -604556503.5 | R154: =IF('Total Watch'!A150<>"",'Total Watch'!A150,"") -> Yamaha XMAX250 1401 | S154: =INDEX(MarketR!$1:$5400, MATCH('Landing Page and Transaction'!$R154, INDEX(MarketR!$1:$5400, 0, MATCH('Landing Page and Transaction'!S$2, MarketR!$1:$1, 0)), 0), MATCH('Landing Page and Transaction'!S$2, MarketR!$1:$1, 0)+1) ->  | T154: =INDEX(MarketR!$1:$5400, MATCH('Landing Page and Transaction'!$R154, INDEX(MarketR!$1:$5400, 0, MATCH('Landing Page and Transaction'!T$2, MarketR!$1:$1, 0)), 0), MATCH('Landing Page and Transaction'!T$2, MarketR!$1:$1, 0)+1) -> 
A155: =IF(B155="", "", GenerateID(B155)) -> غگرجي_63691 | B155: غگرجي | C155: =IF(B155="","",INDEX('دیده بان بازار'!B:B, MATCH(B155, 'دیده بان بازار'!A:A, 0))) -> بيسكويت‌ گرجي‌ | D155: خرید | E155: 1403/05/27 | F155: 15241 | G155: 172 | H155: -26311828.3 | I155: =IF(B155="","",INDEX('دیده بان بازار'!H:H, MATCH(B155, 'دیده بان بازار'!A:A, 0))) -> 1795 | J155: غگرجي_63691 | L155: -26311828.3 | M155: 1403/05/27 | N155: -604556503.5 | O155: -630868331.8 | R155: =IF('Total Watch'!A151<>"",'Total Watch'!A151,"") -> Yamaha XSR 155 1401 | S155: =INDEX(MarketR!$1:$5400, MATCH('Landing Page and Transaction'!$R155, INDEX(MarketR!$1:$5400, 0, MATCH('Landing Page and Transaction'!S$2, MarketR!$1:$1, 0)), 0), MATCH('Landing Page and Transaction'!S$2, MarketR!$1:$1, 0)+1) ->  | T155: =INDEX(MarketR!$1:$5400, MATCH('Landing Page and Transaction'!$R155, INDEX(MarketR!$1:$5400, 0, MATCH('Landing Page and Transaction'!T$2, MarketR!$1:$1, 0)), 0), MATCH('Landing Page and Transaction'!T$2, MarketR!$1:$1, 0)+1) -> 
A156: =IF(B156="", "", GenerateID(B156)) -> افران_77462 | B156: افران | C156: =IF(B156="","",INDEX('دیده بان بازار'!B:B, MATCH(B156, 'دیده بان بازار'!A:A, 0))) -> صندوق س افرا نماد پايدار-ثابت | D156: فروش | E156: 1403/05/27 | F156: 3600 | G156: 2819 | H156: 100590940.8 | I156: =IF(B156="","",INDEX('دیده بان بازار'!H:H, MATCH(B156, 'دیده بان بازار'!A:A, 0))) -> 30524 | J156: افران_77462 | L156: 100590940.8 | M156: 1403/05/27 | N156: -630868331.8 | O156: -530277391 | R156: =IF('Total Watch'!A152<>"",'Total Watch'!A152,"") -> Z2 150 U 1401 | S156: =INDEX(MarketR!$1:$5400, MATCH('Landing Page and Transaction'!$R156, INDEX(MarketR!$1:$5400, 0, MATCH('Landing Page and Transaction'!S$2, MarketR!$1:$1, 0)), 0), MATCH('Landing Page and Transaction'!S$2, MarketR!$1:$1, 0)+1) ->  | T156: =INDEX(MarketR!$1:$5400, MATCH('Landing Page and Transaction'!$R156, INDEX(MarketR!$1:$5400, 0, MATCH('Landing Page and Transaction'!T$2, MarketR!$1:$1, 0)), 0), MATCH('Landing Page and Transaction'!T$2, MarketR!$1:$1, 0)+1) -> 
A157: =IF(B157="", "", GenerateID(B157)) -> ضخود 6028_74550 | B157: ضخود 6028 | C157: =IF(B157="","",INDEX('دیده بان بازار'!B:B, MATCH(B157, 'دیده بان بازار'!A:A, 0))) ->  | D157: فروش | E157: 1403/05/29 | F157: 1000000 | G157: 2 | H157: 19824000 | I157: =IF(B157="","",INDEX('دیده بان بازار'!H:H, MATCH(B157, 'دیده بان بازار'!A:A, 0))) ->  | J157: ضخود 6028_74550 | L157: 19824000 | M157: 1403/05/29 | N157: -530277391 | O157: -510453391 | R157: =IF('Total Watch'!A153<>"",'Total Watch'!A153,"") -> Z4 249 R 1401 | S157: =INDEX(MarketR!$1:$5400, MATCH('Landing Page and Transaction'!$R157, INDEX(MarketR!$1:$5400, 0, MATCH('Landing Page and Transaction'!S$2, MarketR!$1:$1, 0)), 0), MATCH('Landing Page and Transaction'!S$2, MarketR!$1:$1, 0)+1) ->  | T157: =INDEX(MarketR!$1:$5400, MATCH('Landing Page and Transaction'!$R157, INDEX(MarketR!$1:$5400, 0, MATCH('Landing Page and Transaction'!T$2, MarketR!$1:$1, 0)), 0), MATCH('Landing Page and Transaction'!T$2, MarketR!$1:$1, 0)+1) -> 
A158: =IF(B158="", "", GenerateID(B158)) -> ضهرم 6015_20492 | B158: ضهرم 6015 | C158: =IF(B158="","",INDEX('دیده بان بازار'!B:B, MATCH(B158, 'دیده بان بازار'!A:A, 0))) ->  | D158: فروش | E158: 1403/05/29 | F158: 38000 | G158: 199 | H158: 74954544 | I158: =IF(B158="","",INDEX('دیده بان بازار'!H:H, MATCH(B158, 'دیده بان بازار'!A:A, 0))) ->  | J158: ضهرم 6015_20492 | L158: 74954544 | M158: 1403/05/29 | N158: -510453391 | O158: -435498847 | R158: =IF('Total Watch'!A154<>"",'Total Watch'!A154,"") -> Z4 249 T 1401 | S158: =INDEX(MarketR!$1:$5400, MATCH('Landing Page and Transaction'!$R158, INDEX(MarketR!$1:$5400, 0, MATCH('Landing Page and Transaction'!S$2, MarketR!$1:$1, 0)), 0), MATCH('Landing Page and Transaction'!S$2, MarketR!$1:$1, 0)+1) ->  | T158: =INDEX(MarketR!$1:$5400, MATCH('Landing Page and Transaction'!$R158, INDEX(MarketR!$1:$5400, 0, MATCH('Landing Page and Transaction'!T$2, MarketR!$1:$1, 0)), 0), MATCH('Landing Page and Transaction'!T$2, MarketR!$1:$1, 0)+1) -> 
A159: =IF(B159="", "", GenerateID(B159)) -> ضستا 6018_78741 | B159: ضستا 6018 | C159: =IF(B159="","",INDEX('دیده بان بازار'!B:B, MATCH(B159, 'دیده بان بازار'!A:A, 0))) ->  | D159: فروش | E159: 1403/05/29 | F159: 684000 | G159: 8 | H159: 54238464 | I159: =IF(B159="","",INDEX('دیده بان بازار'!H:H, MATCH(B159, 'دیده بان بازار'!A:A, 0))) ->  | J159: ضستا 6018_78741 | L159: 54238464 | M159: 1403/05/29 | N159: -435498847 | O159: -381260383 | R159: =IF('Total Watch'!A155<>"",'Total Watch'!A155,"") -> iTango 1401 | S159: =INDEX(MarketR!$1:$5400, MATCH('Landing Page and Transaction'!$R159, INDEX(MarketR!$1:$5400, 0, MATCH('Landing Page and Transaction'!S$2, MarketR!$1:$1, 0)), 0), MATCH('Landing Page and Transaction'!S$2, MarketR!$1:$1, 0)+1) ->  | T159: =INDEX(MarketR!$1:$5400, MATCH('Landing Page and Transaction'!$R159, INDEX(MarketR!$1:$5400, 0, MATCH('Landing Page and Transaction'!T$2, MarketR!$1:$1, 0)), 0), MATCH('Landing Page and Transaction'!T$2, MarketR!$1:$1, 0)+1) -> 
A160: =IF(B160="", "", GenerateID(B160)) -> زيتون_27806 | B160: زيتون | C160: =IF(B160="","",INDEX('دیده بان بازار'!B:B, MATCH(B160, 'دیده بان بازار'!A:A, 0))) -> صندوق س زيتون نماد پايا- مختلط | D160: خرید | E160: 1403/05/29 | F160: 3538 | G160: 2147 | H160: -76242826.71 | I160: =IF(B160="","",INDEX('دیده بان بازار'!H:H, MATCH(B160, 'دیده بان بازار'!A:A, 0))) -> 24000 | J160: زيتون_27806 | L160: -76242826.71 | M160: 1403/05/29 | N160: -381260383 | O160: -457503209.8 | R160: =IF('Total Watch'!A156<>"",'Total Watch'!A156,"") -> iTank 1401 | S160: =INDEX(MarketR!$1:$5400, MATCH('Landing Page and Transaction'!$R160, INDEX(MarketR!$1:$5400, 0, MATCH('Landing Page and Transaction'!S$2, MarketR!$1:$1, 0)), 0), MATCH('Landing Page and Transaction'!S$2, MarketR!$1:$1, 0)+1) ->  | T160: =INDEX(MarketR!$1:$5400, MATCH('Landing Page and Transaction'!$R160, INDEX(MarketR!$1:$5400, 0, MATCH('Landing Page and Transaction'!T$2, MarketR!$1:$1, 0)), 0), MATCH('Landing Page and Transaction'!T$2, MarketR!$1:$1, 0)+1) -> 
A161: =IF(B161="", "", GenerateID(B161)) -> زيتون_27806 | B161: زيتون | C161: =IF(B161="","",INDEX('دیده بان بازار'!B:B, MATCH(B161, 'دیده بان بازار'!A:A, 0))) -> صندوق س زيتون نماد پايا- مختلط | D161: خرید | E161: 1403/05/29 | F161: 3946 | G161: 2146 | H161: -84995496.47 | I161: =IF(B161="","",INDEX('دیده بان بازار'!H:H, MATCH(B161, 'دیده بان بازار'!A:A, 0))) -> 24000 | J161: زيتون_27806 | L161: =H161 -> -84995496.47 | M161: =E161 -> 1403/05/29 | N161: =O160 -> -457503209.8 | O161: -542498706.2 | R161: =IF('Total Watch'!A157<>"",'Total Watch'!A157,"") -> y7 پلاس-1402 | S161: =INDEX(MarketR!$1:$5400, MATCH('Landing Page and Transaction'!$R161, INDEX(MarketR!$1:$5400, 0, MATCH('Landing Page and Transaction'!S$2, MarketR!$1:$1, 0)), 0), MATCH('Landing Page and Transaction'!S$2, MarketR!$1:$1, 0)+1) -> 1,650,000,000 تومان | T161: =INDEX(MarketR!$1:$5400, MATCH('Landing Page and Transaction'!$R161, INDEX(MarketR!$1:$5400, 0, MATCH('Landing Page and Transaction'!T$2, MarketR!$1:$1, 0)), 0), MATCH('Landing Page and Transaction'!T$2, MarketR!$1:$1, 0)+1) ->  | U161: =IF(VALUE(CLEAN(TRIM(SUBSTITUTE(SUBSTITUTE(SUBSTITUTE(SUBSTITUTE(T161,"تومان",""),"$",""),"ریال",""),",",""))))=0,"بدون داده",IFERROR((VALUE(CLEAN(TRIM(SUBSTITUTE(SUBSTITUTE(SUBSTITUTE(SUBSTITUTE(T161,"تومان",""),"$",""),"ریال",""),",",""))))-VALUE(CLEAN(TRIM(SUBSTITUTE(SUBSTITUTE(SUBSTITUTE(SUBSTITUTE(S161,"تومان",""),"$",""),"ریال",""),",","")))))/VALUE(CLEAN(TRIM(SUBSTITUTE(SUBSTITUTE(SUBSTITUTE(SUBSTITUTE(S161,"تومان",""),"$",""),"ریال",""),",","")))),"تعریف نشده")) -> 
A162: =IF(B162="", "", GenerateID(B162)) -> واریز_99145 | B162: واریز | C162: =IF(B162="","",INDEX('دیده بان بازار'!B:B, MATCH(B162, 'دیده بان بازار'!A:A, 0))) ->  | D162: واریز | E162: 1403/06/02 | H162: 1190000000 | I162: =IF(B162="","",INDEX('دیده بان بازار'!H:H, MATCH(B162, 'دیده بان بازار'!A:A, 0))) ->  | J162: واریز_99145 | L162: 1190000000 | M162: 1403/06/02 | N162: -542498706.2 | O162: 647501293.8 | P162: واریز مبلغ - وام | R162: =IF('Total Watch'!A158<>"",'Total Watch'!A158,"") -> y7 پلاس-1403 | S162: =INDEX(MarketR!$1:$5400, MATCH('Landing Page and Transaction'!$R162, INDEX(MarketR!$1:$5400, 0, MATCH('Landing Page and Transaction'!S$2, MarketR!$1:$1, 0)), 0), MATCH('Landing Page and Transaction'!S$2, MarketR!$1:$1, 0)+1) ->  | T162: =INDEX(MarketR!$1:$5400, MATCH('Landing Page and Transaction'!$R162, INDEX(MarketR!$1:$5400, 0, MATCH('Landing Page and Transaction'!T$2, MarketR!$1:$1, 0)), 0), MATCH('Landing Page and Transaction'!T$2, MarketR!$1:$1, 0)+1) -> 
A163: =IF(B163="", "", GenerateID(B163)) -> افران_77462 | B163: افران | C163: =IF(B163="","",INDEX('دیده بان بازار'!B:B, MATCH(B163, 'دیده بان بازار'!A:A, 0))) -> صندوق س افرا نماد پايدار-ثابت | D163: خرید | E163: 1403/06/03 | F163: 41948 | G163: 2836 | H163: -1194061243 | I163: =IF(B163="","",INDEX('دیده بان بازار'!H:H, MATCH(B163, 'دیده بان بازار'!A:A, 0))) -> 30524 | J163: افران_77462 | L163: -1194061243 | M163: 1403/06/03 | N163: 647501293.8 | O163: -546559949.5 | R163: =IF('Total Watch'!A159<>"",'Total Watch'!A159,"") -> آ س پ | S163: =INDEX(MarketR!$1:$5400, MATCH('Landing Page and Transaction'!$R163, INDEX(MarketR!$1:$5400, 0, MATCH('Landing Page and Transaction'!S$2, MarketR!$1:$1, 0)), 0), MATCH('Landing Page and Transaction'!S$2, MarketR!$1:$1, 0)+1) -> 17070 | T163: =INDEX(MarketR!$1:$5400, MATCH('Landing Page and Transaction'!$R163, INDEX(MarketR!$1:$5400, 0, MATCH('Landing Page and Transaction'!T$2, MarketR!$1:$1, 0)), 0), MATCH('Landing Page and Transaction'!T$2, MarketR!$1:$1, 0)+1) -> 
A164: =IF(B164="", "", GenerateID(B164)) -> افران_77462 | B164: افران | C164: =IF(B164="","",INDEX('دیده بان بازار'!B:B, MATCH(B164, 'دیده بان بازار'!A:A, 0))) -> صندوق س افرا نماد پايدار-ثابت | D164: فروش | E164: 1403/06/06 | F164: 10550 | G164: 2843 | H164: =IF(OR(D164="خرید", D164="برداشت", D164="سود"), -G164*F164*(1 + 0.003712) * 10, IF(OR(D164="فروش", D164="واریز"), G164*F164*(1 - 0.0088) * 10, 0)) -> 297297058.8 | I164: =IF(B164="","",INDEX('دیده بان بازار'!H:H, MATCH(B164, 'دیده بان بازار'!A:A, 0))) -> 30524 | J164: افران_77462 | L164: 297297058.8 | M164: 1403/06/06 | N164: -546559949.5 | O164: -249262890.7 | R164: =IF('Total Watch'!A160<>"",'Total Watch'!A160,"") -> آ س پ | S164: =INDEX(MarketR!$1:$5400, MATCH('Landing Page and Transaction'!$R164, INDEX(MarketR!$1:$5400, 0, MATCH('Landing Page and Transaction'!S$2, MarketR!$1:$1, 0)), 0), MATCH('Landing Page and Transaction'!S$2, MarketR!$1:$1, 0)+1) -> 17070 | T164: =INDEX(MarketR!$1:$5400, MATCH('Landing Page and Transaction'!$R164, INDEX(MarketR!$1:$5400, 0, MATCH('Landing Page and Transaction'!T$2, MarketR!$1:$1, 0)), 0), MATCH('Landing Page and Transaction'!T$2, MarketR!$1:$1, 0)+1) -> 
A165: =IF(B165="", "", GenerateID(B165)) -> افران_77462 | B165: افران | C165: =IF(B165="","",INDEX('دیده بان بازار'!B:B, MATCH(B165, 'دیده بان بازار'!A:A, 0))) -> صندوق س افرا نماد پايدار-ثابت | D165: خرید | E165: 1403/06/11 | F165: 10515 | G165: 2855 | H165: -301317604.5 | I165: =IF(B165="","",INDEX('دیده بان بازار'!H:H, MATCH(B165, 'دیده بان بازار'!A:A, 0))) -> 30524 | J165: افران_77462 | L165: -301317604.5 | M165: 1403/06/11 | N165: -249262890.7 | O165: -550580495.2 | R165: =IF('Total Watch'!A161<>"",'Total Watch'!A161,"") -> آباد | S165: =INDEX(MarketR!$1:$5400, MATCH('Landing Page and Transaction'!$R165, INDEX(MarketR!$1:$5400, 0, MATCH('Landing Page and Transaction'!S$2, MarketR!$1:$1, 0)), 0), MATCH('Landing Page and Transaction'!S$2, MarketR!$1:$1, 0)+1) -> 1020 | T165: =INDEX(MarketR!$1:$5400, MATCH('Landing Page and Transaction'!$R165, INDEX(MarketR!$1:$5400, 0, MATCH('Landing Page and Transaction'!T$2, MarketR!$1:$1, 0)), 0), MATCH('Landing Page and Transaction'!T$2, MarketR!$1:$1, 0)+1) -> 
A166: =IF(B166="", "", GenerateID(B166)) -> افران_77462 | B166: افران | C166: =IF(B166="","",INDEX('دیده بان بازار'!B:B, MATCH(B166, 'دیده بان بازار'!A:A, 0))) -> صندوق س افرا نماد پايدار-ثابت | D166: خرید | E166: 1403/06/17 | F166: 5316 | G166: 2866 | H166: -152922107.6 | I166: =IF(B166="","",INDEX('دیده بان بازار'!H:H, MATCH(B166, 'دیده بان بازار'!A:A, 0))) -> 30524 | J166: افران_77462 | L166: -152922107.6 | M166: 1403/06/17 | N166: -550580495.2 | O166: -703502602.7 | R166: =IF('Total Watch'!A162<>"",'Total Watch'!A162,"") -> آباد | S166: =INDEX(MarketR!$1:$5400, MATCH('Landing Page and Transaction'!$R166, INDEX(MarketR!$1:$5400, 0, MATCH('Landing Page and Transaction'!S$2, MarketR!$1:$1, 0)), 0), MATCH('Landing Page and Transaction'!S$2, MarketR!$1:$1, 0)+1) -> 1020 | T166: =INDEX(MarketR!$1:$5400, MATCH('Landing Page and Transaction'!$R166, INDEX(MarketR!$1:$5400, 0, MATCH('Landing Page and Transaction'!T$2, MarketR!$1:$1, 0)), 0), MATCH('Landing Page and Transaction'!T$2, MarketR!$1:$1, 0)+1) -> 
A167: =IF(B167="", "", GenerateID(B167)) -> سپيدار_87482 | B167: سپيدار | C167: =IF(B167="","",INDEX('دیده بان بازار'!B:B, MATCH(B167, 'دیده بان بازار'!A:A, 0))) -> سپيدار سيستم آسيا | D167: خرید | E167: 1403/06/17 | F167: 302 | G167: 13190 | H167: -39981663.07 | I167: =IF(B167="","",INDEX('دیده بان بازار'!H:H, MATCH(B167, 'دیده بان بازار'!A:A, 0))) -> 149400 | J167: سپيدار_87482 | L167: -39981663.07 | M167: 1403/06/17 | N167: -703502602.7 | O167: -743484265.8 | R167: =IF('Total Watch'!A163<>"",'Total Watch'!A163,"") -> آبشده نقدی | S167: =INDEX(MarketR!$1:$5400, MATCH('Landing Page and Transaction'!$R167, INDEX(MarketR!$1:$5400, 0, MATCH('Landing Page and Transaction'!S$2, MarketR!$1:$1, 0)), 0), MATCH('Landing Page and Transaction'!S$2, MarketR!$1:$1, 0)+1) -> 161210000 | T167: =INDEX(MarketR!$1:$5400, MATCH('Landing Page and Transaction'!$R167, INDEX(MarketR!$1:$5400, 0, MATCH('Landing Page and Transaction'!T$2, MarketR!$1:$1, 0)), 0), MATCH('Landing Page and Transaction'!T$2, MarketR!$1:$1, 0)+1) -> 
A168: =IF(B168="", "", GenerateID(B168)) -> طهرم7026_13958 | B168: طهرم7026 | C168: =IF(B168="","",INDEX('دیده بان بازار'!B:B, MATCH(B168, 'دیده بان بازار'!A:A, 0))) ->  | D168: خرید | E168: 1403/06/17 | F168: 225000 | G168: 135 | H168: -304288090 | I168: =IF(B168="","",INDEX('دیده بان بازار'!H:H, MATCH(B168, 'دیده بان بازار'!A:A, 0))) ->  | J168: طهرم7026_13958 | L168: -304288090 | M168: 1403/06/17 | N168: -743484265.8 | O168: -1047772356 | R168: =IF('Total Watch'!A164<>"",'Total Watch'!A164,"") -> آبنوس | S168: =INDEX(MarketR!$1:$5400, MATCH('Landing Page and Transaction'!$R168, INDEX(MarketR!$1:$5400, 0, MATCH('Landing Page and Transaction'!S$2, MarketR!$1:$1, 0)), 0), MATCH('Landing Page and Transaction'!S$2, MarketR!$1:$1, 0)+1) -> 10509 | T168: =INDEX(MarketR!$1:$5400, MATCH('Landing Page and Transaction'!$R168, INDEX(MarketR!$1:$5400, 0, MATCH('Landing Page and Transaction'!T$2, MarketR!$1:$1, 0)), 0), MATCH('Landing Page and Transaction'!T$2, MarketR!$1:$1, 0)+1) -> 
A169: =IF(B169="", "", GenerateID(B169)) -> ضخود7108_83221 | B169: ضخود7108 | C169: =IF(B169="","",INDEX('دیده بان بازار'!B:B, MATCH(B169, 'دیده بان بازار'!A:A, 0))) ->  | D169: خرید | E169: 1403/06/17 | F169: 780000 | G169: 13 | H169: -106970040 | I169: =IF(B169="","",INDEX('دیده بان بازار'!H:H, MATCH(B169, 'دیده بان بازار'!A:A, 0))) ->  | J169: ضخود7108_83221 | L169: -106970040 | M169: 1403/06/17 | N169: -1047772356 | O169: -1154742396 | R169: =IF('Total Watch'!A165<>"",'Total Watch'!A165,"") -> آبنوس | S169: =INDEX(MarketR!$1:$5400, MATCH('Landing Page and Transaction'!$R169, INDEX(MarketR!$1:$5400, 0, MATCH('Landing Page and Transaction'!S$2, MarketR!$1:$1, 0)), 0), MATCH('Landing Page and Transaction'!S$2, MarketR!$1:$1, 0)+1) -> 10509 | T169: =INDEX(MarketR!$1:$5400, MATCH('Landing Page and Transaction'!$R169, INDEX(MarketR!$1:$5400, 0, MATCH('Landing Page and Transaction'!T$2, MarketR!$1:$1, 0)), 0), MATCH('Landing Page and Transaction'!T$2, MarketR!$1:$1, 0)+1) -> 
A170: =IF(B170="", "", GenerateID(B170)) -> ضهرم7025_18337 | B170: ضهرم7025 | C170: =IF(B170="","",INDEX('دیده بان بازار'!B:B, MATCH(B170, 'دیده بان بازار'!A:A, 0))) ->  | D170: خرید | E170: 1403/06/17 | F170: 112000 | G170: 182 | H170: -205083010 | I170: =IF(B170="","",INDEX('دیده بان بازار'!H:H, MATCH(B170, 'دیده بان بازار'!A:A, 0))) ->  | J170: ضهرم7025_18337 | L170: -205083010 | M170: 1403/06/17 | N170: -1154742396 | O170: -1359825406 | R170: =IF('Total Watch'!A166<>"",'Total Watch'!A166,"") -> آبين | S170: =INDEX(MarketR!$1:$5400, MATCH('Landing Page and Transaction'!$R170, INDEX(MarketR!$1:$5400, 0, MATCH('Landing Page and Transaction'!S$2, MarketR!$1:$1, 0)), 0), MATCH('Landing Page and Transaction'!S$2, MarketR!$1:$1, 0)+1) -> 2634 | T170: =INDEX(MarketR!$1:$5400, MATCH('Landing Page and Transaction'!$R170, INDEX(MarketR!$1:$5400, 0, MATCH('Landing Page and Transaction'!T$2, MarketR!$1:$1, 0)), 0), MATCH('Landing Page and Transaction'!T$2, MarketR!$1:$1, 0)+1) -> 
A171: =IF(B171="", "", GenerateID(B171)) -> بسويچ_55690 | B171: بسويچ | C171: =IF(B171="","",INDEX('دیده بان بازار'!B:B, MATCH(B171, 'دیده بان بازار'!A:A, 0))) -> پارس‌سويچ‌ | D171: فروش | E171: 1403/06/17 | F171: 22871 | G171: 459 | H171: =IF(OR(D171="خرید", D171="برداشت", D171="سود"), -G171*F171*(1 + 0.003712) * 10, IF(OR(D171="فروش", D171="واریز"), G171*F171*(1 - 0.0088) * 10, 0)) -> 104054084.6 | I171: =IF(B171="","",INDEX('دیده بان بازار'!H:H, MATCH(B171, 'دیده بان بازار'!A:A, 0))) -> 5290 | J171: بسويچ_55690 | L171: 104054084.6 | M171: 1403/06/17 | N171: -1359825406 | O171: -1255771321 | R171: =IF('Total Watch'!A167<>"",'Total Watch'!A167,"") -> آبين | S171: =INDEX(MarketR!$1:$5400, MATCH('Landing Page and Transaction'!$R171, INDEX(MarketR!$1:$5400, 0, MATCH('Landing Page and Transaction'!S$2, MarketR!$1:$1, 0)), 0), MATCH('Landing Page and Transaction'!S$2, MarketR!$1:$1, 0)+1) -> 2634 | T171: =INDEX(MarketR!$1:$5400, MATCH('Landing Page and Transaction'!$R171, INDEX(MarketR!$1:$5400, 0, MATCH('Landing Page and Transaction'!T$2, MarketR!$1:$1, 0)), 0), MATCH('Landing Page and Transaction'!T$2, MarketR!$1:$1, 0)+1) -> 
A172: =IF(B172="", "", GenerateID(B172)) -> افران_77462 | B172: افران | C172: =IF(B172="","",INDEX('دیده بان بازار'!B:B, MATCH(B172, 'دیده بان بازار'!A:A, 0))) -> صندوق س افرا نماد پايدار-ثابت | D172: فروش | E172: 1403/06/17 | F172: 33141 | G172: 2866 | H172: 941462634.7 | I172: =IF(B172="","",INDEX('دیده بان بازار'!H:H, MATCH(B172, 'دیده بان بازار'!A:A, 0))) -> 30524 | J172: =A172 -> افران_77462 | L172: 941462634.7 | M172: 1403/06/17 | N172: -1255771321 | O172: =N172+L172 -> -314308686.5 | R172: =IF('Total Watch'!A168<>"",'Total Watch'!A168,"") -> آتيمس | S172: =INDEX(MarketR!$1:$5400, MATCH('Landing Page and Transaction'!$R172, INDEX(MarketR!$1:$5400, 0, MATCH('Landing Page and Transaction'!S$2, MarketR!$1:$1, 0)), 0), MATCH('Landing Page and Transaction'!S$2, MarketR!$1:$1, 0)+1) -> 321272 | T172: =INDEX(MarketR!$1:$5400, MATCH('Landing Page and Transaction'!$R172, INDEX(MarketR!$1:$5400, 0, MATCH('Landing Page and Transaction'!T$2, MarketR!$1:$1, 0)), 0), MATCH('Landing Page and Transaction'!T$2, MarketR!$1:$1, 0)+1) -> 
A173: =IF(B173="", "", GenerateID(B173)) -> برداشت_78310 | B173: برداشت | C173: =IF(B173="","",INDEX('دیده بان بازار'!B:B, MATCH(B173, 'دیده بان بازار'!A:A, 0))) ->  | D173: برداشت | E173: 1403/06/18 | H173: -245000000 | I173: =IF(B173="","",INDEX('دیده بان بازار'!H:H, MATCH(B173, 'دیده بان بازار'!A:A, 0))) ->  | J173: برداشت_78310 | L173: -245000000 | M173: 1403/06/18 | N173: -314308686.5 | O173: -559308686.5 | P173: بابت سرمایه گذاری در کرادفاندینگ | R173: =IF('Total Watch'!A169<>"",'Total Watch'!A169,"") -> آتيمس | S173: =INDEX(MarketR!$1:$5400, MATCH('Landing Page and Transaction'!$R173, INDEX(MarketR!$1:$5400, 0, MATCH('Landing Page and Transaction'!S$2, MarketR!$1:$1, 0)), 0), MATCH('Landing Page and Transaction'!S$2, MarketR!$1:$1, 0)+1) -> 321272 | T173: =INDEX(MarketR!$1:$5400, MATCH('Landing Page and Transaction'!$R173, INDEX(MarketR!$1:$5400, 0, MATCH('Landing Page and Transaction'!T$2, MarketR!$1:$1, 0)), 0), MATCH('Landing Page and Transaction'!T$2, MarketR!$1:$1, 0)+1) -> 
A174: =IF(B174="", "", GenerateID(B174)) -> بزاگرس_78025 | B174: بزاگرس | C174: =IF(B174="","",INDEX('دیده بان بازار'!B:B, MATCH(B174, 'دیده بان بازار'!A:A, 0))) -> نيروگاه زاگرس كوثر | D174: خرید | E174: 1403/06/18 | F174: 24030 | G174: 449 | H174: -108295205.1 | I174: =IF(B174="","",INDEX('دیده بان بازار'!H:H, MATCH(B174, 'دیده بان بازار'!A:A, 0))) -> 4482 | J174: بزاگرس_78025 | L174: -108295205.1 | M174: 1403/06/18 | N174: -559308686.5 | O174: -667603891.7 | R174: =IF('Total Watch'!A170<>"",'Total Watch'!A170,"") -> آتيه ملت | S174: =INDEX(MarketR!$1:$5400, MATCH('Landing Page and Transaction'!$R174, INDEX(MarketR!$1:$5400, 0, MATCH('Landing Page and Transaction'!S$2, MarketR!$1:$1, 0)), 0), MATCH('Landing Page and Transaction'!S$2, MarketR!$1:$1, 0)+1) -> 10949 | T174: =INDEX(MarketR!$1:$5400, MATCH('Landing Page and Transaction'!$R174, INDEX(MarketR!$1:$5400, 0, MATCH('Landing Page and Transaction'!T$2, MarketR!$1:$1, 0)), 0), MATCH('Landing Page and Transaction'!T$2, MarketR!$1:$1, 0)+1) -> 
A175: =IF(B175="", "", GenerateID(B175)) -> كقزوي_69530 | B175: كقزوي | C175: =IF(B175="","",INDEX('دیده بان بازار'!B:B, MATCH(B175, 'دیده بان بازار'!A:A, 0))) -> شيشه‌ قزوين‌ | D175: خرید | E175: 1403/06/18 | F175: 200651 | G175: 117 | H175: -235633105.3 | I175: =IF(B175="","",INDEX('دیده بان بازار'!H:H, MATCH(B175, 'دیده بان بازار'!A:A, 0))) -> 1165 | J175: كقزوي_69530 | L175: -235633105.3 | M175: 1403/06/18 | N175: -667603891.7 | O175: -903236997 | R175: =IF('Total Watch'!A171<>"",'Total Watch'!A171,"") -> آتيه ملت | S175: =INDEX(MarketR!$1:$5400, MATCH('Landing Page and Transaction'!$R175, INDEX(MarketR!$1:$5400, 0, MATCH('Landing Page and Transaction'!S$2, MarketR!$1:$1, 0)), 0), MATCH('Landing Page and Transaction'!S$2, MarketR!$1:$1, 0)+1) -> 10949 | T175: =INDEX(MarketR!$1:$5400, MATCH('Landing Page and Transaction'!$R175, INDEX(MarketR!$1:$5400, 0, MATCH('Landing Page and Transaction'!T$2, MarketR!$1:$1, 0)), 0), MATCH('Landing Page and Transaction'!T$2, MarketR!$1:$1, 0)+1) -> 
A176: =IF(B176="", "", GenerateID(B176)) -> وشمال_44060 | B176: وشمال | C176: =IF(B176="","",INDEX('دیده بان بازار'!B:B, MATCH(B176, 'دیده بان بازار'!A:A, 0))) -> س. چشم انداز توسعه شمال | D176: خرید | E176: 1403/06/18 | F176: 5344 | G176: 2110 | H176: -113176959.2 | I176: =IF(B176="","",INDEX('دیده بان بازار'!H:H, MATCH(B176, 'دیده بان بازار'!A:A, 0))) -> 31850 | J176: وشمال_44060 | L176: -113176959.2 | M176: 1403/06/18 | N176: -903236997 | O176: -1016413956 | R176: =IF('Total Watch'!A172<>"",'Total Watch'!A172,"") -> آتيه06 | S176: =INDEX(MarketR!$1:$5400, MATCH('Landing Page and Transaction'!$R176, INDEX(MarketR!$1:$5400, 0, MATCH('Landing Page and Transaction'!S$2, MarketR!$1:$1, 0)), 0), MATCH('Landing Page and Transaction'!S$2, MarketR!$1:$1, 0)+1) -> 1000000 | T176: =INDEX(MarketR!$1:$5400, MATCH('Landing Page and Transaction'!$R176, INDEX(MarketR!$1:$5400, 0, MATCH('Landing Page and Transaction'!T$2, MarketR!$1:$1, 0)), 0), MATCH('Landing Page and Transaction'!T$2, MarketR!$1:$1, 0)+1) -> 
A177: =IF(B177="", "", GenerateID(B177)) -> ضهرم8003_83488 | B177: ضهرم8003 | C177: =IF(B177="","",INDEX('دیده بان بازار'!B:B, MATCH(B177, 'دیده بان بازار'!A:A, 0))) ->  | D177: خرید | E177: 1403/06/18 | F177: 22000 | G177: 188 | H177: -41513528.32 | I177: =IF(B177="","",INDEX('دیده بان بازار'!H:H, MATCH(B177, 'دیده بان بازار'!A:A, 0))) ->  | J177: ضهرم8003_83488 | L177: -41513528.32 | M177: 1403/06/18 | N177: -1016413956 | O177: -1057927484 | R177: =IF('Total Watch'!A173<>"",'Total Watch'!A173,"") -> آتيه06 | S177: =INDEX(MarketR!$1:$5400, MATCH('Landing Page and Transaction'!$R177, INDEX(MarketR!$1:$5400, 0, MATCH('Landing Page and Transaction'!S$2, MarketR!$1:$1, 0)), 0), MATCH('Landing Page and Transaction'!S$2, MarketR!$1:$1, 0)+1) -> 1000000 | T177: =INDEX(MarketR!$1:$5400, MATCH('Landing Page and Transaction'!$R177, INDEX(MarketR!$1:$5400, 0, MATCH('Landing Page and Transaction'!T$2, MarketR!$1:$1, 0)), 0), MATCH('Landing Page and Transaction'!T$2, MarketR!$1:$1, 0)+1) -> 
A178: =IF(B178="", "", GenerateID(B178)) -> بكهنوج_80183 | B178: بكهنوج | C178: =IF(B178="","",INDEX('دیده بان بازار'!B:B, MATCH(B178, 'دیده بان بازار'!A:A, 0))) -> توليد برق ماهتاب كهنوج | D178: خرید | E178: 1403/06/18 | F178: 119566 | G178: 95 | H178: -114009337.5 | I178: =IF(B178="","",INDEX('دیده بان بازار'!H:H, MATCH(B178, 'دیده بان بازار'!A:A, 0))) -> 1047 | J178: بكهنوج_80183 | L178: -114009337.5 | M178: 1403/06/18 | N178: -1057927484 | O178: -1171936822 | R178: =IF('Total Watch'!A174<>"",'Total Watch'!A174,"") -> آذرين | S178: =INDEX(MarketR!$1:$5400, MATCH('Landing Page and Transaction'!$R178, INDEX(MarketR!$1:$5400, 0, MATCH('Landing Page and Transaction'!S$2, MarketR!$1:$1, 0)), 0), MATCH('Landing Page and Transaction'!S$2, MarketR!$1:$1, 0)+1) -> 11612 | T178: =INDEX(MarketR!$1:$5400, MATCH('Landing Page and Transaction'!$R178, INDEX(MarketR!$1:$5400, 0, MATCH('Landing Page and Transaction'!T$2, MarketR!$1:$1, 0)), 0), MATCH('Landing Page and Transaction'!T$2, MarketR!$1:$1, 0)+1) -> 
A179: =IF(B179="", "", GenerateID(B179)) -> افران_77462 | B179: افران | C179: =IF(B179="","",INDEX('دیده بان بازار'!B:B, MATCH(B179, 'دیده بان بازار'!A:A, 0))) -> صندوق س افرا نماد پايدار-ثابت | D179: فروش | E179: 1403/06/18 | F179: 5228 | G179: 2868 | H179: 148619576.4 | I179: =IF(B179="","",INDEX('دیده بان بازار'!H:H, MATCH(B179, 'دیده بان بازار'!A:A, 0))) -> 30524 | J179: افران_77462 | L179: 148619576.4 | M179: 1403/06/18 | N179: -1171936822 | O179: -1023317246 | R179: =IF('Total Watch'!A175<>"",'Total Watch'!A175,"") -> آذرين | S179: =INDEX(MarketR!$1:$5400, MATCH('Landing Page and Transaction'!$R179, INDEX(MarketR!$1:$5400, 0, MATCH('Landing Page and Transaction'!S$2, MarketR!$1:$1, 0)), 0), MATCH('Landing Page and Transaction'!S$2, MarketR!$1:$1, 0)+1) -> 11612 | T179: =INDEX(MarketR!$1:$5400, MATCH('Landing Page and Transaction'!$R179, INDEX(MarketR!$1:$5400, 0, MATCH('Landing Page and Transaction'!T$2, MarketR!$1:$1, 0)), 0), MATCH('Landing Page and Transaction'!T$2, MarketR!$1:$1, 0)+1) -> 
A180: =IF(B180="", "", GenerateID(B180)) -> طهرم7026_13958 | B180: طهرم7026 | C180: =IF(B180="","",INDEX('دیده بان بازار'!B:B, MATCH(B180, 'دیده بان بازار'!A:A, 0))) ->  | D180: فروش | E180: 1403/06/18 | F180: 225000 | G180: 155 | H180: 345681000 | I180: =IF(B180="","",INDEX('دیده بان بازار'!H:H, MATCH(B180, 'دیده بان بازار'!A:A, 0))) ->  | J180: طهرم7026_13958 | L180: 345681000 | M180: 1403/06/18 | N180: -1023317246 | O180: -677636245.6 | R180: =IF('Total Watch'!A176<>"",'Total Watch'!A176,"") -> آرام | S180: =INDEX(MarketR!$1:$5400, MATCH('Landing Page and Transaction'!$R180, INDEX(MarketR!$1:$5400, 0, MATCH('Landing Page and Transaction'!S$2, MarketR!$1:$1, 0)), 0), MATCH('Landing Page and Transaction'!S$2, MarketR!$1:$1, 0)+1) -> 15040 | T180: =INDEX(MarketR!$1:$5400, MATCH('Landing Page and Transaction'!$R180, INDEX(MarketR!$1:$5400, 0, MATCH('Landing Page and Transaction'!T$2, MarketR!$1:$1, 0)), 0), MATCH('Landing Page and Transaction'!T$2, MarketR!$1:$1, 0)+1) -> 
A181: =IF(B181="", "", GenerateID(B181)) -> ضخود7108_83221 | B181: ضخود7108 | C181: =IF(B181="","",INDEX('دیده بان بازار'!B:B, MATCH(B181, 'دیده بان بازار'!A:A, 0))) ->  | D181: فروش | E181: 1403/06/18 | F181: 780000 | G181: 14 | H181: 108239040 | I181: =IF(B181="","",INDEX('دیده بان بازار'!H:H, MATCH(B181, 'دیده بان بازار'!A:A, 0))) ->  | J181: ضخود7108_83221 | L181: 108239040 | M181: 1403/06/18 | N181: -677636245.6 | O181: -569397205.6 | R181: =IF('Total Watch'!A177<>"",'Total Watch'!A177,"") -> آرام | S181: =INDEX(MarketR!$1:$5400, MATCH('Landing Page and Transaction'!$R181, INDEX(MarketR!$1:$5400, 0, MATCH('Landing Page and Transaction'!S$2, MarketR!$1:$1, 0)), 0), MATCH('Landing Page and Transaction'!S$2, MarketR!$1:$1, 0)+1) -> 15040 | T181: =INDEX(MarketR!$1:$5400, MATCH('Landing Page and Transaction'!$R181, INDEX(MarketR!$1:$5400, 0, MATCH('Landing Page and Transaction'!T$2, MarketR!$1:$1, 0)), 0), MATCH('Landing Page and Transaction'!T$2, MarketR!$1:$1, 0)+1) -> 
A182: =IF(B182="", "", GenerateID(B182)) -> شملي_64294 | B182: شملي | C182: =IF(B182="","",INDEX('دیده بان بازار'!B:B, MATCH(B182, 'دیده بان بازار'!A:A, 0))) -> ملي شيمي كشاورز | D182: خرید | E182: 1403/06/19 | F182: 11174 | G182: 475 | H182: -53273519.97 | I182: =IF(B182="","",INDEX('دیده بان بازار'!H:H, MATCH(B182, 'دیده بان بازار'!A:A, 0))) -> 5970 | J182: شملي_64294 | L182: -53273519.97 | M182: 1403/06/19 | N182: -569397205.6 | O182: -622670725.6 | R182: =IF('Total Watch'!A178<>"",'Total Watch'!A178,"") -> آرامش | S182: =INDEX(MarketR!$1:$5400, MATCH('Landing Page and Transaction'!$R182, INDEX(MarketR!$1:$5400, 0, MATCH('Landing Page and Transaction'!S$2, MarketR!$1:$1, 0)), 0), MATCH('Landing Page and Transaction'!S$2, MarketR!$1:$1, 0)+1) -> 10847 | T182: =INDEX(MarketR!$1:$5400, MATCH('Landing Page and Transaction'!$R182, INDEX(MarketR!$1:$5400, 0, MATCH('Landing Page and Transaction'!T$2, MarketR!$1:$1, 0)), 0), MATCH('Landing Page and Transaction'!T$2, MarketR!$1:$1, 0)+1) -> 
A183: =IF(B183="", "", GenerateID(B183)) -> آلتون_59299 | B183: آلتون | C183: =IF(B183="","",INDEX('دیده بان بازار'!B:B, MATCH(B183, 'دیده بان بازار'!A:A, 0))) -> صندوق س.پشتوانه طلاآسمان آلتون | D183: فروش | E183: 1403/06/19 | F183: 460 | G183: 1260 | H183: 5744995.2 | I183: =IF(B183="","",INDEX('دیده بان بازار'!H:H, MATCH(B183, 'دیده بان بازار'!A:A, 0))) -> 15383 | J183: آلتون_59299 | L183: 5744995.2 | M183: 1403/06/19 | N183: -622670725.6 | O183: -616925730.4 | R183: =IF('Total Watch'!A179<>"",'Total Watch'!A179,"") -> آرامش | S183: =INDEX(MarketR!$1:$5400, MATCH('Landing Page and Transaction'!$R183, INDEX(MarketR!$1:$5400, 0, MATCH('Landing Page and Transaction'!S$2, MarketR!$1:$1, 0)), 0), MATCH('Landing Page and Transaction'!S$2, MarketR!$1:$1, 0)+1) -> 10847 | T183: =INDEX(MarketR!$1:$5400, MATCH('Landing Page and Transaction'!$R183, INDEX(MarketR!$1:$5400, 0, MATCH('Landing Page and Transaction'!T$2, MarketR!$1:$1, 0)), 0), MATCH('Landing Page and Transaction'!T$2, MarketR!$1:$1, 0)+1) -> 
A184: =IF(B184="", "", GenerateID(B184)) -> زيتون_27806 | B184: زيتون | C184: =IF(B184="","",INDEX('دیده بان بازار'!B:B, MATCH(B184, 'دیده بان بازار'!A:A, 0))) -> صندوق س زيتون نماد پايا- مختلط | D184: فروش | E184: 1403/06/19 | F184: 4497 | G184: 2222 | H184: 99044014.61 | I184: =IF(B184="","",INDEX('دیده بان بازار'!H:H, MATCH(B184, 'دیده بان بازار'!A:A, 0))) -> 24000 | J184: زيتون_27806 | L184: 99044014.61 | M184: 1403/06/19 | N184: -616925730.4 | O184: -517881715.7 | R184: =IF('Total Watch'!A180<>"",'Total Watch'!A180,"") -> آردينه | S184: =INDEX(MarketR!$1:$5400, MATCH('Landing Page and Transaction'!$R184, INDEX(MarketR!$1:$5400, 0, MATCH('Landing Page and Transaction'!S$2, MarketR!$1:$1, 0)), 0), MATCH('Landing Page and Transaction'!S$2, MarketR!$1:$1, 0)+1) -> 13510 | T184: =INDEX(MarketR!$1:$5400, MATCH('Landing Page and Transaction'!$R184, INDEX(MarketR!$1:$5400, 0, MATCH('Landing Page and Transaction'!T$2, MarketR!$1:$1, 0)), 0), MATCH('Landing Page and Transaction'!T$2, MarketR!$1:$1, 0)+1) -> 
A185: =IF(B185="", "", GenerateID(B185)) -> بورس_15333 | B185: بورس | C185: =IF(B185="","",INDEX('دیده بان بازار'!B:B, MATCH(B185, 'دیده بان بازار'!A:A, 0))) ->  | D185: فروش | E185: 1403/06/19 | F185: 11693 | G185: 410 | H185: 47519416.56 | I185: =IF(B185="","",INDEX('دیده بان بازار'!H:H, MATCH(B185, 'دیده بان بازار'!A:A, 0))) ->  | J185: بورس_15333 | L185: 47519416.56 | M185: 1403/06/19 | N185: -517881715.7 | O185: -470362299.2 | R185: =IF('Total Watch'!A181<>"",'Total Watch'!A181,"") -> آردينه | S185: =INDEX(MarketR!$1:$5400, MATCH('Landing Page and Transaction'!$R185, INDEX(MarketR!$1:$5400, 0, MATCH('Landing Page and Transaction'!S$2, MarketR!$1:$1, 0)), 0), MATCH('Landing Page and Transaction'!S$2, MarketR!$1:$1, 0)+1) -> 13510 | T185: =INDEX(MarketR!$1:$5400, MATCH('Landing Page and Transaction'!$R185, INDEX(MarketR!$1:$5400, 0, MATCH('Landing Page and Transaction'!T$2, MarketR!$1:$1, 0)), 0), MATCH('Landing Page and Transaction'!T$2, MarketR!$1:$1, 0)+1) -> 
A186: =IF(B186="", "", GenerateID(B186)) -> بميلا_29845 | B186: بميلا | C186: =IF(B186="","",INDEX('دیده بان بازار'!B:B, MATCH(B186, 'دیده بان بازار'!A:A, 0))) -> توسعه سرمايه گذاري ميلاد پارس | D186: خرید | E186: 1403/06/20 | F186: 14456 | G186: 474 | H186: -68775791.59 | I186: =IF(B186="","",INDEX('دیده بان بازار'!H:H, MATCH(B186, 'دیده بان بازار'!A:A, 0))) -> 5110 | J186: بميلا_29845 | L186: -68775791.59 | M186: 1403/06/20 | N186: -470362299.2 | O186: -539138090.8 | R186: =IF('Total Watch'!A182<>"",'Total Watch'!A182,"") -> آرمان | S186: =INDEX(MarketR!$1:$5400, MATCH('Landing Page and Transaction'!$R186, INDEX(MarketR!$1:$5400, 0, MATCH('Landing Page and Transaction'!S$2, MarketR!$1:$1, 0)), 0), MATCH('Landing Page and Transaction'!S$2, MarketR!$1:$1, 0)+1) -> 4714 | T186: =INDEX(MarketR!$1:$5400, MATCH('Landing Page and Transaction'!$R186, INDEX(MarketR!$1:$5400, 0, MATCH('Landing Page and Transaction'!T$2, MarketR!$1:$1, 0)), 0), MATCH('Landing Page and Transaction'!T$2, MarketR!$1:$1, 0)+1) -> 
A187: =IF(B187="", "", GenerateID(B187)) -> افران_77462 | B187: افران | C187: =IF(B187="","",INDEX('دیده بان بازار'!B:B, MATCH(B187, 'دیده بان بازار'!A:A, 0))) -> صندوق س افرا نماد پايدار-ثابت | D187: فروش | E187: 1403/06/20 | F187: 3480 | G187: 2873 | H187: 99100572.48 | I187: =IF(B187="","",INDEX('دیده بان بازار'!H:H, MATCH(B187, 'دیده بان بازار'!A:A, 0))) -> 30524 | J187: افران_77462 | L187: 99100572.48 | M187: 1403/06/20 | N187: -539138090.8 | O187: -440037518.3 | R187: =IF('Total Watch'!A183<>"",'Total Watch'!A183,"") -> آرمان | S187: =INDEX(MarketR!$1:$5400, MATCH('Landing Page and Transaction'!$R187, INDEX(MarketR!$1:$5400, 0, MATCH('Landing Page and Transaction'!S$2, MarketR!$1:$1, 0)), 0), MATCH('Landing Page and Transaction'!S$2, MarketR!$1:$1, 0)+1) -> 4714 | T187: =INDEX(MarketR!$1:$5400, MATCH('Landing Page and Transaction'!$R187, INDEX(MarketR!$1:$5400, 0, MATCH('Landing Page and Transaction'!T$2, MarketR!$1:$1, 0)), 0), MATCH('Landing Page and Transaction'!T$2, MarketR!$1:$1, 0)+1) -> 
A188: =IF(B188="", "", GenerateID(B188)) -> برداشت_78310 | B188: برداشت | C188: =IF(B188="","",INDEX('دیده بان بازار'!B:B, MATCH(B188, 'دیده بان بازار'!A:A, 0))) ->  | D188: برداشت | E188: 1403/06/21 | H188: -99860720 | I188: =IF(B188="","",INDEX('دیده بان بازار'!H:H, MATCH(B188, 'دیده بان بازار'!A:A, 0))) ->  | J188: برداشت_78310 | L188: -99860720 | M188: 1403/06/21 | N188: -440037518.3 | O188: -539898238.3 | P188: برداشت بابت سرمایه گذاری در کرادفاندینگ | R188: =IF('Total Watch'!A184<>"",'Total Watch'!A184,"") -> آرمان سلولز06 | S188: =INDEX(MarketR!$1:$5400, MATCH('Landing Page and Transaction'!$R188, INDEX(MarketR!$1:$5400, 0, MATCH('Landing Page and Transaction'!S$2, MarketR!$1:$1, 0)), 0), MATCH('Landing Page and Transaction'!S$2, MarketR!$1:$1, 0)+1) -> 1000000 | T188: =INDEX(MarketR!$1:$5400, MATCH('Landing Page and Transaction'!$R188, INDEX(MarketR!$1:$5400, 0, MATCH('Landing Page and Transaction'!T$2, MarketR!$1:$1, 0)), 0), MATCH('Landing Page and Transaction'!T$2, MarketR!$1:$1, 0)+1) -> 
A189: =IF(B189="", "", GenerateID(B189)) -> ضخود8034_32725 | B189: ضخود8034 | C189: =IF(B189="","",INDEX('دیده بان بازار'!B:B, MATCH(B189, 'دیده بان بازار'!A:A, 0))) ->  | D189: خرید | E189: 1403/06/21 | F189: 105000 | G189: 29 | H189: -31006900 | I189: =IF(B189="","",INDEX('دیده بان بازار'!H:H, MATCH(B189, 'دیده بان بازار'!A:A, 0))) ->  | J189: ضخود8034_32725 | L189: -31006900 | M189: 1403/06/21 | N189: -539898238.3 | O189: -570905138.3 | R189: =IF('Total Watch'!A185<>"",'Total Watch'!A185,"") -> آرمان سلولز06 | S189: =INDEX(MarketR!$1:$5400, MATCH('Landing Page and Transaction'!$R189, INDEX(MarketR!$1:$5400, 0, MATCH('Landing Page and Transaction'!S$2, MarketR!$1:$1, 0)), 0), MATCH('Landing Page and Transaction'!S$2, MarketR!$1:$1, 0)+1) -> 1000000 | T189: =INDEX(MarketR!$1:$5400, MATCH('Landing Page and Transaction'!$R189, INDEX(MarketR!$1:$5400, 0, MATCH('Landing Page and Transaction'!T$2, MarketR!$1:$1, 0)), 0), MATCH('Landing Page and Transaction'!T$2, MarketR!$1:$1, 0)+1) -> 
A190: =IF(B190="", "", GenerateID(B190)) -> ضهرم7025_18337 | B190: ضهرم7025 | C190: =IF(B190="","",INDEX('دیده بان بازار'!B:B, MATCH(B190, 'دیده بان بازار'!A:A, 0))) ->  | D190: فروش | E190: 1403/06/26 | F190: 62000 | G190: 107 | H190: 66581350 | I190: =IF(B190="","",INDEX('دیده بان بازار'!H:H, MATCH(B190, 'دیده بان بازار'!A:A, 0))) ->  | J190: ضهرم7025_18337 | L190: 66581350 | M190: 1403/06/26 | N190: -570905138.3 | O190: -504323788.3 | R190: =IF('Total Watch'!A186<>"",'Total Watch'!A186,"") -> آريا | S190: =INDEX(MarketR!$1:$5400, MATCH('Landing Page and Transaction'!$R190, INDEX(MarketR!$1:$5400, 0, MATCH('Landing Page and Transaction'!S$2, MarketR!$1:$1, 0)), 0), MATCH('Landing Page and Transaction'!S$2, MarketR!$1:$1, 0)+1) -> 76200 | T190: =INDEX(MarketR!$1:$5400, MATCH('Landing Page and Transaction'!$R190, INDEX(MarketR!$1:$5400, 0, MATCH('Landing Page and Transaction'!T$2, MarketR!$1:$1, 0)), 0), MATCH('Landing Page and Transaction'!T$2, MarketR!$1:$1, 0)+1) -> 
A191: =IF(B191="", "", GenerateID(B191)) -> وطوبی_48128 | B191: وطوبی | C191: =IF(B191="","",INDEX('Total Watch'!A:A, MATCH(B191, 'Total Watch'!A:A, 0))) -> وطوبی | D191: خرید | E191: 1403/06/28 | F191: 29514 | G191: 225 | H191: =IF(OR(D191="خرید", D191="برداشت", D191="سود"), -G191*F191*(1 + 0.003712) * 10, IF(OR(D191="فروش", D191="واریز"), G191*F191*(1 - 0.0088) * 10, 0)) -> -66653000.93 | I191: =IF(B191="","",INDEX('Total Watch'!B:B, MATCH(B191, 'Total Watch'!A:A, 0))) -> 1,781 | J191: وطوبی_48128 | L191: -66653000.93 | M191: 1403/06/28 | N191: -504323788.3 | O191: -570976789.2 | R191: =IF('Total Watch'!A187<>"",'Total Watch'!A187,"") -> آريا | S191: =INDEX(MarketR!$1:$5400, MATCH('Landing Page and Transaction'!$R191, INDEX(MarketR!$1:$5400, 0, MATCH('Landing Page and Transaction'!S$2, MarketR!$1:$1, 0)), 0), MATCH('Landing Page and Transaction'!S$2, MarketR!$1:$1, 0)+1) -> 76200 | T191: =INDEX(MarketR!$1:$5400, MATCH('Landing Page and Transaction'!$R191, INDEX(MarketR!$1:$5400, 0, MATCH('Landing Page and Transaction'!T$2, MarketR!$1:$1, 0)), 0), MATCH('Landing Page and Transaction'!T$2, MarketR!$1:$1, 0)+1) -> 
A192: =IF(B192="", "", GenerateID(B192)) -> طهرم8003_45987 | B192: طهرم8003 | C192: =IF(B192="","",INDEX('دیده بان بازار'!B:B, MATCH(B192, 'دیده بان بازار'!A:A, 0))) ->  | D192: خرید | E192: 1403/07/01 | F192: 108000 | G192: 53 | H192: -57731390 | I192: =IF(B192="","",INDEX('دیده بان بازار'!H:H, MATCH(B192, 'دیده بان بازار'!A:A, 0))) ->  | J192: طهرم8003_45987 | L192: -57731390 | M192: 1403/07/01 | N192: -570976789.2 | O192: -628708179.2 | R192: =IF('Total Watch'!A188<>"",'Total Watch'!A188,"") -> آريان | S192: =INDEX(MarketR!$1:$5400, MATCH('Landing Page and Transaction'!$R192, INDEX(MarketR!$1:$5400, 0, MATCH('Landing Page and Transaction'!S$2, MarketR!$1:$1, 0)), 0), MATCH('Landing Page and Transaction'!S$2, MarketR!$1:$1, 0)+1) -> 3385 | T192: =INDEX(MarketR!$1:$5400, MATCH('Landing Page and Transaction'!$R192, INDEX(MarketR!$1:$5400, 0, MATCH('Landing Page and Transaction'!T$2, MarketR!$1:$1, 0)), 0), MATCH('Landing Page and Transaction'!T$2, MarketR!$1:$1, 0)+1) -> 
A193: =IF(B193="", "", GenerateID(B193)) -> ضهرم7025_18337 | B193: ضهرم7025 | C193: =IF(B193="","",INDEX('دیده بان بازار'!B:B, MATCH(B193, 'دیده بان بازار'!A:A, 0))) ->  | D193: فروش | E193: 1403/07/01 | F193: 50000 | G193: 115 | H193: 57790640 | I193: =IF(B193="","",INDEX('دیده بان بازار'!H:H, MATCH(B193, 'دیده بان بازار'!A:A, 0))) ->  | J193: ضهرم7025_18337 | L193: =H193 -> 57790640 | M193: =E193 -> 1403/07/01 | N193: -628708179.2 | O193: -570917539.2 | R193: =IF('Total Watch'!A189<>"",'Total Watch'!A189,"") -> آريان | S193: =INDEX(MarketR!$1:$5400, MATCH('Landing Page and Transaction'!$R193, INDEX(MarketR!$1:$5400, 0, MATCH('Landing Page and Transaction'!S$2, MarketR!$1:$1, 0)), 0), MATCH('Landing Page and Transaction'!S$2, MarketR!$1:$1, 0)+1) -> 3385 | T193: =INDEX(MarketR!$1:$5400, MATCH('Landing Page and Transaction'!$R193, INDEX(MarketR!$1:$5400, 0, MATCH('Landing Page and Transaction'!T$2, MarketR!$1:$1, 0)), 0), MATCH('Landing Page and Transaction'!T$2, MarketR!$1:$1, 0)+1) -> 
A194: =IF(B194="", "", GenerateID(B194)) -> تامین سرمایه در گردش به جهت افزایش 50 مترمکعب تولید بتن آماده در روز_49154 | B194: تامین سرمایه در گردش به جهت افزایش 50 مترمکعب تولید بتن آماده در روز | D194: خرید | E194: 1403/06/18 | F194: 150000 | G194: 100 | H194: -150000000 | I194: =IF(B194="","",INDEX('دیده بان بازار'!H:H, MATCH(B194, 'دیده بان بازار'!A:A, 0))) ->  | J194: تامین سرمایه در گردش به جهت افزایش 50 مترمکعب تولید بتن آماده در روز_49154 | L194: -150000000 | M194: 1403/06/18 | N194: -570917539.2 | O194: -720917539.2 | P194: سرمایه گذاری در کرادفاندینگ | R194: =IF('Total Watch'!A190<>"",'Total Watch'!A190,"") -> آرين سلامت06 | S194: =INDEX(MarketR!$1:$5400, MATCH('Landing Page and Transaction'!$R194, INDEX(MarketR!$1:$5400, 0, MATCH('Landing Page and Transaction'!S$2, MarketR!$1:$1, 0)), 0), MATCH('Landing Page and Transaction'!S$2, MarketR!$1:$1, 0)+1) -> 1000000 | T194: =INDEX(MarketR!$1:$5400, MATCH('Landing Page and Transaction'!$R194, INDEX(MarketR!$1:$5400, 0, MATCH('Landing Page and Transaction'!T$2, MarketR!$1:$1, 0)), 0), MATCH('Landing Page and Transaction'!T$2, MarketR!$1:$1, 0)+1) -> 
A195: =IF(B195="", "", GenerateID(B195)) -> تامین سرمایه در گردش خرید و فروش لوله فولادی آریابد_34222 | B195: تامین سرمایه در گردش خرید و فروش لوله فولادی آریابد | D195: خرید | E195: 1403/06/19 | F195: 950000 | G195: 10 | H195: -95000000 | I195: =IF(B195="","",INDEX('دیده بان بازار'!H:H, MATCH(B195, 'دیده بان بازار'!A:A, 0))) ->  | J195: تامین سرمایه در گردش خرید و فروش لوله فولادی آریابد_34222 | L195: -95000000 | M195: 1403/06/19 | N195: -720917539.2 | O195: -815917539.2 | P195: سرمایه گذاری در کرادفاندینگ | R195: =IF('Total Watch'!A191<>"",'Total Watch'!A191,"") -> آرين سلامت06 | S195: =INDEX(MarketR!$1:$5400, MATCH('Landing Page and Transaction'!$R195, INDEX(MarketR!$1:$5400, 0, MATCH('Landing Page and Transaction'!S$2, MarketR!$1:$1, 0)), 0), MATCH('Landing Page and Transaction'!S$2, MarketR!$1:$1, 0)+1) -> 1000000 | T195: =INDEX(MarketR!$1:$5400, MATCH('Landing Page and Transaction'!$R195, INDEX(MarketR!$1:$5400, 0, MATCH('Landing Page and Transaction'!T$2, MarketR!$1:$1, 0)), 0), MATCH('Landing Page and Transaction'!T$2, MarketR!$1:$1, 0)+1) -> 
A196: =IF(B196="", "", GenerateID(B196)) -> تامین سرمایه در گردش جهت تجارت زغال سنگ_96117 | B196: تامین سرمایه در گردش جهت تجارت زغال سنگ | D196: خرید | E196: 1403/06/20 | F196: 2800000 | G196: 1 | H196: -28000000 | I196: =IF(B196="","",INDEX('دیده بان بازار'!H:H, MATCH(B196, 'دیده بان بازار'!A:A, 0))) ->  | J196: تامین سرمایه در گردش جهت تجارت زغال سنگ_96117 | L196: -28000000 | M196: 1403/06/20 | N196: -815917539.2 | O196: -843917539.2 | P196: سرمایه گذاری در کرادفاندینگ | R196: =IF('Total Watch'!A192<>"",'Total Watch'!A192,"") -> آریزو 5 اسپورت | S196: =INDEX(MarketR!$1:$5400, MATCH('Landing Page and Transaction'!$R196, INDEX(MarketR!$1:$5400, 0, MATCH('Landing Page and Transaction'!S$2, MarketR!$1:$1, 0)), 0), MATCH('Landing Page and Transaction'!S$2, MarketR!$1:$1, 0)+1) ->  | T196: =INDEX(MarketR!$1:$5400, MATCH('Landing Page and Transaction'!$R196, INDEX(MarketR!$1:$5400, 0, MATCH('Landing Page and Transaction'!T$2, MarketR!$1:$1, 0)), 0), MATCH('Landing Page and Transaction'!T$2, MarketR!$1:$1, 0)+1) -> 
A197: =IF(B197="", "", GenerateID(B197)) -> تأمین سرمایه در گردش جهت خالص سازی سنگ آهن معدن چادرملو_85226 | B197: تأمین سرمایه در گردش جهت خالص سازی سنگ آهن معدن چادرملو | D197: خرید | E197: 1403/06/24 | F197: 6000000 | G197: 1 | H197: -60000000 | I197: =IF(B197="","",INDEX('دیده بان بازار'!H:H, MATCH(B197, 'دیده بان بازار'!A:A, 0))) ->  | J197: تأمین سرمایه در گردش جهت خالص سازی سنگ آهن معدن چادرملو_85226 | L197: -60000000 | M197: 1403/06/24 | N197: -843917539.2 | O197: -903917539.2 | P197: سرمایه گذاری در کرادفاندینگ | R197: =IF('Total Watch'!A193<>"",'Total Watch'!A193,"") -> آریزو 6 جی تی توربو 1600-1402 | S197: =INDEX(MarketR!$1:$5400, MATCH('Landing Page and Transaction'!$R197, INDEX(MarketR!$1:$5400, 0, MATCH('Landing Page and Transaction'!S$2, MarketR!$1:$1, 0)), 0), MATCH('Landing Page and Transaction'!S$2, MarketR!$1:$1, 0)+1) -> 1,720,000,000 تومان | T197: =INDEX(MarketR!$1:$5400, MATCH('Landing Page and Transaction'!$R197, INDEX(MarketR!$1:$5400, 0, MATCH('Landing Page and Transaction'!T$2, MarketR!$1:$1, 0)), 0), MATCH('Landing Page and Transaction'!T$2, MarketR!$1:$1, 0)+1) -> 
A198: =IF(B198="", "", GenerateID(B198)) -> تأمین سرمایه در گردش فروش گوشت مرغ_41008 | B198: تأمین سرمایه در گردش فروش گوشت مرغ | D198: خرید | E198: 1403/06/25 | F198: 4000000 | G198: 1 | H198: -40000000 | I198: =IF(B198="","",INDEX('دیده بان بازار'!H:H, MATCH(B198, 'دیده بان بازار'!A:A, 0))) ->  | J198: تأمین سرمایه در گردش فروش گوشت مرغ_41008 | L198: -40000000 | M198: 1403/06/25 | N198: -903917539.2 | O198: -943917539.2 | P198: سرمایه گذاری در کرادفاندینگ | R198: =IF('Total Watch'!A194<>"",'Total Watch'!A194,"") -> آریزو 6 جی تی توربو 1600-1403 | S198: =INDEX(MarketR!$1:$5400, MATCH('Landing Page and Transaction'!$R198, INDEX(MarketR!$1:$5400, 0, MATCH('Landing Page and Transaction'!S$2, MarketR!$1:$1, 0)), 0), MATCH('Landing Page and Transaction'!S$2, MarketR!$1:$1, 0)+1) -> 1,770,000,000 تومان | T198: =INDEX(MarketR!$1:$5400, MATCH('Landing Page and Transaction'!$R198, INDEX(MarketR!$1:$5400, 0, MATCH('Landing Page and Transaction'!T$2, MarketR!$1:$1, 0)), 0), MATCH('Landing Page and Transaction'!T$2, MarketR!$1:$1, 0)+1) -> 
A199: =IF(B199="", "", GenerateID(B199)) -> تأمین سرمایه در گردش جهت تولید برد الکترونیکی پکیج_87894 | B199: تأمین سرمایه در گردش جهت تولید برد الکترونیکی پکیج | D199: خرید | E199: 1403/06/26 | F199: 2000000 | G199: 1 | H199: -20000000 | I199: =IF(B199="","",INDEX('دیده بان بازار'!H:H, MATCH(B199, 'دیده بان بازار'!A:A, 0))) ->  | J199: تأمین سرمایه در گردش جهت تولید برد الکترونیکی پکیج_87894 | L199: -20000000 | M199: 1403/06/26 | N199: -943917539.2 | O199: -963917539.2 | P199: سرمایه گذاری در کرادفاندینگ | R199: =IF('Total Watch'!A195<>"",'Total Watch'!A195,"") -> آریزو 6 پرو | S199: =INDEX(MarketR!$1:$5400, MATCH('Landing Page and Transaction'!$R199, INDEX(MarketR!$1:$5400, 0, MATCH('Landing Page and Transaction'!S$2, MarketR!$1:$1, 0)), 0), MATCH('Landing Page and Transaction'!S$2, MarketR!$1:$1, 0)+1) ->  | T199: =INDEX(MarketR!$1:$5400, MATCH('Landing Page and Transaction'!$R199, INDEX(MarketR!$1:$5400, 0, MATCH('Landing Page and Transaction'!T$2, MarketR!$1:$1, 0)), 0), MATCH('Landing Page and Transaction'!T$2, MarketR!$1:$1, 0)+1) -> 
A200: به دلیلی مغایرت زیاد از اینجا صفر در نظر گرفته می شود | R200: =IF('Total Watch'!A196<>"",'Total Watch'!A196,"") -> آریزو 6 پرو اتوماتیک-1402 | S200: =INDEX(MarketR!$1:$5400, MATCH('Landing Page and Transaction'!$R200, INDEX(MarketR!$1:$5400, 0, MATCH('Landing Page and Transaction'!S$2, MarketR!$1:$1, 0)), 0), MATCH('Landing Page and Transaction'!S$2, MarketR!$1:$1, 0)+1) -> 1,520,000,000 تومان | T200: =INDEX(MarketR!$1:$5400, MATCH('Landing Page and Transaction'!$R200, INDEX(MarketR!$1:$5400, 0, MATCH('Landing Page and Transaction'!T$2, MarketR!$1:$1, 0)), 0), MATCH('Landing Page and Transaction'!T$2, MarketR!$1:$1, 0)+1) -> 
... 4300 more rows

Sheet Wallet and Detail (hidden)
A1: خرید | G1: فروش | R1: واریز | T1: برداشت | V1: وضعیت فعلی سهم | Z1: حسابداری
A2: شناسه | B2: نام سهم | C2: تاریخ | D2: تعداد سهم | E2: قیمت پایه سهم | F2: قیمت نهایی | G2: شناسه | H2: تطابق شناسه | I2: نام سهم4 | J2: تاریخ5 | K2: تعداد سهم6 | L2: قیمت پایه | M2: قیمت نهایی9 | N2: درصد سود کسب شده | O2: میزان سود کسب شده | P2: قیمت فعلی سهم | Q2: میزان سهم باقی مانده | R2: مبلغ واریز | S2: تاریخ واریز | T2: مبلغ برداشت | U2: تاریخ برداشت | V2: تعداد فعلی سهم | W2: قیمت فعلی سهم14 | X2: درصد سود کسب شده فعلی | Y2: میزان سود کسب شده فعلی | Z2: بدهکاری | AA2: بستانکاری | AB2: کیف پول | AC2: شرح
A3: =IF('Landing Page and Transaction'!D12="خرید", 'Landing Page and Transaction'!A12, "") -> افران_77462 | B3: =IF('Landing Page and Transaction'!D12="خرید", 'Landing Page and Transaction'!B12, "") -> افران | C3: =IF('Landing Page and Transaction'!D12="خرید", 'Landing Page and Transaction'!E12, "") -> 1402/12/02 | D3: =IF('Landing Page and Transaction'!D12="خرید", 'Landing Page and Transaction'!F12, "") -> 607 | E3: =IF('Landing Page and Transaction'!D12="خرید", 'Landing Page and Transaction'!G12, "") -> 2472 | F3: =IF('Landing Page and Transaction'!D12="خرید", 'Landing Page and Transaction'!H12, "") -> -15060738.71 | G3: =IF('Landing Page and Transaction'!D12="فروش", 'Landing Page and Transaction'!A12, "") ->  | H3: =IFERROR(INDEX(G:G, MATCH(A3, G:G, 0)), "سهم مورد نظر هنوز فروخته نشده است") -> افران_77462 | I3: =IF('Landing Page and Transaction'!D12="فروش", 'Landing Page and Transaction'!B12, "") ->  | J3: =IF('Landing Page and Transaction'!D12="فروش", 'Landing Page and Transaction'!E12, "") ->  | K3: =IF('Landing Page and Transaction'!D12="فروش", 'Landing Page and Transaction'!F12, "") ->  | L3: =IF('Landing Page and Transaction'!D12="فروش", 'Landing Page and Transaction'!G12, "") ->  | M3: =IF('Landing Page and Transaction'!D12="فروش", 'Landing Page and Transaction'!H12, "") ->  | N3: =IF(OR(D3="", F3=""), "", IFERROR(IF(K3>D3, (M3 - F3) * D3, "خطا: تعداد سهم فروش بیشتر از خرید است"), "")) ->  | P3: =IF(OR(B3<>"", G3<>""), IFERROR(INDEX('دیده بان بازار'!K:K, MATCH(IF(B3<>"", B3, G3), 'دیده بان بازار'!A:A, 0)), ""), "") -> 30523 | Q3: =IF(OR(D3="", F3=""), "", IFERROR(IF(K3>D3, (M3 - F3), "خطا: تعداد سهام فروش بیشتر از خرید است"), "")) ->  | R3: =IF('Landing Page and Transaction'!D12="واریز", 'Landing Page and Transaction'!H12, "") ->  | S3: =IF('Landing Page and Transaction'!D12="واریز", 'Landing Page and Transaction'!E12, "") ->  | T3: =IF('Landing Page and Transaction'!D12="برداشت", 'Landing Page and Transaction'!H12, "") ->  | U3: =IF('Landing Page and Transaction'!D12="برداشت", 'Landing Page and Transaction'!E12, "") ->  | V3: =Q3 ->  | W3: =IF(OR(B3<>"", G3<>""), IFERROR(INDEX('دیده بان بازار'!K:K, MATCH(IF(B3<>"", B3, G3), 'دیده بان بازار'!A:A, 0)), ""), "") -> 30523 | Y3: =IFERROR((V3 * W3) - (V3 * E3)*0.001207,"") ->  | Z3: =IF(AND(F3<>"", T3<>""), F3 + T3, IF(F3<>"", F3, IF(T3<>"", T3, 0))) -> -15060738.71 | AA3: =IF(AND(M3<>"", R3<>""), M3 + R3, IF(M3<>"", M3, IF(R3<>"", R3, 0))) -> 0 | AB3: =Z3 + AA3 -> -15060738.71
A4: =IF('Landing Page and Transaction'!D13="خرید", 'Landing Page and Transaction'!A13, "") -> هامرز_80833 | B4: =IF('Landing Page and Transaction'!D13="خرید", 'Landing Page and Transaction'!B13, "") -> هامرز | C4: =IF('Landing Page and Transaction'!D13="خرید", 'Landing Page and Transaction'!E13, "") -> 1402/12/02 | D4: =IF('Landing Page and Transaction'!D13="خرید", 'Landing Page and Transaction'!F13, "") -> 599 | E4: =IF('Landing Page and Transaction'!D13="خرید", 'Landing Page and Transaction'!G13, "") -> 2494 | F4: =IF('Landing Page and Transaction'!D13="خرید", 'Landing Page and Transaction'!H13, "") -> -14994513.79 | G4: =IF('Landing Page and Transaction'!D13="فروش", 'Landing Page and Transaction'!A13, "") ->  | H4: هامرز_80833 | I4: =IF('Landing Page and Transaction'!D13="فروش", 'Landing Page and Transaction'!B13, "") ->  | J4: =IF('Landing Page and Transaction'!D13="فروش", 'Landing Page and Transaction'!E13, "") ->  | K4: =IF('Landing Page and Transaction'!D13="فروش", 'Landing Page and Transaction'!F13, "") ->  | L4: =IF('Landing Page and Transaction'!D13="فروش", 'Landing Page and Transaction'!G13, "") ->  | M4: =IF('Landing Page and Transaction'!D13="فروش", 'Landing Page and Transaction'!H13, "") ->  | P4: =IF(OR(B4<>"", G4<>""), IFERROR(INDEX('دیده بان بازار'!K:K, MATCH(IF(B4<>"", B4, G4), 'دیده بان بازار'!A:A, 0)), ""), "") -> 10171 | R4: =IF('Landing Page and Transaction'!D13="واریز", 'Landing Page and Transaction'!H13, "") ->  | S4: =IF('Landing Page and Transaction'!D13="واریز", 'Landing Page and Transaction'!E13, "") ->  | T4: =IF('Landing Page and Transaction'!D13="برداشت", 'Landing Page and Transaction'!H13, "") ->  | U4: =IF('Landing Page and Transaction'!D13="برداشت", 'Landing Page and Transaction'!E13, "") ->  | V4: =Q4 ->  | W4: =IF(OR(B4<>"", G4<>""), IFERROR(INDEX('دیده بان بازار'!K:K, MATCH(IF(B4<>"", B4, G4), 'دیده بان بازار'!A:A, 0)), ""), "") -> 10171 | Y4: =IFERROR((V4 * W4) - (V4 * E4)*0.001207,"") ->  | Z4: -14994513.79 | AA4: 0 | AB4: =Z4 + AA4 + AB3 -> -30055252.5
A5: =IF('Landing Page and Transaction'!D14="خرید", 'Landing Page and Transaction'!A14, "") ->  | B5: =IF('Landing Page and Transaction'!D14="خرید", 'Landing Page and Transaction'!B14, "") ->  | C5: =IF('Landing Page and Transaction'!D14="خرید", 'Landing Page and Transaction'!E14, "") ->  | D5: =IF('Landing Page and Transaction'!D14="خرید", 'Landing Page and Transaction'!F14, "") ->  | E5: =IF('Landing Page and Transaction'!D14="خرید", 'Landing Page and Transaction'!G14, "") ->  | F5: =IF('Landing Page and Transaction'!D14="خرید", 'Landing Page and Transaction'!H14, "") ->  | G5: =IF('Landing Page and Transaction'!D14="فروش", 'Landing Page and Transaction'!A14, "") -> هامرز_80833 | H5: =IFERROR(INDEX(G:G, MATCH(A5, G:G, 0)), "سهم مورد نظر هنوز فروخته نشده است") ->  | I5: =IF('Landing Page and Transaction'!D14="فروش", 'Landing Page and Transaction'!B14, "") -> هامرز | J5: =IF('Landing Page and Transaction'!D14="فروش", 'Landing Page and Transaction'!E14, "") -> 1402/12/05 | K5: =IF('Landing Page and Transaction'!D14="فروش", 'Landing Page and Transaction'!F14, "") -> 599 | L5: =IF('Landing Page and Transaction'!D14="فروش", 'Landing Page and Transaction'!G14, "") -> 2505 | M5: =IF('Landing Page and Transaction'!D14="فروش", 'Landing Page and Transaction'!H14, "") -> 14872906.44 | N5: =IF(OR(D5="", F5=""), "", IFERROR(IF(K5>D5, (M5 - F5) * D5, "خطا: تعداد سهم فروش بیشتر از خرید است"), "")) ->  | P5: =IF(OR(B5<>"", G5<>""), IFERROR(INDEX('دیده بان بازار'!K:K, MATCH(IF(B5<>"", B5, G5), 'دیده بان بازار'!A:A, 0)), ""), "") ->  | Q5: =IF(OR(D5="", F5=""), "", IFERROR(IF(K5>D5, (M5 - F5), "خطا: تعداد سهام فروش بیشتر از خرید است"), "")) ->  | R5: =IF('Landing Page and Transaction'!D14="واریز", 'Landing Page and Transaction'!H14, "") ->  | S5: =IF('Landing Page and Transaction'!D14="واریز", 'Landing Page and Transaction'!E14, "") ->  | T5: =IF('Landing Page and Transaction'!D14="برداشت", 'Landing Page and Transaction'!H14, "") ->  | U5: =IF('Landing Page and Transaction'!D14="برداشت", 'Landing Page and Transaction'!E14, "") ->  | V5: =Q5 ->  | W5: =IF(OR(B5<>"", G5<>""), IFERROR(INDEX('دیده بان بازار'!K:K, MATCH(IF(B5<>"", B5, G5), 'دیده بان بازار'!A:A, 0)), ""), "") ->  | Y5: =IFERROR((V5 * W5) - (V5 * E5)*0.001207,"") ->  | Z5: 0 | AA5: 14872906.44 | AB5: =Z5 + AA5 + AB4 -> -15182346.06
A6: =IF('Landing Page and Transaction'!D15="خرید", 'Landing Page and Transaction'!A15, "") ->  | B6: =IF('Landing Page and Transaction'!D15="خرید", 'Landing Page and Transaction'!B15, "") ->  | C6: =IF('Landing Page and Transaction'!D15="خرید", 'Landing Page and Transaction'!E15, "") ->  | D6: =IF('Landing Page and Transaction'!D15="خرید", 'Landing Page and Transaction'!F15, "") ->  | E6: =IF('Landing Page and Transaction'!D15="خرید", 'Landing Page and Transaction'!G15, "") ->  | F6: =IF('Landing Page and Transaction'!D15="خرید", 'Landing Page and Transaction'!H15, "") ->  | G6: =IF('Landing Page and Transaction'!D15="فروش", 'Landing Page and Transaction'!A15, "") -> افران_77462 | I6: =IF('Landing Page and Transaction'!D15="فروش", 'Landing Page and Transaction'!B15, "") -> افران | J6: =IF('Landing Page and Transaction'!D15="فروش", 'Landing Page and Transaction'!E15, "") -> 1402/12/05 | K6: =IF('Landing Page and Transaction'!D15="فروش", 'Landing Page and Transaction'!F15, "") -> 607 | L6: =IF('Landing Page and Transaction'!D15="فروش", 'Landing Page and Transaction'!G15, "") -> 2476 | M6: =IF('Landing Page and Transaction'!D15="فروش", 'Landing Page and Transaction'!H15, "") -> 14897061.98 | P6: =IF(OR(B6<>"", G6<>""), IFERROR(INDEX('دیده بان بازار'!K:K, MATCH(IF(B6<>"", B6, G6), 'دیده بان بازار'!A:A, 0)), ""), "") ->  | R6: =IF('Landing Page and Transaction'!D15="واریز", 'Landing Page and Transaction'!H15, "") ->  | S6: =IF('Landing Page and Transaction'!D15="واریز", 'Landing Page and Transaction'!E15, "") ->  | T6: =IF('Landing Page and Transaction'!D15="برداشت", 'Landing Page and Transaction'!H15, "") ->  | U6: =IF('Landing Page and Transaction'!D15="برداشت", 'Landing Page and Transaction'!E15, "") ->  | W6: =IF(OR(B6<>"", G6<>""), IFERROR(INDEX('دیده بان بازار'!K:K, MATCH(IF(B6<>"", B6, G6), 'دیده بان بازار'!A:A, 0)), ""), "") ->  | Z6: 0 | AA6: 14897061.98 | AB6: -285284.0752
A7: =IF('Landing Page and Transaction'!D16="خرید", 'Landing Page and Transaction'!A16, "") -> آلتون_59299 | B7: =IF('Landing Page and Transaction'!D16="خرید", 'Landing Page and Transaction'!B16, "") -> آلتون | C7: =IF('Landing Page and Transaction'!D16="خرید", 'Landing Page and Transaction'!E16, "") -> 1402/12/07 | D7: =IF('Landing Page and Transaction'!D16="خرید", 'Landing Page and Transaction'!F16, "") -> 460 | E7: =IF('Landing Page and Transaction'!D16="خرید", 'Landing Page and Transaction'!G16, "") -> 1146 | F7: =IF('Landing Page and Transaction'!D16="خرید", 'Landing Page and Transaction'!H16, "") -> -5291168.179 | G7: =IF('Landing Page and Transaction'!D16="فروش", 'Landing Page and Transaction'!A16, "") ->  | H7: آلتون_59299 | I7: =IF('Landing Page and Transaction'!D16="فروش", 'Landing Page and Transaction'!B16, "") ->  | J7: =IF('Landing Page and Transaction'!D16="فروش", 'Landing Page and Transaction'!E16, "") ->  | K7: =IF('Landing Page and Transaction'!D16="فروش", 'Landing Page and Transaction'!F16, "") ->  | L7: =IF('Landing Page and Transaction'!D16="فروش", 'Landing Page and Transaction'!G16, "") ->  | M7: =IF('Landing Page and Transaction'!D16="فروش", 'Landing Page and Transaction'!H16, "") ->  | P7: =IF(OR(B7<>"", G7<>""), IFERROR(INDEX('دیده بان بازار'!K:K, MATCH(IF(B7<>"", B7, G7), 'دیده بان بازار'!A:A, 0)), ""), "") -> 15415 | R7: =IF('Landing Page and Transaction'!D16="واریز", 'Landing Page and Transaction'!H16, "") ->  | S7: =IF('Landing Page and Transaction'!D16="واریز", 'Landing Page and Transaction'!E16, "") ->  | T7: =IF('Landing Page and Transaction'!D16="برداشت", 'Landing Page and Transaction'!H16, "") ->  | U7: =IF('Landing Page and Transaction'!D16="برداشت", 'Landing Page and Transaction'!E16, "") ->  | W7: =IF(OR(B7<>"", G7<>""), IFERROR(INDEX('دیده بان بازار'!K:K, MATCH(IF(B7<>"", B7, G7), 'دیده بان بازار'!A:A, 0)), ""), "") -> 15415 | Z7: -5291168.179 | AA7: 0 | AB7: -5576452.254
A8: =IF('Landing Page and Transaction'!D17="خرید", 'Landing Page and Transaction'!A17, "") -> افران_77462 | B8: =IF('Landing Page and Transaction'!D17="خرید", 'Landing Page and Transaction'!B17, "") -> افران | C8: =IF('Landing Page and Transaction'!D17="خرید", 'Landing Page and Transaction'!E17, "") -> 1402/12/07 | D8: =IF('Landing Page and Transaction'!D17="خرید", 'Landing Page and Transaction'!F17, "") -> 806 | E8: =IF('Landing Page and Transaction'!D17="خرید", 'Landing Page and Transaction'!G17, "") -> 2479 | F8: =IF('Landing Page and Transaction'!D17="خرید", 'Landing Page and Transaction'!H17, "") -> -20054908.51 | G8: =IF('Landing Page and Transaction'!D17="فروش", 'Landing Page and Transaction'!A17, "") ->  | H8: افران_77462 | I8: =IF('Landing Page and Transaction'!D17="فروش", 'Landing Page and Transaction'!B17, "") ->  | J8: =IF('Landing Page and Transaction'!D17="فروش", 'Landing Page and Transaction'!E17, "") ->  | K8: =IF('Landing Page and Transaction'!D17="فروش", 'Landing Page and Transaction'!F17, "") ->  | L8: =IF('Landing Page and Transaction'!D17="فروش", 'Landing Page and Transaction'!G17, "") ->  | M8: =IF('Landing Page and Transaction'!D17="فروش", 'Landing Page and Transaction'!H17, "") ->  | P8: =IF(OR(B8<>"", G8<>""), IFERROR(INDEX('دیده بان بازار'!K:K, MATCH(IF(B8<>"", B8, G8), 'دیده بان بازار'!A:A, 0)), ""), "") -> 30523 | R8: =IF('Landing Page and Transaction'!D17="واریز", 'Landing Page and Transaction'!H17, "") ->  | S8: =IF('Landing Page and Transaction'!D17="واریز", 'Landing Page and Transaction'!E17, "") ->  | T8: =IF('Landing Page and Transaction'!D17="برداشت", 'Landing Page and Transaction'!H17, "") ->  | U8: =IF('Landing Page and Transaction'!D17="برداشت", 'Landing Page and Transaction'!E17, "") ->  | W8: =IF(OR(B8<>"", G8<>""), IFERROR(INDEX('دیده بان بازار'!K:K, MATCH(IF(B8<>"", B8, G8), 'دیده بان بازار'!A:A, 0)), ""), "") -> 30523 | Z8: -20054908.51 | AA8: 0 | AB8: -25631360.76
A9: =IF('Landing Page and Transaction'!D18="خرید", 'Landing Page and Transaction'!A18, "") -> آساس_63193 | B9: =IF('Landing Page and Transaction'!D18="خرید", 'Landing Page and Transaction'!B18, "") -> آساس | C9: =IF('Landing Page and Transaction'!D18="خرید", 'Landing Page and Transaction'!E18, "") -> 1402/12/09 | D9: =IF('Landing Page and Transaction'!D18="خرید", 'Landing Page and Transaction'!F18, "") -> 50 | E9: =IF('Landing Page and Transaction'!D18="خرید", 'Landing Page and Transaction'!G18, "") -> 3690 | F9: =IF('Landing Page and Transaction'!D18="خرید", 'Landing Page and Transaction'!H18, "") -> -1851848.64 | G9: =IF('Landing Page and Transaction'!D18="فروش", 'Landing Page and Transaction'!A18, "") ->  | H9: سهم مورد نظر هنوز فروخته نشده است | I9: =IF('Landing Page and Transaction'!D18="فروش", 'Landing Page and Transaction'!B18, "") ->  | J9: =IF('Landing Page and Transaction'!D18="فروش", 'Landing Page and Transaction'!E18, "") ->  | K9: =IF('Landing Page and Transaction'!D18="فروش", 'Landing Page and Transaction'!F18, "") ->  | L9: =IF('Landing Page and Transaction'!D18="فروش", 'Landing Page and Transaction'!G18, "") ->  | M9: =IF('Landing Page and Transaction'!D18="فروش", 'Landing Page and Transaction'!H18, "") ->  | P9: =IF(OR(B9<>"", G9<>""), IFERROR(INDEX('دیده بان بازار'!K:K, MATCH(IF(B9<>"", B9, G9), 'دیده بان بازار'!A:A, 0)), ""), "") -> 43932 | R9: =IF('Landing Page and Transaction'!D18="واریز", 'Landing Page and Transaction'!H18, "") ->  | S9: =IF('Landing Page and Transaction'!D18="واریز", 'Landing Page and Transaction'!E18, "") ->  | T9: =IF('Landing Page and Transaction'!D18="برداشت", 'Landing Page and Transaction'!H18, "") ->  | U9: =IF('Landing Page and Transaction'!D18="برداشت", 'Landing Page and Transaction'!E18, "") ->  | W9: =IF(OR(B9<>"", G9<>""), IFERROR(INDEX('دیده بان بازار'!K:K, MATCH(IF(B9<>"", B9, G9), 'دیده بان بازار'!A:A, 0)), ""), "") -> 43932 | Z9: -1851848.64 | AA9: 0 | AB9: -27483209.4
A10: =IF('Landing Page and Transaction'!D19="خرید", 'Landing Page and Transaction'!A19, "") -> افران_77462 | B10: =IF('Landing Page and Transaction'!D19="خرید", 'Landing Page and Transaction'!B19, "") -> افران | C10: =IF('Landing Page and Transaction'!D19="خرید", 'Landing Page and Transaction'!E19, "") -> 1402/12/09 | D10: =IF('Landing Page and Transaction'!D19="خرید", 'Landing Page and Transaction'!F19, "") -> 418 | E10: =IF('Landing Page and Transaction'!D19="خرید", 'Landing Page and Transaction'!G19, "") -> 2485 | F10: =IF('Landing Page and Transaction'!D19="خرید", 'Landing Page and Transaction'!H19, "") -> -10425857.66 | G10: =IF('Landing Page and Transaction'!D19="فروش", 'Landing Page and Transaction'!A19, "") ->  | H10: افران_77462 | I10: =IF('Landing Page and Transaction'!D19="فروش", 'Landing Page and Transaction'!B19, "") ->  | J10: =IF('Landing Page and Transaction'!D19="فروش", 'Landing Page and Transaction'!E19, "") ->  | K10: =IF('Landing Page and Transaction'!D19="فروش", 'Landing Page and Transaction'!F19, "") ->  | L10: =IF('Landing Page and Transaction'!D19="فروش", 'Landing Page and Transaction'!G19, "") ->  | M10: =IF('Landing Page and Transaction'!D19="فروش", 'Landing Page and Transaction'!H19, "") ->  | P10: =IF(OR(B10<>"", G10<>""), IFERROR(INDEX('دیده بان بازار'!K:K, MATCH(IF(B10<>"", B10, G10), 'دیده بان بازار'!A:A, 0)), ""), "") -> 30523 | R10: =IF('Landing Page and Transaction'!D19="واریز", 'Landing Page and Transaction'!H19, "") ->  | S10: =IF('Landing Page and Transaction'!D19="واریز", 'Landing Page and Transaction'!E19, "") ->  | T10: =IF('Landing Page and Transaction'!D19="برداشت", 'Landing Page and Transaction'!H19, "") ->  | U10: =IF('Landing Page and Transaction'!D19="برداشت", 'Landing Page and Transaction'!E19, "") ->  | W10: =IF(OR(B10<>"", G10<>""), IFERROR(INDEX('دیده بان بازار'!K:K, MATCH(IF(B10<>"", B10, G10), 'دیده بان بازار'!A:A, 0)), ""), "") -> 30523 | Z10: -10425857.66 | AA10: 0 | AB10: -37909067.06
A11: =IF('Landing Page and Transaction'!D20="خرید", 'Landing Page and Transaction'!A20, "") -> هامرز_80833 | B11: =IF('Landing Page and Transaction'!D20="خرید", 'Landing Page and Transaction'!B20, "") -> هامرز | C11: =IF('Landing Page and Transaction'!D20="خرید", 'Landing Page and Transaction'!E20, "") -> 1402/12/09 | D11: =IF('Landing Page and Transaction'!D20="خرید", 'Landing Page and Transaction'!F20, "") -> 300 | E11: =IF('Landing Page and Transaction'!D20="خرید", 'Landing Page and Transaction'!G20, "") -> 2505 | F11: =IF('Landing Page and Transaction'!D20="خرید", 'Landing Page and Transaction'!H20, "") -> -7542895.68 | G11: =IF('Landing Page and Transaction'!D20="فروش", 'Landing Page and Transaction'!A20, "") ->  | H11: هامرز_80833 | I11: =IF('Landing Page and Transaction'!D20="فروش", 'Landing Page and Transaction'!B20, "") ->  | J11: =IF('Landing Page and Transaction'!D20="فروش", 'Landing Page and Transaction'!E20, "") ->  | K11: =IF('Landing Page and Transaction'!D20="فروش", 'Landing Page and Transaction'!F20, "") ->  | L11: =IF('Landing Page and Transaction'!D20="فروش", 'Landing Page and Transaction'!G20, "") ->  | M11: =IF('Landing Page and Transaction'!D20="فروش", 'Landing Page and Transaction'!H20, "") ->  | P11: =IF(OR(B11<>"", G11<>""), IFERROR(INDEX('دیده بان بازار'!K:K, MATCH(IF(B11<>"", B11, G11), 'دیده بان بازار'!A:A, 0)), ""), "") -> 10171 | R11: =IF('Landing Page and Transaction'!D20="واریز", 'Landing Page and Transaction'!H20, "") ->  | S11: =IF('Landing Page and Transaction'!D20="واریز", 'Landing Page and Transaction'!E20, "") ->  | T11: =IF('Landing Page and Transaction'!D20="برداشت", 'Landing Page and Transaction'!H20, "") ->  | U11: =IF('Landing Page and Transaction'!D20="برداشت", 'Landing Page and Transaction'!E20, "") ->  | W11: =IF(OR(B11<>"", G11<>""), IFERROR(INDEX('دیده بان بازار'!K:K, MATCH(IF(B11<>"", B11, G11), 'دیده بان بازار'!A:A, 0)), ""), "") -> 10171 | Z11: -7542895.68 | AA11: 0 | AB11: -45451962.74
A12: =IF('Landing Page and Transaction'!D21="خرید", 'Landing Page and Transaction'!A21, "") -> زيتون_27806 | B12: =IF('Landing Page and Transaction'!D21="خرید", 'Landing Page and Transaction'!B21, "") -> زيتون | C12: =IF('Landing Page and Transaction'!D21="خرید", 'Landing Page and Transaction'!E21, "") -> 1402/12/13 | D12: =IF('Landing Page and Transaction'!D21="خرید", 'Landing Page and Transaction'!F21, "") -> 354 | E12: =IF('Landing Page and Transaction'!D21="خرید", 'Landing Page and Transaction'!G21, "") -> 2109 | F12: =IF('Landing Page and Transaction'!D21="خرید", 'Landing Page and Transaction'!H21, "") -> -7493573.272 | G12: =IF('Landing Page and Transaction'!D21="فروش", 'Landing Page and Transaction'!A21, "") ->  | H12: زيتون_27806 | I12: =IF('Landing Page and Transaction'!D21="فروش", 'Landing Page and Transaction'!B21, "") ->  | J12: =IF('Landing Page and Transaction'!D21="فروش", 'Landing Page and Transaction'!E21, "") ->  | K12: =IF('Landing Page and Transaction'!D21="فروش", 'Landing Page and Transaction'!F21, "") ->  | L12: =IF('Landing Page and Transaction'!D21="فروش", 'Landing Page and Transaction'!G21, "") ->  | M12: =IF('Landing Page and Transaction'!D21="فروش", 'Landing Page and Transaction'!H21, "") ->  | P12: =IF(OR(B12<>"", G12<>""), IFERROR(INDEX('دیده بان بازار'!K:K, MATCH(IF(B12<>"", B12, G12), 'دیده بان بازار'!A:A, 0)), ""), "") -> 23880 | R12: =IF('Landing Page and Transaction'!D21="واریز", 'Landing Page and Transaction'!H21, "") ->  | S12: =IF('Landing Page and Transaction'!D21="واریز", 'Landing Page and Transaction'!E21, "") ->  | T12: =IF('Landing Page and Transaction'!D21="برداشت", 'Landing Page and Transaction'!H21, "") ->  | U12: =IF('Landing Page and Transaction'!D21="برداشت", 'Landing Page and Transaction'!E21, "") ->  | W12: =IF(OR(B12<>"", G12<>""), IFERROR(INDEX('دیده بان بازار'!K:K, MATCH(IF(B12<>"", B12, G12), 'دیده بان بازار'!A:A, 0)), ""), "") -> 23880 | Z12: -7493573.272 | AA12: 0 | AB12: -52945536.01
A13: =IF('Landing Page and Transaction'!D22="خرید", 'Landing Page and Transaction'!A22, "") -> ثمين_77727 | B13: =IF('Landing Page and Transaction'!D22="خرید", 'Landing Page and Transaction'!B22, "") -> ثمين | C13: =IF('Landing Page and Transaction'!D22="خرید", 'Landing Page and Transaction'!E22, "") -> 1402/12/13 | D13: =IF('Landing Page and Transaction'!D22="خرید", 'Landing Page and Transaction'!F22, "") -> 631 | E13: =IF('Landing Page and Transaction'!D22="خرید", 'Landing Page and Transaction'!G22, "") -> 2050 | F13: =IF('Landing Page and Transaction'!D22="خرید", 'Landing Page and Transaction'!H22, "") -> -12983516.58 | G13: =IF('Landing Page and Transaction'!D22="فروش", 'Landing Page and Transaction'!A22, "") ->  | H13: سهم مورد نظر هنوز فروخته نشده است | I13: =IF('Landing Page and Transaction'!D22="فروش", 'Landing Page and Transaction'!B22, "") ->  | J13: =IF('Landing Page and Transaction'!D22="فروش", 'Landing Page and Transaction'!E22, "") ->  | K13: =IF('Landing Page and Transaction'!D22="فروش", 'Landing Page and Transaction'!F22, "") ->  | L13: =IF('Landing Page and Transaction'!D22="فروش", 'Landing Page and Transaction'!G22, "") ->  | M13: =IF('Landing Page and Transaction'!D22="فروش", 'Landing Page and Transaction'!H22, "") ->  | P13: =IF(OR(B13<>"", G13<>""), IFERROR(INDEX('دیده بان بازار'!K:K, MATCH(IF(B13<>"", B13, G13), 'دیده بان بازار'!A:A, 0)), ""), "") -> 24720 | R13: =IF('Landing Page and Transaction'!D22="واریز", 'Landing Page and Transaction'!H22, "") ->  | S13: =IF('Landing Page and Transaction'!D22="واریز", 'Landing Page and Transaction'!E22, "") ->  | T13: =IF('Landing Page and Transaction'!D22="برداشت", 'Landing Page and Transaction'!H22, "") ->  | U13: =IF('Landing Page and Transaction'!D22="برداشت", 'Landing Page and Transaction'!E22, "") ->  | W13: =IF(OR(B13<>"", G13<>""), IFERROR(INDEX('دیده بان بازار'!K:K, MATCH(IF(B13<>"", B13, G13), 'دیده بان بازار'!A:A, 0)), ""), "") -> 24720 | Z13: -12983516.58 | AA13: 0 | AB13: -65929052.59
A14: =IF('Landing Page and Transaction'!D23="خرید", 'Landing Page and Transaction'!A23, "") ->  | B14: =IF('Landing Page and Transaction'!D23="خرید", 'Landing Page and Transaction'!B23, "") ->  | C14: =IF('Landing Page and Transaction'!D23="خرید", 'Landing Page and Transaction'!E23, "") ->  | D14: =IF('Landing Page and Transaction'!D23="خرید", 'Landing Page and Transaction'!F23, "") ->  | E14: =IF('Landing Page and Transaction'!D23="خرید", 'Landing Page and Transaction'!G23, "") ->  | F14: =IF('Landing Page and Transaction'!D23="خرید", 'Landing Page and Transaction'!H23, "") ->  | G14: =IF('Landing Page and Transaction'!D23="فروش", 'Landing Page and Transaction'!A23, "") -> افران_77462 | I14: =IF('Landing Page and Transaction'!D23="فروش", 'Landing Page and Transaction'!B23, "") -> افران | J14: =IF('Landing Page and Transaction'!D23="فروش", 'Landing Page and Transaction'!E23, "") -> 1402/12/13 | K14: =IF('Landing Page and Transaction'!D23="فروش", 'Landing Page and Transaction'!F23, "") -> 820 | L14: =IF('Landing Page and Transaction'!D23="فروش", 'Landing Page and Transaction'!G23, "") -> 2489 | M14: =IF('Landing Page and Transaction'!D23="فروش", 'Landing Page and Transaction'!H23, "") -> 20230193.76 | P14: =IF(OR(B14<>"", G14<>""), IFERROR(INDEX('دیده بان بازار'!K:K, MATCH(IF(B14<>"", B14, G14), 'دیده بان بازار'!A:A, 0)), ""), "") ->  | R14: =IF('Landing Page and Transaction'!D23="واریز", 'Landing Page and Transaction'!H23, "") ->  | S14: =IF('Landing Page and Transaction'!D23="واریز", 'Landing Page and Transaction'!E23, "") ->  | T14: =IF('Landing Page and Transaction'!D23="برداشت", 'Landing Page and Transaction'!H23, "") ->  | U14: =IF('Landing Page and Transaction'!D23="برداشت", 'Landing Page and Transaction'!E23, "") ->  | W14: =IF(OR(B14<>"", G14<>""), IFERROR(INDEX('دیده بان بازار'!K:K, MATCH(IF(B14<>"", B14, G14), 'دیده بان بازار'!A:A, 0)), ""), "") ->  | Z14: 0 | AA14: 20230193.76 | AB14: -45698858.83
A15: =IF('Landing Page and Transaction'!D24="خرید", 'Landing Page and Transaction'!A24, "") ->  | B15: =IF('Landing Page and Transaction'!D24="خرید", 'Landing Page and Transaction'!B24, "") ->  | C15: =IF('Landing Page and Transaction'!D24="خرید", 'Landing Page and Transaction'!E24, "") ->  | D15: =IF('Landing Page and Transaction'!D24="خرید", 'Landing Page and Transaction'!F24, "") ->  | E15: =IF('Landing Page and Transaction'!D24="خرید", 'Landing Page and Transaction'!G24, "") ->  | F15: =IF('Landing Page and Transaction'!D24="خرید", 'Landing Page and Transaction'!H24, "") ->  | G15: =IF('Landing Page and Transaction'!D24="فروش", 'Landing Page and Transaction'!A24, "") -> افران_77462 | I15: =IF('Landing Page and Transaction'!D24="فروش", 'Landing Page and Transaction'!B24, "") -> افران | J15: =IF('Landing Page and Transaction'!D24="فروش", 'Landing Page and Transaction'!E24, "") -> 1402/12/27 | K15: =IF('Landing Page and Transaction'!D24="فروش", 'Landing Page and Transaction'!F24, "") -> 250 | L15: =IF('Landing Page and Transaction'!D24="فروش", 'Landing Page and Transaction'!G24, "") -> 2515 | M15: =IF('Landing Page and Transaction'!D24="فروش", 'Landing Page and Transaction'!H24, "") -> 6232170 | P15: =IF(OR(B15<>"", G15<>""), IFERROR(INDEX('دیده بان بازار'!K:K, MATCH(IF(B15<>"", B15, G15), 'دیده بان بازار'!A:A, 0)), ""), "") ->  | R15: =IF('Landing Page and Transaction'!D24="واریز", 'Landing Page and Transaction'!H24, "") ->  | S15: =IF('Landing Page and Transaction'!D24="واریز", 'Landing Page and Transaction'!E24, "") ->  | T15: =IF('Landing Page and Transaction'!D24="برداشت", 'Landing Page and Transaction'!H24, "") ->  | U15: =IF('Landing Page and Transaction'!D24="برداشت", 'Landing Page and Transaction'!E24, "") ->  | W15: =IF(OR(B15<>"", G15<>""), IFERROR(INDEX('دیده بان بازار'!K:K, MATCH(IF(B15<>"", B15, G15), 'دیده بان بازار'!A:A, 0)), ""), "") ->  | Z15: 0 | AA15: 6232170 | AB15: -39466688.83
A16: =IF('Landing Page and Transaction'!D25="خرید", 'Landing Page and Transaction'!A25, "") -> توان_90914 | B16: =IF('Landing Page and Transaction'!D25="خرید", 'Landing Page and Transaction'!B25, "") -> توان | C16: =IF('Landing Page and Transaction'!D25="خرید", 'Landing Page and Transaction'!E25, "") -> 14030105 | D16: =IF('Landing Page and Transaction'!D25="خرید", 'Landing Page and Transaction'!F25, "") -> 246 | E16: =IF('Landing Page and Transaction'!D25="خرید", 'Landing Page and Transaction'!G25, "") -> 2036 | F16: =IF('Landing Page and Transaction'!D25="خرید", 'Landing Page and Transaction'!H25, "") -> -5027151.775 | G16: =IF('Landing Page and Transaction'!D25="فروش", 'Landing Page and Transaction'!A25, "") ->  | H16: توان_90914 | I16: =IF('Landing Page and Transaction'!D25="فروش", 'Landing Page and Transaction'!B25, "") ->  | J16: =IF('Landing Page and Transaction'!D25="فروش", 'Landing Page and Transaction'!E25, "") ->  | K16: =IF('Landing Page and Transaction'!D25="فروش", 'Landing Page and Transaction'!F25, "") ->  | L16: =IF('Landing Page and Transaction'!D25="فروش", 'Landing Page and Transaction'!G25, "") ->  | M16: =IF('Landing Page and Transaction'!D25="فروش", 'Landing Page and Transaction'!H25, "") ->  | P16: =IF(OR(B16<>"", G16<>""), IFERROR(INDEX('دیده بان بازار'!K:K, MATCH(IF(B16<>"", B16, G16), 'دیده بان بازار'!A:A, 0)), ""), "") -> 19598 | R16: =IF('Landing Page and Transaction'!D25="واریز", 'Landing Page and Transaction'!H25, "") ->  | S16: =IF('Landing Page and Transaction'!D25="واریز", 'Landing Page and Transaction'!E25, "") ->  | T16: =IF('Landing Page and Transaction'!D25="برداشت", 'Landing Page and Transaction'!H25, "") ->  | U16: =IF('Landing Page and Transaction'!D25="برداشت", 'Landing Page and Transaction'!E25, "") ->  | W16: =IF(OR(B16<>"", G16<>""), IFERROR(INDEX('دیده بان بازار'!K:K, MATCH(IF(B16<>"", B16, G16), 'دیده بان بازار'!A:A, 0)), ""), "") -> 19598 | Z16: -5027151.775 | AA16: 0 | AB16: -44493840.6
A17: =IF('Landing Page and Transaction'!D26="خرید", 'Landing Page and Transaction'!A26, "") -> ضستا2026_79216 | B17: =IF('Landing Page and Transaction'!D26="خرید", 'Landing Page and Transaction'!B26, "") -> ضستا2026 | C17: =IF('Landing Page and Transaction'!D26="خرید", 'Landing Page and Transaction'!E26, "") -> 14030105 | D17: =IF('Landing Page and Transaction'!D26="خرید", 'Landing Page and Transaction'!F26, "") -> 8000 | E17: =IF('Landing Page and Transaction'!D26="خرید", 'Landing Page and Transaction'!G26, "") -> 15 | F17: =IF('Landing Page and Transaction'!D26="خرید", 'Landing Page and Transaction'!H26, "") -> -1204454.4 | G17: =IF('Landing Page and Transaction'!D26="فروش", 'Landing Page and Transaction'!A26, "") ->  | H17: سهم مورد نظر هنوز فروخته نشده است | I17: =IF('Landing Page and Transaction'!D26="فروش", 'Landing Page and Transaction'!B26, "") ->  | J17: =IF('Landing Page and Transaction'!D26="فروش", 'Landing Page and Transaction'!E26, "") ->  | K17: =IF('Landing Page and Transaction'!D26="فروش", 'Landing Page and Transaction'!F26, "") ->  | L17: =IF('Landing Page and Transaction'!D26="فروش", 'Landing Page and Transaction'!G26, "") ->  | M17: =IF('Landing Page and Transaction'!D26="فروش", 'Landing Page and Transaction'!H26, "") ->  | P17: =IF(OR(B17<>"", G17<>""), IFERROR(INDEX('دیده بان بازار'!K:K, MATCH(IF(B17<>"", B17, G17), 'دیده بان بازار'!A:A, 0)), ""), "") ->  | R17: =IF('Landing Page and Transaction'!D26="واریز", 'Landing Page and Transaction'!H26, "") ->  | S17: =IF('Landing Page and Transaction'!D26="واریز", 'Landing Page and Transaction'!E26, "") ->  | T17: =IF('Landing Page and Transaction'!D26="برداشت", 'Landing Page and Transaction'!H26, "") ->  | U17: =IF('Landing Page and Transaction'!D26="برداشت", 'Landing Page and Transaction'!E26, "") ->  | W17: =IF(OR(B17<>"", G17<>""), IFERROR(INDEX('دیده بان بازار'!K:K, MATCH(IF(B17<>"", B17, G17), 'دیده بان بازار'!A:A, 0)), ""), "") ->  | Z17: -1204454.4 | AA17: 0 | AB17: -45698295
A18: =IF('Landing Page and Transaction'!D27="خرید", 'Landing Page and Transaction'!A27, "") -> ضستا2025_98880 | B18: =IF('Landing Page and Transaction'!D27="خرید", 'Landing Page and Transaction'!B27, "") -> ضستا2025 | C18: =IF('Landing Page and Transaction'!D27="خرید", 'Landing Page and Transaction'!E27, "") -> 14030105 | D18: =IF('Landing Page and Transaction'!D27="خرید", 'Landing Page and Transaction'!F27, "") -> 8 | E18: =IF('Landing Page and Transaction'!D27="خرید", 'Landing Page and Transaction'!G27, "") -> 150 | F18: =IF('Landing Page and Transaction'!D27="خرید", 'Landing Page and Transaction'!H27, "") -> -12044.544 | G18: =IF('Landing Page and Transaction'!D27="فروش", 'Landing Page and Transaction'!A27, "") ->  | H18: ضستا2025_98880 | I18: =IF('Landing Page and Transaction'!D27="فروش", 'Landing Page and Transaction'!B27, "") ->  | J18: =IF('Landing Page and Transaction'!D27="فروش", 'Landing Page and Transaction'!E27, "") ->  | K18: =IF('Landing Page and Transaction'!D27="فروش", 'Landing Page and Transaction'!F27, "") ->  | L18: =IF('Landing Page and Transaction'!D27="فروش", 'Landing Page and Transaction'!G27, "") ->  | M18: =IF('Landing Page and Transaction'!D27="فروش", 'Landing Page and Transaction'!H27, "") ->  | P18: =IF(OR(B18<>"", G18<>""), IFERROR(INDEX('دیده بان بازار'!K:K, MATCH(IF(B18<>"", B18, G18), 'دیده بان بازار'!A:A, 0)), ""), "") ->  | R18: =IF('Landing Page and Transaction'!D27="واریز", 'Landing Page and Transaction'!H27, "") ->  | S18: =IF('Landing Page and Transaction'!D27="واریز", 'Landing Page and Transaction'!E27, "") ->  | T18: =IF('Landing Page and Transaction'!D27="برداشت", 'Landing Page and Transaction'!H27, "") ->  | U18: =IF('Landing Page and Transaction'!D27="برداشت", 'Landing Page and Transaction'!E27, "") ->  | W18: =IF(OR(B18<>"", G18<>""), IFERROR(INDEX('دیده بان بازار'!K:K, MATCH(IF(B18<>"", B18, G18), 'دیده بان بازار'!A:A, 0)), ""), "") ->  | Z18: -12044.544 | AA18: 0 | AB18: -45710339.55
A19: =IF('Landing Page and Transaction'!D28="خرید", 'Landing Page and Transaction'!A28, "") -> فيروزا_25707 | B19: =IF('Landing Page and Transaction'!D28="خرید", 'Landing Page and Transaction'!B28, "") -> فيروزا | C19: =IF('Landing Page and Transaction'!D28="خرید", 'Landing Page and Transaction'!E28, "") -> 14030106 | D19: =IF('Landing Page and Transaction'!D28="خرید", 'Landing Page and Transaction'!F28, "") -> 0 | E19: =IF('Landing Page and Transaction'!D28="خرید", 'Landing Page and Transaction'!G28, "") -> 345334 | F19: =IF('Landing Page and Transaction'!D28="خرید", 'Landing Page and Transaction'!H28, "") -> 0 | G19: =IF('Landing Page and Transaction'!D28="فروش", 'Landing Page and Transaction'!A28, "") ->  | H19: سهم مورد نظر هنوز فروخته نشده است | I19: =IF('Landing Page and Transaction'!D28="فروش", 'Landing Page and Transaction'!B28, "") ->  | J19: =IF('Landing Page and Transaction'!D28="فروش", 'Landing Page and Transaction'!E28, "") ->  | K19: =IF('Landing Page and Transaction'!D28="فروش", 'Landing Page and Transaction'!F28, "") ->  | L19: =IF('Landing Page and Transaction'!D28="فروش", 'Landing Page and Transaction'!G28, "") ->  | M19: =IF('Landing Page and Transaction'!D28="فروش", 'Landing Page and Transaction'!H28, "") ->  | P19: =IF(OR(B19<>"", G19<>""), IFERROR(INDEX('دیده بان بازار'!K:K, MATCH(IF(B19<>"", B19, G19), 'دیده بان بازار'!A:A, 0)), ""), "") -> 51875 | R19: =IF('Landing Page and Transaction'!D28="واریز", 'Landing Page and Transaction'!H28, "") ->  | S19: =IF('Landing Page and Transaction'!D28="واریز", 'Landing Page and Transaction'!E28, "") ->  | T19: =IF('Landing Page and Transaction'!D28="برداشت", 'Landing Page and Transaction'!H28, "") ->  | U19: =IF('Landing Page and Transaction'!D28="برداشت", 'Landing Page and Transaction'!E28, "") ->  | W19: =IF(OR(B19<>"", G19<>""), IFERROR(INDEX('دیده بان بازار'!K:K, MATCH(IF(B19<>"", B19, G19), 'دیده بان بازار'!A:A, 0)), ""), "") -> 51875 | Z19: 0 | AA19: 0 | AB19: -45710339.55
A20: =IF('Landing Page and Transaction'!D29="خرید", 'Landing Page and Transaction'!A29, "") -> فيروزا_25707 | B20: =IF('Landing Page and Transaction'!D29="خرید", 'Landing Page and Transaction'!B29, "") -> فيروزا | C20: =IF('Landing Page and Transaction'!D29="خرید", 'Landing Page and Transaction'!E29, "") -> 14030106 | D20: =IF('Landing Page and Transaction'!D29="خرید", 'Landing Page and Transaction'!F29, "") -> 1 | E20: =IF('Landing Page and Transaction'!D29="خرید", 'Landing Page and Transaction'!G29, "") -> 0 | F20: =IF('Landing Page and Transaction'!D29="خرید", 'Landing Page and Transaction'!H29, "") -> 0 | G20: =IF('Landing Page and Transaction'!D29="فروش", 'Landing Page and Transaction'!A29, "") ->  | H20: سهم مورد نظر هنوز فروخته نشده است | I20: =IF('Landing Page and Transaction'!D29="فروش", 'Landing Page and Transaction'!B29, "") ->  | J20: =IF('Landing Page and Transaction'!D29="فروش", 'Landing Page and Transaction'!E29, "") ->  | K20: =IF('Landing Page and Transaction'!D29="فروش", 'Landing Page and Transaction'!F29, "") ->  | L20: =IF('Landing Page and Transaction'!D29="فروش", 'Landing Page and Transaction'!G29, "") ->  | M20: =IF('Landing Page and Transaction'!D29="فروش", 'Landing Page and Transaction'!H29, "") ->  | P20: =IF(OR(B20<>"", G20<>""), IFERROR(INDEX('دیده بان بازار'!K:K, MATCH(IF(B20<>"", B20, G20), 'دیده بان بازار'!A:A, 0)), ""), "") -> 51875 | R20: =IF('Landing Page and Transaction'!D29="واریز", 'Landing Page and Transaction'!H29, "") ->  | S20: =IF('Landing Page and Transaction'!D29="واریز", 'Landing Page and Transaction'!E29, "") ->  | T20: =IF('Landing Page and Transaction'!D29="برداشت", 'Landing Page and Transaction'!H29, "") ->  | U20: =IF('Landing Page and Transaction'!D29="برداشت", 'Landing Page and Transaction'!E29, "") ->  | W20: =IF(OR(B20<>"", G20<>""), IFERROR(INDEX('دیده بان بازار'!K:K, MATCH(IF(B20<>"", B20, G20), 'دیده بان بازار'!A:A, 0)), ""), "") -> 51875 | Z20: 0 | AA20: 0 | AB20: -45710339.55
A21: =IF('Landing Page and Transaction'!D30="خرید", 'Landing Page and Transaction'!A30, "") -> فيروزه_13833 | B21: =IF('Landing Page and Transaction'!D30="خرید", 'Landing Page and Transaction'!B30, "") -> فيروزه | C21: =IF('Landing Page and Transaction'!D30="خرید", 'Landing Page and Transaction'!E30, "") -> 14030106 | D21: =IF('Landing Page and Transaction'!D30="خرید", 'Landing Page and Transaction'!F30, "") -> 7 | E21: =IF('Landing Page and Transaction'!D30="خرید", 'Landing Page and Transaction'!G30, "") -> 0 | F21: =IF('Landing Page and Transaction'!D30="خرید", 'Landing Page and Transaction'!H30, "") -> 0 | G21: =IF('Landing Page and Transaction'!D30="فروش", 'Landing Page and Transaction'!A30, "") ->  | H21: سهم مورد نظر هنوز فروخته نشده است | I21: =IF('Landing Page and Transaction'!D30="فروش", 'Landing Page and Transaction'!B30, "") ->  | J21: =IF('Landing Page and Transaction'!D30="فروش", 'Landing Page and Transaction'!E30, "") ->  | K21: =IF('Landing Page and Transaction'!D30="فروش", 'Landing Page and Transaction'!F30, "") ->  | L21: =IF('Landing Page and Transaction'!D30="فروش", 'Landing Page and Transaction'!G30, "") ->  | M21: =IF('Landing Page and Transaction'!D30="فروش", 'Landing Page and Transaction'!H30, "") ->  | P21: =IF(OR(B21<>"", G21<>""), IFERROR(INDEX('دیده بان بازار'!K:K, MATCH(IF(B21<>"", B21, G21), 'دیده بان بازار'!A:A, 0)), ""), "") -> 34250 | R21: =IF('Landing Page and Transaction'!D30="واریز", 'Landing Page and Transaction'!H30, "") ->  | S21: =IF('Landing Page and Transaction'!D30="واریز", 'Landing Page and Transaction'!E30, "") ->  | T21: =IF('Landing Page and Transaction'!D30="برداشت", 'Landing Page and Transaction'!H30, "") ->  | U21: =IF('Landing Page and Transaction'!D30="برداشت", 'Landing Page and Transaction'!E30, "") ->  | W21: =IF(OR(B21<>"", G21<>""), IFERROR(INDEX('دیده بان بازار'!K:K, MATCH(IF(B21<>"", B21, G21), 'دیده بان بازار'!A:A, 0)), ""), "") -> 34250 | Z21: 0 | AA21: 0 | AB21: -45710339.55
A22: =IF('Landing Page and Transaction'!D31="خرید", 'Landing Page and Transaction'!A31, "") -> فيروزه_13833 | B22: =IF('Landing Page and Transaction'!D31="خرید", 'Landing Page and Transaction'!B31, "") -> فيروزه | C22: =IF('Landing Page and Transaction'!D31="خرید", 'Landing Page and Transaction'!E31, "") -> 14030106 | D22: =IF('Landing Page and Transaction'!D31="خرید", 'Landing Page and Transaction'!F31, "") -> 6 | E22: =IF('Landing Page and Transaction'!D31="خرید", 'Landing Page and Transaction'!G31, "") -> 0 | F22: =IF('Landing Page and Transaction'!D31="خرید", 'Landing Page and Transaction'!H31, "") -> 0 | G22: =IF('Landing Page and Transaction'!D31="فروش", 'Landing Page and Transaction'!A31, "") ->  | H22: سهم مورد نظر هنوز فروخته نشده است | I22: =IF('Landing Page and Transaction'!D31="فروش", 'Landing Page and Transaction'!B31, "") ->  | J22: =IF('Landing Page and Transaction'!D31="فروش", 'Landing Page and Transaction'!E31, "") ->  | K22: =IF('Landing Page and Transaction'!D31="فروش", 'Landing Page and Transaction'!F31, "") ->  | L22: =IF('Landing Page and Transaction'!D31="فروش", 'Landing Page and Transaction'!G31, "") ->  | M22: =IF('Landing Page and Transaction'!D31="فروش", 'Landing Page and Transaction'!H31, "") ->  | P22: =IF(OR(B22<>"", G22<>""), IFERROR(INDEX('دیده بان بازار'!K:K, MATCH(IF(B22<>"", B22, G22), 'دیده بان بازار'!A:A, 0)), ""), "") -> 34250 | R22: =IF('Landing Page and Transaction'!D31="واریز", 'Landing Page and Transaction'!H31, "") ->  | S22: =IF('Landing Page and Transaction'!D31="واریز", 'Landing Page and Transaction'!E31, "") ->  | T22: =IF('Landing Page and Transaction'!D31="برداشت", 'Landing Page and Transaction'!H31, "") ->  | U22: =IF('Landing Page and Transaction'!D31="برداشت", 'Landing Page and Transaction'!E31, "") ->  | W22: =IF(OR(B22<>"", G22<>""), IFERROR(INDEX('دیده بان بازار'!K:K, MATCH(IF(B22<>"", B22, G22), 'دیده بان بازار'!A:A, 0)), ""), "") -> 34250 | Z22: 0 | AA22: 0 | AB22: -45710339.55
A23: =IF('Landing Page and Transaction'!D32="خرید", 'Landing Page and Transaction'!A32, "") ->  | B23: =IF('Landing Page and Transaction'!D32="خرید", 'Landing Page and Transaction'!B32, "") ->  | C23: =IF('Landing Page and Transaction'!D32="خرید", 'Landing Page and Transaction'!E32, "") ->  | D23: =IF('Landing Page and Transaction'!D32="خرید", 'Landing Page and Transaction'!F32, "") ->  | E23: =IF('Landing Page and Transaction'!D32="خرید", 'Landing Page and Transaction'!G32, "") ->  | F23: =IF('Landing Page and Transaction'!D32="خرید", 'Landing Page and Transaction'!H32, "") ->  | G23: =IF('Landing Page and Transaction'!D32="فروش", 'Landing Page and Transaction'!A32, "") -> افران_77462 | I23: =IF('Landing Page and Transaction'!D32="فروش", 'Landing Page and Transaction'!B32, "") -> افران | J23: =IF('Landing Page and Transaction'!D32="فروش", 'Landing Page and Transaction'!E32, "") -> 1403/02/12 | K23: =IF('Landing Page and Transaction'!D32="فروش", 'Landing Page and Transaction'!F32, "") -> 154 | L23: =IF('Landing Page and Transaction'!D32="فروش", 'Landing Page and Transaction'!G32, "") -> 2605 | M23: =IF('Landing Page and Transaction'!D32="فروش", 'Landing Page and Transaction'!H32, "") -> 3976397.04 | P23: =IF(OR(B23<>"", G23<>""), IFERROR(INDEX('دیده بان بازار'!K:K, MATCH(IF(B23<>"", B23, G23), 'دیده بان بازار'!A:A, 0)), ""), "") ->  | R23: =IF('Landing Page and Transaction'!D32="واریز", 'Landing Page and Transaction'!H32, "") ->  | S23: =IF('Landing Page and Transaction'!D32="واریز", 'Landing Page and Transaction'!E32, "") ->  | T23: =IF('Landing Page and Transaction'!D32="برداشت", 'Landing Page and Transaction'!H32, "") ->  | U23: =IF('Landing Page and Transaction'!D32="برداشت", 'Landing Page and Transaction'!E32, "") ->  | W23: =IF(OR(B23<>"", G23<>""), IFERROR(INDEX('دیده بان بازار'!K:K, MATCH(IF(B23<>"", B23, G23), 'دیده بان بازار'!A:A, 0)), ""), "") ->  | Z23: 0 | AA23: 3976397.04 | AB23: -41733942.51
A24: =IF('Landing Page and Transaction'!D33="خرید", 'Landing Page and Transaction'!A33, "") ->  | B24: =IF('Landing Page and Transaction'!D33="خرید", 'Landing Page and Transaction'!B33, "") ->  | C24: =IF('Landing Page and Transaction'!D33="خرید", 'Landing Page and Transaction'!E33, "") ->  | D24: =IF('Landing Page and Transaction'!D33="خرید", 'Landing Page and Transaction'!F33, "") ->  | E24: =IF('Landing Page and Transaction'!D33="خرید", 'Landing Page and Transaction'!G33, "") ->  | F24: =IF('Landing Page and Transaction'!D33="خرید", 'Landing Page and Transaction'!H33, "") ->  | G24: =IF('Landing Page and Transaction'!D33="فروش", 'Landing Page and Transaction'!A33, "") -> ضستا2025_98880 | I24: =IF('Landing Page and Transaction'!D33="فروش", 'Landing Page and Transaction'!B33, "") -> ضستا2025 | J24: =IF('Landing Page and Transaction'!D33="فروش", 'Landing Page and Transaction'!E33, "") -> 1403/02/12 | K24: =IF('Landing Page and Transaction'!D33="فروش", 'Landing Page and Transaction'!F33, "") -> 5000 | L24: =IF('Landing Page and Transaction'!D33="فروش", 'Landing Page and Transaction'!G33, "") -> 10 | M24: =IF('Landing Page and Transaction'!D33="فروش", 'Landing Page and Transaction'!H33, "") -> 495600 | P24: =IF(OR(B24<>"", G24<>""), IFERROR(INDEX('دیده بان بازار'!K:K, MATCH(IF(B24<>"", B24, G24), 'دیده بان بازار'!A:A, 0)), ""), "") ->  | R24: =IF('Landing Page and Transaction'!D33="واریز", 'Landing Page and Transaction'!H33, "") ->  | S24: =IF('Landing Page and Transaction'!D33="واریز", 'Landing Page and Transaction'!E33, "") ->  | T24: =IF('Landing Page and Transaction'!D33="برداشت", 'Landing Page and Transaction'!H33, "") ->  | U24: =IF('Landing Page and Transaction'!D33="برداشت", 'Landing Page and Transaction'!E33, "") ->  | W24: =IF(OR(B24<>"", G24<>""), IFERROR(INDEX('دیده بان بازار'!K:K, MATCH(IF(B24<>"", B24, G24), 'دیده بان بازار'!A:A, 0)), ""), "") ->  | Z24: 0 | AA24: 495600 | AB24: -41238342.51
A25: =IF('Landing Page and Transaction'!D34="خرید", 'Landing Page and Transaction'!A34, "") -> ضستا2025_98880 | B25: =IF('Landing Page and Transaction'!D34="خرید", 'Landing Page and Transaction'!B34, "") -> ضستا2025 | C25: =IF('Landing Page and Transaction'!D34="خرید", 'Landing Page and Transaction'!E34, "") -> 1403/02/17 | D25: =IF('Landing Page and Transaction'!D34="خرید", 'Landing Page and Transaction'!F34, "") -> 3 | E25: =IF('Landing Page and Transaction'!D34="خرید", 'Landing Page and Transaction'!G34, "") -> 0 | F25: =IF('Landing Page and Transaction'!D34="خرید", 'Landing Page and Transaction'!H34, "") -> 3301650 | G25: =IF('Landing Page and Transaction'!D34="فروش", 'Landing Page and Transaction'!A34, "") ->  | H25: ضستا2025_98880 | I25: =IF('Landing Page and Transaction'!D34="فروش", 'Landing Page and Transaction'!B34, "") ->  | J25: =IF('Landing Page and Transaction'!D34="فروش", 'Landing Page and Transaction'!E34, "") ->  | K25: =IF('Landing Page and Transaction'!D34="فروش", 'Landing Page and Transaction'!F34, "") ->  | L25: =IF('Landing Page and Transaction'!D34="فروش", 'Landing Page and Transaction'!G34, "") ->  | M25: =IF('Landing Page and Transaction'!D34="فروش", 'Landing Page and Transaction'!H34, "") ->  | P25: =IF(OR(B25<>"", G25<>""), IFERROR(INDEX('دیده بان بازار'!K:K, MATCH(IF(B25<>"", B25, G25), 'دیده بان بازار'!A:A, 0)), ""), "") ->  | R25: =IF('Landing Page and Transaction'!D34="واریز", 'Landing Page and Transaction'!H34, "") ->  | S25: =IF('Landing Page and Transaction'!D34="واریز", 'Landing Page and Transaction'!E34, "") ->  | T25: =IF('Landing Page and Transaction'!D34="برداشت", 'Landing Page and Transaction'!H34, "") ->  | U25: =IF('Landing Page and Transaction'!D34="برداشت", 'Landing Page and Transaction'!E34, "") ->  | W25: =IF(OR(B25<>"", G25<>""), IFERROR(INDEX('دیده بان بازار'!K:K, MATCH(IF(B25<>"", B25, G25), 'دیده بان بازار'!A:A, 0)), ""), "") ->  | Z25: 3301650 | AA25: 0 | AB25: -37936692.51
A26: =IF('Landing Page and Transaction'!D35="خرید", 'Landing Page and Transaction'!A35, "") -> فسبزوار_74019 | B26: =IF('Landing Page and Transaction'!D35="خرید", 'Landing Page and Transaction'!B35, "") -> فسبزوار | C26: =IF('Landing Page and Transaction'!D35="خرید", 'Landing Page and Transaction'!E35, "") -> 1403/02/18 | D26: =IF('Landing Page and Transaction'!D35="خرید", 'Landing Page and Transaction'!F35, "") -> 227 | E26: =IF('Landing Page and Transaction'!D35="خرید", 'Landing Page and Transaction'!G35, "") -> 4400 | F26: =IF('Landing Page and Transaction'!D35="خرید", 'Landing Page and Transaction'!H35, "") -> -10025075.46 | G26: =IF('Landing Page and Transaction'!D35="فروش", 'Landing Page and Transaction'!A35, "") ->  | H26: فسبزوار_74019 | I26: =IF('Landing Page and Transaction'!D35="فروش", 'Landing Page and Transaction'!B35, "") ->  | J26: =IF('Landing Page and Transaction'!D35="فروش", 'Landing Page and Transaction'!E35, "") ->  | K26: =IF('Landing Page and Transaction'!D35="فروش", 'Landing Page and Transaction'!F35, "") ->  | L26: =IF('Landing Page and Transaction'!D35="فروش", 'Landing Page and Transaction'!G35, "") ->  | M26: =IF('Landing Page and Transaction'!D35="فروش", 'Landing Page and Transaction'!H35, "") ->  | P26: =IF(OR(B26<>"", G26<>""), IFERROR(INDEX('دیده بان بازار'!K:K, MATCH(IF(B26<>"", B26, G26), 'دیده بان بازار'!A:A, 0)), ""), "") -> 47380 | R26: =IF('Landing Page and Transaction'!D35="واریز", 'Landing Page and Transaction'!H35, "") ->  | S26: =IF('Landing Page and Transaction'!D35="واریز", 'Landing Page and Transaction'!E35, "") ->  | T26: =IF('Landing Page and Transaction'!D35="برداشت", 'Landing Page and Transaction'!H35, "") ->  | U26: =IF('Landing Page and Transaction'!D35="برداشت", 'Landing Page and Transaction'!E35, "") ->  | W26: =IF(OR(B26<>"", G26<>""), IFERROR(INDEX('دیده بان بازار'!K:K, MATCH(IF(B26<>"", B26, G26), 'دیده بان بازار'!A:A, 0)), ""), "") -> 47380 | Z26: -10025075.46 | AA26: 0 | AB26: -47961767.96
A27: =IF('Landing Page and Transaction'!D36="خرید", 'Landing Page and Transaction'!A36, "") -> شفام_75525 | B27: =IF('Landing Page and Transaction'!D36="خرید", 'Landing Page and Transaction'!B36, "") -> شفام | C27: =IF('Landing Page and Transaction'!D36="خرید", 'Landing Page and Transaction'!E36, "") -> 1403/02/26 | D27: =IF('Landing Page and Transaction'!D36="خرید", 'Landing Page and Transaction'!F36, "") -> 140 | E27: =IF('Landing Page and Transaction'!D36="خرید", 'Landing Page and Transaction'!G36, "") -> 8487 | F27: =IF('Landing Page and Transaction'!D36="خرید", 'Landing Page and Transaction'!H36, "") -> -11925905.24 | G27: =IF('Landing Page and Transaction'!D36="فروش", 'Landing Page and Transaction'!A36, "") ->  | H27: سهم مورد نظر هنوز فروخته نشده است | I27: =IF('Landing Page and Transaction'!D36="فروش", 'Landing Page and Transaction'!B36, "") ->  | J27: =IF('Landing Page and Transaction'!D36="فروش", 'Landing Page and Transaction'!E36, "") ->  | K27: =IF('Landing Page and Transaction'!D36="فروش", 'Landing Page and Transaction'!F36, "") ->  | L27: =IF('Landing Page and Transaction'!D36="فروش", 'Landing Page and Transaction'!G36, "") ->  | M27: =IF('Landing Page and Transaction'!D36="فروش", 'Landing Page and Transaction'!H36, "") ->  | P27: =IF(OR(B27<>"", G27<>""), IFERROR(INDEX('دیده بان بازار'!K:K, MATCH(IF(B27<>"", B27, G27), 'دیده بان بازار'!A:A, 0)), ""), "") -> 2863 | R27: =IF('Landing Page and Transaction'!D36="واریز", 'Landing Page and Transaction'!H36, "") ->  | S27: =IF('Landing Page and Transaction'!D36="واریز", 'Landing Page and Transaction'!E36, "") ->  | T27: =IF('Landing Page and Transaction'!D36="برداشت", 'Landing Page and Transaction'!H36, "") ->  | U27: =IF('Landing Page and Transaction'!D36="برداشت", 'Landing Page and Transaction'!E36, "") ->  | W27: =IF(OR(B27<>"", G27<>""), IFERROR(INDEX('دیده بان بازار'!K:K, MATCH(IF(B27<>"", B27, G27), 'دیده بان بازار'!A:A, 0)), ""), "") -> 2863 | Z27: -11925905.24 | AA27: 0 | AB27: -59887673.2
A28: =IF('Landing Page and Transaction'!D37="خرید", 'Landing Page and Transaction'!A37, "") -> سحرخيز_55826 | B28: =IF('Landing Page and Transaction'!D37="خرید", 'Landing Page and Transaction'!B37, "") -> سحرخيز | C28: =IF('Landing Page and Transaction'!D37="خرید", 'Landing Page and Transaction'!E37, "") -> 1403/03/05 | D28: =IF('Landing Page and Transaction'!D37="خرید", 'Landing Page and Transaction'!F37, "") -> 248 | E28: =IF('Landing Page and Transaction'!D37="خرید", 'Landing Page and Transaction'!G37, "") -> 3880 | F28: =IF('Landing Page and Transaction'!D37="خرید", 'Landing Page and Transaction'!H37, "") -> -9658118.349 | G28: =IF('Landing Page and Transaction'!D37="فروش", 'Landing Page and Transaction'!A37, "") ->  | H28: سحرخيز_55826 | I28: =IF('Landing Page and Transaction'!D37="فروش", 'Landing Page and Transaction'!B37, "") ->  | J28: =IF('Landing Page and Transaction'!D37="فروش", 'Landing Page and Transaction'!E37, "") ->  | K28: =IF('Landing Page and Transaction'!D37="فروش", 'Landing Page and Transaction'!F37, "") ->  | L28: =IF('Landing Page and Transaction'!D37="فروش", 'Landing Page and Transaction'!G37, "") ->  | M28: =IF('Landing Page and Transaction'!D37="فروش", 'Landing Page and Transaction'!H37, "") ->  | P28: =IF(OR(B28<>"", G28<>""), IFERROR(INDEX('دیده بان بازار'!K:K, MATCH(IF(B28<>"", B28, G28), 'دیده بان بازار'!A:A, 0)), ""), "") -> 37965 | R28: =IF('Landing Page and Transaction'!D37="واریز", 'Landing Page and Transaction'!H37, "") ->  | S28: =IF('Landing Page and Transaction'!D37="واریز", 'Landing Page and Transaction'!E37, "") ->  | T28: =IF('Landing Page and Transaction'!D37="برداشت", 'Landing Page and Transaction'!H37, "") ->  | U28: =IF('Landing Page and Transaction'!D37="برداشت", 'Landing Page and Transaction'!E37, "") ->  | W28: =IF(OR(B28<>"", G28<>""), IFERROR(INDEX('دیده بان بازار'!K:K, MATCH(IF(B28<>"", B28, G28), 'دیده بان بازار'!A:A, 0)), ""), "") -> 37965 | Z28: -9658118.349 | AA28: 0 | AB28: -69545791.55
A29: =IF('Landing Page and Transaction'!D38="خرید", 'Landing Page and Transaction'!A38, "") -> افران_77462 | B29: =IF('Landing Page and Transaction'!D38="خرید", 'Landing Page and Transaction'!B38, "") -> افران | C29: =IF('Landing Page and Transaction'!D38="خرید", 'Landing Page and Transaction'!E38, "") -> 1403/03/06 | D29: =IF('Landing Page and Transaction'!D38="خرید", 'Landing Page and Transaction'!F38, "") -> 37741 | E29: =IF('Landing Page and Transaction'!D38="خرید", 'Landing Page and Transaction'!G38, "") -> 2649 | F29: =IF('Landing Page and Transaction'!D38="خرید", 'Landing Page and Transaction'!H38, "") -> -1003470196 | G29: =IF('Landing Page and Transaction'!D38="فروش", 'Landing Page and Transaction'!A38, "") ->  | H29: افران_77462 | I29: =IF('Landing Page and Transaction'!D38="فروش", 'Landing Page and Transaction'!B38, "") ->  | J29: =IF('Landing Page and Transaction'!D38="فروش", 'Landing Page and Transaction'!E38, "") ->  | K29: =IF('Landing Page and Transaction'!D38="فروش", 'Landing Page and Transaction'!F38, "") ->  | L29: =IF('Landing Page and Transaction'!D38="فروش", 'Landing Page and Transaction'!G38, "") ->  | M29: =IF('Landing Page and Transaction'!D38="فروش", 'Landing Page and Transaction'!H38, "") ->  | P29: =IF(OR(B29<>"", G29<>""), IFERROR(INDEX('دیده بان بازار'!K:K, MATCH(IF(B29<>"", B29, G29), 'دیده بان بازار'!A:A, 0)), ""), "") -> 30523 | R29: =IF('Landing Page and Transaction'!D38="واریز", 'Landing Page and Transaction'!H38, "") ->  | S29: =IF('Landing Page and Transaction'!D38="واریز", 'Landing Page and Transaction'!E38, "") ->  | T29: =IF('Landing Page and Transaction'!D38="برداشت", 'Landing Page and Transaction'!H38, "") ->  | U29: =IF('Landing Page and Transaction'!D38="برداشت", 'Landing Page and Transaction'!E38, "") ->  | W29: =IF(OR(B29<>"", G29<>""), IFERROR(INDEX('دیده بان بازار'!K:K, MATCH(IF(B29<>"", B29, G29), 'دیده بان بازار'!A:A, 0)), ""), "") -> 30523 | Z29: -1003470196 | AA29: 0 | AB29: -1073015987
A30: =IF('Landing Page and Transaction'!D39="خرید", 'Landing Page and Transaction'!A39, "") ->  | B30: =IF('Landing Page and Transaction'!D39="خرید", 'Landing Page and Transaction'!B39, "") ->  | C30: =IF('Landing Page and Transaction'!D39="خرید", 'Landing Page and Transaction'!E39, "") ->  | D30: =IF('Landing Page and Transaction'!D39="خرید", 'Landing Page and Transaction'!F39, "") ->  | E30: =IF('Landing Page and Transaction'!D39="خرید", 'Landing Page and Transaction'!G39, "") ->  | F30: =IF('Landing Page and Transaction'!D39="خرید", 'Landing Page and Transaction'!H39, "") ->  | G30: =IF('Landing Page and Transaction'!D39="فروش", 'Landing Page and Transaction'!A39, "") ->  | I30: =IF('Landing Page and Transaction'!D39="فروش", 'Landing Page and Transaction'!B39, "") ->  | J30: =IF('Landing Page and Transaction'!D39="فروش", 'Landing Page and Transaction'!E39, "") ->  | K30: =IF('Landing Page and Transaction'!D39="فروش", 'Landing Page and Transaction'!F39, "") ->  | L30: =IF('Landing Page and Transaction'!D39="فروش", 'Landing Page and Transaction'!G39, "") ->  | M30: =IF('Landing Page and Transaction'!D39="فروش", 'Landing Page and Transaction'!H39, "") ->  | P30: =IF(OR(B30<>"", G30<>""), IFERROR(INDEX('دیده بان بازار'!K:K, MATCH(IF(B30<>"", B30, G30), 'دیده بان بازار'!A:A, 0)), ""), "") ->  | R30: =IF('Landing Page and Transaction'!D39="واریز", 'Landing Page and Transaction'!H39, "") -> 1000000000 | S30: =IF('Landing Page and Transaction'!D39="واریز", 'Landing Page and Transaction'!E39, "") -> 1403/03/06 | T30: =IF('Landing Page and Transaction'!D39="برداشت", 'Landing Page and Transaction'!H39, "") ->  | U30: =IF('Landing Page and Transaction'!D39="برداشت", 'Landing Page and Transaction'!E39, "") ->  | W30: =IF(OR(B30<>"", G30<>""), IFERROR(INDEX('دیده بان بازار'!K:K, MATCH(IF(B30<>"", B30, G30), 'دیده بان بازار'!A:A, 0)), ""), "") ->  | Z30: 0 | AA30: 1000000000 | AB30: -73015987.29
A31: =IF('Landing Page and Transaction'!D40="خرید", 'Landing Page and Transaction'!A40, "") -> نيان_14744 | B31: =IF('Landing Page and Transaction'!D40="خرید", 'Landing Page and Transaction'!B40, "") -> نيان | C31: =IF('Landing Page and Transaction'!D40="خرید", 'Landing Page and Transaction'!E40, "") -> 1403/03/08 | D31: =IF('Landing Page and Transaction'!D40="خرید", 'Landing Page and Transaction'!F40, "") -> 560 | E31: =IF('Landing Page and Transaction'!D40="خرید", 'Landing Page and Transaction'!G40, "") -> 3615 | F31: =IF('Landing Page and Transaction'!D40="خرید", 'Landing Page and Transaction'!H40, "") -> -20319145.73 | G31: =IF('Landing Page and Transaction'!D40="فروش", 'Landing Page and Transaction'!A40, "") ->  | H31: نيان_14744 | I31: =IF('Landing Page and Transaction'!D40="فروش", 'Landing Page and Transaction'!B40, "") ->  | J31: =IF('Landing Page and Transaction'!D40="فروش", 'Landing Page and Transaction'!E40, "") ->  | K31: =IF('Landing Page and Transaction'!D40="فروش", 'Landing Page and Transaction'!F40, "") ->  | L31: =IF('Landing Page and Transaction'!D40="فروش", 'Landing Page and Transaction'!G40, "") ->  | M31: =IF('Landing Page and Transaction'!D40="فروش", 'Landing Page and Transaction'!H40, "") ->  | P31: =IF(OR(B31<>"", G31<>""), IFERROR(INDEX('دیده بان بازار'!K:K, MATCH(IF(B31<>"", B31, G31), 'دیده بان بازار'!A:A, 0)), ""), "") -> 11710 | R31: =IF('Landing Page and Transaction'!D40="واریز", 'Landing Page and Transaction'!H40, "") ->  | S31: =IF('Landing Page and Transaction'!D40="واریز", 'Landing Page and Transaction'!E40, "") ->  | T31: =IF('Landing Page and Transaction'!D40="برداشت", 'Landing Page and Transaction'!H40, "") ->  | U31: =IF('Landing Page and Transaction'!D40="برداشت", 'Landing Page and Transaction'!E40, "") ->  | W31: =IF(OR(B31<>"", G31<>""), IFERROR(INDEX('دیده بان بازار'!K:K, MATCH(IF(B31<>"", B31, G31), 'دیده بان بازار'!A:A, 0)), ""), "") -> 11710 | Z31: -20319145.73 | AA31: 0 | AB31: -93335133.02
A32: =IF('Landing Page and Transaction'!D41="خرید", 'Landing Page and Transaction'!A41, "") -> نخريس_65478 | B32: =IF('Landing Page and Transaction'!D41="خرید", 'Landing Page and Transaction'!B41, "") -> نخريس | C32: =IF('Landing Page and Transaction'!D41="خرید", 'Landing Page and Transaction'!E41, "") -> 1403/03/08 | D32: =IF('Landing Page and Transaction'!D41="خرید", 'Landing Page and Transaction'!F41, "") -> 839 | E32: =IF('Landing Page and Transaction'!D41="خرید", 'Landing Page and Transaction'!G41, "") -> 2360 | F32: =IF('Landing Page and Transaction'!D41="خرید", 'Landing Page and Transaction'!H41, "") -> -19873899.08 | G32: =IF('Landing Page and Transaction'!D41="فروش", 'Landing Page and Transaction'!A41, "") ->  | H32: نخريس_65478 | I32: =IF('Landing Page and Transaction'!D41="فروش", 'Landing Page and Transaction'!B41, "") ->  | J32: =IF('Landing Page and Transaction'!D41="فروش", 'Landing Page and Transaction'!E41, "") ->  | K32: =IF('Landing Page and Transaction'!D41="فروش", 'Landing Page and Transaction'!F41, "") ->  | L32: =IF('Landing Page and Transaction'!D41="فروش", 'Landing Page and Transaction'!G41, "") ->  | M32: =IF('Landing Page and Transaction'!D41="فروش", 'Landing Page and Transaction'!H41, "") ->  | P32: =IF(OR(B32<>"", G32<>""), IFERROR(INDEX('دیده بان بازار'!K:K, MATCH(IF(B32<>"", B32, G32), 'دیده بان بازار'!A:A, 0)), ""), "") -> 20540 | R32: =IF('Landing Page and Transaction'!D41="واریز", 'Landing Page and Transaction'!H41, "") ->  | S32: =IF('Landing Page and Transaction'!D41="واریز", 'Landing Page and Transaction'!E41, "") ->  | T32: =IF('Landing Page and Transaction'!D41="برداشت", 'Landing Page and Transaction'!H41, "") ->  | U32: =IF('Landing Page and Transaction'!D41="برداشت", 'Landing Page and Transaction'!E41, "") ->  | W32: =IF(OR(B32<>"", G32<>""), IFERROR(INDEX('دیده بان بازار'!K:K, MATCH(IF(B32<>"", B32, G32), 'دیده بان بازار'!A:A, 0)), ""), "") -> 20540 | Z32: -19873899.08 | AA32: 0 | AB32: -113209032.1
A33: =IF('Landing Page and Transaction'!D42="خرید", 'Landing Page and Transaction'!A42, "") ->  | B33: =IF('Landing Page and Transaction'!D42="خرید", 'Landing Page and Transaction'!B42, "") ->  | C33: =IF('Landing Page and Transaction'!D42="خرید", 'Landing Page and Transaction'!E42, "") ->  | D33: =IF('Landing Page and Transaction'!D42="خرید", 'Landing Page and Transaction'!F42, "") ->  | E33: =IF('Landing Page and Transaction'!D42="خرید", 'Landing Page and Transaction'!G42, "") ->  | F33: =IF('Landing Page and Transaction'!D42="خرید", 'Landing Page and Transaction'!H42, "") ->  | G33: =IF('Landing Page and Transaction'!D42="فروش", 'Landing Page and Transaction'!A42, "") -> نخريس_65478 | I33: =IF('Landing Page and Transaction'!D42="فروش", 'Landing Page and Transaction'!B42, "") -> نخريس | J33: =IF('Landing Page and Transaction'!D42="فروش", 'Landing Page and Transaction'!E42, "") -> 1403/03/08 | K33: =IF('Landing Page and Transaction'!D42="فروش", 'Landing Page and Transaction'!F42, "") -> 839 | L33: =IF('Landing Page and Transaction'!D42="فروش", 'Landing Page and Transaction'!G42, "") -> 2425 | M33: =IF('Landing Page and Transaction'!D42="فروش", 'Landing Page and Transaction'!H42, "") -> 20166707.4 | P33: =IF(OR(B33<>"", G33<>""), IFERROR(INDEX('دیده بان بازار'!K:K, MATCH(IF(B33<>"", B33, G33), 'دیده بان بازار'!A:A, 0)), ""), "") ->  | R33: =IF('Landing Page and Transaction'!D42="واریز", 'Landing Page and Transaction'!H42, "") ->  | S33: =IF('Landing Page and Transaction'!D42="واریز", 'Landing Page and Transaction'!E42, "") ->  | T33: =IF('Landing Page and Transaction'!D42="برداشت", 'Landing Page and Transaction'!H42, "") ->  | U33: =IF('Landing Page and Transaction'!D42="برداشت", 'Landing Page and Transaction'!E42, "") ->  | W33: =IF(OR(B33<>"", G33<>""), IFERROR(INDEX('دیده بان بازار'!K:K, MATCH(IF(B33<>"", B33, G33), 'دیده بان بازار'!A:A, 0)), ""), "") ->  | Z33: 0 | AA33: 20166707.4 | AB33: -93042324.71
A34: =IF('Landing Page and Transaction'!D43="خرید", 'Landing Page and Transaction'!A43, "") ->  | B34: =IF('Landing Page and Transaction'!D43="خرید", 'Landing Page and Transaction'!B43, "") ->  | C34: =IF('Landing Page and Transaction'!D43="خرید", 'Landing Page and Transaction'!E43, "") ->  | D34: =IF('Landing Page and Transaction'!D43="خرید", 'Landing Page and Transaction'!F43, "") ->  | E34: =IF('Landing Page and Transaction'!D43="خرید", 'Landing Page and Transaction'!G43, "") ->  | F34: =IF('Landing Page and Transaction'!D43="خرید", 'Landing Page and Transaction'!H43, "") ->  | G34: =IF('Landing Page and Transaction'!D43="فروش", 'Landing Page and Transaction'!A43, "") -> افران_77462 | I34: =IF('Landing Page and Transaction'!D43="فروش", 'Landing Page and Transaction'!B43, "") -> افران | J34: =IF('Landing Page and Transaction'!D43="فروش", 'Landing Page and Transaction'!E43, "") -> 1403/03/08 | K34: =IF('Landing Page and Transaction'!D43="فروش", 'Landing Page and Transaction'!F43, "") -> 16578 | L34: =IF('Landing Page and Transaction'!D43="فروش", 'Landing Page and Transaction'!G43, "") -> 2653 | M34: =IF('Landing Page and Transaction'!D43="فروش", 'Landing Page and Transaction'!H43, "") -> 435943973.8 | P34: =IF(OR(B34<>"", G34<>""), IFERROR(INDEX('دیده بان بازار'!K:K, MATCH(IF(B34<>"", B34, G34), 'دیده بان بازار'!A:A, 0)), ""), "") ->  | R34: =IF('Landing Page and Transaction'!D43="واریز", 'Landing Page and Transaction'!H43, "") ->  | S34: =IF('Landing Page and Transaction'!D43="واریز", 'Landing Page and Transaction'!E43, "") ->  | T34: =IF('Landing Page and Transaction'!D43="برداشت", 'Landing Page and Transaction'!H43, "") ->  | U34: =IF('Landing Page and Transaction'!D43="برداشت", 'Landing Page and Transaction'!E43, "") ->  | W34: =IF(OR(B34<>"", G34<>""), IFERROR(INDEX('دیده بان بازار'!K:K, MATCH(IF(B34<>"", B34, G34), 'دیده بان بازار'!A:A, 0)), ""), "") ->  | Z34: 0 | AA34: 435943973.8 | AB34: 342901649.1
A35: =IF('Landing Page and Transaction'!D44="خرید", 'Landing Page and Transaction'!A44, "") -> سحرخيز_55826 | B35: =IF('Landing Page and Transaction'!D44="خرید", 'Landing Page and Transaction'!B44, "") -> سحرخيز | C35: =IF('Landing Page and Transaction'!D44="خرید", 'Landing Page and Transaction'!E44, "") -> 1403/03/08 | D35: =IF('Landing Page and Transaction'!D44="خرید", 'Landing Page and Transaction'!F44, "") -> 303 | E35: =IF('Landing Page and Transaction'!D44="خرید", 'Landing Page and Transaction'!G44, "") -> 3924 | F35: =IF('Landing Page and Transaction'!D44="خرید", 'Landing Page and Transaction'!H44, "") -> -11933854.64 | G35: =IF('Landing Page and Transaction'!D44="فروش", 'Landing Page and Transaction'!A44, "") ->  | H35: سحرخيز_55826 | I35: =IF('Landing Page and Transaction'!D44="فروش", 'Landing Page and Transaction'!B44, "") ->  | J35: =IF('Landing Page and Transaction'!D44="فروش", 'Landing Page and Transaction'!E44, "") ->  | K35: =IF('Landing Page and Transaction'!D44="فروش", 'Landing Page and Transaction'!F44, "") ->  | L35: =IF('Landing Page and Transaction'!D44="فروش", 'Landing Page and Transaction'!G44, "") ->  | M35: =IF('Landing Page and Transaction'!D44="فروش", 'Landing Page and Transaction'!H44, "") ->  | P35: =IF(OR(B35<>"", G35<>""), IFERROR(INDEX('دیده بان بازار'!K:K, MATCH(IF(B35<>"", B35, G35), 'دیده بان بازار'!A:A, 0)), ""), "") -> 37965 | R35: =IF('Landing Page and Transaction'!D44="واریز", 'Landing Page and Transaction'!H44, "") ->  | S35: =IF('Landing Page and Transaction'!D44="واریز", 'Landing Page and Transaction'!E44, "") ->  | T35: =IF('Landing Page and Transaction'!D44="برداشت", 'Landing Page and Transaction'!H44, "") ->  | U35: =IF('Landing Page and Transaction'!D44="برداشت", 'Landing Page and Transaction'!E44, "") ->  | W35: =IF(OR(B35<>"", G35<>""), IFERROR(INDEX('دیده بان بازار'!K:K, MATCH(IF(B35<>"", B35, G35), 'دیده بان بازار'!A:A, 0)), ""), "") -> 37965 | Z35: =IF(AND(F35<>"", T35<>""), F35 + T35, IF(F35<>"", F35, IF(T35<>"", T35, 0))) -> -11933854.64 | AA35: =IF(AND(M35<>"", R35<>""), M35 + R35, IF(M35<>"", M35, IF(R35<>"", R35, 0))) -> 0 | AB35: 330967794.5
A36: =IF('Landing Page and Transaction'!D45="خرید", 'Landing Page and Transaction'!A45, "") -> سكه0312پ01_60244 | B36: =IF('Landing Page and Transaction'!D45="خرید", 'Landing Page and Transaction'!B45, "") -> سكه0312پ01 | C36: =IF('Landing Page and Transaction'!D45="خرید", 'Landing Page and Transaction'!E45, "") -> 1403/03/08 | D36: =IF('Landing Page and Transaction'!D45="خرید", 'Landing Page and Transaction'!F45, "") -> 100 | E36: =IF('Landing Page and Transaction'!D45="خرید", 'Landing Page and Transaction'!G45, "") -> 407399 | F36: =IF('Landing Page and Transaction'!D45="خرید", 'Landing Page and Transaction'!H45, "") -> -408911265.1 | G36: =IF('Landing Page and Transaction'!D45="فروش", 'Landing Page and Transaction'!A45, "") ->  | H36: سهم مورد نظر هنوز فروخته نشده است | I36: =IF('Landing Page and Transaction'!D45="فروش", 'Landing Page and Transaction'!B45, "") ->  | J36: =IF('Landing Page and Transaction'!D45="فروش", 'Landing Page and Transaction'!E45, "") ->  | K36: =IF('Landing Page and Transaction'!D45="فروش", 'Landing Page and Transaction'!F45, "") ->  | L36: =IF('Landing Page and Transaction'!D45="فروش", 'Landing Page and Transaction'!G45, "") ->  | M36: =IF('Landing Page and Transaction'!D45="فروش", 'Landing Page and Transaction'!H45, "") ->  | P36: =IF(OR(B36<>"", G36<>""), IFERROR(INDEX('دیده بان بازار'!K:K, MATCH(IF(B36<>"", B36, G36), 'دیده بان بازار'!A:A, 0)), ""), "") -> 5073861 | R36: =IF('Landing Page and Transaction'!D45="واریز", 'Landing Page and Transaction'!H45, "") ->  | S36: =IF('Landing Page and Transaction'!D45="واریز", 'Landing Page and Transaction'!E45, "") ->  | T36: =IF('Landing Page and Transaction'!D45="برداشت", 'Landing Page and Transaction'!H45, "") ->  | U36: =IF('Landing Page and Transaction'!D45="برداشت", 'Landing Page and Transaction'!E45, "") ->  | W36: =IF(OR(B36<>"", G36<>""), IFERROR(INDEX('دیده بان بازار'!K:K, MATCH(IF(B36<>"", B36, G36), 'دیده بان بازار'!A:A, 0)), ""), "") -> 5073861 | Z36: -408911265.1 | AA36: 0 | AB36: -77943470.63
A37: =IF('Landing Page and Transaction'!D46="خرید", 'Landing Page and Transaction'!A46, "") -> توريل_17325 | B37: =IF('Landing Page and Transaction'!D46="خرید", 'Landing Page and Transaction'!B46, "") -> توريل | C37: =IF('Landing Page and Transaction'!D46="خرید", 'Landing Page and Transaction'!E46, "") -> 1403/03/09 | D37: =IF('Landing Page and Transaction'!D46="خرید", 'Landing Page and Transaction'!F46, "") -> 4068 | E37: =IF('Landing Page and Transaction'!D46="خرید", 'Landing Page and Transaction'!G46, "") -> 492 | F37: =IF('Landing Page and Transaction'!D46="خرید", 'Landing Page and Transaction'!H46, "") -> -20088854.05 | G37: =IF('Landing Page and Transaction'!D46="فروش", 'Landing Page and Transaction'!A46, "") ->  | H37: توريل_17325 | I37: =IF('Landing Page and Transaction'!D46="فروش", 'Landing Page and Transaction'!B46, "") ->  | J37: =IF('Landing Page and Transaction'!D46="فروش", 'Landing Page and Transaction'!E46, "") ->  | K37: =IF('Landing Page and Transaction'!D46="فروش", 'Landing Page and Transaction'!F46, "") ->  | L37: =IF('Landing Page and Transaction'!D46="فروش", 'Landing Page and Transaction'!G46, "") ->  | M37: =IF('Landing Page and Transaction'!D46="فروش", 'Landing Page and Transaction'!H46, "") ->  | P37: =IF(OR(B37<>"", G37<>""), IFERROR(INDEX('دیده بان بازار'!K:K, MATCH(IF(B37<>"", B37, G37), 'دیده بان بازار'!A:A, 0)), ""), "") -> 5730 | R37: =IF('Landing Page and Transaction'!D46="واریز", 'Landing Page and Transaction'!H46, "") ->  | S37: =IF('Landing Page and Transaction'!D46="واریز", 'Landing Page and Transaction'!E46, "") ->  | T37: =IF('Landing Page and Transaction'!D46="برداشت", 'Landing Page and Transaction'!H46, "") ->  | U37: =IF('Landing Page and Transaction'!D46="برداشت", 'Landing Page and Transaction'!E46, "") ->  | W37: =IF(OR(B37<>"", G37<>""), IFERROR(INDEX('دیده بان بازار'!K:K, MATCH(IF(B37<>"", B37, G37), 'دیده بان بازار'!A:A, 0)), ""), "") -> 5730 | Z37: -20088854.05 | AA37: 0 | AB37: -98032324.67
A38: =IF('Landing Page and Transaction'!D47="خرید", 'Landing Page and Transaction'!A47, "") -> خفنر_87129 | B38: =IF('Landing Page and Transaction'!D47="خرید", 'Landing Page and Transaction'!B47, "") -> خفنر | C38: =IF('Landing Page and Transaction'!D47="خرید", 'Landing Page and Transaction'!E47, "") -> 1403/03/09 | D38: =IF('Landing Page and Transaction'!D47="خرید", 'Landing Page and Transaction'!F47, "") -> 6048 | E38: =IF('Landing Page and Transaction'!D47="خرید", 'Landing Page and Transaction'!G47, "") -> 656 | F38: =IF('Landing Page and Transaction'!D47="خرید", 'Landing Page and Transaction'!H47, "") -> -39822153.15 | G38: =IF('Landing Page and Transaction'!D47="فروش", 'Landing Page and Transaction'!A47, "") ->  | H38: خفنر_87129 | I38: =IF('Landing Page and Transaction'!D47="فروش", 'Landing Page and Transaction'!B47, "") ->  | J38: =IF('Landing Page and Transaction'!D47="فروش", 'Landing Page and Transaction'!E47, "") ->  | K38: =IF('Landing Page and Transaction'!D47="فروش", 'Landing Page and Transaction'!F47, "") ->  | L38: =IF('Landing Page and Transaction'!D47="فروش", 'Landing Page and Transaction'!G47, "") ->  | M38: =IF('Landing Page and Transaction'!D47="فروش", 'Landing Page and Transaction'!H47, "") ->  | P38: =IF(OR(B38<>"", G38<>""), IFERROR(INDEX('دیده بان بازار'!K:K, MATCH(IF(B38<>"", B38, G38), 'دیده بان بازار'!A:A, 0)), ""), "") -> 4382 | R38: =IF('Landing Page and Transaction'!D47="واریز", 'Landing Page and Transaction'!H47, "") ->  | S38: =IF('Landing Page and Transaction'!D47="واریز", 'Landing Page and Transaction'!E47, "") ->  | T38: =IF('Landing Page and Transaction'!D47="برداشت", 'Landing Page and Transaction'!H47, "") ->  | U38: =IF('Landing Page and Transaction'!D47="برداشت", 'Landing Page and Transaction'!E47, "") ->  | W38: =IF(OR(B38<>"", G38<>""), IFERROR(INDEX('دیده بان بازار'!K:K, MATCH(IF(B38<>"", B38, G38), 'دیده بان بازار'!A:A, 0)), ""), "") -> 4382 | Z38: -39822153.15 | AA38: 0 | AB38: -137854477.8
A39: =IF('Landing Page and Transaction'!D48="خرید", 'Landing Page and Transaction'!A48, "") ->  | B39: =IF('Landing Page and Transaction'!D48="خرید", 'Landing Page and Transaction'!B48, "") ->  | C39: =IF('Landing Page and Transaction'!D48="خرید", 'Landing Page and Transaction'!E48, "") ->  | D39: =IF('Landing Page and Transaction'!D48="خرید", 'Landing Page and Transaction'!F48, "") ->  | E39: =IF('Landing Page and Transaction'!D48="خرید", 'Landing Page and Transaction'!G48, "") ->  | F39: =IF('Landing Page and Transaction'!D48="خرید", 'Landing Page and Transaction'!H48, "") ->  | G39: =IF('Landing Page and Transaction'!D48="فروش", 'Landing Page and Transaction'!A48, "") -> افران_77462 | I39: =IF('Landing Page and Transaction'!D48="فروش", 'Landing Page and Transaction'!B48, "") -> افران | J39: =IF('Landing Page and Transaction'!D48="فروش", 'Landing Page and Transaction'!E48, "") -> 1403/03/09 | K39: =IF('Landing Page and Transaction'!D48="فروش", 'Landing Page and Transaction'!F48, "") -> 2257 | L39: =IF('Landing Page and Transaction'!D48="فروش", 'Landing Page and Transaction'!G48, "") -> 2658 | M39: =IF('Landing Page and Transaction'!D48="فروش", 'Landing Page and Transaction'!H48, "") -> 59463138.67 | P39: =IF(OR(B39<>"", G39<>""), IFERROR(INDEX('دیده بان بازار'!K:K, MATCH(IF(B39<>"", B39, G39), 'دیده بان بازار'!A:A, 0)), ""), "") ->  | R39: =IF('Landing Page and Transaction'!D48="واریز", 'Landing Page and Transaction'!H48, "") ->  | S39: =IF('Landing Page and Transaction'!D48="واریز", 'Landing Page and Transaction'!E48, "") ->  | T39: =IF('Landing Page and Transaction'!D48="برداشت", 'Landing Page and Transaction'!H48, "") ->  | U39: =IF('Landing Page and Transaction'!D48="برداشت", 'Landing Page and Transaction'!E48, "") ->  | W39: =IF(OR(B39<>"", G39<>""), IFERROR(INDEX('دیده بان بازار'!K:K, MATCH(IF(B39<>"", B39, G39), 'دیده بان بازار'!A:A, 0)), ""), "") ->  | Z39: 0 | AA39: 59463138.67 | AB39: -78391339.16
A40: =IF('Landing Page and Transaction'!D49="خرید", 'Landing Page and Transaction'!A49, "") ->  | B40: =IF('Landing Page and Transaction'!D49="خرید", 'Landing Page and Transaction'!B49, "") ->  | C40: =IF('Landing Page and Transaction'!D49="خرید", 'Landing Page and Transaction'!E49, "") ->  | D40: =IF('Landing Page and Transaction'!D49="خرید", 'Landing Page and Transaction'!F49, "") ->  | E40: =IF('Landing Page and Transaction'!D49="خرید", 'Landing Page and Transaction'!G49, "") ->  | F40: =IF('Landing Page and Transaction'!D49="خرید", 'Landing Page and Transaction'!H49, "") ->  | G40: =IF('Landing Page and Transaction'!D49="فروش", 'Landing Page and Transaction'!A49, "") -> نيان_14744 | I40: =IF('Landing Page and Transaction'!D49="فروش", 'Landing Page and Transaction'!B49, "") -> نيان | J40: =IF('Landing Page and Transaction'!D49="فروش", 'Landing Page and Transaction'!E49, "") -> 1403/03/13 | K40: =IF('Landing Page and Transaction'!D49="فروش", 'Landing Page and Transaction'!F49, "") -> 560 | L40: =IF('Landing Page and Transaction'!D49="فروش", 'Landing Page and Transaction'!G49, "") -> 3575 | M40: =IF('Landing Page and Transaction'!D49="فروش", 'Landing Page and Transaction'!H49, "") -> 19843824 | P40: =IF(OR(B40<>"", G40<>""), IFERROR(INDEX('دیده بان بازار'!K:K, MATCH(IF(B40<>"", B40, G40), 'دیده بان بازار'!A:A, 0)), ""), "") ->  | R40: =IF('Landing Page and Transaction'!D49="واریز", 'Landing Page and Transaction'!H49, "") ->  | S40: =IF('Landing Page and Transaction'!D49="واریز", 'Landing Page and Transaction'!E49, "") ->  | T40: =IF('Landing Page and Transaction'!D49="برداشت", 'Landing Page and Transaction'!H49, "") ->  | U40: =IF('Landing Page and Transaction'!D49="برداشت", 'Landing Page and Transaction'!E49, "") ->  | W40: =IF(OR(B40<>"", G40<>""), IFERROR(INDEX('دیده بان بازار'!K:K, MATCH(IF(B40<>"", B40, G40), 'دیده بان بازار'!A:A, 0)), ""), "") ->  | Z40: 0 | AA40: 19843824 | AB40: -58547515.16
A41: =IF('Landing Page and Transaction'!D50="خرید", 'Landing Page and Transaction'!A50, "") ->  | B41: =IF('Landing Page and Transaction'!D50="خرید", 'Landing Page and Transaction'!B50, "") ->  | C41: =IF('Landing Page and Transaction'!D50="خرید", 'Landing Page and Transaction'!E50, "") ->  | D41: =IF('Landing Page and Transaction'!D50="خرید", 'Landing Page and Transaction'!F50, "") ->  | E41: =IF('Landing Page and Transaction'!D50="خرید", 'Landing Page and Transaction'!G50, "") ->  | F41: =IF('Landing Page and Transaction'!D50="خرید", 'Landing Page and Transaction'!H50, "") ->  | G41: =IF('Landing Page and Transaction'!D50="فروش", 'Landing Page and Transaction'!A50, "") -> افران_77462 | I41: =IF('Landing Page and Transaction'!D50="فروش", 'Landing Page and Transaction'!B50, "") -> افران | J41: =IF('Landing Page and Transaction'!D50="فروش", 'Landing Page and Transaction'!E50, "") -> 1403/03/19 | K41: =IF('Landing Page and Transaction'!D50="فروش", 'Landing Page and Transaction'!F50, "") -> 187 | L41: =IF('Landing Page and Transaction'!D50="فروش", 'Landing Page and Transaction'!G50, "") -> 2474 | M41: =IF('Landing Page and Transaction'!D50="فروش", 'Landing Page and Transaction'!H50, "") -> 4585667.856 | P41: =IF(OR(B41<>"", G41<>""), IFERROR(INDEX('دیده بان بازار'!K:K, MATCH(IF(B41<>"", B41, G41), 'دیده بان بازار'!A:A, 0)), ""), "") ->  | R41: =IF('Landing Page and Transaction'!D50="واریز", 'Landing Page and Transaction'!H50, "") ->  | S41: =IF('Landing Page and Transaction'!D50="واریز", 'Landing Page and Transaction'!E50, "") ->  | T41: =IF('Landing Page and Transaction'!D50="برداشت", 'Landing Page and Transaction'!H50, "") ->  | U41: =IF('Landing Page and Transaction'!D50="برداشت", 'Landing Page and Transaction'!E50, "") ->  | W41: =IF(OR(B41<>"", G41<>""), IFERROR(INDEX('دیده بان بازار'!K:K, MATCH(IF(B41<>"", B41, G41), 'دیده بان بازار'!A:A, 0)), ""), "") ->  | Z41: 0 | AA41: 4585667.856 | AB41: -53961847.3
A42: =IF('Landing Page and Transaction'!D51="خرید", 'Landing Page and Transaction'!A51, "") ->  | B42: =IF('Landing Page and Transaction'!D51="خرید", 'Landing Page and Transaction'!B51, "") ->  | C42: =IF('Landing Page and Transaction'!D51="خرید", 'Landing Page and Transaction'!E51, "") ->  | D42: =IF('Landing Page and Transaction'!D51="خرید", 'Landing Page and Transaction'!F51, "") ->  | E42: =IF('Landing Page and Transaction'!D51="خرید", 'Landing Page and Transaction'!G51, "") ->  | F42: =IF('Landing Page and Transaction'!D51="خرید", 'Landing Page and Transaction'!H51, "") ->  | G42: =IF('Landing Page and Transaction'!D51="فروش", 'Landing Page and Transaction'!A51, "") -> توريل_17325 | I42: =IF('Landing Page and Transaction'!D51="فروش", 'Landing Page and Transaction'!B51, "") -> توريل | J42: =IF('Landing Page and Transaction'!D51="فروش", 'Landing Page and Transaction'!E51, "") -> 1403/03/22 | K42: =IF('Landing Page and Transaction'!D51="فروش", 'Landing Page and Transaction'!F51, "") -> 4068 | L42: =IF('Landing Page and Transaction'!D51="فروش", 'Landing Page and Transaction'!G51, "") -> 436 | M42: =IF('Landing Page and Transaction'!D51="فروش", 'Landing Page and Transaction'!H51, "") -> 17580398.98 | P42: =IF(OR(B42<>"", G42<>""), IFERROR(INDEX('دیده بان بازار'!K:K, MATCH(IF(B42<>"", B42, G42), 'دیده بان بازار'!A:A, 0)), ""), "") ->  | R42: =IF('Landing Page and Transaction'!D51="واریز", 'Landing Page and Transaction'!H51, "") ->  | S42: =IF('Landing Page and Transaction'!D51="واریز", 'Landing Page and Transaction'!E51, "") ->  | T42: =IF('Landing Page and Transaction'!D51="برداشت", 'Landing Page and Transaction'!H51, "") ->  | U42: =IF('Landing Page and Transaction'!D51="برداشت", 'Landing Page and Transaction'!E51, "") ->  | W42: =IF(OR(B42<>"", G42<>""), IFERROR(INDEX('دیده بان بازار'!K:K, MATCH(IF(B42<>"", B42, G42), 'دیده بان بازار'!A:A, 0)), ""), "") ->  | Z42: 0 | AA42: 17580398.98 | AB42: -36381448.33
A43: =IF('Landing Page and Transaction'!D52="خرید", 'Landing Page and Transaction'!A52, "") ->  | B43: =IF('Landing Page and Transaction'!D52="خرید", 'Landing Page and Transaction'!B52, "") ->  | C43: =IF('Landing Page and Transaction'!D52="خرید", 'Landing Page and Transaction'!E52, "") ->  | D43: =IF('Landing Page and Transaction'!D52="خرید", 'Landing Page and Transaction'!F52, "") ->  | E43: =IF('Landing Page and Transaction'!D52="خرید", 'Landing Page and Transaction'!G52, "") ->  | F43: =IF('Landing Page and Transaction'!D52="خرید", 'Landing Page and Transaction'!H52, "") ->  | G43: =IF('Landing Page and Transaction'!D52="فروش", 'Landing Page and Transaction'!A52, "") -> فسبزوار_74019 | I43: =IF('Landing Page and Transaction'!D52="فروش", 'Landing Page and Transaction'!B52, "") -> فسبزوار | J43: =IF('Landing Page and Transaction'!D52="فروش", 'Landing Page and Transaction'!E52, "") -> 1403/03/27 | K43: =IF('Landing Page and Transaction'!D52="فروش", 'Landing Page and Transaction'!F52, "") -> 227 | L43: =IF('Landing Page and Transaction'!D52="فروش", 'Landing Page and Transaction'!G52, "") -> 3851 | M43: =IF('Landing Page and Transaction'!D52="فروش", 'Landing Page and Transaction'!H52, "") -> 8664842.424 | P43: =IF(OR(B43<>"", G43<>""), IFERROR(INDEX('دیده بان بازار'!K:K, MATCH(IF(B43<>"", B43, G43), 'دیده بان بازار'!A:A, 0)), ""), "") ->  | R43: =IF('Landing Page and Transaction'!D52="واریز", 'Landing Page and Transaction'!H52, "") ->  | S43: =IF('Landing Page and Transaction'!D52="واریز", 'Landing Page and Transaction'!E52, "") ->  | T43: =IF('Landing Page and Transaction'!D52="برداشت", 'Landing Page and Transaction'!H52, "") ->  | U43: =IF('Landing Page and Transaction'!D52="برداشت", 'Landing Page and Transaction'!E52, "") ->  | W43: =IF(OR(B43<>"", G43<>""), IFERROR(INDEX('دیده بان بازار'!K:K, MATCH(IF(B43<>"", B43, G43), 'دیده بان بازار'!A:A, 0)), ""), "") ->  | Z43: 0 | AA43: 8664842.424 | AB43: -27716605.9
A44: =IF('Landing Page and Transaction'!D53="خرید", 'Landing Page and Transaction'!A53, "") ->  | B44: =IF('Landing Page and Transaction'!D53="خرید", 'Landing Page and Transaction'!B53, "") ->  | C44: =IF('Landing Page and Transaction'!D53="خرید", 'Landing Page and Transaction'!E53, "") ->  | D44: =IF('Landing Page and Transaction'!D53="خرید", 'Landing Page and Transaction'!F53, "") ->  | E44: =IF('Landing Page and Transaction'!D53="خرید", 'Landing Page and Transaction'!G53, "") ->  | F44: =IF('Landing Page and Transaction'!D53="خرید", 'Landing Page and Transaction'!H53, "") ->  | G44: =IF('Landing Page and Transaction'!D53="فروش", 'Landing Page and Transaction'!A53, "") -> خفنر_87129 | I44: =IF('Landing Page and Transaction'!D53="فروش", 'Landing Page and Transaction'!B53, "") -> خفنر | J44: =IF('Landing Page and Transaction'!D53="فروش", 'Landing Page and Transaction'!E53, "") -> 1403/03/27 | K44: =IF('Landing Page and Transaction'!D53="فروش", 'Landing Page and Transaction'!F53, "") -> 6048 | L44: =IF('Landing Page and Transaction'!D53="فروش", 'Landing Page and Transaction'!G53, "") -> 590 | M44: =IF('Landing Page and Transaction'!D53="فروش", 'Landing Page and Transaction'!H53, "") -> 35369187.84 | P44: =IF(OR(B44<>"", G44<>""), IFERROR(INDEX('دیده بان بازار'!K:K, MATCH(IF(B44<>"", B44, G44), 'دیده بان بازار'!A:A, 0)), ""), "") ->  | R44: =IF('Landing Page and Transaction'!D53="واریز", 'Landing Page and Transaction'!H53, "") ->  | S44: =IF('Landing Page and Transaction'!D53="واریز", 'Landing Page and Transaction'!E53, "") ->  | T44: =IF('Landing Page and Transaction'!D53="برداشت", 'Landing Page and Transaction'!H53, "") ->  | U44: =IF('Landing Page and Transaction'!D53="برداشت", 'Landing Page and Transaction'!E53, "") ->  | W44: =IF(OR(B44<>"", G44<>""), IFERROR(INDEX('دیده بان بازار'!K:K, MATCH(IF(B44<>"", B44, G44), 'دیده بان بازار'!A:A, 0)), ""), "") ->  | Z44: 0 | AA44: 35369187.84 | AB44: 7652581.939
A45: =IF('Landing Page and Transaction'!D54="خرید", 'Landing Page and Transaction'!A54, "") -> افران_77462 | B45: =IF('Landing Page and Transaction'!D54="خرید", 'Landing Page and Transaction'!B54, "") -> افران | C45: =IF('Landing Page and Transaction'!D54="خرید", 'Landing Page and Transaction'!E54, "") -> 1403/03/27 | D45: =IF('Landing Page and Transaction'!D54="خرید", 'Landing Page and Transaction'!F54, "") -> 742 | E45: =IF('Landing Page and Transaction'!D54="خرید", 'Landing Page and Transaction'!G54, "") -> 2692 | F45: =IF('Landing Page and Transaction'!D54="خرید", 'Landing Page and Transaction'!H54, "") -> -20048785.86 | G45: =IF('Landing Page and Transaction'!D54="فروش", 'Landing Page and Transaction'!A54, "") ->  | H45: افران_77462 | I45: =IF('Landing Page and Transaction'!D54="فروش", 'Landing Page and Transaction'!B54, "") ->  | J45: =IF('Landing Page and Transaction'!D54="فروش", 'Landing Page and Transaction'!E54, "") ->  | K45: =IF('Landing Page and Transaction'!D54="فروش", 'Landing Page and Transaction'!F54, "") ->  | L45: =IF('Landing Page and Transaction'!D54="فروش", 'Landing Page and Transaction'!G54, "") ->  | M45: =IF('Landing Page and Transaction'!D54="فروش", 'Landing Page and Transaction'!H54, "") ->  | P45: =IF(OR(B45<>"", G45<>""), IFERROR(INDEX('دیده بان بازار'!K:K, MATCH(IF(B45<>"", B45, G45), 'دیده بان بازار'!A:A, 0)), ""), "") -> 30523 | R45: =IF('Landing Page and Transaction'!D54="واریز", 'Landing Page and Transaction'!H54, "") ->  | S45: =IF('Landing Page and Transaction'!D54="واریز", 'Landing Page and Transaction'!E54, "") ->  | T45: =IF('Landing Page and Transaction'!D54="برداشت", 'Landing Page and Transaction'!H54, "") ->  | U45: =IF('Landing Page and Transaction'!D54="برداشت", 'Landing Page and Transaction'!E54, "") ->  | W45: =IF(OR(B45<>"", G45<>""), IFERROR(INDEX('دیده بان بازار'!K:K, MATCH(IF(B45<>"", B45, G45), 'دیده بان بازار'!A:A, 0)), ""), "") -> 30523 | Z45: -20048785.86 | AA45: 0 | AB45: -12396203.92
